Workbook

Sheet Inputs
A1: Mutual Fund SIP XIRR Tracker Version 3.0 - Aug 2017 | O1: =INDEX(L2:M6000,MATCH(AB3,L2:L6000,0),2) -> 102000 | Q1: wrt cat avg | R1: =IF(VALUE(B8)>Results!#REF!,1,0) ->  | S1: =IF(VALUE(C8)>C12,1,0) -> 1 | T1: =IF(VALUE(D8)>D12,1,0) -> 0 | U1: =IF(VALUE(E8)>E12,1,0) -> 0 | V1: =IF(VALUE(F8)>F12,1,0) -> 0 | X1: =SUM(R1:V1) ->  | AA1: =COUNTIF(Z2:Z6000,"?*") -> 4 | AD1: =INDEX($L$2:$M$5791,MATCH(E3,$L$2:$L$5791,0),2) -> 102000 | AE1: =CONCATENATE(AD2,"-",AD3,"-",AD4,"&todate=",AD5,"-",AD6,"-",AD7,"&mf=",AD8,"&scm=",AD1) -> 3-Apr-2006&todate=14-May-2019&mf=9&scm=102000 | AF1: =INDEX(AP1:AQ80,MATCH(C5,AP1:AP80,0),2) ->  | AP1: BSE SENSEX | AQ1: =CONCATENATE("http://ichart.finance.yahoo.com/table.csv?s=%5EBSESN&a=03&b=3&c=2006&d=",AF15,"&e=",AF14,"&f=",YEAR(TODAY()),"&g=d&ignore=.csv") -> http://ichart.finance.yahoo.com/table.csv?s=%5EBSESN&a=03&b=3&c=2006&d=4&e=14&f=2019&g=d&ignore=.csv | AR1: BSE30 | AS1: table.csv | AT1: =INDEX(AP1:AR80,MATCH(C5,AP1:AP80,0),3) ->  | AU1: =INDEX(AP1:AS80,MATCH(C5,AP1:AP80,0),3) ->  | AV1: Select end-date for analysis from this list of last few days | BA1: Historical Index price downloader | BI1: 1 | BJ1: =CONCATENATE(0,1) -> 01 | BK1: =CONCATENATE(0,1) -> 01 | BL1: 2000 | BM1: daily | BN1: 1 | BO1: =ROUND((250*(BN3-BN2)/365)/500,0)+2 -> 9 | BU1: =INDEX(BV1:BW145,MATCH(C5,BV1:BV145,0),2) -> 0 | BV1: BSE Sensex | BW1: 4 | CB1: NV20
A2: UTI Equity | G2: HDFC Top 100 | K2: =IF(ISNUMBER(SEARCH($G$2,L2)),MAX($K$1,K1)+1,0) -> 0 | L2: Axis Banking Debt Fund - Daily Dividend Option | M2: 117447 | N2: 53 | O2: =COUNTA(L2:L6000)+1 -> 5793 | Q2: wrt sensex | R2: =IF(VALUE(B8)>B16,1,0) -> 0 | S2: =IF(VALUE(C8)>Results!Q9,1,0) -> 0 | T2: =IF(VALUE(D8)>D14,1,0) -> 0 | U2: =IF(VALUE(E8)>E14,1,0) -> 0 | V2: =IF(VALUE(F8)>F14,1,0) -> 0 | X2: =SUM(R2:V2) -> 0 | Z2: =IFERROR(VLOOKUP(ROWS($Z$2:Z2),K2:L5792,2,0),"") -> HDFC Top 100 Fund - Dividend Option | AA2: =OFFSET(Z2,,,COUNTIF($Z$2:$Z$6000,"?*"),) -> HDFC Top 100 Fund - Dividend Option | AD2: 3 | AF2: =INDEX(AP1:AS80,MATCH(C5,AP1:AP80,0),4) ->  | AJ2: drop-down list | AP2: CNX NIFTY | AQ2: =CONCATENATE("http://ichart.finance.yahoo.com/table.csv?s=%5ENSEI&a=09&b=3&c=2013&d=",AF15,"&e=",AF14,"&f=",YEAR(TODAY()),"&g=d&ignore=.csv") -> http://ichart.finance.yahoo.com/table.csv?s=%5ENSEI&a=09&b=3&c=2013&d=4&e=14&f=2019&g=d&ignore=.csv | AR2: 0 | AS2: table.csv | AV2: 41732 | AW2: If there is an error in retrieving index data, | BI2: 2 | BJ2: =CONCATENATE(0,2) -> 02 | BK2: =CONCATENATE(0,2) -> 02 | BL2: =BL1+1 -> 2001 | BM2: monthly | BN2: =DATE(BD7,BC7,BB7) -> 38810 | BV2: BSE 100 | BW2: 1 | CB2: NQ30
A3: Step 2: select the scheme you need from the drop-down list | E3: HDFC Top 100 Fund - Growth Option | K3: 0 | L3: Axis Banking Debt Fund - Direct Plan - Daily Dividend Option | M3: 120437 | N3: 53 | Q3: wrt Nifty | R3: =IF(VALUE(B8)>B19,1,0) -> 0 | S3: =IF(VALUE(C8)>C16,1,0) -> 1 | T3: =IF(VALUE(D8)>D16,1,0) -> 0 | U3: =IF(VALUE(E8)>E16,1,0) -> 0 | V3: =IF(VALUE(F8)>F16,1,0) -> 0 | X3: =SUM(R3:V3) -> 1 | Z3: =IFERROR(VLOOKUP(ROWS($Z$2:Z3),K3:L5793,2,0),"") -> HDFC Top 100 Fund - Growth Option | AB3: =E3 -> HDFC Top 100 Fund - Growth Option | AD3: Apr | AE3: =TODAY() -> 43599 | AP3: CNX MIDCAP | AQ3: =CONCATENATE("http://ichart.finance.yahoo.com/table.csv?s=%5ECRSMID&a=09&b=3&c=2013&d=",AF15,"&e=",AF14,"&f=",YEAR(TODAY()),"&g=d&ignore=.csv") -> http://ichart.finance.yahoo.com/table.csv?s=%5ECRSMID&a=09&b=3&c=2013&d=4&e=14&f=2019&g=d&ignore=.csv | AR3: 0 | AS3: table.csv | AV3: change this date until the error resolves | BA3: Choose the index | BB3: BSE Oil and Gas | BI3: 3 | BJ3: =CONCATENATE(0,3) -> 03 | BK3: =CONCATENATE(0,3) -> 03 | BL3: =BL2+1 -> 2002 | BM3: yearly | BN3: =DATE(BD9,BC9,BB9) -> 43599 | BV3: BSE 200 | BW3: 2 | CB3: Alpha50
K4: 0 | L4: Axis Banking Debt Fund - Direct Plan - Growth Option | M4: 120438 | N4: 53 | R4: =SUM(R1:R3) ->  | S4: =SUM(S1:S3) -> 2 | T4: =SUM(T1:T3) -> 0 | U4: =SUM(U1:U3) -> 0 | V4: =SUM(V1:V3) -> 0 | Z4: =IFERROR(VLOOKUP(ROWS($Z$2:Z4),K4:L5794,2,0),"") -> HDFC Top 100 Fund -Direct Plan - Dividend Option | AD4: 2006 | AE4: =AE3-(365*AF4) -> 43234 | AF4: 1 | AG4: 365 | AH4: BSE SENSEX | AJ4: BSESN | AP4: CNX 500 | AQ4: =CONCATENATE("http://ichart.finance.yahoo.com/table.csv?s=%5ECRSLDX&a=09&b=3&c=2013&d=",AF15,"&e=",AF14,"&f=",YEAR(TODAY()),"&g=d&ignore=.csv") -> http://ichart.finance.yahoo.com/table.csv?s=%5ECRSLDX&a=09&b=3&c=2013&d=4&e=14&f=2019&g=d&ignore=.csv | AR4: 0 | AS4: table.csv | BI4: 4 | BJ4: =CONCATENATE(0,4) -> 04 | BK4: =CONCATENATE(0,4) -> 04 | BL4: 2003 | BN4: =CONCATENATE(BD7,"-",BC7,"-",BB7) -> 2006-04-03 | BV4: BSE 500 | BW4: 12 | CB4: NDivOpp
A5: Step 3: Select Index for comparison | C5: NIFTY 50 | K5: 0 | L5: Axis Banking Debt Fund - Direct Plan - Monthly Dividend Option | M5: 120439 | N5: 53 | Z5: =IFERROR(VLOOKUP(ROWS($Z$2:Z5),K5:L5795,2,0),"") -> HDFC Top 100 Fund -Direct Plan - Growth Option | AD5: =DAY(TODAY()) -> 14 | AE5: =AE4-(365*AF5) -> 42139 | AF5: 3 | AH5: CNX NIFTY | AJ5: NSEI | AP5: CNX 100 | AQ5: =CONCATENATE("http://ichart.finance.yahoo.com/table.csv?s=%5ECNX100&a=09&b=3&c=2013&d=",AF15,"&e=",AF14,"&f=",YEAR(TODAY()),"&g=d&ignore=.csv") -> http://ichart.finance.yahoo.com/table.csv?s=%5ECNX100&a=09&b=3&c=2013&d=4&e=14&f=2019&g=d&ignore=.csv | AR5: 0 | AS5: table.csv | BA5: Enter interval | BC5: Daily data will take about 30 secs to download. | BI5: 5 | BJ5: =CONCATENATE(0,5) -> 05 | BK5: =CONCATENATE(0,5) -> 05 | BL5: 2004 | BN5: =CONCATENATE(BD9,"-",BC9,"-",BB9) -> 2019-05-14 | BV5: BSE Bankex | BW5: 18 | BY5: Optionally you can analyse the | CB5: NLV50
A6: All Nifty indices refer to total return indices (dividends are assumed to be reinvested) | K6: 0 | L6: Axis Banking Debt Fund - Direct Plan - Weekly Dividend Option | M6: 120436 | N6: 53 | Z6: =IFERROR(VLOOKUP(ROWS($Z$2:Z6),K6:L5796,2,0),"") ->  | AD6: =TEXT(TODAY(),"mmm") -> May | AE6: =AE5-(365*AF6) -> 40314 | AF6: 5 | AH6: CNX MIDCAP | AJ6: CRSMID | AP6: BSE Small Cap | AQ6: =CONCATENATE("http://ichart.finance.yahoo.com/table.csv?s=BSE-SMLCAP.BO&a=09&b=1&c=2013&d=",AF15,"&e=",AF14,"&f=",YEAR(TODAY()),"&g=d&ignore=.csv") -> http://ichart.finance.yahoo.com/table.csv?s=BSE-SMLCAP.BO&a=09&b=1&c=2013&d=4&e=14&f=2019&g=d&ignore=.csv | AS6: table.csv | BB6: Day | BC6: Month | BD6: Year | BI6: 6 | BJ6: =CONCATENATE(0,6) -> 06 | BK6: =CONCATENATE(0,6) -> 06 | BL6: 2005 | BN6: =CONCATENATE("http://www.moneycontrol.com/stocks/hist_index_result.php?indian_indices=",BU1,"&pno=1&hdn=daily&fdt=",BN4,"&todt=",BN4) -> http://www.moneycontrol.com/stocks/hist_index_result.php?indian_indices=0&pno=1&hdn=daily&fdt=2006-04-03&todt=2006-04-03 | BV6: BSE Capital Goods | BW6: 13 | BY6: fund and benchmark separately | CB6: NGS15
K7: 0 | L7: Axis Banking Debt Fund - Growth option | M7: 117446 | N7: 53 | Z7: =IFERROR(VLOOKUP(ROWS($Z$2:Z7),K7:L5797,2,0),"") ->  | AD7: =YEAR(TODAY()) -> 2019 | AE7: =AE6-(365*AF7) -> 37759 | AF7: 7 | AH7: CNX SMALLCAP | AP7: BSE Mid cap | AQ7: =CONCATENATE("http://ichart.finance.yahoo.com/table.csv?s=BSE-MIDCAP.BO&a=09&b=1&c=2013&d=",AF15,"&e=",AF14,"&f=",YEAR(TODAY()),"&g=d&ignore=.csv") -> http://ichart.finance.yahoo.com/table.csv?s=BSE-MIDCAP.BO&a=09&b=1&c=2013&d=4&e=14&f=2019&g=d&ignore=.csv | AS7: table.csv | BA7: Choose start date | BB7: 03 | BC7: 04 | BD7: 2006 | BI7: 7 | BJ7: =CONCATENATE(0,7) -> 07 | BK7: =CONCATENATE(0,7) -> 07 | BL7: 2006 | BV7: BSE Oil and Gas | BW7: 22 | CB7: NIftynext50
A8: For a monthly SIP amount of | C8: 1000 | K8: 0 | L8: Axis Banking Debt Fund - Monthly Dividend Option | M8: 117449 | N8: 53 | Z8: =IFERROR(VLOOKUP(ROWS($Z$2:Z8),K8:L5798,2,0),"") ->  | AD8: =INDEX($L$1:$N$5791,MATCH(E3,$L$1:$L$5791,0),3) -> 9 | AE8: =AE7-(365*AF8) -> 34109 | AF8: 10 | AH8: CNX 500 | AP8: BSE 200 | AQ8: =CONCATENATE("http://ichart.finance.yahoo.com/table.csv?s=BSE-200.BO&a=09&b=3&c=2013&d=",AF15,"&e=",AF14,"&f=",YEAR(TODAY()),"&g=d&ignore=.csv") -> http://ichart.finance.yahoo.com/table.csv?s=BSE-200.BO&a=09&b=3&c=2013&d=4&e=14&f=2019&g=d&ignore=.csv | AS8: table.csv | BB8: Day | BC8: Month | BD8: Year | BI8: 8 | BJ8: =CONCATENATE(0,8) -> 08 | BK8: =CONCATENATE(0,8) -> 08 | BL8: 2007 | BN8: http://www.moneycontrol.com/stocks/hist_index_result.php?indian_indices=4&pno=1&hdn=daily&fdt=2000-01-01&todt=2016-01-01 | BV8: BSE Metals | BW8: 21 | CB8: Nifty-TRI
K9: 0 | L9: Axis Banking Debt Fund - Weekly Dividend option | M9: 117448 | N9: 53 | Z9: =IFERROR(VLOOKUP(ROWS($Z$2:Z9),K9:L5799,2,0),"") ->  | AF9: CNX NIFTY30-09-2013-01-10-2013.csv | AH9: CNX 100 | AJ9: =TODAY() -> 43599 | AP9: BSE 100 | AQ9: =CONCATENATE("http://ichart.finance.yahoo.com/table.csv?s=BSE-100.BO&a=09&b=3&c=2013&d=",AF15,"&e=",AF14,"&f=",YEAR(TODAY()),"&g=d&ignore=.csv") -> http://ichart.finance.yahoo.com/table.csv?s=BSE-100.BO&a=09&b=3&c=2013&d=4&e=14&f=2019&g=d&ignore=.csv | AS9: table.csv | BA9: Choose end date | BB9: =INDEX(BI1:BK31,MATCH(DAY(TODAY()),BI1:BI31,0),3) -> 14 | BC9: =INDEX(BI1:BK31,MATCH(MONTH(TODAY()),BI1:BI31,0),2) -> 05 | BD9: =YEAR(TODAY()) -> 2019 | BI9: 9 | BJ9: =CONCATENATE(0,9) -> 09 | BK9: =CONCATENATE(0,9) -> 09 | BL9: 2008 | BV9: BSE IT | BW9: 17 | CB9: Sensex-TRI
A10: SIP Start Date (or first installment) | C10: 2013-01-03 | D10: Not before 3rd April 2006 | K10: 0 | L10: Axis Constant Maturity 10 Year Fund - Direct Plan - Half Yearly Dividend Option | M10: 120448 | N10: 53 | Z10: =IFERROR(VLOOKUP(ROWS($Z$2:Z10),K10:L5800,2,0),"") ->  | AF10: =CONCATENATE("0",AD2,"-","0",4,"-",2006,"-",AF14,"-",AF15,"-",YEAR(TODAY()),".csv") -> 03-04-2006-14-4-2019.csv | AH10: =IF(C5=AH5,"CNX%20NIFTY",IF(C5=AH6,"CNX%20MIDCAP",IF(C5=AH7,"CNX%20SMALLCAP",0))) -> 0 | AJ10: =AJ9-1 -> 43598 | AP10: BSE 500 | AQ10: =CONCATENATE("http://ichart.finance.yahoo.com/table.csv?s=BSE-500.BO&a=09&b=3&c=2013&d=",AF15,"&e=",AF14,"&f=",YEAR(TODAY()),"&g=d&ignore=.csv") -> http://ichart.finance.yahoo.com/table.csv?s=BSE-500.BO&a=09&b=3&c=2013&d=4&e=14&f=2019&g=d&ignore=.csv | AS10: table.csv | BI10: 10 | BJ10: 10 | BK10: 10 | BL10: 2009 | BV10: BSE Auto | BW10: 20 | CB10: BSE200-TRI
A11: SIP End Date (or last installment) | C11: =TODAY() -> 2019-05-14 | D11: Not after last business day | K11: 0 | L11: Axis Constant Maturity 10 Year Fund - Regular Dividend Option | M11: 116470 | N11: 53 | Z11: =IFERROR(VLOOKUP(ROWS($Z$2:Z11),K11:L5801,2,0),"") ->  | AF11: 30-09-2013-01-10-2013.csv | AJ11: =AJ10-1 -> 43597 | BI11: 11 | BJ11: 11 | BK11: 11 | BL11: 2010 | BV11: BSE Healthcare | BW11: 15 | CB11: BSE500-TRI
K12: 0 | L12: Axis Constatnt Maturity 10 Year Fund - Direct Plan - Growth Option | M12: 120447 | N12: 53 | Z12: =IFERROR(VLOOKUP(ROWS($Z$2:Z12),K12:L5802,2,0),"") ->  | AF12: =DATE(AD4,4,AD2) -> 38810 | AH12: =IF(C5=AH5,"CNX%20NIFTY",IF(C5=AH6,"CNX%20MIDCAP",IF(C5=AH7,"CNX%20SMALLCAP",0))) -> 0 | AJ12: =AJ11-1 -> 43596 | BI12: 12 | BJ12: 12 | BK12: 12 | BL12: 2011 | BV12: BSE FMCG | BW12: 14 | CB12: BSE Sensex | CC12: 4
K13: 0 | L13: Axis Dynamic Bond Fund - Direct Plan - Growth Option | M13: 120451 | N13: 53 | Z13: =IFERROR(VLOOKUP(ROWS($Z$2:Z13),K13:L5803,2,0),"") ->  | AF13: =TODAY() -> 43599 | AJ13: =AJ12-1 -> 43595 | BI13: =BI12+1 -> 13 | BK13: =BK12+1 -> 13 | BL13: 2012 | BV13: BSE Realty | BW13: 29 | CB13: Cnx Nifty | CC13: 9
K14: 0 | L14: Axis Dynamic Bond Fund - Direct Plan - Half Yearly Dividend Option | M14: 120450 | N14: 53 | Z14: =IFERROR(VLOOKUP(ROWS($Z$2:Z14),K14:L5804,2,0),"") ->  | AF14: =DAY(TODAY()) -> 14 | AG14: =IF(DAY(TODAY())<10,CONCATENATE(0,DAY(TODAY())),DAY(TODAY())) -> 14 | BI14: =BI13+1 -> 14 | BK14: 14 | BL14: 2013 | BV14: BSE TECk | BW14: 10 | CB14: BSE Small Cap | CC14: 26
K15: 0 | L15: Axis Dynamic Bond Fund - Direct Plan - Quarterly Dividend Option | M15: 120452 | N15: 53 | Z15: =IFERROR(VLOOKUP(ROWS($Z$2:Z15),K15:L5805,2,0),"") ->  | AF15: =MONTH(TODAY())-1 -> 4 | AG15: =IF(MONTH(TODAY())<10,CONCATENATE(0,MONTH(TODAY())),MONTH(TODAY())) -> 05 | BI15: 15 | BK15: 15 | BL15: 2014 | BV15: BSE PSU | BW15: 11 | CB15: BSE Mid cap | CC15: 25
K16: 0 | L16: Axis Dynamic Bond Fund - Growth Option | M16: 115068 | N16: 53 | Z16: =IFERROR(VLOOKUP(ROWS($Z$2:Z16),K16:L5806,2,0),"") ->  | AG16: =YEAR(TODAY()) -> 2019 | BI16: 16 | BK16: 16 | BL16: 2015 | BV16: BSE Consumer Durables | BW16: 16 | CB16: BSE 100 | CC16: 1
K17: 0 | L17: Axis Dynamic Bond Fund - Half Yearly Dividend option | M17: 115131 | N17: 53 | Z17: =IFERROR(VLOOKUP(ROWS($Z$2:Z17),K17:L5807,2,0),"") ->  | BI17: 17 | BK17: 17 | BL17: 2016 | BV17: BSE Power | BW17: 30 | CB17: BSE 200 | CC17: 2
K18: 0 | L18: Axis Dynamic Bond Fund - Quarterly Dividend option | M18: 115069 | N18: 53 | Z18: =IFERROR(VLOOKUP(ROWS($Z$2:Z18),K18:L5808,2,0),"") ->  | AF18: =CONCATENATE("http://www.nseindia.com/content/indices/histdata/",AH10,CONCATENATE(30),"-",CONCATENATE(0,9),"-",2013,"-",AG14,"-",AG15,"-",YEAR(AV2),".csv") -> http://www.nseindia.com/content/indices/histdata/030-09-2013-14-05-2014.csv | BI18: 18 | BK18: 18 | BL18: 2017 | BV18: BSE Shariah | BW18: 37 | CB18: BSE 500 | CC18: 12
K19: 0 | L19: Axis Equity Fund - Direct Plan - Dividend | M19: 120466 | N19: 53 | Z19: =IFERROR(VLOOKUP(ROWS($Z$2:Z19),K19:L5809,2,0),"") ->  | AF19: =CONCATENATE(C5,CONCATENATE(30),"-",CONCATENATE(0,9),"-",2013,"-",AG14,"-",AG15,"-",YEAR(TODAY()),".csv") -> NIFTY 5030-09-2013-14-05-2019.csv | BI19: 19 | BK19: 19 | BL19: 2018 | BV19: BSE IPO | BW19: 33 | CB19: BSE Bankex | CC19: 18
K20: 0 | L20: Axis Equity Fund - Direct Plan - Growth | M20: 120465 | N20: 53 | Z20: =IFERROR(VLOOKUP(ROWS($Z$2:Z20),K20:L5810,2,0),"") ->  | AE20: sensex | BI20: 20 | BK20: 20 | BL20: 2019 | BV20: NIFTY 50 | CB20: BSE Capital Goods | CC20: 13
K21: 0 | L21: Axis Equity Fund - Dividend | M21: 112278 | N21: 53 | Z21: =IFERROR(VLOOKUP(ROWS($Z$2:Z21),K21:L5811,2,0),"") ->  | AF21: table.csv | BI21: 21 | BK21: 21 | BL21: 2020 | BV21: NIFTY NEXT 50 | CB21: BSE Oil and Gas | CC21: 22
K22: 0 | L22: Axis Equity Fund - Growth | M22: 112277 | N22: 53 | Z22: =IFERROR(VLOOKUP(ROWS($Z$2:Z22),K22:L5812,2,0),"") ->  | AE22: nifty | BI22: 22 | BK22: 22 | BL22: 2021 | BQ22: Nifty-TRI | BV22: NIFTY100 LIQ 15 | CB22: BSE Metals | CC22: 21
K23: 0 | L23: Axis Focused 25 Fund - Direct Plan - Dividend Option | M23: 120467 | N23: 53 | Z23: =IFERROR(VLOOKUP(ROWS($Z$2:Z23),K23:L5813,2,0),"") ->  | AF23: http://www.nseindia.com/content/indices/histdata/CNX%20MIDCAP03-04-2006-01-10-2013.csv | BI23: 23 | BK23: 23 | BL23: 2022 | BQ23: Sensex-TRI | BV23: NIFTY MID LIQ 15 | CB23: BSE IT | CC23: 17
K24: 0 | L24: Axis Focused 25 Fund - Direct Plan - Growth Option | M24: 120468 | N24: 53 | Z24: =IFERROR(VLOOKUP(ROWS($Z$2:Z24),K24:L5814,2,0),"") ->  | AF24: http://ichart.finance.yahoo.com/table.csv?s=%5EBSESN&a=03&b=3&c=2006&d=09&e=2&f=2013&g=d&ignore=.csv | BI24: 24 | BK24: 24 | BL24: 2023 | BQ24: BSE200-TRI | BV24: NIFTY 100 | CB24: BSE Auto | CC24: 20
K25: 0 | L25: Axis Focused 25 Fund - Dividend Option | M25: 117559 | N25: 53 | Z25: =IFERROR(VLOOKUP(ROWS($Z$2:Z25),K25:L5815,2,0),"") ->  | AF25: http://www.nseindia.com/content/indices/histdata/CNX%20MIDCAP03-04-2006-01-10-2013.csv | BI25: 25 | BK25: 25 | BL25: 2024 | BQ25: BSE500-TRI | BV25: NIFTY 200 | CB25: BSE Healthcare | CC25: 15
K26: 0 | L26: Axis Focused 25 Fund - Growth Option | M26: 117560 | N26: 53 | Z26: =IFERROR(VLOOKUP(ROWS($Z$2:Z26),K26:L5816,2,0),"") ->  | BI26: 26 | BK26: 26 | BL26: 2025 | BQ26: BSE Sensex | BR26: 4 | BV26: NIFTY 500 | CB26: BSE FMCG | CC26: 14
K27: 0 | L27: Axis Gold ETF | M27: 113434 | N27: 53 | Z27: =IFERROR(VLOOKUP(ROWS($Z$2:Z27),K27:L5817,2,0),"") ->  | AE27: cnx midcap | BI27: 27 | BK27: 27 | BL27: 2026 | BQ27: Cnx Nifty | BR27: 9 | BV27: NIFTY MIDCAP 150 | CB27: BSE Realty | CC27: 29
K28: 0 | L28: Axis Gold Fund - Direct Plan - Dividend option | M28: 120472 | N28: 53 | Z28: =IFERROR(VLOOKUP(ROWS($Z$2:Z28),K28:L5818,2,0),"") ->  | AE28: cnx 500 | BI28: 28 | BK28: 28 | BL28: 2027 | BQ28: BSE Small Cap | BR28: 26 | BV28: NIFTY MIDCAP 50 | CB28: BSE TECk | CC28: 10
K29: 0 | L29: Axis Gold Fund - Direct Plan - Growth option | M29: 120473 | N29: 53 | Z29: =IFERROR(VLOOKUP(ROWS($Z$2:Z29),K29:L5819,2,0),"") ->  | BI29: 29 | BK29: 29 | BL29: 2028 | BQ29: BSE Mid cap | BR29: 25 | BV29: NIFTY FULL MIDCAP 100 | CB29: BSE PSU | CC29: 11
K30: 0 | L30: Axis Gold Fund - Dividend Option | M30: 115898 | N30: 53 | Z30: =IFERROR(VLOOKUP(ROWS($Z$2:Z30),K30:L5820,2,0),"") ->  | AF30: =IF(C5=AH4,AQ1,IF(C5=AH5,AQ2,)) -> 0 | BI30: =BI29+1 -> 30 | BK30: 30 | BL30: 2029 | BQ30: BSE 100 | BR30: 1 | BV30: NIFTY MID100 FREE | CB30: BSE Consumer Durables | CC30: 16
K31: 0 | L31: Axis Gold Fund - Growth Option | M31: 115897 | N31: 53 | Z31: =IFERROR(VLOOKUP(ROWS($Z$2:Z31),K31:L5821,2,0),"") ->  | BI31: 31 | BK31: 31 | BL31: 2030 | BQ31: BSE 200 | BR31: 2 | BV31: NIFTY SMALLCAP 250 | CB31: BSE Power | CC31: 30
K32: 0 | L32: Axis Income Fund - Direct Plan - Growth Option | M32: 120475 | N32: 53 | Z32: =IFERROR(VLOOKUP(ROWS($Z$2:Z32),K32:L5822,2,0),"") ->  | BL32: 2031 | BQ32: BSE 500 | BR32: 12 | BV32: NIFTY SMALLCAP 50 | CB32: BSE Shariah | CC32: 37
K33: 0 | L33: Axis Income Fund - Direct Plan - Quarterly Dividend option | M33: 120476 | N33: 53 | Z33: =IFERROR(VLOOKUP(ROWS($Z$2:Z33),K33:L5823,2,0),"") ->  | BL33: 2032 | BQ33: BSE Bankex | BR33: 18 | BV33: NIFTY FULL SMALLCAP 100 | CB33: BSE IPO | CC33: 33
K34: 0 | L34: Axis Income Fund - Growth Option | M34: 116894 | N34: 53 | Z34: =IFERROR(VLOOKUP(ROWS($Z$2:Z34),K34:L5824,2,0),"") ->  | BL34: 2033 | BQ34: BSE Capital Goods | BR34: 13 | BV34: NIFTY SML100 FREE | CB34: NSE Mid cap | CC34: 27
K35: 0 | L35: Axis Income Fund - Half Yearly Dividend Option | M35: 116896 | N35: 53 | Z35: =IFERROR(VLOOKUP(ROWS($Z$2:Z35),K35:L5825,2,0),"") ->  | BL35: 2034 | BQ35: BSE Oil and Gas | BR35: 22 | BV35: NIFTY MIDSMALLCAP 400 | CB35: Nifty Junior | CC35: 6
K36: 0 | L36: Axis Income Fund - Quarterly Dividend Option | M36: 116895 | N36: 53 | Z36: =IFERROR(VLOOKUP(ROWS($Z$2:Z36),K36:L5826,2,0),"") ->  | BL36: 2035 | BQ36: BSE Metals | BR36: 21 | BV36: NIFTY AUTO | CB36: CNX Defty | CC36: 8
K37: 0 | L37: Axis Income Saver - Direct Plan - Dividend Option - Annual Dividend Option | M37: 120477 | N37: 53 | Z37: =IFERROR(VLOOKUP(ROWS($Z$2:Z37),K37:L5827,2,0),"") ->  | BL37: 2036 | BQ37: BSE IT | BR37: 17 | BV37: NIFTY BANK | CB37: CNX Midcap 50 | CC37: 31
K38: 0 | L38: Axis Income Saver - Direct Plan - Growth Option | M38: 120480 | N38: 53 | Z38: =IFERROR(VLOOKUP(ROWS($Z$2:Z38),K38:L5828,2,0),"") ->  | BL38: 2037 | BQ38: BSE Auto | BR38: 20 | BV38: NIFTY ENERGY | CB38: CNX 100 | CC38: 28
K39: 0 | L39: Axis Income Saver - Direct Plan - Half Yearly | M39: 120478 | N39: 53 | Z39: =IFERROR(VLOOKUP(ROWS($Z$2:Z39),K39:L5829,2,0),"") ->  | BL39: 2038 | BQ39: BSE Healthcare | BR39: 15 | BV39: NIFTY FIN SERVICE | CB39: CNX 500 | CC39: 7
K40: 0 | L40: Axis Income Saver - Direct Plan - Quarterly | M40: 120479 | N40: 53 | Z40: =IFERROR(VLOOKUP(ROWS($Z$2:Z40),K40:L5830,2,0),"") ->  | BL40: 2039 | BQ40: BSE FMCG | BR40: 14 | BV40: NIFTY FMCG | CB40: CNX Bank Nifty | CC40: 23
K41: 0 | L41: Axis Income Saver - Dividend Option - Annual Dividend Option | M41: 112927 | N41: 53 | Z41: =IFERROR(VLOOKUP(ROWS($Z$2:Z41),K41:L5831,2,0),"") ->  | BL41: 2040 | BQ41: BSE Realty | BR41: 29 | BV41: NIFTY IT | CB41: CXN IT | CC41: 19
K42: 0 | L42: Axis Income Saver - Dividend Option - Half Yearly | M42: 112926 | N42: 53 | Z42: =IFERROR(VLOOKUP(ROWS($Z$2:Z42),K42:L5832,2,0),"") ->  | BL42: 2041 | BQ42: BSE TECk | BR42: 10 | BV42: NIFTY MEDIA | CB42: CNX Realty | CC42: 34
K43: 0 | L43: Axis Income Saver - Dividend Option - Quarterly | M43: 112925 | N43: 53 | Z43: =IFERROR(VLOOKUP(ROWS($Z$2:Z43),K43:L5833,2,0),"") ->  | BL43: 2042 | BQ43: BSE PSU | BR43: 11 | BV43: NIFTY METAL | CB43: CNX Infra | CC43: 35
K44: 0 | L44: Axis Income Saver -Growth Option | M44: 112924 | N44: 53 | Z44: =IFERROR(VLOOKUP(ROWS($Z$2:Z44),K44:L5834,2,0),"") ->  | BQ44: BSE Consumer Durables | BR44: 16 | BV44: NIFTY PHARMA | CB44: CNX Energy | CC44: 38
K45: 0 | L45: Axis Liquid Fund - Daily Dividend Option | M45: 112211 | N45: 53 | Z45: =IFERROR(VLOOKUP(ROWS($Z$2:Z45),K45:L5835,2,0),"") ->  | BQ45: BSE Power | BR45: 30 | BV45: NIFTY PVT BANK | CB45: CNX FMCG | CC45: 39
K46: 0 | L46: Axis Liquid Fund - Direct Plan - Daily Dividend Option | M46: 120388 | N46: 53 | Z46: =IFERROR(VLOOKUP(ROWS($Z$2:Z46),K46:L5836,2,0),"") ->  | BQ46: BSE Shariah | BR46: 37 | BV46: NIFTY PSU BANK | CB46: CNX MNC | CC46: 40
K47: 0 | L47: Axis Liquid Fund - Direct Plan - Growth Option | M47: 120389 | N47: 53 | Z47: =IFERROR(VLOOKUP(ROWS($Z$2:Z47),K47:L5837,2,0),"") ->  | BQ47: BSE IPO | BR47: 33 | BV47: NIFTY REALTY | CB47: CNX Pharma | CC47: 41
K48: 0 | L48: Axis Liquid Fund - Direct Plan - Monthly Dividend Option | M48: 120391 | N48: 53 | Z48: =IFERROR(VLOOKUP(ROWS($Z$2:Z48),K48:L5838,2,0),"") ->  | BQ48: NSE Mid cap | BR48: 27 | BV48: NIFTY COMMODITIES | CB48: CNX PSE | CC48: 42
K49: 0 | L49: Axis Liquid Fund - Direct Plan - Weekly Dividend Option | M49: 120390 | N49: 53 | Z49: =IFERROR(VLOOKUP(ROWS($Z$2:Z49),K49:L5839,2,0),"") ->  | BQ49: Nifty Junior | BR49: 6 | BV49: NIFTY CONSUMPTION | CB49: CNX PSU Bank | CC49: 43
K50: 0 | L50: Axis Liquid Fund - Growth Option | M50: 112210 | N50: 53 | Z50: =IFERROR(VLOOKUP(ROWS($Z$2:Z50),K50:L5840,2,0),"") ->  | BQ50: CNX Defty | BR50: 8 | BV50: NIFTY CPSE | CB50: CNX Service | CC50: 44
K51: 0 | L51: Axis Liquid Fund - Monthly Dividend Option | M51: 112213 | N51: 53 | Z51: =IFERROR(VLOOKUP(ROWS($Z$2:Z51),K51:L5841,2,0),"") ->  | BQ51: CNX Midcap 50 | BR51: 31 | BV51: NIFTY INFRA | CB51: CNX Media | CC51: 50
K52: 0 | L52: Axis Liquid Fund - Retail Plan - Daily Dividend Option | M52: 112712 | N52: 53 | Z52: =IFERROR(VLOOKUP(ROWS($Z$2:Z52),K52:L5842,2,0),"") ->  | BQ52: CNX 100 | BR52: 28 | BV52: NIFTY MNC | CB52: CNX Metal | CC52: 51
K53: 0 | L53: Axis Liquid Fund - Retail Plan - Growth Option | M53: 112713 | N53: 53 | Z53: =IFERROR(VLOOKUP(ROWS($Z$2:Z53),K53:L5843,2,0),"") ->  | BQ53: CNX 500 | BR53: 7 | BV53: NIFTY PSE | CB53: CNX Auto | CC53: 52
K54: 0 | L54: Axis Liquid Fund - Retail Plan - Monthly Dividend Option | M54: 112714 | N54: 53 | Z54: =IFERROR(VLOOKUP(ROWS($Z$2:Z54),K54:L5844,2,0),"") ->  | BQ54: CNX Bank Nifty | BR54: 23 | BV54: NIFTY SERV SECTOR | CB54: India VIX | CC54: 36
K55: 0 | L55: Axis Liquid Fund - Retail Plan - Weekly Dividend Option | M55: 112715 | N55: 53 | Z55: =IFERROR(VLOOKUP(ROWS($Z$2:Z55),K55:L5845,2,0),"") ->  | BQ55: CXN IT | BR55: 19 | BV55: NIFTY SHARIAH 25
K56: 0 | L56: Axis Liquid Fund - Weekly Dividend Option | M56: 112212 | N56: 53 | Z56: =IFERROR(VLOOKUP(ROWS($Z$2:Z56),K56:L5846,2,0),"") ->  | BQ56: CNX Realty | BR56: 34 | BV56: NIFTY50 SHARIAH
K57: 0 | L57: Axis Long Term Equity Fund - Direct Plan - Dividend option | M57: 120502 | N57: 53 | Z57: =IFERROR(VLOOKUP(ROWS($Z$2:Z57),K57:L5847,2,0),"") ->  | BQ57: CNX Infra | BR57: 35 | BV57: NIFTY500 SHARIAH
K58: 0 | L58: Axis Long Term Equity Fund - Direct Plan - Growth Option | M58: 120503 | N58: 53 | Z58: =IFERROR(VLOOKUP(ROWS($Z$2:Z58),K58:L5848,2,0),"") ->  | BQ58: CNX Energy | BR58: 38 | BV58: NIFTY ADITYA BIRLA GROUP
K59: 0 | L59: Axis Long Term Equity Fund - Dividend | M59: 112322 | N59: 53 | Z59: =IFERROR(VLOOKUP(ROWS($Z$2:Z59),K59:L5849,2,0),"") ->  | BQ59: CNX FMCG | BR59: 39 | BV59: NIFTY MAHINDRA GROUP
K60: 0 | L60: Axis Long Term Equity Fund - Growth | M60: 112323 | N60: 53 | Z60: =IFERROR(VLOOKUP(ROWS($Z$2:Z60),K60:L5850,2,0),"") ->  | BQ60: CNX MNC | BR60: 40 | BV60: NIFTY TATA GROUP
K61: 0 | L61: Axis Midcap Fund - Direct Plan - Dividend | M61: 120504 | N61: 53 | Z61: =IFERROR(VLOOKUP(ROWS($Z$2:Z61),K61:L5851,2,0),"") ->  | BQ61: CNX Pharma | BR61: 41 | BV61: NIFTY TATA GROUP 25% CAP
K62: 0 | L62: Axis Midcap Fund - Direct Plan - Growth | M62: 120505 | N62: 53 | Z62: =IFERROR(VLOOKUP(ROWS($Z$2:Z62),K62:L5852,2,0),"") ->  | BQ62: CNX PSE | BR62: 42 | BV62: NIFTY100 EQUAL WEIGHT
K63: 0 | L63: Axis Midcap Fund - Dividend | M63: 114565 | N63: 53 | Z63: =IFERROR(VLOOKUP(ROWS($Z$2:Z63),K63:L5853,2,0),"") ->  | BQ63: CNX PSU Bank | BR63: 43 | BV63: NIFTY50 USD
K64: 0 | L64: Axis Midcap Fund - Growth | M64: 114564 | N64: 53 | Z64: =IFERROR(VLOOKUP(ROWS($Z$2:Z64),K64:L5854,2,0),"") ->  | BQ64: CNX Service | BR64: 44 | BV64: NIFTY50 DIV POINT
K65: 0 | L65: Axis Short Term Fund - Direct Plan - Growth Option | M65: 120510 | N65: 53 | Z65: =IFERROR(VLOOKUP(ROWS($Z$2:Z65),K65:L5855,2,0),"") ->  | BQ65: CNX Media | BR65: 50 | BV65: NIFTY DIV OPPS 50
K66: =IF(ISNUMBER(SEARCH($G$2,L66)),MAX($K$1,K65)+1,0) -> 0 | L66: Axis Short Term Fund - Direct Plan - Monthly Dividend Option | M66: 120511 | N66: 53 | Z66: =IFERROR(VLOOKUP(ROWS($Z$2:Z66),K66:L5856,2,0),"") ->  | BQ66: CNX Metal | BR66: 51 | BV66: NIFTY ALPHA 50
K67: 0 | L67: Axis Short Term Fund - Direct Plan - Regular Dividend Option | M67: 120512 | N67: 53 | Z67: =IFERROR(VLOOKUP(ROWS($Z$2:Z67),K67:L5857,2,0),"") ->  | BQ67: CNX Auto | BR67: 52 | BV67: NIFTY 50 ARBITRAGE
K68: 0 | L68: Axis Short Term Fund - Growth Option | M68: 112354 | N68: 53 | Z68: =IFERROR(VLOOKUP(ROWS($Z$2:Z68),K68:L5858,2,0),"") ->  | BQ68: India VIX | BR68: 36 | BV68: NIFTY 50 FUTURES INDEX
K69: 0 | L69: Axis Short Term Fund - Monthly Dividend Option | M69: 112355 | N69: 53 | Z69: =IFERROR(VLOOKUP(ROWS($Z$2:Z69),K69:L5859,2,0),"") ->  | BV69: NIFTY 50 FUTURES TR INDEX
K70: 0 | L70: Axis Short Term Fund - Regular Dividend Option | M70: 112369 | N70: 53 | Z70: =IFERROR(VLOOKUP(ROWS($Z$2:Z70),K70:L5860,2,0),"") ->  | BV70: NIFTY HIGH BETA 50
K71: 0 | L71: Axis Short Term Fund - Retail Plan - Growth Option | M71: 112721 | N71: 53 | Z71: =IFERROR(VLOOKUP(ROWS($Z$2:Z71),K71:L5861,2,0),"") ->  | BV71: NIFTY LOW VOLATILITY 50
K72: 0 | L72: Axis Short Term Fund - Retail Plan - Monthly Dividend Option | M72: 112723 | N72: 53 | Z72: =IFERROR(VLOOKUP(ROWS($Z$2:Z72),K72:L5862,2,0),"") ->  | BV72: NIFTY QUALITY 30
K73: 0 | L73: Axis Short Term Fund - Retail Plan - Regular Dividend Option | M73: 112722 | N73: 53 | Z73: =IFERROR(VLOOKUP(ROWS($Z$2:Z73),K73:L5863,2,0),"") ->  | BV73: NIFTY50 VALUE 20
K74: 0 | L74: Axis Treasury Advantage Fund - Daily Dividend Option | M74: 112215 | N74: 53 | Z74: =IFERROR(VLOOKUP(ROWS($Z$2:Z74),K74:L5864,2,0),"") ->  | BV74: NIFTY GROWSECT 15
K75: 0 | L75: Axis Treasury Advantage Fund - Direct Plan - Daily Dividend Option | M75: 120515 | N75: 53 | Z75: =IFERROR(VLOOKUP(ROWS($Z$2:Z75),K75:L5865,2,0),"") ->  | BV75: NIFTY50 TR 2X LEV
K76: 0 | L76: Axis Treasury Advantage Fund - Direct Plan - Growth Option | M76: 120513 | N76: 53 | Z76: =IFERROR(VLOOKUP(ROWS($Z$2:Z76),K76:L5866,2,0),"") ->  | BV76: NIFTY50 PR 2X LEV
K77: 0 | L77: Axis Treasury Advantage Fund - Direct Plan - Monthly Dividend Option | M77: 120516 | N77: 53 | Z77: =IFERROR(VLOOKUP(ROWS($Z$2:Z77),K77:L5867,2,0),"") ->  | BV77: NIFTY50 TR 1X INV
K78: 0 | L78: Axis Treasury Advantage Fund - Direct Plan - Weekly Dividend Option | M78: 120514 | N78: 53 | Z78: =IFERROR(VLOOKUP(ROWS($Z$2:Z78),K78:L5868,2,0),"") ->  | BV78: NIFTY LARGEMIDCAP 250
K79: 0 | L79: Axis Treasury Advantage Fund - Growth Option | M79: 112214 | N79: 53 | Z79: =IFERROR(VLOOKUP(ROWS($Z$2:Z79),K79:L5869,2,0),"") -> 
K80: 0 | L80: Axis Treasury Advantage Fund - Institutional Plan - Weekly Dividend Option | M80: 112216 | N80: 53 | Z80: =IFERROR(VLOOKUP(ROWS($Z$2:Z80),K80:L5870,2,0),"") -> 
K81: 0 | L81: Axis Treasury Advantage Fund - Monthly Dividend Option | M81: 112217 | N81: 53 | Z81: =IFERROR(VLOOKUP(ROWS($Z$2:Z81),K81:L5871,2,0),"") -> 
K82: 0 | L82: Axis Treasury Advantage Fund - Retail Plan - Daily Dividend Option | M82: 112720 | N82: 53 | Z82: =IFERROR(VLOOKUP(ROWS($Z$2:Z82),K82:L5872,2,0),"") -> 
K83: 0 | L83: Axis Treasury Advantage Fund - Retail Plan - Growth Option | M83: 112717 | N83: 53 | Z83: =IFERROR(VLOOKUP(ROWS($Z$2:Z83),K83:L5873,2,0),"") -> 
K84: 0 | L84: Axis Treasury Advantage Fund - Retail Plan - Monthly Dividend Option | M84: 112718 | N84: 53 | Z84: =IFERROR(VLOOKUP(ROWS($Z$2:Z84),K84:L5874,2,0),"") -> 
K85: 0 | L85: Axis Treasury Advantage Fund - Retail Plan - Weekly Dividend Option | M85: 112719 | N85: 53 | Z85: =IFERROR(VLOOKUP(ROWS($Z$2:Z85),K85:L5875,2,0),"") -> 
K86: 0 | L86: Axis Triple Advantage Fund - Direct Plan - Dividend Option | M86: 120523 | N86: 53 | Z86: =IFERROR(VLOOKUP(ROWS($Z$2:Z86),K86:L5876,2,0),"") -> 
K87: 0 | L87: Axis Triple Advantage Fund - Direct Plan - Growth Option | M87: 120524 | N87: 53 | Z87: =IFERROR(VLOOKUP(ROWS($Z$2:Z87),K87:L5877,2,0),"") -> 
K88: 0 | L88: Axis Triple Advantage Fund - Dividend Option | M88: 113065 | N88: 53 | Z88: =IFERROR(VLOOKUP(ROWS($Z$2:Z88),K88:L5878,2,0),"") -> 
K89: 0 | L89: Axis Triple Advantage Fund - Growth Option | M89: 113064 | N89: 53 | Z89: =IFERROR(VLOOKUP(ROWS($Z$2:Z89),K89:L5879,2,0),"") -> 
K90: 0 | L90: BARODA PIONEER BALANCE FUND - Plan A - Dividend Option | M90: 101913 | N90: 4 | Z90: =IFERROR(VLOOKUP(ROWS($Z$2:Z90),K90:L5880,2,0),"") -> 
K91: 0 | L91: BARODA PIONEER BALANCE FUND - Plan A - Growth Option | M91: 101912 | N91: 4 | Z91: =IFERROR(VLOOKUP(ROWS($Z$2:Z91),K91:L5881,2,0),"") -> 
K92: 0 | L92: BARODA PIONEER BALANCE FUND - Plan B (Direct) - Dividend Option | M92: 119325 | N92: 4 | Z92: =IFERROR(VLOOKUP(ROWS($Z$2:Z92),K92:L5882,2,0),"") -> 
K93: 0 | L93: BARODA PIONEER BALANCE FUND - Plan B (Direct) - Growth Option | M93: 119326 | N93: 4 | Z93: =IFERROR(VLOOKUP(ROWS($Z$2:Z93),K93:L5883,2,0),"") -> 
K94: 0 | L94: Baroda Pioneer Banking and Financial Services Fund - Plan A - Dividend Payout Option | M94: 117547 | N94: 4 | Z94: =IFERROR(VLOOKUP(ROWS($Z$2:Z94),K94:L5884,2,0),"") -> 
K95: 0 | L95: Baroda Pioneer Banking and Financial Services Fund - Plan A - Growth Option | M95: 117549 | N95: 4 | Z95: =IFERROR(VLOOKUP(ROWS($Z$2:Z95),K95:L5885,2,0),"") -> 
K96: 0 | L96: Baroda Pioneer Banking and Financial Services Fund - Plan B (Direct) - Dividend Payout Option | M96: 119334 | N96: 4 | Z96: =IFERROR(VLOOKUP(ROWS($Z$2:Z96),K96:L5886,2,0),"") -> 
K97: 0 | L97: Baroda Pioneer Banking and Financial Services Fund - Plan B (Direct) - Growth Option | M97: 119333 | N97: 4 | Z97: =IFERROR(VLOOKUP(ROWS($Z$2:Z97),K97:L5887,2,0),"") -> 
K98: 0 | L98: Baroda Pioneer Dynamic Bond Fund - Plan A - Dividend Payout Option | M98: 117629 | N98: 4 | Z98: =IFERROR(VLOOKUP(ROWS($Z$2:Z98),K98:L5888,2,0),"") -> 
K99: 0 | L99: Baroda Pioneer Dynamic Bond Fund - Plan A - Growth Option | M99: 117631 | N99: 4 | Z99: =IFERROR(VLOOKUP(ROWS($Z$2:Z99),K99:L5889,2,0),"") -> 
K100: 0 | L100: Baroda Pioneer Dynamic Bond Fund - Plan B (Direct) - Dividend Payout Option | M100: 119336 | N100: 4 | Z100: =IFERROR(VLOOKUP(ROWS($Z$2:Z100),K100:L5890,2,0),"") -> 
K101: 0 | L101: Baroda Pioneer Dynamic Bond Fund - Plan B (Direct) - Growth Option | M101: 119337 | N101: 4 | Z101: =IFERROR(VLOOKUP(ROWS($Z$2:Z101),K101:L5891,2,0),"") -> 
K102: 0 | L102: BARODA PIONEER ELSS 96 - Plan A - Dividend Payout Option | M102: 100068 | N102: 4 | Z102: =IFERROR(VLOOKUP(ROWS($Z$2:Z102),K102:L5892,2,0),"") -> 
K103: 0 | L103: BARODA PIONEER ELSS 96 - Plan A - Dividend Payout Option | M103: 100068 | N103: 4 | Z103: =IFERROR(VLOOKUP(ROWS($Z$2:Z103),K103:L5893,2,0),"") -> 
K104: 0 | L104: BARODA PIONEER ELSS 96 - Plan A - Dividend Payout Option | M104: 100068 | N104: 4 | Z104: =IFERROR(VLOOKUP(ROWS($Z$2:Z104),K104:L5894,2,0),"") -> 
K105: 0 | L105: BARODA PIONEER GILT FUND - Plan A - Dividend Option | M105: 101188 | N105: 4 | Z105: =IFERROR(VLOOKUP(ROWS($Z$2:Z105),K105:L5895,2,0),"") -> 
K106: 0 | L106: BARODA PIONEER GILT FUND - Plan A - Growth Option | M106: 101187 | N106: 4 | Z106: =IFERROR(VLOOKUP(ROWS($Z$2:Z106),K106:L5896,2,0),"") -> 
K107: 0 | L107: BARODA PIONEER GROWTH FUND - Plan A - Dividend Option | M107: 102021 | N107: 4 | Z107: =IFERROR(VLOOKUP(ROWS($Z$2:Z107),K107:L5897,2,0),"") -> 
K108: 0 | L108: BARODA PIONEER GROWTH FUND - Plan A - Growth Option | M108: 102020 | N108: 4 | Z108: =IFERROR(VLOOKUP(ROWS($Z$2:Z108),K108:L5898,2,0),"") -> 
K109: 0 | L109: BARODA PIONEER GROWTH FUND - Plan B (Direct) - Dividend Option | M109: 119353 | N109: 4 | Z109: =IFERROR(VLOOKUP(ROWS($Z$2:Z109),K109:L5899,2,0),"") -> 
K110: 0 | L110: BARODA PIONEER GROWTH FUND - Plan B (Direct) - Growth Option | M110: 119354 | N110: 4 | Z110: =IFERROR(VLOOKUP(ROWS($Z$2:Z110),K110:L5900,2,0),"") -> 
K111: 0 | L111: BARODA PIONEER INCOME FUND - Plan A - Dividend Option | M111: 101155 | N111: 4 | Z111: =IFERROR(VLOOKUP(ROWS($Z$2:Z111),K111:L5901,2,0),"") -> 
K112: 0 | L112: BARODA PIONEER INCOME FUND - Plan A - Growth Option | M112: 101154 | N112: 4 | Z112: =IFERROR(VLOOKUP(ROWS($Z$2:Z112),K112:L5902,2,0),"") -> 
K113: 0 | L113: BARODA PIONEER INCOME FUND - Plan B (Direct) - Growth Option | M113: 119362 | N113: 4 | Z113: =IFERROR(VLOOKUP(ROWS($Z$2:Z113),K113:L5903,2,0),"") -> 
K114: 0 | L114: Baroda Pioneer Infrastucture Fund - Plan A - Dividend Option | M114: 112944 | N114: 4 | Z114: =IFERROR(VLOOKUP(ROWS($Z$2:Z114),K114:L5904,2,0),"") -> 
K115: 0 | L115: Baroda Pioneer Infrastucture Fund - Plan A - Growth Option | M115: 112943 | N115: 4 | Z115: =IFERROR(VLOOKUP(ROWS($Z$2:Z115),K115:L5905,2,0),"") -> 
K116: 0 | L116: Baroda Pioneer Infrastucture Fund - Plan B (Direct) - Dividend Option | M116: 119366 | N116: 4 | Z116: =IFERROR(VLOOKUP(ROWS($Z$2:Z116),K116:L5906,2,0),"") -> 
K117: 0 | L117: Baroda Pioneer Infrastucture Fund - Plan B (Direct) - Growth Option | M117: 119367 | N117: 4 | Z117: =IFERROR(VLOOKUP(ROWS($Z$2:Z117),K117:L5907,2,0),"") -> 
K118: 0 | L118: BARODA PIONEER LIQUID FUND - Plan A - DAILY DIVIDEND OPTION | M118: 111707 | N118: 4 | Z118: =IFERROR(VLOOKUP(ROWS($Z$2:Z118),K118:L5908,2,0),"") -> 
K119: 0 | L119: BARODA PIONEER LIQUID FUND - Plan A - GROWTH OPTION | M119: 111704 | N119: 4 | Z119: =IFERROR(VLOOKUP(ROWS($Z$2:Z119),K119:L5909,2,0),"") -> 
K120: 0 | L120: BARODA PIONEER LIQUID FUND - PLAN A - WEEKLY DIVIDEND OPTION | M120: 111705 | N120: 4 | Z120: =IFERROR(VLOOKUP(ROWS($Z$2:Z120),K120:L5910,2,0),"") -> 
K121: 0 | L121: BARODA PIONEER LIQUID FUND - PLAN B (DIRECT) - DAILY DIVIDEND OPTION | M121: 119414 | N121: 4 | Z121: =IFERROR(VLOOKUP(ROWS($Z$2:Z121),K121:L5911,2,0),"") -> 
K122: 0 | L122: BARODA PIONEER LIQUID FUND - PLAN B (DIRECT) - GROWTH OPTION | M122: 119415 | N122: 4 | Z122: =IFERROR(VLOOKUP(ROWS($Z$2:Z122),K122:L5912,2,0),"") -> 
K123: 0 | L123: BARODA PIONEER LIQUID FUND - PLAN B (DIRECT) - WEEKLY DIVIDEND OPTION | M123: 119416 | N123: 4 | Z123: =IFERROR(VLOOKUP(ROWS($Z$2:Z123),K123:L5913,2,0),"") -> 
K124: 0 | L124: Baroda Pioneer Liquid Fund - Regular - Weekly Dividend Option | M124: 116803 | N124: 4 | Z124: =IFERROR(VLOOKUP(ROWS($Z$2:Z124),K124:L5914,2,0),"") -> 
K125: 0 | L125: BARODA PIONEER LIQUID FUND PLAN A - MONTHLY DIVIDEND OPTION | M125: 111706 | N125: 4 | Z125: =IFERROR(VLOOKUP(ROWS($Z$2:Z125),K125:L5915,2,0),"") -> 
K126: 0 | L126: BARODA PIONEER LIQUID FUND- Regular Growth Option | M126: 101408 | N126: 4 | Z126: =IFERROR(VLOOKUP(ROWS($Z$2:Z126),K126:L5916,2,0),"") -> 
K127: 0 | L127: BARODA PIONEER LIQUID FUND-Regular Daily Dividend Option | M127: 101409 | N127: 4 | Z127: =IFERROR(VLOOKUP(ROWS($Z$2:Z127),K127:L5917,2,0),"") -> 
K128: 0 | L128: BARODA PIONEER LIQUID FUND-Regular Dividend Option | M128: 101407 | N128: 4 | Z128: =IFERROR(VLOOKUP(ROWS($Z$2:Z128),K128:L5918,2,0),"") -> 
K129: 0 | L129: BARODA PIONEER MIP FUND - Plan A - Growth Option | M129: 102661 | N129: 4 | Z129: =IFERROR(VLOOKUP(ROWS($Z$2:Z129),K129:L5919,2,0),"") -> 
K130: =IF(ISNUMBER(SEARCH($G$2,L130)),MAX($K$1,K129)+1,0) -> 0 | L130: BARODA PIONEER MIP FUND - Plan A - Monthly Dividend Option | M130: 102662 | N130: 4 | Z130: =IFERROR(VLOOKUP(ROWS($Z$2:Z130),K130:L5920,2,0),"") -> 
K131: 0 | L131: BARODA PIONEER MIP FUND - Plan A - Quarterly Dividend Option | M131: 102663 | N131: 4 | Z131: =IFERROR(VLOOKUP(ROWS($Z$2:Z131),K131:L5921,2,0),"") -> 
K132: 0 | L132: BARODA PIONEER MIP FUND - Plan B (Direct) - Growth Option | M132: 119389 | N132: 4 | Z132: =IFERROR(VLOOKUP(ROWS($Z$2:Z132),K132:L5922,2,0),"") -> 
K133: 0 | L133: BARODA PIONEER MIP FUND - Plan B (Direct)- Monthly Dividend Option | M133: 119390 | N133: 4 | Z133: =IFERROR(VLOOKUP(ROWS($Z$2:Z133),K133:L5923,2,0),"") -> 
K134: 0 | L134: Baroda Pioneer PSU Bond Fund - Plan A - Growth Option | M134: 112314 | N134: 4 | Z134: =IFERROR(VLOOKUP(ROWS($Z$2:Z134),K134:L5924,2,0),"") -> 
K135: 0 | L135: Baroda Pioneer PSU Bond Fund - Plan A - Monthly Dividend Option | M135: 112345 | N135: 4 | Z135: =IFERROR(VLOOKUP(ROWS($Z$2:Z135),K135:L5925,2,0),"") -> 
K136: 0 | L136: Baroda Pioneer PSU Bond Fund - Plan A - Quarterly Dividend Option | M136: 112346 | N136: 4 | Z136: =IFERROR(VLOOKUP(ROWS($Z$2:Z136),K136:L5926,2,0),"") -> 
K137: 0 | L137: Baroda Pioneer PSU Bond Fund - Plan B (Direct) - Growth Option | M137: 119317 | N137: 4 | Z137: =IFERROR(VLOOKUP(ROWS($Z$2:Z137),K137:L5927,2,0),"") -> 
K138: 0 | L138: Baroda Pioneer PSU Bond Fund - Plan B (Direct) - Monthly Dividend Option | M138: 119316 | N138: 4 | Z138: =IFERROR(VLOOKUP(ROWS($Z$2:Z138),K138:L5928,2,0),"") -> 
K139: 0 | L139: Baroda Pioneer PSU Equity Fund- Plan A - Dividend Option | M139: 113328 | N139: 4 | Z139: =IFERROR(VLOOKUP(ROWS($Z$2:Z139),K139:L5929,2,0),"") -> 
K140: 0 | L140: Baroda Pioneer PSU Equity Fund- Plan A - Growth Option | M140: 113327 | N140: 4 | Z140: =IFERROR(VLOOKUP(ROWS($Z$2:Z140),K140:L5930,2,0),"") -> 
K141: 0 | L141: Baroda Pioneer PSU Equity Fund- Plan B (Direct) - Growth Option | M141: 119392 | N141: 4 | Z141: =IFERROR(VLOOKUP(ROWS($Z$2:Z141),K141:L5931,2,0),"") -> 
K142: 0 | L142: Baroda Pioneer Short Term Bond Fund - Direct Plan - Plan B (Direct) - Dividend Option | M142: 119399 | N142: 4 | Z142: =IFERROR(VLOOKUP(ROWS($Z$2:Z142),K142:L5932,2,0),"") -> 
K143: 0 | L143: Baroda Pioneer Short Term Bond Fund - Plan A - Dividend Option | M143: 113037 | N143: 4 | Z143: =IFERROR(VLOOKUP(ROWS($Z$2:Z143),K143:L5933,2,0),"") -> 
K144: 0 | L144: Baroda Pioneer Short Term Bond Fund - Plan A - Growth Option | M144: 113036 | N144: 4 | Z144: =IFERROR(VLOOKUP(ROWS($Z$2:Z144),K144:L5934,2,0),"") -> 
K145: 0 | L145: Baroda Pioneer Short Term Bond Fund - Plan B (Direct) - Growth Option | M145: 119400 | N145: 4 | Z145: =IFERROR(VLOOKUP(ROWS($Z$2:Z145),K145:L5935,2,0),"") -> 
K146: 0 | L146: Baroda Pioneer Treasury Advantage Fund - Plan B (Direct) - Daily Dividend Option | M146: 119309 | N146: 4 | Z146: =IFERROR(VLOOKUP(ROWS($Z$2:Z146),K146:L5936,2,0),"") -> 
K147: 0 | L147: Baroda Pioneer Treasury Advantage Fund - Plan B (Direct) - Growth Option | M147: 119410 | N147: 4 | Z147: =IFERROR(VLOOKUP(ROWS($Z$2:Z147),K147:L5937,2,0),"") -> 
K148: 0 | L148: Baroda Pioneer Treasury Advantage Fund - Plan B (Direct) - Monthly Dividend Option | M148: 119411 | N148: 4 | Z148: =IFERROR(VLOOKUP(ROWS($Z$2:Z148),K148:L5938,2,0),"") -> 
K149: 0 | L149: Baroda Pioneer Treasury Advantage Fund - Plan B (Direct) - Quarterly Dividend Option | M149: 119439 | N149: 4 | Z149: =IFERROR(VLOOKUP(ROWS($Z$2:Z149),K149:L5939,2,0),"") -> 
K150: 0 | L150: Baroda Pioneer Treasury Advantage Fund - Plan B (Direct) - Weekly Dividend Option | M150: 119409 | N150: 4 | Z150: =IFERROR(VLOOKUP(ROWS($Z$2:Z150),K150:L5940,2,0),"") -> 
K151: 0 | L151: Baroda Pioneer Treasury Advantage Fund- Plan A- Daily Dividend Option | M151: 112032 | N151: 4 | Z151: =IFERROR(VLOOKUP(ROWS($Z$2:Z151),K151:L5941,2,0),"") -> 
K152: 0 | L152: Baroda Pioneer Treasury Advantage Fund- Plan A- Growth Option | M152: 112029 | N152: 4 | Z152: =IFERROR(VLOOKUP(ROWS($Z$2:Z152),K152:L5942,2,0),"") -> 
K153: 0 | L153: Baroda Pioneer Treasury Advantage Fund- Plan A- Monthly Dividend Option | M153: 112035 | N153: 4 | Z153: =IFERROR(VLOOKUP(ROWS($Z$2:Z153),K153:L5943,2,0),"") -> 
K154: 0 | L154: Baroda Pioneer Treasury Advantage Fund- Plan A- Quarterly Dividend Option | M154: 112034 | N154: 4 | Z154: =IFERROR(VLOOKUP(ROWS($Z$2:Z154),K154:L5944,2,0),"") -> 
K155: 0 | L155: Baroda Pioneer Treasury Advantage Fund- Plan A- Weekly Dividend Option | M155: 112033 | N155: 4 | Z155: =IFERROR(VLOOKUP(ROWS($Z$2:Z155),K155:L5945,2,0),"") -> 
K156: 0 | L156: Baroda Pioneer Treasury Advantage Fund- Regular Plan - Daily Dividend Option | M156: 112025 | N156: 4 | Z156: =IFERROR(VLOOKUP(ROWS($Z$2:Z156),K156:L5946,2,0),"") -> 
K157: 0 | L157: Baroda Pioneer Treasury Advantage Fund- Regular Plan - Growth Option | M157: 112031 | N157: 4 | Z157: =IFERROR(VLOOKUP(ROWS($Z$2:Z157),K157:L5947,2,0),"") -> 
K158: 0 | L158: Baroda Pioneer Treasury Advantage Fund- Regular Plan - Monthly Dividend Option | M158: 112027 | N158: 4 | Z158: =IFERROR(VLOOKUP(ROWS($Z$2:Z158),K158:L5948,2,0),"") -> 
K159: 0 | L159: Baroda Pioneer Treasury Advantage Fund- Regular Plan - Quarterly Dividend Option | M159: 112028 | N159: 4 | Z159: =IFERROR(VLOOKUP(ROWS($Z$2:Z159),K159:L5949,2,0),"") -> 
K160: 0 | L160: Baroda Pioneer Treasury Advantage Fund- Regular Plan - Weekly Dividend Option | M160: 112026 | N160: 4 | Z160: =IFERROR(VLOOKUP(ROWS($Z$2:Z160),K160:L5950,2,0),"") -> 
K161: 0 | L161: Birla Sun Life 95 Fund - Dividend - Direct Plan | M161: 120518 | N161: 3 | Z161: =IFERROR(VLOOKUP(ROWS($Z$2:Z161),K161:L5951,2,0),"") -> 
K162: 0 | L162: Birla Sun Life 95 Fund - Growth - Direct Plan | M162: 120517 | N162: 3 | Z162: =IFERROR(VLOOKUP(ROWS($Z$2:Z162),K162:L5952,2,0),"") -> 
K163: 0 | L163: Birla Sun Life 95 Fund-Plan A (Dividend) | M163: 103154 | N163: 3 | Z163: =IFERROR(VLOOKUP(ROWS($Z$2:Z163),K163:L5953,2,0),"") -> 
K164: 0 | L164: Birla Sun Life 95 Fund-Plan B(Growth) | M164: 103155 | N164: 3 | Z164: =IFERROR(VLOOKUP(ROWS($Z$2:Z164),K164:L5954,2,0),"") -> 
K165: 0 | L165: Birla Sun Life Advantage Fund - Dividend - Direct Plan | M165: 119433 | N165: 3 | Z165: =IFERROR(VLOOKUP(ROWS($Z$2:Z165),K165:L5955,2,0),"") -> 
K166: 0 | L166: Birla Sun Life Advantage Fund - Growth - Direct Plan | M166: 119436 | N166: 3 | Z166: =IFERROR(VLOOKUP(ROWS($Z$2:Z166),K166:L5956,2,0),"") -> 
K167: 0 | L167: Birla Sun Life Advantage Fund-Plan A (Dividend) | M167: 100034 | N167: 3 | Z167: =IFERROR(VLOOKUP(ROWS($Z$2:Z167),K167:L5957,2,0),"") -> 
K168: 0 | L168: Birla Sun Life Advantage Fund-Plan B (Growth) | M168: 100033 | N168: 3 | Z168: =IFERROR(VLOOKUP(ROWS($Z$2:Z168),K168:L5958,2,0),"") -> 
K169: 0 | L169: Birla Sun Life Asset Allocation - Aggressive Plan - Dividend - Direct Plan | M169: 119492 | N169: 3 | Z169: =IFERROR(VLOOKUP(ROWS($Z$2:Z169),K169:L5959,2,0),"") -> 
K170: 0 | L170: Birla Sun Life Asset Allocation - Aggressive Plan - Growth - Direct Plan | M170: 119493 | N170: 3 | Z170: =IFERROR(VLOOKUP(ROWS($Z$2:Z170),K170:L5960,2,0),"") -> 
K171: 0 | L171: Birla Sun Life Asset Allocation - Moderate Plan - Dividend - Direct Plan | M171: 119491 | N171: 3 | Z171: =IFERROR(VLOOKUP(ROWS($Z$2:Z171),K171:L5961,2,0),"") -> 
K172: 0 | L172: Birla Sun Life Asset Allocation - Moderate Plan - Growth - Direct Plan | M172: 119495 | N172: 3 | Z172: =IFERROR(VLOOKUP(ROWS($Z$2:Z172),K172:L5962,2,0),"") -> 
K173: 0 | L173: Birla Sun Life Asset Allocation Fund-Aggressive Plan-Dividend Plan | M173: 102184 | N173: 3 | Z173: =IFERROR(VLOOKUP(ROWS($Z$2:Z173),K173:L5963,2,0),"") -> 
K174: 0 | L174: Birla Sun Life Asset Allocation Fund-Aggressive Plan-Growth Plan | M174: 102185 | N174: 3 | Z174: =IFERROR(VLOOKUP(ROWS($Z$2:Z174),K174:L5964,2,0),"") -> 
K175: 0 | L175: Birla Sun Life Asset Allocation Fund-Conservative Plan-Dividend Plan | M175: 102188 | N175: 3 | Z175: =IFERROR(VLOOKUP(ROWS($Z$2:Z175),K175:L5965,2,0),"") -> 
K176: 0 | L176: Birla Sun Life Asset Allocation Fund-Conservative Plan-Growth Plan | M176: 102189 | N176: 3 | Z176: =IFERROR(VLOOKUP(ROWS($Z$2:Z176),K176:L5966,2,0),"") -> 
K177: 0 | L177: Birla Sun Life Asset Allocation Fund-Moderate Plan-Dividend Plan | M177: 102186 | N177: 3 | Z177: =IFERROR(VLOOKUP(ROWS($Z$2:Z177),K177:L5967,2,0),"") -> 
K178: 0 | L178: Birla Sun Life Asset Allocation Fund-Moderate Plan-Growth Plan | M178: 102187 | N178: 3 | Z178: =IFERROR(VLOOKUP(ROWS($Z$2:Z178),K178:L5968,2,0),"") -> 
K179: 0 | L179: Birla Sun Life Asset Allocation-Conservative Plan - Dividend - Direct Plan | M179: 119494 | N179: 3 | Z179: =IFERROR(VLOOKUP(ROWS($Z$2:Z179),K179:L5969,2,0),"") -> 
K180: 0 | L180: Birla Sun Life Asset Allocation-Conservative Plan - Growth - Direct Plan | M180: 119490 | N180: 3 | Z180: =IFERROR(VLOOKUP(ROWS($Z$2:Z180),K180:L5970,2,0),"") -> 
K181: 0 | L181: Birla Sun Life Basic Industries Fund - Dividend Trigger Plan | M181: 112274 | N181: 3 | Z181: =IFERROR(VLOOKUP(ROWS($Z$2:Z181),K181:L5971,2,0),"") -> 
K182: 0 | L182: Birla Sun Life Basic Industries Fund-Plan A(Dividend) | M182: 103171 | N182: 3 | Z182: =IFERROR(VLOOKUP(ROWS($Z$2:Z182),K182:L5972,2,0),"") -> 
K183: 0 | L183: Birla Sun Life Basic Industries Fund-Plan B(Growth) | M183: 103172 | N183: 3 | Z183: =IFERROR(VLOOKUP(ROWS($Z$2:Z183),K183:L5973,2,0),"") -> 
K184: 0 | L184: Birla Sun Life Buy India Fund-Plan A(Divivdend) | M184: 103169 | N184: 3 | Z184: =IFERROR(VLOOKUP(ROWS($Z$2:Z184),K184:L5974,2,0),"") -> 
K185: 0 | L185: Birla Sun Life Buy India Fund-Plan B(Growth) | M185: 103170 | N185: 3 | Z185: =IFERROR(VLOOKUP(ROWS($Z$2:Z185),K185:L5975,2,0),"") -> 
K186: 0 | L186: BIRLA SUN LIFE CAPITAL PROTECTION ORIENTED FUND-3 YRS- DIVIDEND | M186: 106270 | N186: 3 | Z186: =IFERROR(VLOOKUP(ROWS($Z$2:Z186),K186:L5976,2,0),"") -> 
K187: 0 | L187: BIRLA SUN LIFE CAPITAL PROTECTION ORIENTED FUND-3 YRS- GROWTH | M187: 106269 | N187: 3 | Z187: =IFERROR(VLOOKUP(ROWS($Z$2:Z187),K187:L5977,2,0),"") -> 
K188: 0 | L188: BIRLA SUN LIFE CAPITAL PROTECTION ORIENTED FUND-5 YRS-DIVIDEND | M188: 106271 | N188: 3 | Z188: =IFERROR(VLOOKUP(ROWS($Z$2:Z188),K188:L5978,2,0),"") -> 
K189: 0 | L189: BIRLA SUN LIFE CAPITAL PROTECTION ORIENTED FUND-5 YRS-GROWTH | M189: 106272 | N189: 3 | Z189: =IFERROR(VLOOKUP(ROWS($Z$2:Z189),K189:L5979,2,0),"") -> 
K190: 0 | L190: Birla Sun Life Cash Manager - Daily Dividend | M190: 113307 | N190: 3 | Z190: =IFERROR(VLOOKUP(ROWS($Z$2:Z190),K190:L5980,2,0),"") -> 
K191: 0 | L191: Birla Sun Life Cash Manager - Daily Dividend - Direct Plan | M191: 119524 | N191: 3 | Z191: =IFERROR(VLOOKUP(ROWS($Z$2:Z191),K191:L5981,2,0),"") -> 
K192: 0 | L192: Birla Sun Life Cash Manager - Growth - Direct Plan | M192: 119523 | N192: 3 | Z192: =IFERROR(VLOOKUP(ROWS($Z$2:Z192),K192:L5982,2,0),"") -> 
K193: 0 | L193: Birla Sun Life Cash Manager - Weekly Dividend - Direct Plan | M193: 119522 | N193: 3 | Z193: =IFERROR(VLOOKUP(ROWS($Z$2:Z193),K193:L5983,2,0),"") -> 
K194: =IF(ISNUMBER(SEARCH($G$2,L194)),MAX($K$1,K193)+1,0) -> 0 | L194: Birla Sun Life Cash Manager-Plan A(Institutional Daily Dividend) | M194: 103191 | N194: 3 | Z194: =IFERROR(VLOOKUP(ROWS($Z$2:Z194),K194:L5984,2,0),"") -> 
K195: 0 | L195: Birla Sun Life Cash Manager-Plan B(Growth) | M195: 103192 | N195: 3 | Z195: =IFERROR(VLOOKUP(ROWS($Z$2:Z195),K195:L5985,2,0),"") -> 
K196: 0 | L196: Birla Sun Life Cash Manager-Plan C(Institutional Growth) | M196: 103195 | N196: 3 | Z196: =IFERROR(VLOOKUP(ROWS($Z$2:Z196),K196:L5986,2,0),"") -> 
K197: 0 | L197: Birla Sun Life Cash Manager-Plan D(Weekly Dividend) | M197: 103193 | N197: 3 | Z197: =IFERROR(VLOOKUP(ROWS($Z$2:Z197),K197:L5987,2,0),"") -> 
K198: 0 | L198: Birla Sun Life Cash Manager-Plan E(Institutional Weekly Dividend) | M198: 103194 | N198: 3 | Z198: =IFERROR(VLOOKUP(ROWS($Z$2:Z198),K198:L5988,2,0),"") -> 
K199: 0 | L199: Birla Sun Life Cash Plus - Daily Dividend | M199: 100046 | N199: 3 | Z199: =IFERROR(VLOOKUP(ROWS($Z$2:Z199),K199:L5989,2,0),"") -> 
K200: 0 | L200: Birla Sun Life Cash Plus - Daily Dividend - Direct Plan | M200: 119569 | N200: 3 | Z200: =IFERROR(VLOOKUP(ROWS($Z$2:Z200),K200:L5990,2,0),"") -> 
... 2050 more rows

Sheet Fund (hidden)
A1: Enter fund nav history below | D1: Calculate returns from your SIP investments using NAV history | M1: =IF(ISERROR(M4),IF(ISERROR(M5),IF(ISERROR(M6),M7,M6),M5),M4) -> 3528.53 | N1: =SUM(N9:N4829) -> 77 | O1: =MAX(A2:A5000)-1 -> 43598 | T1: =I7 -> 41277 | U1: =M1 -> 3528.53 | AI1: =sipstart+90 -> 41367 | AJ1: =MONTH(AI1) -> 4 | AR1: 1 | AS1: 1 | AT1: 1994 | BD1: =COUNT(Index!A2:A6000) -> 0 | BF1: =IF(ISERROR(MATCH(I7,A2:A8000,0)),IF(ISERROR(MATCH(I7-1,A2:A8000,0)),IF(ISERROR(MATCH(I7-2,A2:A8000,0)),IF(ISERROR(MATCH(I7-3,A2:A8000,0)),IF(ISERROR(MATCH(I7-4,A2:A8000,0)),IF(ISERROR(MATCH(I7-5,A2:A8000,0)),1,MATCH(I7-5,A2:A8000,0)),MATCH(I7-4,A2:A8000,0)),MATCH(I7-3,A2:A8000,0)),MATCH(I7-2,A2:A8000,0)),MATCH(I7-1,A2:A8000,0)),MATCH(I7,A2:A8000,0))+1 -> 2174 | BT1: Start | BU1: 41277 | BW1: =IF(Inputs!C10>MIN(Fund!A9:A5000),Inputs!C10,MIN(Fund!A9:A5000)) -> 41277
F2: Fill only cells in green | M2: =INDEX(A9:B6000,MATCH(E10,A9:A6000,0),2) -> 7203.37 | N2: =sip*N1/N3 -> 50.89226702 | P2: =I7 -> 41277 | T2: =E10 -> 43599 | U2: =-M2 -> -7203.37 | AI2: =AI1+90 -> 41457 | AJ2: =MONTH(AI2) -> 7 | AR2: =AR1+1 -> 2 | AS2: =AS1+1 -> 2 | AT2: =AT1+1 -> 1995 | BF2: =IF(ISERROR(MATCH(I9,A2:A8000,0)),IF(ISERROR(MATCH(I9-1,A2:A8000,0)),IF(ISERROR(MATCH(I9-2,A2:A8000,0)),IF(ISERROR(MATCH(I9-3,A2:A8000,0)),IF(ISERROR(MATCH(I9-4,A2:A8000,0)),IF(ISERROR(MATCH(I9-5,A2:A8000,0)),1,MATCH(I9-5,A2:A8000,0)),MATCH(I9-4,A2:A8000,0)),MATCH(I9-3,A2:A8000,0)),MATCH(I9-2,A2:A8000,0)),MATCH(I9-1,A2:A8000,0)),MATCH(I9,A2:A8000,0))+1 -> 3686 | BT2: End | BU2: 43595 | BW2: =IF(Inputs!C11>MAX(Fund!A9:A4829),MAX(Fund!A9:A4829),Inputs!C11) -> 43599
D3: Monthly SIP amount | E3: =Inputs!C8 -> 1000 | M3: =XIRR(U1:U2,T1:T2) -> 0.1187174499 | N3: =SUM(R9:R4829) -> 1513 | P3: =I9 -> 43595 | AI3: =AI2+90 -> 41547 | AJ3: 9 | AR3: =AR2+1 -> 3 | AS3: 3 | AT3: =AT2+1 -> 1996
I4: =INDEX(A9:B6000,MATCH(I7+2,A9:A6000,0),2) ->  | M4: =IF(ISERROR(INDEX(A9:B6000,MATCH(I7,A9:A6000,0),2)),INDEX(A9:B6000,MATCH(I7+1,A9:A6000,0),2),INDEX(A9:B6000,MATCH(I7,A9:A6000,0),2)) -> 3528.53 | N4: =DAY(sipstart) -> 3 | AI4: 41637 | AJ4: 12 | AR4: 4 | AS4: 4 | AT4: 1997
I5: =I7+2 -> 41279 | M5: =IF(ISERROR(INDEX(A9:B6000,MATCH(I7+1,A9:A6000,0),2)),INDEX(A9:B6000,MATCH(I7+2,A9:A6000,0),2),INDEX(A9:B6000,MATCH(I7+1,A9:A6000,0),2)) -> 3533.75 | O5: =IF(IF(M6>=sipstart,1,0)+IF(M6<=sipend,1,0)=2,K5,"") ->  | P5: =SUM(Z9:Z4830) -> 43595 | AI5: 41727 | AJ5: 3 | AR5: 5 | AS5: 5 | AT5: 1998
D6: SIP start date (2nd transaction) | M6: =IF(ISERROR(INDEX(A9:B6000,MATCH(I7+2,A9:A6000,0),2)),INDEX(A9:B6000,MATCH(I7+3,A9:A6000,0),2),INDEX(A9:B6000,MATCH(I7+2,A9:A6000,0),2)) -> 
D7: not before | E7: =A9 -> 37991 | I7: 41277 | M7: =IF(ISERROR(INDEX(A9:B6000,MATCH(I7+3,A9:A6000,0),2)),INDEX(A9:B6000,MATCH(I7+4,A9:A6000,0),2),INDEX(A9:B6000,MATCH(I7+3,A9:A6000,0),2)) -> 3523 | N7: =E10-I9 -> 4 | AI7: =AI5+90 -> 41817 | AJ7: 6 | AR7: =AR5+1 -> 6 | AS7: =AS5+1 -> 6 | AT7: =AT5+1 -> 1999
M8: Date | V8: Monthly SIP | AI8: 41907 | AJ8: 9 | AR8: 7 | AS8: 7 | AT8: 2000
A9: 37991 | B9: 1035.53 | D9: Date of last SIP transaction | I9: 43595 | J9: =IF(DAY(A9)=sipdate,1,IF(J8=1,0,IF(J7=1,0,IF(J5=1,0,IF(J4=1,0,IF(J3=1,0,IF(J2=1,0,IF(DAY(A9)=sipdate+1,1,IF(DAY(A9)=sipdate+2,1,IF(DAY(A9)=sipdate+3,1,IF(DAY(A9)=sipdate+4,1,IF(DAY(A9)=sipdate+5,1,IF(DAY(A9)=sipdate+6,1,IF(DAY(A9)=sipdate+7,1,0)))))))))))))) -> 1 | K9: =IF(DAY(A9)=sipdate,-sip,IF(K8=-sip,0,IF(K7=-sip,0,IF(K5=-sip,0,IF(K4=-sip,0,IF(K3=-sip,0,IF(K2=-sip,0,IF(DAY(A9)=sipdate+1,-sip,IF(DAY(A9)=sipdate+2,-sip,IF(DAY(A9)=sipdate+3,-sip,IF(DAY(A9)=sipdate+4,-sip,IF(DAY(A9)=sipdate+5,-sip,IF(DAY(A9)=sipdate+6,-sip,IF(DAY(A9)=sipdate+7,-sip,0)))))))))))))) -> -1000 | M9: =A9 -> 37991 | N9: =IF(IF(M9>=sipstart,1,0)+IF(M9<=sipend,1,0)=2,J9,0) -> 0 | O9: =IF(IF(M9>=sipstart,1,0)+IF(M9<=sipend,1,0)=2,K9,0) -> 0 | P9: =IF(O9=-sip,-O9/B9,"") ->  | R9: =IF(IF(M9>=sipstart,1,0)+IF(M9<=sipend,1,0)=2,1,0) -> 0 | T9: =IF((IF(M9>=sipstart,1,2)+IF(M9<=sipend,1,2))=2,M9,0) -> 0 | U9: =IF((IF(M9>=sipstart,1,2)+IF(M9<=sipend,1,2))=2,M9,0)+IF(T8=actualsipend,actualsipend,0) -> 0 | V9: =IF(U9+U8=0,0,IF(U9=U8,sipunits*B8,O9)) -> 0 | W9: =IF(V9=-sip,U9,0) -> 0 | X9: =IF(V9=-sip,B9,0) -> 0 | Z9: =IF(R10=0,IF(R9=1,M9,0),0) -> 0 | AB9: =IF(INT((MONTH(M9)-MONTH(sipstart))/3)-(MONTH(M9)-MONTH(sipstart))/3=0,IF(DAY(A9)=sipdate,1,IF(AB8=1,0,IF(AB7=1,0,IF(AB5=1,0,IF(AB4=1,0,IF(AB3=1,0,IF(AB2=1,0,IF(DAY(A9)=sipdate+1,1,IF(DAY(A9)=sipdate+2,1,IF(DAY(A9)=sipdate+3,1,IF(DAY(A9)=sipdate+4,1,IF(DAY(A9)=sipdate+5,1,IF(DAY(A9)=sipdate+6,1,IF(DAY(A9)=sipdate+7,1,0)))))))))))))),0) -> 1 | AD9: =IF(INT((MONTH(M9)-MONTH(sipstart))/12)-(MONTH(M9)-MONTH(sipstart))/12=0,IF(DAY(A9)=sipdate,1,IF(AB8=1,0,IF(AB7=1,0,IF(AB5=1,0,IF(AB4=1,0,IF(AB3=1,0,IF(AB2=1,0,IF(DAY(A9)=sipdate+1,1,IF(DAY(A9)=sipdate+2,1,IF(DAY(A9)=sipdate+3,1,IF(DAY(A9)=sipdate+4,1,IF(DAY(A9)=sipdate+5,1,IF(DAY(A9)=sipdate+6,1,IF(DAY(A9)=sipdate+7,1,0)))))))))))))),0) -> 1 | AE9: =IF(AD9=1,A9,0) -> 37991 | AF9: =IF(AD9=1,B9,0) -> 1035.53 | AI9: =AI8+90 -> 41997 | AJ9: 12 | AR9: =AR8+1 -> 8 | AS9: =AS8+1 -> 8 | AT9: =AT8+1 -> 2001 | AY9: First Transaction
A10: 37992 | B10: 1017.52 | D10: not after | E10: =MAX(A9:A10001) -> 43599 | J10: =IF(DAY(A10)=sipdate,1,IF(J9=1,0,IF(J8=1,0,IF(J7=1,0,IF(J5=1,0,IF(J4=1,0,IF(J3=1,0,IF(DAY(A10)=sipdate+1,1,IF(DAY(A10)=sipdate+2,1,IF(DAY(A10)=sipdate+3,1,IF(DAY(A10)=sipdate+4,1,IF(DAY(A10)=sipdate+5,1,IF(DAY(A10)=sipdate+6,1,IF(DAY(A10)=sipdate+7,1,0)))))))))))))) -> 0 | K10: =IF(DAY(A10)=sipdate,-sip,IF(K9=-sip,0,IF(K8=-sip,0,IF(K7=-sip,0,IF(K5=-sip,0,IF(K4=-sip,0,IF(K3=-sip,0,IF(DAY(A10)=sipdate+1,-sip,IF(DAY(A10)=sipdate+2,-sip,IF(DAY(A10)=sipdate+3,-sip,IF(DAY(A10)=sipdate+4,-sip,IF(DAY(A10)=sipdate+5,-sip,IF(DAY(A10)=sipdate+6,-sip,IF(DAY(A10)=sipdate+7,-sip,0)))))))))))))) -> 0 | M10: 37992 | N10: 0 | O10: 0 | R10: 0 | T10: 0 | U10: 0 | V10: 0 | W10: 0 | X10: 0 | Z10: 0 | AB10: =IF(INT((MONTH(M10)-MONTH(sipstart))/3)-(MONTH(M10)-MONTH(sipstart))/3=0,IF(DAY(A10)=sipdate,1,IF(AB9=1,0,IF(AB8=1,0,IF(AB7=1,0,IF(AB5=1,0,IF(AB4=1,0,IF(AB3=1,0,IF(DAY(A10)=sipdate+1,1,IF(DAY(A10)=sipdate+2,1,IF(DAY(A10)=sipdate+3,1,IF(DAY(A10)=sipdate+4,1,IF(DAY(A10)=sipdate+5,1,IF(DAY(A10)=sipdate+6,1,IF(DAY(A10)=sipdate+7,1,0)))))))))))))),0) -> 0 | AD10: =IF(INT((MONTH(M10)-MONTH(sipstart))/12)-(MONTH(M10)-MONTH(sipstart))/12=0,IF(DAY(A10)=sipdate,1,IF(AB9=1,0,IF(AB8=1,0,IF(AB7=1,0,IF(AB5=1,0,IF(AB4=1,0,IF(AB3=1,0,IF(DAY(A10)=sipdate+1,1,IF(DAY(A10)=sipdate+2,1,IF(DAY(A10)=sipdate+3,1,IF(DAY(A10)=sipdate+4,1,IF(DAY(A10)=sipdate+5,1,IF(DAY(A10)=sipdate+6,1,IF(DAY(A10)=sipdate+7,1,0)))))))))))))),0) -> 0 | AE10: 0 | AF10: 0 | AI10: 42087 | AJ10: 3 | AR10: 9 | AS10: 9 | AT10: 2002
A11: 37993 | B11: 1013.46 | D11: The start and end days are assumed to be same | J11: =IF(DAY(A11)=sipdate,1,IF(J10=1,0,IF(J9=1,0,IF(J8=1,0,IF(J7=1,0,IF(J5=1,0,IF(J4=1,0,IF(DAY(A11)=sipdate+1,1,IF(DAY(A11)=sipdate+2,1,IF(DAY(A11)=sipdate+3,1,IF(DAY(A11)=sipdate+4,1,IF(DAY(A11)=sipdate+5,1,IF(DAY(A11)=sipdate+6,1,IF(DAY(A11)=sipdate+7,1,0)))))))))))))) -> 0 | K11: =IF(DAY(A11)=sipdate,-sip,IF(K10=-sip,0,IF(K9=-sip,0,IF(K8=-sip,0,IF(K7=-sip,0,IF(K5=-sip,0,IF(K4=-sip,0,IF(DAY(A11)=sipdate+1,-sip,IF(DAY(A11)=sipdate+2,-sip,IF(DAY(A11)=sipdate+3,-sip,IF(DAY(A11)=sipdate+4,-sip,IF(DAY(A11)=sipdate+5,-sip,IF(DAY(A11)=sipdate+6,-sip,IF(DAY(A11)=sipdate+7,-sip,0)))))))))))))) -> 0 | M11: 37993 | N11: 0 | O11: 0 | R11: 0 | T11: 0 | U11: 0 | V11: 0 | W11: 0 | X11: 0 | Z11: 0 | AB11: =IF(INT((MONTH(M11)-MONTH(sipstart))/3)-(MONTH(M11)-MONTH(sipstart))/3=0,IF(DAY(A11)=sipdate,1,IF(AB10=1,0,IF(AB9=1,0,IF(AB8=1,0,IF(AB7=1,0,IF(AB5=1,0,IF(AB4=1,0,IF(DAY(A11)=sipdate+1,1,IF(DAY(A11)=sipdate+2,1,IF(DAY(A11)=sipdate+3,1,IF(DAY(A11)=sipdate+4,1,IF(DAY(A11)=sipdate+5,1,IF(DAY(A11)=sipdate+6,1,IF(DAY(A11)=sipdate+7,1,0)))))))))))))),0) -> 0 | AD11: =IF(INT((MONTH(M11)-MONTH(sipstart))/12)-(MONTH(M11)-MONTH(sipstart))/12=0,IF(DAY(A11)=sipdate,1,IF(AB10=1,0,IF(AB9=1,0,IF(AB8=1,0,IF(AB7=1,0,IF(AB5=1,0,IF(AB4=1,0,IF(DAY(A11)=sipdate+1,1,IF(DAY(A11)=sipdate+2,1,IF(DAY(A11)=sipdate+3,1,IF(DAY(A11)=sipdate+4,1,IF(DAY(A11)=sipdate+5,1,IF(DAY(A11)=sipdate+6,1,IF(DAY(A11)=sipdate+7,1,0)))))))))))))),0) -> 0 | AE11: 0 | AF11: 0 | AI11: 42177 | AJ11: 6 | AR11: 10 | AS11: 10 | AT11: 2003
A12: 37994 | B12: 1047.63 | J12: =IF(DAY(A12)=sipdate,1,IF(J11=1,0,IF(J10=1,0,IF(J9=1,0,IF(J8=1,0,IF(J7=1,0,IF(J5=1,0,IF(DAY(A12)=sipdate+1,1,IF(DAY(A12)=sipdate+2,1,IF(DAY(A12)=sipdate+3,1,IF(DAY(A12)=sipdate+4,1,IF(DAY(A12)=sipdate+5,1,IF(DAY(A12)=sipdate+6,1,IF(DAY(A12)=sipdate+7,1,0)))))))))))))) -> 0 | K12: =IF(DAY(A12)=sipdate,-sip,IF(K11=-sip,0,IF(K10=-sip,0,IF(K9=-sip,0,IF(K8=-sip,0,IF(K7=-sip,0,IF(K5=-sip,0,IF(DAY(A12)=sipdate+1,-sip,IF(DAY(A12)=sipdate+2,-sip,IF(DAY(A12)=sipdate+3,-sip,IF(DAY(A12)=sipdate+4,-sip,IF(DAY(A12)=sipdate+5,-sip,IF(DAY(A12)=sipdate+6,-sip,IF(DAY(A12)=sipdate+7,-sip,0)))))))))))))) -> 0 | M12: 37994 | N12: 0 | O12: 0 | R12: 0 | T12: 0 | U12: 0 | V12: 0 | W12: 0 | X12: 0 | Z12: 0 | AB12: =IF(INT((MONTH(M12)-MONTH(sipstart))/3)-(MONTH(M12)-MONTH(sipstart))/3=0,IF(DAY(A12)=sipdate,1,IF(AB11=1,0,IF(AB10=1,0,IF(AB9=1,0,IF(AB8=1,0,IF(AB7=1,0,IF(AB5=1,0,IF(DAY(A12)=sipdate+1,1,IF(DAY(A12)=sipdate+2,1,IF(DAY(A12)=sipdate+3,1,IF(DAY(A12)=sipdate+4,1,IF(DAY(A12)=sipdate+5,1,IF(DAY(A12)=sipdate+6,1,IF(DAY(A12)=sipdate+7,1,0)))))))))))))),0) -> 0 | AD12: =IF(INT((MONTH(M12)-MONTH(sipstart))/12)-(MONTH(M12)-MONTH(sipstart))/12=0,IF(DAY(A12)=sipdate,1,IF(AB11=1,0,IF(AB10=1,0,IF(AB9=1,0,IF(AB8=1,0,IF(AB7=1,0,IF(AB5=1,0,IF(DAY(A12)=sipdate+1,1,IF(DAY(A12)=sipdate+2,1,IF(DAY(A12)=sipdate+3,1,IF(DAY(A12)=sipdate+4,1,IF(DAY(A12)=sipdate+5,1,IF(DAY(A12)=sipdate+6,1,IF(DAY(A12)=sipdate+7,1,0)))))))))))))),0) -> 0 | AE12: 0 | AF12: 0 | AI12: 42267 | AJ12: 9 | AR12: 11 | AS12: 11 | AT12: 2004
A13: 37995 | B13: 1047.12 | D13: Results | J13: =IF(DAY(A13)=sipdate,1,IF(J12=1,0,IF(J11=1,0,IF(J10=1,0,IF(J9=1,0,IF(J8=1,0,IF(J7=1,0,IF(DAY(A13)=sipdate+1,1,IF(DAY(A13)=sipdate+2,1,IF(DAY(A13)=sipdate+3,1,IF(DAY(A13)=sipdate+4,1,IF(DAY(A13)=sipdate+5,1,IF(DAY(A13)=sipdate+6,1,IF(DAY(A13)=sipdate+7,1,0)))))))))))))) -> 0 | K13: =IF(DAY(A13)=sipdate,-sip,IF(K12=-sip,0,IF(K11=-sip,0,IF(K10=-sip,0,IF(K9=-sip,0,IF(K8=-sip,0,IF(K7=-sip,0,IF(DAY(A13)=sipdate+1,-sip,IF(DAY(A13)=sipdate+2,-sip,IF(DAY(A13)=sipdate+3,-sip,IF(DAY(A13)=sipdate+4,-sip,IF(DAY(A13)=sipdate+5,-sip,IF(DAY(A13)=sipdate+6,-sip,IF(DAY(A13)=sipdate+7,-sip,0)))))))))))))) -> 0 | M13: 37995 | N13: 0 | O13: 0 | R13: 0 | T13: 0 | U13: 0 | V13: 0 | W13: 0 | X13: 0 | Z13: 0 | AB13: =IF(INT((MONTH(M13)-MONTH(sipstart))/3)-(MONTH(M13)-MONTH(sipstart))/3=0,IF(DAY(A13)=sipdate,1,IF(AB12=1,0,IF(AB11=1,0,IF(AB10=1,0,IF(AB9=1,0,IF(AB8=1,0,IF(AB7=1,0,IF(DAY(A13)=sipdate+1,1,IF(DAY(A13)=sipdate+2,1,IF(DAY(A13)=sipdate+3,1,IF(DAY(A13)=sipdate+4,1,IF(DAY(A13)=sipdate+5,1,IF(DAY(A13)=sipdate+6,1,IF(DAY(A13)=sipdate+7,1,0)))))))))))))),0) -> 0 | AD13: =IF(INT((MONTH(M13)-MONTH(sipstart))/12)-(MONTH(M13)-MONTH(sipstart))/12=0,IF(DAY(A13)=sipdate,1,IF(AB12=1,0,IF(AB11=1,0,IF(AB10=1,0,IF(AB9=1,0,IF(AB8=1,0,IF(AB7=1,0,IF(DAY(A13)=sipdate+1,1,IF(DAY(A13)=sipdate+2,1,IF(DAY(A13)=sipdate+3,1,IF(DAY(A13)=sipdate+4,1,IF(DAY(A13)=sipdate+5,1,IF(DAY(A13)=sipdate+6,1,IF(DAY(A13)=sipdate+7,1,0)))))))))))))),0) -> 0 | AE13: 0 | AF13: 0 | AI13: 42357 | AJ13: 12 | AR13: 12 | AS13: 12 | AT13: 2005
A14: 37998 | B14: 1030.54 | D14: Investment period | E14: =I7 -> 41277 | J14: 0 | K14: 0 | M14: 37998 | N14: 0 | O14: 0 | R14: 0 | T14: 0 | U14: 0 | V14: 0 | W14: 0 | X14: 0 | Z14: 0 | AB14: 0 | AD14: 0 | AE14: 0 | AF14: 0 | AI14: 42447 | AJ14: 3 | AR14: 13 | AT14: 2006
A15: 37999 | B15: 1033.31 | D15: Investment amount | E15: =sip -> 1000 | J15: 0 | K15: 0 | M15: 37999 | N15: 0 | O15: 0 | R15: 0 | T15: 0 | U15: 0 | V15: 0 | W15: 0 | X15: 0 | Z15: 0 | AB15: 0 | AD15: 0 | AE15: 0 | AF15: 0 | AI15: 42537 | AJ15: 6 | AR15: 14 | AT15: 2007
A16: 38000 | B16: 1041.26 | D16: No of installments | E16: =E20/E15 -> 77 | J16: 0 | K16: 0 | M16: 38000 | N16: 0 | O16: 0 | R16: 0 | T16: 0 | U16: 0 | V16: 0 | W16: 0 | X16: 0 | Z16: 0 | AB16: 0 | AD16: 0 | AE16: 0 | AF16: 0 | AI16: 42627 | AJ16: 9 | AR16: 15 | AT16: 2008
A17: 38001 | B17: 1025.82 | D17: Total units | E17: =SUM(P9:P4829) -> 15.36775066 | J17: 0 | K17: 0 | M17: 38001 | N17: 0 | O17: 0 | R17: 0 | T17: 0 | U17: 0 | V17: 0 | W17: 0 | X17: 0 | Z17: 0 | AB17: 0 | AD17: 0 | AE17: 0 | AF17: 0 | AI17: 42717 | AJ17: 12 | AR17: 16 | AT17: 2009
A18: 38002 | B18: 998.45 | D18: CAGR* | E18: ='Account Statement'!G4 -> 0.1134521306 | J18: 0 | K18: 0 | M18: 38002 | N18: 0 | O18: 0 | R18: 0 | T18: 0 | U18: 0 | V18: 0 | W18: 0 | X18: 0 | Z18: 0 | AB18: 0 | AD18: 0 | AE18: 0 | AF18: 0 | AI18: 42807 | AJ18: 3 | AR18: 17 | AT18: 2010
A19: 38005 | B19: 1014.11 | D19: Total value* | E19: =MAX(V9:V4831) -> 111553.8873 | J19: 0 | K19: 0 | M19: 38005 | N19: 0 | O19: 0 | R19: 0 | T19: 0 | U19: 0 | V19: 0 | W19: 0 | X19: 0 | Z19: 0 | AB19: 0 | AD19: 0 | AE19: 0 | AF19: 0 | AI19: 42897 | AJ19: 6 | AR19: 18 | AT19: 2011
A20: 38006 | B20: 994.01 | D20: Total investment | E20: =-(SUM(O9:O4829)) -> 77000 | J20: 0 | K20: 0 | M20: 38006 | N20: 0 | O20: 0 | R20: 0 | T20: 0 | U20: 0 | V20: 0 | W20: 0 | X20: 0 | Z20: 0 | AB20: 0 | AD20: 0 | AE20: 0 | AF20: 0 | AI20: 42987 | AJ20: 9 | AR20: 19 | AT20: 2012
A21: 38007 | B21: 943.55 | D21: * as on last date in NAV history | J21: 0 | K21: 0 | M21: 38007 | N21: 0 | O21: 0 | R21: 0 | T21: 0 | U21: 0 | V21: 0 | W21: 0 | X21: 0 | Z21: 0 | AB21: 0 | AD21: 0 | AE21: 0 | AF21: 0 | AI21: 43077 | AJ21: 12 | AR21: 20 | AT21: 2013
A22: 38008 | B22: 916.8 | J22: 0 | K22: 0 | M22: 38008 | N22: 0 | O22: 0 | R22: 0 | T22: 0 | U22: 0 | V22: 0 | W22: 0 | X22: 0 | Z22: 0 | AB22: 0 | AD22: 0 | AE22: 0 | AF22: 0 | AI22: 43167 | AJ22: 3 | AR22: 21
A23: 38009 | B23: 962.52 | J23: 0 | K23: 0 | M23: 38009 | N23: 0 | O23: 0 | R23: 0 | T23: 0 | U23: 0 | V23: 0 | W23: 0 | X23: 0 | Z23: 0 | AB23: 0 | AD23: 0 | AE23: 0 | AF23: 0 | AI23: 43257 | AJ23: 6 | AR23: 22
A24: 38013 | B24: 997.14 | J24: 0 | K24: 0 | M24: 38013 | N24: 0 | O24: 0 | R24: 0 | T24: 0 | U24: 0 | V24: 0 | W24: 0 | X24: 0 | Z24: 0 | AB24: 0 | AD24: 0 | AE24: 0 | AF24: 0 | AI24: 43347 | AJ24: 9 | AR24: 23
A25: 38014 | B25: 972.39 | J25: 0 | K25: 0 | M25: 38014 | N25: 0 | O25: 0 | R25: 0 | T25: 0 | U25: 0 | V25: 0 | W25: 0 | X25: 0 | Z25: 0 | AB25: 0 | AD25: 0 | AE25: 0 | AF25: 0 | AI25: 43437 | AJ25: 12 | AR25: 24
A26: 38015 | B26: 964.04 | J26: 0 | K26: 0 | M26: 38015 | N26: 0 | O26: 0 | R26: 0 | T26: 0 | U26: 0 | V26: 0 | W26: 0 | X26: 0 | Z26: 0 | AB26: 0 | AD26: 0 | AE26: 0 | AF26: 0 | AI26: 43527 | AJ26: 3 | AR26: 25
A27: 38016 | B27: 941.3 | J27: 0 | K27: 0 | M27: 38016 | N27: 0 | O27: 0 | R27: 0 | T27: 0 | U27: 0 | V27: 0 | W27: 0 | X27: 0 | Z27: 0 | AB27: 0 | AD27: 0 | AE27: 0 | AF27: 0 | AI27: 43617 | AJ27: 6 | AR27: 26
A28: 38020 | B28: 907.62 | J28: 1 | K28: -1000 | M28: 38020 | N28: 0 | O28: 0 | R28: 0 | T28: 0 | U28: 0 | V28: 0 | W28: 0 | X28: 0 | Z28: 0 | AB28: 0 | AD28: 0 | AE28: 0 | AF28: 0 | AI28: 43707 | AJ28: 8 | AR28: 27
A29: 38021 | B29: 935.82 | J29: 0 | K29: 0 | M29: 38021 | N29: 0 | O29: 0 | R29: 0 | T29: 0 | U29: 0 | V29: 0 | W29: 0 | X29: 0 | Z29: 0 | AB29: 0 | AD29: 0 | AE29: 0 | AF29: 0 | AI29: 43797 | AJ29: 11 | AR29: 28
A30: 38022 | B30: 930.14 | J30: 0 | K30: 0 | M30: 38022 | N30: 0 | O30: 0 | R30: 0 | T30: 0 | U30: 0 | V30: 0 | W30: 0 | X30: 0 | Z30: 0 | AB30: 0 | AD30: 0 | AE30: 0 | AF30: 0 | AI30: 43887 | AJ30: 2 | AR30: 29
A31: 38023 | B31: 950.53 | J31: 0 | K31: 0 | M31: 38023 | N31: 0 | O31: 0 | R31: 0 | T31: 0 | U31: 0 | V31: 0 | W31: 0 | X31: 0 | Z31: =IF(R32=0,IF(R31=1,M31,0),0) -> 0 | AB31: 0 | AD31: 0 | AE31: 0 | AF31: 0 | AI31: 43977 | AJ31: 5 | AR31: 30
A32: 38026 | B32: 973.19 | J32: 0 | K32: 0 | M32: 38026 | N32: 0 | O32: 0 | R32: 0 | T32: 0 | U32: 0 | V32: 0 | W32: 0 | X32: 0 | Z32: 0 | AB32: 0 | AD32: 0 | AE32: 0 | AF32: 0 | AI32: 44067 | AJ32: 8 | AR32: 31
A33: 38027 | B33: 973.1 | J33: 0 | K33: 0 | M33: 38027 | N33: 0 | O33: 0 | R33: 0 | T33: 0 | U33: 0 | V33: 0 | W33: 0 | X33: 0 | Z33: 0 | AB33: 0 | AD33: 0 | AE33: 0 | AF33: 0 | AI33: 44157 | AJ33: 11
A34: 38028 | B34: 980.65 | J34: 0 | K34: 0 | M34: 38028 | N34: 0 | O34: 0 | R34: 0 | T34: 0 | U34: 0 | V34: 0 | W34: 0 | X34: 0 | Z34: 0 | AB34: 0 | AD34: 0 | AE34: 0 | AF34: 0 | AI34: 44247 | AJ34: 2
A35: 38029 | B35: 980.21 | J35: 0 | K35: 0 | M35: 38029 | N35: 0 | O35: 0 | R35: 0 | T35: 0 | U35: 0 | V35: 0 | W35: 0 | X35: 0 | Z35: 0 | AB35: 0 | AD35: 0 | AE35: 0 | AF35: 0 | AI35: 44337 | AJ35: 5
A36: 38030 | B36: 994.24 | J36: 0 | K36: 0 | M36: 38030 | N36: 0 | O36: 0 | R36: 0 | T36: 0 | U36: 0 | V36: 0 | W36: 0 | X36: 0 | Z36: 0 | AB36: 0 | AD36: 0 | AE36: 0 | AF36: 0 | AI36: 44427 | AJ36: 8
A37: 38033 | B37: 995.26 | J37: 0 | K37: 0 | M37: 38033 | N37: 0 | O37: 0 | R37: 0 | T37: 0 | U37: 0 | V37: 0 | W37: 0 | X37: 0 | Z37: 0 | AB37: 0 | AD37: 0 | AE37: 0 | AF37: 0 | AI37: 44517 | AJ37: 11
A38: 38034 | B38: 996.56 | J38: 0 | K38: 0 | M38: 38034 | N38: 0 | O38: 0 | R38: 0 | T38: 0 | U38: 0 | V38: 0 | W38: 0 | X38: 0 | Z38: 0 | AB38: 0 | AD38: 0 | AE38: 0 | AF38: 0 | AI38: 44607 | AJ38: 2
A39: 38035 | B39: 1001.13 | J39: 0 | K39: 0 | M39: 38035 | N39: 0 | O39: 0 | R39: 0 | T39: 0 | U39: 0 | V39: 0 | W39: 0 | X39: 0 | Z39: 0 | AB39: 0 | AD39: 0 | AE39: 0 | AF39: 0 | AI39: 44697 | AJ39: 5
A40: 38036 | B40: 973.81 | J40: 0 | K40: 0 | M40: 38036 | N40: 0 | O40: 0 | R40: 0 | T40: 0 | U40: 0 | V40: 0 | W40: 0 | X40: 0 | Z40: 0 | AB40: 0 | AD40: 0 | AE40: 0 | AF40: 0 | AI40: 44787 | AJ40: 8
A41: 38037 | B41: 969.93 | J41: 0 | K41: 0 | M41: 38037 | N41: 0 | O41: 0 | R41: 0 | T41: 0 | U41: 0 | V41: 0 | W41: 0 | X41: 0 | Z41: 0 | AB41: 0 | AD41: 0 | AE41: 0 | AF41: 0 | AI41: 44877 | AJ41: 11
A42: 38040 | B42: 945.06 | J42: 0 | K42: 0 | M42: 38040 | N42: 0 | O42: 0 | R42: 0 | T42: 0 | U42: 0 | V42: 0 | W42: 0 | X42: 0 | Z42: 0 | AB42: 0 | AD42: 0 | AE42: 0 | AF42: 0 | AI42: 44967 | AJ42: 2
A43: 38041 | B43: 948.22 | J43: 0 | K43: 0 | M43: 38041 | N43: 0 | O43: 0 | R43: 0 | T43: 0 | U43: 0 | V43: 0 | W43: 0 | X43: 0 | Z43: 0 | AB43: 0 | AD43: 0 | AE43: 0 | AF43: 0 | AI43: 45057 | AJ43: 5
A44: 38044 | B44: 936.79 | J44: 0 | K44: 0 | M44: 38044 | N44: 0 | O44: 0 | R44: 0 | T44: 0 | U44: 0 | V44: 0 | W44: 0 | X44: 0 | Z44: 0 | AB44: 0 | AD44: 0 | AE44: 0 | AF44: 0 | AI44: 45147 | AJ44: 8
A45: 38047 | B45: 964.44 | J45: 0 | K45: 0 | M45: 38047 | N45: 0 | O45: 0 | R45: 0 | T45: 0 | U45: 0 | V45: 0 | W45: 0 | X45: 0 | Z45: 0 | AB45: 0 | AD45: 0 | AE45: 0 | AF45: 0 | AI45: 45237 | AJ45: 11
A46: 38049 | B46: 966.67 | J46: 1 | K46: -1000 | M46: 38049 | N46: 0 | O46: 0 | R46: 0 | T46: 0 | U46: 0 | V46: 0 | W46: 0 | X46: 0 | Z46: 0 | AB46: 0 | AD46: 0 | AE46: 0 | AF46: 0 | AI46: 45327 | AJ46: 2
A47: 38050 | B47: 961.66 | J47: 0 | K47: 0 | M47: 38050 | N47: 0 | O47: 0 | R47: 0 | T47: 0 | U47: 0 | V47: 0 | W47: 0 | X47: 0 | Z47: 0 | AB47: 0 | AD47: 0 | AE47: 0 | AF47: 0 | AI47: 45417 | AJ47: 5
A48: 38051 | B48: 979.62 | J48: 0 | K48: 0 | M48: 38051 | N48: 0 | O48: 0 | R48: 0 | T48: 0 | U48: 0 | V48: 0 | W48: 0 | X48: 0 | Z48: 0 | AB48: 0 | AD48: 0 | AE48: 0 | AF48: 0 | AI48: 45507 | AJ48: 8
A49: 38054 | B49: 999.08 | J49: 0 | K49: 0 | M49: 38054 | N49: 0 | O49: 0 | R49: 0 | T49: 0 | U49: 0 | V49: 0 | W49: 0 | X49: 0 | Z49: 0 | AB49: 0 | AD49: 0 | AE49: 0 | AF49: 0 | AI49: 45597 | AJ49: 11
A50: 38055 | B50: 988.01 | J50: 0 | K50: 0 | M50: 38055 | N50: 0 | O50: 0 | R50: 0 | T50: 0 | U50: 0 | V50: 0 | W50: 0 | X50: 0 | Z50: 0 | AB50: 0 | AD50: 0 | AE50: 0 | AF50: 0 | AI50: 45687 | AJ50: 1
A51: 38056 | B51: 978.53 | J51: 0 | K51: 0 | M51: 38056 | N51: 0 | O51: 0 | R51: 0 | T51: 0 | U51: 0 | V51: 0 | W51: 0 | X51: 0 | Z51: 0 | AB51: 0 | AD51: 0 | AE51: 0 | AF51: 0 | AI51: 45777 | AJ51: 4
A52: 38057 | B52: 960.12 | J52: 0 | K52: 0 | M52: 38057 | N52: 0 | O52: 0 | R52: 0 | T52: 0 | U52: 0 | V52: 0 | W52: 0 | X52: 0 | Z52: 0 | AB52: 0 | AD52: 0 | AE52: 0 | AF52: 0 | AI52: 45867 | AJ52: 7
A53: 38058 | B53: 959.56 | J53: 0 | K53: 0 | M53: 38058 | N53: 0 | O53: 0 | R53: 0 | T53: 0 | U53: 0 | V53: 0 | W53: 0 | X53: 0 | Z53: 0 | AB53: 0 | AD53: 0 | AE53: 0 | AF53: 0 | AI53: 45957 | AJ53: 10
A54: 38061 | B54: 933.78 | J54: 0 | K54: 0 | M54: 38061 | N54: 0 | O54: 0 | R54: 0 | T54: 0 | U54: 0 | V54: 0 | W54: 0 | X54: 0 | Z54: 0 | AB54: 0 | AD54: 0 | AE54: 0 | AF54: 0 | AI54: 46047 | AJ54: 1
A55: 38062 | B55: 930.51 | J55: 0 | K55: 0 | M55: 38062 | N55: 0 | O55: 0 | R55: 0 | T55: 0 | U55: 0 | V55: 0 | W55: 0 | X55: 0 | Z55: 0 | AB55: 0 | AD55: 0 | AE55: 0 | AF55: 0 | AI55: 46137 | AJ55: 4
A56: 38063 | B56: 935.66 | J56: 0 | K56: 0 | M56: 38063 | N56: 0 | O56: 0 | R56: 0 | T56: 0 | U56: 0 | V56: 0 | W56: 0 | X56: 0 | Z56: 0 | AB56: 0 | AD56: 0 | AE56: 0 | AF56: 0 | AI56: 46227 | AJ56: 7
A57: 38064 | B57: 920.96 | J57: 0 | K57: 0 | M57: 38064 | N57: 0 | O57: 0 | R57: 0 | T57: 0 | U57: 0 | V57: 0 | W57: 0 | X57: 0 | Z57: 0 | AB57: 0 | AD57: 0 | AE57: 0 | AF57: 0 | AI57: 46317 | AJ57: 10
A58: 38065 | B58: 924 | J58: 0 | K58: 0 | M58: 38065 | N58: 0 | O58: 0 | R58: 0 | T58: 0 | U58: 0 | V58: 0 | W58: 0 | X58: 0 | Z58: 0 | AB58: 0 | AD58: 0 | AE58: 0 | AF58: 0 | AI58: 46407 | AJ58: 1
A59: 38068 | B59: 901.12 | J59: 0 | K59: 0 | M59: 38068 | N59: 0 | O59: 0 | R59: 0 | T59: 0 | U59: 0 | V59: 0 | W59: 0 | X59: 0 | Z59: 0 | AB59: 0 | AD59: 0 | AE59: 0 | AF59: 0 | AI59: 46497 | AJ59: 4
A60: 38069 | B60: 901.99 | J60: 0 | K60: 0 | M60: 38069 | N60: 0 | O60: 0 | R60: 0 | T60: 0 | U60: 0 | V60: 0 | W60: 0 | X60: 0 | Z60: 0 | AB60: 0 | AD60: 0 | AE60: 0 | AF60: 0 | AI60: 46587 | AJ60: 7
A61: 38070 | B61: 902.47 | J61: 0 | K61: 0 | M61: 38070 | N61: 0 | O61: 0 | R61: 0 | T61: 0 | U61: 0 | V61: 0 | W61: 0 | X61: 0 | Z61: 0 | AB61: 0 | AD61: 0 | AE61: 0 | AF61: 0 | AI61: 46677 | AJ61: 10
A62: 38071 | B62: 909.85 | J62: 0 | K62: 0 | M62: 38071 | N62: 0 | O62: 0 | R62: 0 | T62: 0 | U62: 0 | V62: 0 | W62: 0 | X62: 0 | Z62: 0 | AB62: 0 | AD62: 0 | AE62: 0 | AF62: 0 | AI62: 46767 | AJ62: 1
A63: 38072 | B63: 930.64 | J63: 0 | K63: 0 | M63: 38072 | N63: 0 | O63: 0 | R63: 0 | T63: 0 | U63: 0 | V63: 0 | W63: 0 | X63: 0 | Z63: 0 | AB63: 0 | AD63: 0 | AE63: 0 | AF63: 0 | AI63: 46857 | AJ63: 4
A64: 38075 | B64: 940.12 | J64: 0 | K64: 0 | M64: 38075 | N64: 0 | O64: 0 | R64: 0 | T64: 0 | U64: 0 | V64: 0 | W64: 0 | X64: 0 | Z64: 0 | AB64: 0 | AD64: 0 | AE64: 0 | AF64: 0 | AI64: 46947 | AJ64: 7
A65: 38076 | B65: 937.98 | J65: 0 | K65: 0 | M65: 38076 | N65: 0 | O65: 0 | R65: 0 | T65: 0 | U65: 0 | V65: 0 | W65: 0 | X65: 0 | Z65: 0 | AB65: 0 | AD65: 0 | AE65: 0 | AF65: 0 | AI65: 47037 | AJ65: 10
A66: 38077 | B66: 948.57 | J66: 0 | K66: 0 | M66: 38077 | N66: 0 | O66: 0 | R66: 0 | T66: 0 | U66: 0 | V66: 0 | W66: 0 | X66: 0 | Z66: 0 | AB66: 0 | AD66: 0 | AE66: 0 | AF66: 0 | AI66: 47127 | AJ66: 1
A67: 38078 | B67: 970 | J67: 0 | K67: 0 | M67: 38078 | N67: 0 | O67: 0 | R67: 0 | T67: 0 | U67: 0 | V67: 0 | W67: 0 | X67: 0 | Z67: 0 | AB67: 0 | AD67: 0 | AE67: 0 | AF67: 0 | AI67: 47217 | AJ67: =MONTH(AI67) -> 4
A68: 38079 | B68: 984.5 | J68: 0 | K68: 0 | M68: 38079 | N68: 0 | O68: 0 | R68: 0 | T68: 0 | U68: 0 | V68: 0 | W68: 0 | X68: 0 | Z68: 0 | AB68: 0 | AD68: 0 | AE68: 0 | AF68: 0 | AI68: =AI67+90 -> 47307 | AJ68: 7
A69: 38082 | B69: 991.26 | J69: 1 | K69: -1000 | M69: 38082 | N69: 0 | O69: 0 | R69: 0 | T69: 0 | U69: 0 | V69: 0 | W69: 0 | X69: 0 | Z69: 0 | AB69: 1 | AD69: 0 | AE69: 0 | AF69: 0 | AI69: 47397 | AJ69: 10
A70: 38083 | B70: 987 | J70: 0 | K70: 0 | M70: 38083 | N70: 0 | O70: 0 | R70: 0 | T70: 0 | U70: 0 | V70: 0 | W70: 0 | X70: 0 | Z70: 0 | AB70: 0 | AD70: 0 | AE70: 0 | AF70: 0 | AI70: 47487 | AJ70: 1
A71: 38084 | B71: 986.42 | J71: 0 | K71: 0 | M71: 38084 | N71: 0 | O71: 0 | R71: 0 | T71: 0 | U71: 0 | V71: 0 | W71: 0 | X71: 0 | Z71: 0 | AB71: 0 | AD71: 0 | AE71: 0 | AF71: 0 | AI71: 47577 | AJ71: 4
A72: 38085 | B72: 996.09 | J72: 0 | K72: 0 | M72: 38085 | N72: 0 | O72: 0 | R72: 0 | T72: 0 | U72: 0 | V72: 0 | W72: 0 | X72: 0 | Z72: 0 | AB72: 0 | AD72: 0 | AE72: 0 | AF72: 0 | AI72: 47667 | AJ72: 7
A73: 38089 | B73: 992.55 | J73: 0 | K73: 0 | M73: =A73 -> 38089 | N73: =IF(IF(M73>=sipstart,1,0)+IF(M73<=sipend,1,0)=2,J73,0) -> 0 | O73: =IF(IF(M73>=sipstart,1,0)+IF(M73<=sipend,1,0)=2,K73,0) -> 0 | R73: =IF(IF(M73>=sipstart,1,0)+IF(M73<=sipend,1,0)=2,1,0) -> 0 | T73: =IF((IF(M73>=sipstart,1,2)+IF(M73<=sipend,1,2))=2,M73,0) -> 0 | U73: 0 | V73: 0 | W73: =IF(V73=-sip,U73,0) -> 0 | X73: =IF(V73=-sip,B73,0) -> 0 | Z73: 0 | AB73: 0 | AD73: 0 | AE73: =IF(AD73=1,A73,0) -> 0 | AF73: =IF(AD73=1,B73,0) -> 0 | AI73: 47757 | AJ73: 10
A74: 38090 | B74: 1012.98 | J74: 0 | K74: 0 | M74: 38090 | N74: 0 | O74: 0 | P74: =IF(O74=-sip,-O74/B74,"") ->  | R74: 0 | T74: 0 | U74: =IF((IF(M74>=sipstart,1,2)+IF(M74<=sipend,1,2))=2,M74,0)+IF(T73=actualsipend,actualsipend,0) -> 0 | V74: =IF(U74+U73=0,0,IF(U74=U73,sipunits*B73,O74)) -> 0 | W74: 0 | X74: 0 | Z74: 0 | AB74: 0 | AD74: 0 | AE74: 0 | AF74: 0 | AI74: 47847 | AJ74: 12
A75: 38092 | B75: 1010.62 | J75: 0 | K75: 0 | M75: 38092 | N75: 0 | O75: 0 | R75: 0 | T75: 0 | U75: 0 | V75: 0 | W75: 0 | X75: 0 | Z75: 0 | AB75: 0 | AD75: 0 | AE75: 0 | AF75: 0 | AI75: 47937 | AJ75: 3
A76: 38093 | B76: 1015.36 | J76: 0 | K76: 0 | M76: 38093 | N76: 0 | O76: 0 | R76: 0 | T76: 0 | U76: 0 | V76: 0 | W76: 0 | X76: 0 | Z76: 0 | AB76: 0 | AD76: 0 | AE76: 0 | AF76: 0 | AI76: 48027 | AJ76: 6
A77: 38094 | B77: 1017.26 | J77: =IF(DAY(A77)=sipdate,1,IF(J76=1,0,IF(J75=1,0,IF(J74=1,0,IF(J73=1,0,IF(J72=1,0,IF(J71=1,0,IF(DAY(A77)=sipdate+1,1,IF(DAY(A77)=sipdate+2,1,IF(DAY(A77)=sipdate+3,1,IF(DAY(A77)=sipdate+4,1,IF(DAY(A77)=sipdate+5,1,IF(DAY(A77)=sipdate+6,1,IF(DAY(A77)=sipdate+7,1,0)))))))))))))) -> 0 | K77: =IF(DAY(A77)=sipdate,-sip,IF(K76=-sip,0,IF(K75=-sip,0,IF(K74=-sip,0,IF(K73=-sip,0,IF(K72=-sip,0,IF(K71=-sip,0,IF(DAY(A77)=sipdate+1,-sip,IF(DAY(A77)=sipdate+2,-sip,IF(DAY(A77)=sipdate+3,-sip,IF(DAY(A77)=sipdate+4,-sip,IF(DAY(A77)=sipdate+5,-sip,IF(DAY(A77)=sipdate+6,-sip,IF(DAY(A77)=sipdate+7,-sip,0)))))))))))))) -> 0 | M77: 38094 | N77: 0 | O77: 0 | R77: 0 | T77: 0 | U77: 0 | V77: 0 | W77: 0 | X77: 0 | Z77: 0 | AB77: =IF(INT((MONTH(M77)-MONTH(sipstart))/3)-(MONTH(M77)-MONTH(sipstart))/3=0,IF(DAY(A77)=sipdate,1,IF(AB76=1,0,IF(AB75=1,0,IF(AB74=1,0,IF(AB73=1,0,IF(AB72=1,0,IF(AB71=1,0,IF(DAY(A77)=sipdate+1,1,IF(DAY(A77)=sipdate+2,1,IF(DAY(A77)=sipdate+3,1,IF(DAY(A77)=sipdate+4,1,IF(DAY(A77)=sipdate+5,1,IF(DAY(A77)=sipdate+6,1,IF(DAY(A77)=sipdate+7,1,0)))))))))))))),0) -> 0 | AD77: =IF(INT((MONTH(M77)-MONTH(sipstart))/12)-(MONTH(M77)-MONTH(sipstart))/12=0,IF(DAY(A77)=sipdate,1,IF(AB76=1,0,IF(AB75=1,0,IF(AB74=1,0,IF(AB73=1,0,IF(AB72=1,0,IF(AB71=1,0,IF(DAY(A77)=sipdate+1,1,IF(DAY(A77)=sipdate+2,1,IF(DAY(A77)=sipdate+3,1,IF(DAY(A77)=sipdate+4,1,IF(DAY(A77)=sipdate+5,1,IF(DAY(A77)=sipdate+6,1,IF(DAY(A77)=sipdate+7,1,0)))))))))))))),0) -> 0 | AE77: 0 | AF77: 0 | AI77: 48117 | AJ77: 9
A78: 38096 | B78: 1001.6 | J78: 0 | K78: 0 | M78: 38096 | N78: 0 | O78: 0 | R78: 0 | T78: 0 | U78: 0 | V78: 0 | W78: 0 | X78: 0 | Z78: 0 | AB78: 0 | AD78: 0 | AE78: 0 | AF78: 0 | AI78: 48207 | AJ78: 12
A79: 38097 | B79: 1000.76 | J79: 0 | K79: 0 | M79: 38097 | N79: 0 | O79: 0 | R79: 0 | T79: 0 | U79: 0 | V79: 0 | W79: 0 | X79: 0 | Z79: 0 | AB79: 0 | AD79: 0 | AE79: 0 | AF79: 0 | AI79: 48297 | AJ79: 3
A80: 38098 | B80: 1017.66 | J80: 0 | K80: 0 | M80: 38098 | N80: 0 | O80: 0 | R80: 0 | T80: 0 | U80: 0 | V80: 0 | W80: 0 | X80: 0 | Z80: 0 | AB80: 0 | AD80: 0 | AE80: 0 | AF80: 0
A81: 38099 | B81: 1029.41 | J81: 0 | K81: 0 | M81: 38099 | N81: 0 | O81: 0 | R81: 0 | T81: 0 | U81: 0 | V81: 0 | W81: 0 | X81: 0 | Z81: 0 | AB81: 0 | AD81: 0 | AE81: 0 | AF81: 0
A82: 38100 | B82: 1031.49 | J82: 0 | K82: 0 | M82: 38100 | N82: 0 | O82: 0 | R82: 0 | T82: 0 | U82: 0 | V82: 0 | W82: 0 | X82: 0 | Z82: 0 | AB82: 0 | AD82: 0 | AE82: 0 | AF82: 0
A83: 38104 | B83: 987.8 | J83: 0 | K83: 0 | M83: 38104 | N83: 0 | O83: 0 | R83: 0 | T83: 0 | U83: 0 | V83: 0 | W83: 0 | X83: 0 | Z83: 0 | AB83: 0 | AD83: 0 | AE83: 0 | AF83: 0
A84: 38105 | B84: 985.61 | J84: 0 | K84: 0 | M84: 38105 | N84: 0 | O84: 0 | R84: 0 | T84: 0 | U84: 0 | V84: 0 | W84: 0 | X84: 0 | Z84: 0 | AB84: 0 | AD84: 0 | AE84: 0 | AF84: 0
A85: 38106 | B85: 984.8 | J85: 0 | K85: 0 | M85: 38106 | N85: 0 | O85: 0 | R85: 0 | T85: 0 | U85: 0 | V85: 0 | W85: 0 | X85: 0 | Z85: 0 | AB85: 0 | AD85: 0 | AE85: 0 | AF85: 0
A86: 38107 | B86: 977.27 | J86: 0 | K86: 0 | M86: 38107 | N86: 0 | O86: 0 | R86: 0 | T86: 0 | U86: 0 | V86: 0 | W86: 0 | X86: 0 | Z86: 0 | AB86: 0 | AD86: 0 | AE86: 0 | AF86: 0
A87: 38110 | B87: 959.5 | J87: 1 | K87: -1000 | M87: 38110 | N87: 0 | O87: 0 | R87: 0 | T87: 0 | U87: 0 | V87: 0 | W87: 0 | X87: 0 | Z87: 0 | AB87: 0 | AD87: 0 | AE87: 0 | AF87: 0
A88: 38111 | B88: 976.79 | J88: 0 | K88: 0 | M88: 38111 | N88: 0 | O88: 0 | R88: 0 | T88: 0 | U88: 0 | V88: 0 | W88: 0 | X88: 0 | Z88: 0 | AB88: 0 | AD88: 0 | AE88: 0 | AF88: 0
A89: 38112 | B89: 985.77 | J89: 0 | K89: 0 | M89: 38112 | N89: 0 | O89: 0 | R89: 0 | T89: 0 | U89: 0 | V89: 0 | W89: 0 | X89: 0 | Z89: 0 | AB89: 0 | AD89: 0 | AE89: 0 | AF89: 0
A90: 38113 | B90: 1001.04 | J90: 0 | K90: 0 | M90: 38113 | N90: 0 | O90: 0 | R90: 0 | T90: 0 | U90: 0 | V90: 0 | W90: 0 | X90: 0 | Z90: 0 | AB90: 0 | AD90: 0 | AE90: 0 | AF90: 0
A91: 38114 | B91: 987.18 | J91: 0 | K91: 0 | M91: 38114 | N91: 0 | O91: 0 | R91: 0 | T91: 0 | U91: 0 | V91: 0 | W91: 0 | X91: 0 | Z91: 0 | AB91: 0 | AD91: 0 | AE91: 0 | AF91: 0
A92: 38117 | B92: 968.11 | J92: 0 | K92: 0 | M92: 38117 | N92: 0 | O92: 0 | R92: 0 | T92: 0 | U92: 0 | V92: 0 | W92: 0 | X92: 0 | Z92: 0 | AB92: 0 | AD92: 0 | AE92: 0 | AF92: 0
A93: 38118 | B93: 924.77 | J93: 0 | K93: 0 | M93: 38118 | N93: 0 | O93: 0 | R93: 0 | T93: 0 | U93: 0 | V93: 0 | W93: 0 | X93: 0 | Z93: 0 | AB93: 0 | AD93: 0 | AE93: 0 | AF93: 0
A94: 38119 | B94: 931.95 | J94: 0 | K94: 0 | M94: 38119 | N94: 0 | O94: 0 | R94: 0 | T94: 0 | U94: 0 | V94: 0 | W94: 0 | X94: 0 | Z94: 0 | AB94: 0 | AD94: 0 | AE94: 0 | AF94: 0
A95: 38120 | B95: 930.42 | J95: 0 | K95: 0 | M95: 38120 | N95: 0 | O95: 0 | R95: 0 | T95: 0 | U95: 0 | V95: 0 | W95: 0 | X95: 0 | Z95: =IF(R96=0,IF(R95=1,M95,0),0) -> 0 | AB95: 0 | AD95: 0 | AE95: 0 | AF95: 0
A96: 38121 | B96: 848.5 | J96: 0 | K96: 0 | M96: 38121 | N96: 0 | O96: 0 | R96: 0 | T96: 0 | U96: 0 | V96: 0 | W96: 0 | X96: 0 | Z96: 0 | AB96: 0 | AD96: 0 | AE96: 0 | AF96: 0
A97: 38124 | B97: 744.94 | J97: 0 | K97: 0 | M97: 38124 | N97: 0 | O97: 0 | R97: 0 | T97: 0 | U97: 0 | V97: 0 | W97: 0 | X97: 0 | Z97: 0 | AB97: 0 | AD97: 0 | AE97: 0 | AF97: 0
A98: 38125 | B98: 805.25 | J98: 0 | K98: 0 | M98: 38125 | N98: 0 | O98: 0 | R98: 0 | T98: 0 | U98: 0 | V98: 0 | W98: 0 | X98: 0 | Z98: 0 | AB98: 0 | AD98: 0 | AE98: 0 | AF98: 0
A99: 38128 | B99: 842.89 | J99: 0 | K99: 0 | M99: 38128 | N99: 0 | O99: 0 | R99: 0 | T99: 0 | U99: 0 | V99: 0 | W99: 0 | X99: 0 | Z99: 0 | AB99: 0 | AD99: 0 | AE99: 0 | AF99: 0
A100: 38131 | B100: 865.56 | J100: 0 | K100: 0 | M100: 38131 | N100: 0 | O100: 0 | R100: 0 | T100: 0 | U100: 0 | V100: 0 | W100: 0 | X100: 0 | Z100: 0 | AB100: 0 | AD100: 0 | AE100: 0 | AF100: 0
A101: 38132 | B101: 864.21 | J101: 0 | K101: 0 | M101: 38132 | N101: 0 | O101: 0 | R101: 0 | T101: 0 | U101: 0 | V101: 0 | W101: 0 | X101: 0 | Z101: 0 | AB101: 0 | AD101: 0 | AE101: 0 | AF101: 0
A102: 38133 | B102: 864.52 | J102: 0 | K102: 0 | M102: 38133 | N102: 0 | O102: 0 | R102: 0 | T102: 0 | U102: 0 | V102: 0 | W102: 0 | X102: 0 | Z102: 0 | AB102: 0 | AD102: 0 | AE102: 0 | AF102: 0
A103: 38134 | B103: 856.11 | J103: 0 | K103: 0 | M103: 38134 | N103: 0 | O103: 0 | R103: 0 | T103: 0 | U103: 0 | V103: 0 | W103: 0 | X103: 0 | Z103: 0 | AB103: 0 | AD103: 0 | AE103: 0 | AF103: 0
A104: 38135 | B104: 814.05 | J104: 0 | K104: 0 | M104: 38135 | N104: 0 | O104: 0 | R104: 0 | T104: 0 | U104: 0 | V104: 0 | W104: 0 | X104: 0 | Z104: 0 | AB104: 0 | AD104: 0 | AE104: 0 | AF104: 0
A105: 38138 | B105: 794.56 | J105: 0 | K105: 0 | M105: 38138 | N105: 0 | O105: 0 | R105: 0 | T105: 0 | U105: 0 | V105: 0 | W105: 0 | X105: 0 | Z105: 0 | AB105: 0 | AD105: 0 | AE105: 0 | AF105: 0
A106: 38139 | B106: 808.97 | J106: 0 | K106: 0 | M106: 38139 | N106: 0 | O106: 0 | R106: 0 | T106: 0 | U106: 0 | V106: 0 | W106: 0 | X106: 0 | Z106: 0 | AB106: 0 | AD106: 0 | AE106: 0 | AF106: 0
A107: 38140 | B107: 823.98 | J107: 0 | K107: 0 | M107: 38140 | N107: 0 | O107: 0 | R107: 0 | T107: 0 | U107: 0 | V107: 0 | W107: 0 | X107: 0 | Z107: 0 | AB107: 0 | AD107: 0 | AE107: 0 | AF107: 0
A108: 38141 | B108: 804.57 | J108: 1 | K108: -1000 | M108: 38141 | N108: 0 | O108: 0 | R108: 0 | T108: 0 | U108: 0 | V108: 0 | W108: 0 | X108: 0 | Z108: 0 | AB108: 0 | AD108: 0 | AE108: 0 | AF108: 0
A109: 38142 | B109: 816.58 | J109: 0 | K109: 0 | M109: 38142 | N109: 0 | O109: 0 | R109: 0 | T109: 0 | U109: 0 | V109: 0 | W109: 0 | X109: 0 | Z109: 0 | AB109: 0 | AD109: 0 | AE109: 0 | AF109: 0
A110: 38145 | B110: 827.63 | J110: 0 | K110: 0 | M110: 38145 | N110: 0 | O110: 0 | R110: 0 | T110: 0 | U110: 0 | V110: 0 | W110: 0 | X110: 0 | Z110: 0 | AB110: 0 | AD110: 0 | AE110: 0 | AF110: 0
A111: 38146 | B111: 832.62 | J111: 0 | K111: 0 | M111: 38146 | N111: 0 | O111: 0 | R111: 0 | T111: 0 | U111: 0 | V111: 0 | W111: 0 | X111: 0 | Z111: 0 | AB111: 0 | AD111: 0 | AE111: 0 | AF111: 0
A112: 38147 | B112: 834.26 | J112: 0 | K112: 0 | M112: 38147 | N112: 0 | O112: 0 | R112: 0 | T112: 0 | U112: 0 | V112: 0 | W112: 0 | X112: 0 | Z112: 0 | AB112: 0 | AD112: 0 | AE112: 0 | AF112: 0
A113: 38148 | B113: 833.73 | J113: 0 | K113: 0 | M113: 38148 | N113: 0 | O113: 0 | R113: 0 | T113: 0 | U113: 0 | V113: 0 | W113: 0 | X113: 0 | Z113: 0 | AB113: 0 | AD113: 0 | AE113: 0 | AF113: 0
A114: 38149 | B114: 815.24 | J114: 0 | K114: 0 | M114: 38149 | N114: 0 | O114: 0 | R114: 0 | T114: 0 | U114: 0 | V114: 0 | W114: 0 | X114: 0 | Z114: 0 | AB114: 0 | AD114: 0 | AE114: 0 | AF114: 0
A115: 38152 | B115: 797.83 | J115: 0 | K115: 0 | M115: 38152 | N115: 0 | O115: 0 | R115: 0 | T115: 0 | U115: 0 | V115: 0 | W115: 0 | X115: 0 | Z115: 0 | AB115: 0 | AD115: 0 | AE115: 0 | AF115: 0
A116: 38153 | B116: 808.03 | J116: 0 | K116: 0 | M116: 38153 | N116: 0 | O116: 0 | R116: 0 | T116: 0 | U116: 0 | V116: 0 | W116: 0 | X116: 0 | Z116: 0 | AB116: 0 | AD116: 0 | AE116: 0 | AF116: 0
A117: 38154 | B117: 805.06 | J117: 0 | K117: 0 | M117: 38154 | N117: 0 | O117: 0 | R117: 0 | T117: 0 | U117: 0 | V117: 0 | W117: 0 | X117: 0 | Z117: 0 | AB117: 0 | AD117: 0 | AE117: 0 | AF117: 0
A118: 38155 | B118: 812.42 | J118: 0 | K118: 0 | M118: 38155 | N118: 0 | O118: 0 | R118: 0 | T118: 0 | U118: 0 | V118: 0 | W118: 0 | X118: 0 | Z118: 0 | AB118: 0 | AD118: 0 | AE118: 0 | AF118: 0
A119: 38156 | B119: 802.56 | J119: 0 | K119: 0 | M119: 38156 | N119: 0 | O119: 0 | R119: 0 | T119: 0 | U119: 0 | V119: 0 | W119: 0 | X119: 0 | Z119: 0 | AB119: 0 | AD119: 0 | AE119: 0 | AF119: 0
A120: 38159 | B120: 796.66 | J120: 0 | K120: 0 | M120: 38159 | N120: 0 | O120: 0 | R120: 0 | T120: 0 | U120: 0 | V120: 0 | W120: 0 | X120: 0 | Z120: 0 | AB120: 0 | AD120: 0 | AE120: 0 | AF120: 0
A121: 38160 | B121: 791.8 | J121: 0 | K121: 0 | M121: 38160 | N121: 0 | O121: 0 | R121: 0 | T121: 0 | U121: 0 | V121: 0 | W121: 0 | X121: 0 | Z121: 0 | AB121: 0 | AD121: 0 | AE121: 0 | AF121: 0
A122: 38161 | B122: 774.74 | J122: 0 | K122: 0 | M122: 38161 | N122: 0 | O122: 0 | R122: 0 | T122: 0 | U122: 0 | V122: 0 | W122: 0 | X122: 0 | Z122: 0 | AB122: 0 | AD122: 0 | AE122: 0 | AF122: 0
A123: 38162 | B123: 784.85 | J123: 0 | K123: 0 | M123: 38162 | N123: 0 | O123: 0 | R123: 0 | T123: 0 | U123: 0 | V123: 0 | W123: 0 | X123: 0 | Z123: 0 | AB123: 0 | AD123: 0 | AE123: 0 | AF123: 0
A124: 38163 | B124: 796.94 | J124: 0 | K124: 0 | M124: 38163 | N124: 0 | O124: 0 | R124: 0 | T124: 0 | U124: 0 | V124: 0 | W124: 0 | X124: 0 | Z124: 0 | AB124: 0 | AD124: 0 | AE124: 0 | AF124: 0
A125: 38166 | B125: 813.22 | J125: 0 | K125: 0 | M125: 38166 | N125: 0 | O125: 0 | R125: 0 | T125: 0 | U125: 0 | V125: 0 | W125: 0 | X125: 0 | Z125: 0 | AB125: 0 | AD125: 0 | AE125: 0 | AF125: 0
A126: 38167 | B126: 816.58 | J126: 0 | K126: 0 | M126: 38167 | N126: 0 | O126: 0 | R126: 0 | T126: 0 | U126: 0 | V126: 0 | W126: 0 | X126: 0 | Z126: 0 | AB126: 0 | AD126: 0 | AE126: 0 | AF126: 0
A127: 38168 | B127: 811.39 | J127: 0 | K127: 0 | M127: 38168 | N127: 0 | O127: 0 | R127: 0 | T127: 0 | U127: 0 | V127: 0 | W127: 0 | X127: 0 | Z127: 0 | AB127: 0 | AD127: 0 | AE127: 0 | AF127: 0
A128: 38169 | B128: 826.53 | J128: 0 | K128: 0 | M128: 38169 | N128: 0 | O128: 0 | R128: 0 | T128: 0 | U128: 0 | V128: 0 | W128: 0 | X128: 0 | Z128: 0 | AB128: 0 | AD128: 0 | AE128: 0 | AF128: 0
A129: 38170 | B129: 826.99 | J129: 0 | K129: 0 | M129: 38170 | N129: 0 | O129: 0 | R129: 0 | T129: 0 | U129: 0 | V129: 0 | W129: 0 | X129: 0 | Z129: 0 | AB129: 0 | AD129: 0 | AE129: 0 | AF129: 0
A130: 38173 | B130: 820.37 | J130: 1 | K130: -1000 | M130: 38173 | N130: 0 | O130: 0 | R130: 0 | T130: 0 | U130: 0 | V130: 0 | W130: 0 | X130: 0 | Z130: 0 | AB130: 1 | AD130: 0 | AE130: 0 | AF130: 0
A131: 38174 | B131: 834.37 | J131: 0 | K131: 0 | M131: 38174 | N131: 0 | O131: 0 | R131: 0 | T131: 0 | U131: 0 | V131: 0 | W131: 0 | X131: 0 | Z131: 0 | AB131: 0 | AD131: 0 | AE131: 0 | AF131: 0
A132: 38175 | B132: 838.59 | J132: 0 | K132: 0 | M132: 38175 | N132: 0 | O132: 0 | R132: 0 | T132: 0 | U132: 0 | V132: 0 | W132: 0 | X132: 0 | Z132: 0 | AB132: 0 | AD132: 0 | AE132: 0 | AF132: 0
A133: 38176 | B133: 812.01 | J133: 0 | K133: 0 | M133: 38176 | N133: 0 | O133: 0 | R133: 0 | T133: 0 | U133: 0 | V133: 0 | W133: 0 | X133: 0 | Z133: 0 | AB133: 0 | AD133: 0 | AE133: 0 | AF133: 0
A134: 38177 | B134: 828.75 | J134: 0 | K134: 0 | M134: 38177 | N134: 0 | O134: 0 | R134: 0 | T134: 0 | U134: 0 | V134: 0 | W134: 0 | X134: 0 | Z134: 0 | AB134: 0 | AD134: 0 | AE134: 0 | AF134: 0
A135: 38180 | B135: 832.58 | J135: 0 | K135: 0 | M135: 38180 | N135: 0 | O135: 0 | R135: 0 | T135: 0 | U135: 0 | V135: 0 | W135: 0 | X135: 0 | Z135: 0 | AB135: 0 | AD135: 0 | AE135: 0 | AF135: 0
A136: 38181 | B136: 825.35 | J136: 0 | K136: 0 | M136: 38181 | N136: 0 | O136: 0 | R136: 0 | T136: 0 | U136: 0 | V136: 0 | W136: 0 | X136: 0 | Z136: 0 | AB136: 0 | AD136: 0 | AE136: 0 | AF136: 0
A137: 38182 | B137: 818.61 | J137: 0 | K137: 0 | M137: =A137 -> 38182 | N137: =IF(IF(M137>=sipstart,1,0)+IF(M137<=sipend,1,0)=2,J137,0) -> 0 | O137: =IF(IF(M137>=sipstart,1,0)+IF(M137<=sipend,1,0)=2,K137,0) -> 0 | R137: =IF(IF(M137>=sipstart,1,0)+IF(M137<=sipend,1,0)=2,1,0) -> 0 | T137: =IF((IF(M137>=sipstart,1,2)+IF(M137<=sipend,1,2))=2,M137,0) -> 0 | U137: 0 | V137: 0 | W137: =IF(V137=-sip,U137,0) -> 0 | X137: =IF(V137=-sip,B137,0) -> 0 | Z137: 0 | AB137: 0 | AD137: 0 | AE137: =IF(AD137=1,A137,0) -> 0 | AF137: =IF(AD137=1,B137,0) -> 0
A138: 38183 | B138: 828.87 | J138: 0 | K138: 0 | M138: 38183 | N138: 0 | O138: 0 | P138: =IF(O138=-sip,-O138/B138,"") ->  | R138: 0 | T138: 0 | U138: =IF((IF(M138>=sipstart,1,2)+IF(M138<=sipend,1,2))=2,M138,0)+IF(T137=actualsipend,actualsipend,0) -> 0 | V138: =IF(U138+U137=0,0,IF(U138=U137,sipunits*B137,O138)) -> 0 | W138: 0 | X138: 0 | Z138: 0 | AB138: 0 | AD138: 0 | AE138: 0 | AF138: 0
A139: 38184 | B139: 841.69 | J139: 0 | K139: 0 | M139: 38184 | N139: 0 | O139: 0 | R139: 0 | T139: 0 | U139: 0 | V139: 0 | W139: 0 | X139: 0 | Z139: 0 | AB139: 0 | AD139: 0 | AE139: 0 | AF139: 0
A140: 38187 | B140: 848.88 | J140: 0 | K140: 0 | M140: 38187 | N140: 0 | O140: 0 | R140: 0 | T140: 0 | U140: 0 | V140: 0 | W140: 0 | X140: 0 | Z140: 0 | AB140: 0 | AD140: 0 | AE140: 0 | AF140: 0
A141: 38188 | B141: 845.94 | J141: =IF(DAY(A141)=sipdate,1,IF(J140=1,0,IF(J139=1,0,IF(J138=1,0,IF(J137=1,0,IF(J136=1,0,IF(J135=1,0,IF(DAY(A141)=sipdate+1,1,IF(DAY(A141)=sipdate+2,1,IF(DAY(A141)=sipdate+3,1,IF(DAY(A141)=sipdate+4,1,IF(DAY(A141)=sipdate+5,1,IF(DAY(A141)=sipdate+6,1,IF(DAY(A141)=sipdate+7,1,0)))))))))))))) -> 0 | K141: =IF(DAY(A141)=sipdate,-sip,IF(K140=-sip,0,IF(K139=-sip,0,IF(K138=-sip,0,IF(K137=-sip,0,IF(K136=-sip,0,IF(K135=-sip,0,IF(DAY(A141)=sipdate+1,-sip,IF(DAY(A141)=sipdate+2,-sip,IF(DAY(A141)=sipdate+3,-sip,IF(DAY(A141)=sipdate+4,-sip,IF(DAY(A141)=sipdate+5,-sip,IF(DAY(A141)=sipdate+6,-sip,IF(DAY(A141)=sipdate+7,-sip,0)))))))))))))) -> 0 | M141: 38188 | N141: 0 | O141: 0 | R141: 0 | T141: 0 | U141: 0 | V141: 0 | W141: 0 | X141: 0 | Z141: 0 | AB141: =IF(INT((MONTH(M141)-MONTH(sipstart))/3)-(MONTH(M141)-MONTH(sipstart))/3=0,IF(DAY(A141)=sipdate,1,IF(AB140=1,0,IF(AB139=1,0,IF(AB138=1,0,IF(AB137=1,0,IF(AB136=1,0,IF(AB135=1,0,IF(DAY(A141)=sipdate+1,1,IF(DAY(A141)=sipdate+2,1,IF(DAY(A141)=sipdate+3,1,IF(DAY(A141)=sipdate+4,1,IF(DAY(A141)=sipdate+5,1,IF(DAY(A141)=sipdate+6,1,IF(DAY(A141)=sipdate+7,1,0)))))))))))))),0) -> 0 | AD141: =IF(INT((MONTH(M141)-MONTH(sipstart))/12)-(MONTH(M141)-MONTH(sipstart))/12=0,IF(DAY(A141)=sipdate,1,IF(AB140=1,0,IF(AB139=1,0,IF(AB138=1,0,IF(AB137=1,0,IF(AB136=1,0,IF(AB135=1,0,IF(DAY(A141)=sipdate+1,1,IF(DAY(A141)=sipdate+2,1,IF(DAY(A141)=sipdate+3,1,IF(DAY(A141)=sipdate+4,1,IF(DAY(A141)=sipdate+5,1,IF(DAY(A141)=sipdate+6,1,IF(DAY(A141)=sipdate+7,1,0)))))))))))))),0) -> 0 | AE141: 0 | AF141: 0
A142: 38189 | B142: 854.13 | J142: 0 | K142: 0 | M142: 38189 | N142: 0 | O142: 0 | R142: 0 | T142: 0 | U142: 0 | V142: 0 | W142: 0 | X142: 0 | Z142: 0 | AB142: 0 | AD142: 0 | AE142: 0 | AF142: 0
A143: 38190 | B143: 863.75 | J143: 0 | K143: 0 | M143: 38190 | N143: 0 | O143: 0 | R143: 0 | T143: 0 | U143: 0 | V143: 0 | W143: 0 | X143: 0 | Z143: 0 | AB143: 0 | AD143: 0 | AE143: 0 | AF143: 0
A144: 38191 | B144: 865.64 | J144: 0 | K144: 0 | M144: 38191 | N144: 0 | O144: 0 | R144: 0 | T144: 0 | U144: 0 | V144: 0 | W144: 0 | X144: 0 | Z144: 0 | AB144: 0 | AD144: 0 | AE144: 0 | AF144: 0
A145: 38194 | B145: 874.67 | J145: 0 | K145: 0 | M145: 38194 | N145: 0 | O145: 0 | R145: 0 | T145: 0 | U145: 0 | V145: 0 | W145: 0 | X145: 0 | Z145: 0 | AB145: 0 | AD145: 0 | AE145: 0 | AF145: 0
A146: 38195 | B146: 864.85 | J146: 0 | K146: 0 | M146: 38195 | N146: 0 | O146: 0 | R146: 0 | T146: 0 | U146: 0 | V146: 0 | W146: 0 | X146: 0 | Z146: 0 | AB146: 0 | AD146: 0 | AE146: 0 | AF146: 0
A147: 38196 | B147: 861.38 | J147: 0 | K147: 0 | M147: 38196 | N147: 0 | O147: 0 | R147: 0 | T147: 0 | U147: 0 | V147: 0 | W147: 0 | X147: 0 | Z147: 0 | AB147: 0 | AD147: 0 | AE147: 0 | AF147: 0
A148: 38197 | B148: 874.95 | J148: 0 | K148: 0 | M148: 38197 | N148: 0 | O148: 0 | R148: 0 | T148: 0 | U148: 0 | V148: 0 | W148: 0 | X148: 0 | Z148: 0 | AB148: 0 | AD148: 0 | AE148: 0 | AF148: 0
A149: 38198 | B149: 882.01 | J149: 0 | K149: 0 | M149: 38198 | N149: 0 | O149: 0 | R149: 0 | T149: 0 | U149: 0 | V149: 0 | W149: 0 | X149: 0 | Z149: 0 | AB149: 0 | AD149: 0 | AE149: 0 | AF149: 0
A150: 38201 | B150: 887.73 | J150: 0 | K150: 0 | M150: 38201 | N150: 0 | O150: 0 | R150: 0 | T150: 0 | U150: 0 | V150: 0 | W150: 0 | X150: 0 | Z150: 0 | AB150: 0 | AD150: 0 | AE150: 0 | AF150: 0
A151: 38202 | B151: 883.72 | J151: 1 | K151: -1000 | M151: 38202 | N151: 0 | O151: 0 | R151: 0 | T151: 0 | U151: 0 | V151: 0 | W151: 0 | X151: 0 | Z151: 0 | AB151: 0 | AD151: 0 | AE151: 0 | AF151: 0
A152: 38203 | B152: 882.97 | J152: 0 | K152: 0 | M152: 38203 | N152: 0 | O152: 0 | R152: 0 | T152: 0 | U152: 0 | V152: 0 | W152: 0 | X152: 0 | Z152: 0 | AB152: 0 | AD152: 0 | AE152: 0 | AF152: 0
A153: 38204 | B153: 898.06 | J153: 0 | K153: 0 | M153: 38204 | N153: 0 | O153: 0 | R153: 0 | T153: 0 | U153: 0 | V153: 0 | W153: 0 | X153: 0 | Z153: 0 | AB153: 0 | AD153: 0 | AE153: 0 | AF153: 0
A154: 38205 | B154: 886.57 | J154: 0 | K154: 0 | M154: 38205 | N154: 0 | O154: 0 | R154: 0 | T154: 0 | U154: 0 | V154: 0 | W154: 0 | X154: 0 | Z154: 0 | AB154: 0 | AD154: 0 | AE154: 0 | AF154: 0
A155: 38208 | B155: 890.11 | J155: 0 | K155: 0 | M155: 38208 | N155: 0 | O155: 0 | R155: 0 | T155: 0 | U155: 0 | V155: 0 | W155: 0 | X155: 0 | Z155: 0 | AB155: 0 | AD155: 0 | AE155: 0 | AF155: 0
A156: 38209 | B156: 894.73 | J156: 0 | K156: 0 | M156: 38209 | N156: 0 | O156: 0 | R156: 0 | T156: 0 | U156: 0 | V156: 0 | W156: 0 | X156: 0 | Z156: 0 | AB156: 0 | AD156: 0 | AE156: 0 | AF156: 0
A157: 38212 | B157: 869.24 | J157: 0 | K157: 0 | M157: 38212 | N157: 0 | O157: 0 | R157: 0 | T157: 0 | U157: 0 | V157: 0 | W157: 0 | X157: 0 | Z157: 0 | AB157: 0 | AD157: 0 | AE157: 0 | AF157: 0
A158: 38215 | B158: 867.9 | J158: 0 | K158: 0 | M158: 38215 | N158: 0 | O158: 0 | R158: 0 | T158: 0 | U158: 0 | V158: 0 | W158: 0 | X158: 0 | Z158: 0 | AB158: 0 | AD158: 0 | AE158: 0 | AF158: 0
A159: 38216 | B159: 871.42 | J159: 0 | K159: 0 | M159: 38216 | N159: 0 | O159: 0 | R159: 0 | T159: 0 | U159: 0 | V159: 0 | W159: 0 | X159: 0 | Z159: =IF(R160=0,IF(R159=1,M159,0),0) -> 0 | AB159: 0 | AD159: 0 | AE159: 0 | AF159: 0
A160: 38217 | B160: 861.35 | J160: 0 | K160: 0 | M160: 38217 | N160: 0 | O160: 0 | R160: 0 | T160: 0 | U160: 0 | V160: 0 | W160: 0 | X160: 0 | Z160: 0 | AB160: 0 | AD160: 0 | AE160: 0 | AF160: 0
A161: 38218 | B161: 873.86 | J161: 0 | K161: 0 | M161: 38218 | N161: 0 | O161: 0 | R161: 0 | T161: 0 | U161: 0 | V161: 0 | W161: 0 | X161: 0 | Z161: 0 | AB161: 0 | AD161: 0 | AE161: 0 | AF161: 0
A162: 38219 | B162: 865.36 | J162: 0 | K162: 0 | M162: 38219 | N162: 0 | O162: 0 | R162: 0 | T162: 0 | U162: 0 | V162: 0 | W162: 0 | X162: 0 | Z162: 0 | AB162: 0 | AD162: 0 | AE162: 0 | AF162: 0
A163: 38222 | B163: 858.79 | J163: 0 | K163: 0 | M163: 38222 | N163: 0 | O163: 0 | R163: 0 | T163: 0 | U163: 0 | V163: 0 | W163: 0 | X163: 0 | Z163: 0 | AB163: 0 | AD163: 0 | AE163: 0 | AF163: 0
A164: 38223 | B164: 866.35 | J164: 0 | K164: 0 | M164: 38223 | N164: 0 | O164: 0 | R164: 0 | T164: 0 | U164: 0 | V164: 0 | W164: 0 | X164: 0 | Z164: 0 | AB164: 0 | AD164: 0 | AE164: 0 | AF164: 0
A165: 38224 | B165: 869.73 | J165: 0 | K165: 0 | M165: 38224 | N165: 0 | O165: 0 | R165: 0 | T165: 0 | U165: 0 | V165: 0 | W165: 0 | X165: 0 | Z165: 0 | AB165: 0 | AD165: 0 | AE165: 0 | AF165: 0
A166: 38225 | B166: 880.04 | J166: 0 | K166: 0 | M166: 38225 | N166: 0 | O166: 0 | R166: 0 | T166: 0 | U166: 0 | V166: 0 | W166: 0 | X166: 0 | Z166: 0 | AB166: 0 | AD166: 0 | AE166: 0 | AF166: 0
A167: 38226 | B167: 882.63 | J167: 0 | K167: 0 | M167: 38226 | N167: 0 | O167: 0 | R167: 0 | T167: 0 | U167: 0 | V167: 0 | W167: 0 | X167: 0 | Z167: 0 | AB167: 0 | AD167: 0 | AE167: 0 | AF167: 0
A168: 38229 | B168: 894.57 | J168: 0 | K168: 0 | M168: 38229 | N168: 0 | O168: 0 | R168: 0 | T168: 0 | U168: 0 | V168: 0 | W168: 0 | X168: 0 | Z168: 0 | AB168: 0 | AD168: 0 | AE168: 0 | AF168: 0
A169: 38230 | B169: 896.92 | J169: 0 | K169: 0 | M169: 38230 | N169: 0 | O169: 0 | R169: 0 | T169: 0 | U169: 0 | V169: 0 | W169: 0 | X169: 0 | Z169: 0 | AB169: 0 | AD169: 0 | AE169: 0 | AF169: 0
A170: 38231 | B170: 900.35 | J170: 0 | K170: 0 | M170: 38231 | N170: 0 | O170: 0 | R170: 0 | T170: 0 | U170: 0 | V170: 0 | W170: 0 | X170: 0 | Z170: 0 | AB170: 0 | AD170: 0 | AE170: 0 | AF170: 0
A171: 38232 | B171: 899.11 | J171: 0 | K171: 0 | M171: 38232 | N171: 0 | O171: 0 | R171: 0 | T171: 0 | U171: 0 | V171: 0 | W171: 0 | X171: 0 | Z171: 0 | AB171: 0 | AD171: 0 | AE171: 0 | AF171: 0
A172: 38233 | B172: 902.67 | J172: 1 | K172: -1000 | M172: 38233 | N172: 0 | O172: 0 | R172: 0 | T172: 0 | U172: 0 | V172: 0 | W172: 0 | X172: 0 | Z172: 0 | AB172: 0 | AD172: 0 | AE172: 0 | AF172: 0
A173: 38236 | B173: 909.39 | J173: 0 | K173: 0 | M173: 38236 | N173: 0 | O173: 0 | R173: 0 | T173: 0 | U173: 0 | V173: 0 | W173: 0 | X173: 0 | Z173: 0 | AB173: 0 | AD173: 0 | AE173: 0 | AF173: 0
A174: 38237 | B174: 913.28 | J174: 0 | K174: 0 | M174: 38237 | N174: 0 | O174: 0 | R174: 0 | T174: 0 | U174: 0 | V174: 0 | W174: 0 | X174: 0 | Z174: 0 | AB174: 0 | AD174: 0 | AE174: 0 | AF174: 0
A175: 38238 | B175: 917.38 | J175: 0 | K175: 0 | M175: 38238 | N175: 0 | O175: 0 | R175: 0 | T175: 0 | U175: 0 | V175: 0 | W175: 0 | X175: 0 | Z175: 0 | AB175: 0 | AD175: 0 | AE175: 0 | AF175: 0
A176: 38239 | B176: 911.8 | J176: 0 | K176: 0 | M176: 38239 | N176: 0 | O176: 0 | R176: 0 | T176: 0 | U176: 0 | V176: 0 | W176: 0 | X176: 0 | Z176: 0 | AB176: 0 | AD176: 0 | AE176: 0 | AF176: 0
A177: 38240 | B177: 921.42 | J177: 0 | K177: 0 | M177: 38240 | N177: 0 | O177: 0 | R177: 0 | T177: 0 | U177: 0 | V177: 0 | W177: 0 | X177: 0 | Z177: 0 | AB177: 0 | AD177: 0 | AE177: 0 | AF177: 0
A178: 38243 | B178: 925.15 | J178: 0 | K178: 0 | M178: 38243 | N178: 0 | O178: 0 | R178: 0 | T178: 0 | U178: 0 | V178: 0 | W178: 0 | X178: 0 | Z178: 0 | AB178: 0 | AD178: 0 | AE178: 0 | AF178: 0
A179: 38244 | B179: 929.69 | J179: 0 | K179: 0 | M179: 38244 | N179: 0 | O179: 0 | R179: 0 | T179: 0 | U179: 0 | V179: 0 | W179: 0 | X179: 0 | Z179: 0 | AB179: 0 | AD179: 0 | AE179: 0 | AF179: 0
A180: 38245 | B180: 928.18 | J180: 0 | K180: 0 | M180: 38245 | N180: 0 | O180: 0 | R180: 0 | T180: 0 | U180: 0 | V180: 0 | W180: 0 | X180: 0 | Z180: 0 | AB180: 0 | AD180: 0 | AE180: 0 | AF180: 0
A181: 38246 | B181: 940.66 | J181: 0 | K181: 0 | M181: 38246 | N181: 0 | O181: 0 | R181: 0 | T181: 0 | U181: 0 | V181: 0 | W181: 0 | X181: 0 | Z181: 0 | AB181: 0 | AD181: 0 | AE181: 0 | AF181: 0
A182: 38247 | B182: 953.78 | J182: 0 | K182: 0 | M182: 38247 | N182: 0 | O182: 0 | R182: 0 | T182: 0 | U182: 0 | V182: 0 | W182: 0 | X182: 0 | Z182: 0 | AB182: 0 | AD182: 0 | AE182: 0 | AF182: 0
A183: 38250 | B183: 952.25 | J183: 0 | K183: 0 | M183: 38250 | N183: 0 | O183: 0 | R183: 0 | T183: 0 | U183: 0 | V183: 0 | W183: 0 | X183: 0 | Z183: 0 | AB183: 0 | AD183: 0 | AE183: 0 | AF183: 0
A184: 38251 | B184: 963.41 | J184: 0 | K184: 0 | M184: 38251 | N184: 0 | O184: 0 | R184: 0 | T184: 0 | U184: 0 | V184: 0 | W184: 0 | X184: 0 | Z184: 0 | AB184: 0 | AD184: 0 | AE184: 0 | AF184: 0
A185: 38252 | B185: 967.78 | J185: 0 | K185: 0 | M185: 38252 | N185: 0 | O185: 0 | R185: 0 | T185: 0 | U185: 0 | V185: 0 | W185: 0 | X185: 0 | Z185: 0 | AB185: 0 | AD185: 0 | AE185: 0 | AF185: 0
A186: 38253 | B186: 954.48 | J186: 0 | K186: 0 | M186: 38253 | N186: 0 | O186: 0 | R186: 0 | T186: 0 | U186: 0 | V186: 0 | W186: 0 | X186: 0 | Z186: 0 | AB186: 0 | AD186: 0 | AE186: 0 | AF186: 0
A187: 38254 | B187: 954.43 | J187: 0 | K187: 0 | M187: 38254 | N187: 0 | O187: 0 | R187: 0 | T187: 0 | U187: 0 | V187: 0 | W187: 0 | X187: 0 | Z187: 0 | AB187: 0 | AD187: 0 | AE187: 0 | AF187: 0
A188: 38257 | B188: 953.34 | J188: 0 | K188: 0 | M188: 38257 | N188: 0 | O188: 0 | R188: 0 | T188: 0 | U188: 0 | V188: 0 | W188: 0 | X188: 0 | Z188: 0 | AB188: 0 | AD188: 0 | AE188: 0 | AF188: 0
A189: 38258 | B189: 944.61 | J189: 0 | K189: 0 | M189: 38258 | N189: 0 | O189: 0 | R189: 0 | T189: 0 | U189: 0 | V189: 0 | W189: 0 | X189: 0 | Z189: 0 | AB189: 0 | AD189: 0 | AE189: 0 | AF189: 0
A190: 38259 | B190: 957.85 | J190: 0 | K190: 0 | M190: 38259 | N190: 0 | O190: 0 | R190: 0 | T190: 0 | U190: 0 | V190: 0 | W190: 0 | X190: 0 | Z190: 0 | AB190: 0 | AD190: 0 | AE190: 0 | AF190: 0
A191: 38260 | B191: 966.06 | J191: 0 | K191: 0 | M191: 38260 | N191: 0 | O191: 0 | R191: 0 | T191: 0 | U191: 0 | V191: 0 | W191: 0 | X191: 0 | Z191: 0 | AB191: 0 | AD191: 0 | AE191: 0 | AF191: 0
A192: 38261 | B192: 979.35 | J192: 0 | K192: 0 | M192: 38261 | N192: 0 | O192: 0 | R192: 0 | T192: 0 | U192: 0 | V192: 0 | W192: 0 | X192: 0 | Z192: 0 | AB192: 0 | AD192: 0 | AE192: 0 | AF192: 0
A193: 38264 | B193: 994.39 | J193: 1 | K193: -1000 | M193: 38264 | N193: 0 | O193: 0 | R193: 0 | T193: 0 | U193: 0 | V193: 0 | W193: 0 | X193: 0 | Z193: 0 | AB193: 1 | AD193: 0 | AE193: 0 | AF193: 0
A194: 38265 | B194: 1000.54 | J194: 0 | K194: 0 | M194: 38265 | N194: 0 | O194: 0 | R194: 0 | T194: 0 | U194: 0 | V194: 0 | W194: 0 | X194: 0 | Z194: 0 | AB194: 0 | AD194: 0 | AE194: 0 | AF194: 0
A195: 38266 | B195: 992.16 | J195: 0 | K195: 0 | M195: 38266 | N195: 0 | O195: 0 | R195: 0 | T195: 0 | U195: 0 | V195: 0 | W195: 0 | X195: 0 | Z195: 0 | AB195: 0 | AD195: 0 | AE195: 0 | AF195: 0
A196: 38267 | B196: 1000.38 | J196: 0 | K196: 0 | M196: 38267 | N196: 0 | O196: 0 | R196: 0 | T196: 0 | U196: 0 | V196: 0 | W196: 0 | X196: 0 | Z196: 0 | AB196: 0 | AD196: 0 | AE196: 0 | AF196: 0
A197: 38268 | B197: 1002.89 | J197: 0 | K197: 0 | M197: 38268 | N197: 0 | O197: 0 | R197: 0 | T197: 0 | U197: 0 | V197: 0 | W197: 0 | X197: 0 | Z197: 0 | AB197: 0 | AD197: 0 | AE197: 0 | AF197: 0
A198: 38269 | B198: 1003.67 | J198: 0 | K198: 0 | M198: 38269 | N198: 0 | O198: 0 | R198: 0 | T198: 0 | U198: 0 | V198: 0 | W198: 0 | X198: 0 | Z198: 0 | AB198: 0 | AD198: 0 | AE198: 0 | AF198: 0
A199: 38271 | B199: 996.33 | J199: 0 | K199: 0 | M199: 38271 | N199: 0 | O199: 0 | R199: 0 | T199: 0 | U199: 0 | V199: 0 | W199: 0 | X199: 0 | Z199: 0 | AB199: 0 | AD199: 0 | AE199: 0 | AF199: 0
A200: 38272 | B200: 982.04 | J200: 0 | K200: 0 | M200: 38272 | N200: 0 | O200: 0 | R200: 0 | T200: 0 | U200: 0 | V200: 0 | W200: 0 | X200: 0 | Z200: 0 | AB200: 0 | AD200: 0 | AE200: 0 | AF200: 0
... 2050 more rows

Sheet Account Statement (hidden)
A1: Date | B1: NAV | C1: Investments | D1: inv | E1: Units | G1: Date | H1: NAV | I1: Investments | J1: inv | K1: Units | M1: Date | N1: NAV | O1: Investments | P1: inv | Q1: Units | S1: Date | T1: Total Units | U1: Value | V1: =COUNT(S2:S1000) -> 77
A2: 41277 | B2: 3528.53 | C2: 1000 | D2: -1000 | E2: 0.2834041371 | G2: <>0 | M2: =Fund!W9 -> 0 | N2: =Fund!X9 -> 0 | O2: =-Fund!V9 -> 0 | P2: =Fund!V9 -> 0 | Q2: =Fund!P9 ->  | S2: =IF(C2<>$C$2,"",A2) -> 41277 | T2: =IF(C2<>$C$2,"",SUM($E$2:E2)) -> 0.2834041371 | U2: =IF(C2<>$C$2,"",T2*B2) -> 1000
A3: 41309 | B3: 3484.62 | C3: 1000 | D3: -1000 | E3: 0.2869753373 | M3: =Fund!W10 -> 0 | N3: =Fund!X10 -> 0 | O3: =-Fund!V10 -> 0 | P3: =Fund!V10 -> 0 | Q3: =Fund!P10 ->  | S3: =IF(C3<>$C$2,"",A3) -> 41309 | T3: =IF(C3<>$C$2,"",SUM($E$2:E3)) -> 0.5703794745 | U3: =IF(C3<>$C$2,"",T3*B3) -> 1987.555724
A4: 41337 | B4: 3286.57 | C4: 1000 | D4: -1000 | E4: 0.304268584 | G4: =XIRR(D2:D234,A2:A234) -> 0.1134521306 | M4: =Fund!W11 -> 0 | N4: =Fund!X11 -> 0 | O4: =-Fund!V11 -> 0 | P4: =Fund!V11 -> 0 | Q4: =Fund!P11 ->  | S4: 41337 | T4: =IF(C4<>$C$2,"",SUM($E$2:E4)) -> 0.8746480584 | U4: 2874.592069
A5: 41367 | B5: 3275.53 | C5: 1000 | D5: -1000 | E5: 0.3052941051 | M5: =Fund!W12 -> 0 | N5: =Fund!X12 -> 0 | O5: =-Fund!V12 -> 0 | P5: =Fund!V12 -> 0 | Q5: =Fund!P12 ->  | S5: 41367 | T5: =IF(C5<>$C$2,"",SUM($E$2:E5)) -> 1.179942164 | U5: 3864.935955
A6: 41397 | B6: 3437.02 | C6: 1000 | D6: -1000 | E6: 0.2909497181 | M6: =Fund!W13 -> 0 | N6: =Fund!X13 -> 0 | O6: =-Fund!V13 -> 0 | P6: =Fund!V13 -> 0 | Q6: =Fund!P13 ->  | S6: 41397 | T6: =IF(C6<>$C$2,"",SUM($E$2:E6)) -> 1.470891882 | U6: 5055.484815
A7: 41428 | B7: 3449.28 | C7: 1000 | D7: -1000 | E7: 0.2899155766 | M7: =Fund!W14 -> 0 | N7: =Fund!X14 -> 0 | O7: =-Fund!V14 -> 0 | P7: =Fund!V14 -> 0 | Q7: =Fund!P14 ->  | S7: 41428 | T7: =IF(C7<>$C$2,"",SUM($E$2:E7)) -> 1.760807458 | U7: 6073.517949
A8: 41458 | B8: 3328.26 | C8: 1000 | D8: -1000 | E8: 0.300457296 | M8: =Fund!W15 -> 0 | N8: =Fund!X15 -> 0 | O8: =-Fund!V15 -> 0 | P8: =Fund!V15 -> 0 | Q8: =Fund!P15 ->  | S8: 41458 | T8: =IF(C8<>$C$2,"",SUM($E$2:E8)) -> 2.061264754 | U8: 6860.425031
A9: 41491 | B9: 3237.51 | C9: 1000 | D9: -1000 | E9: 0.3088793548 | M9: =Fund!W16 -> 0 | N9: =Fund!X16 -> 0 | O9: =-Fund!V16 -> 0 | P9: =Fund!V16 -> 0 | Q9: =Fund!P16 ->  | S9: 41491 | T9: =IF(C9<>$C$2,"",SUM($E$2:E9)) -> 2.370144109 | U9: 7673.365254
A10: 41520 | B10: 3053.89 | C10: 1000 | D10: -1000 | E10: 0.327451218 | M10: =Fund!W17 -> 0 | N10: =Fund!X17 -> 0 | O10: =-Fund!V17 -> 0 | P10: =Fund!V17 -> 0 | Q10: =Fund!P17 ->  | S10: 41520 | T10: =IF(C10<>$C$2,"",SUM($E$2:E10)) -> 2.697595327 | U10: 8238.159393
A11: 41550 | B11: 3384.18 | C11: 1000 | D11: -1000 | E11: 0.2954925565 | M11: =Fund!W18 -> 0 | N11: =Fund!X18 -> 0 | O11: =-Fund!V18 -> 0 | P11: =Fund!V18 -> 0 | Q11: =Fund!P18 ->  | S11: 41550 | T11: =IF(C11<>$C$2,"",SUM($E$2:E11)) -> 2.993087883 | U11: 10129.14815
A12: 41581 | B12: 3627.87 | C12: 1000 | D12: -1000 | E12: 0.2756438351 | M12: =Fund!W19 -> 0 | N12: =Fund!X19 -> 0 | O12: =-Fund!V19 -> 0 | P12: =Fund!V19 -> 0 | Q12: =Fund!P19 ->  | S12: 41581 | T12: =IF(C12<>$C$2,"",SUM($E$2:E12)) -> 3.268731719 | U12: 11858.53374
A13: 41611 | B13: 3583.42 | C13: 1000 | D13: -1000 | E13: 0.279063018 | M13: =Fund!W20 -> 0 | N13: =Fund!X20 -> 0 | O13: =-Fund!V20 -> 0 | P13: =Fund!V20 -> 0 | Q13: =Fund!P20 ->  | S13: 41611 | T13: =IF(C13<>$C$2,"",SUM($E$2:E13)) -> 3.547794737 | U13: 12713.23861
A14: 41642 | B14: 3616.23 | C14: 1000 | D14: -1000 | E14: 0.2765310835 | M14: =Fund!W21 -> 0 | N14: =Fund!X21 -> 0 | O14: =-Fund!V21 -> 0 | P14: =Fund!V21 -> 0 | Q14: =Fund!P21 ->  | S14: 41642 | T14: =IF(C14<>$C$2,"",SUM($E$2:E14)) -> 3.82432582 | U14: 13829.64176
A15: 41673 | B15: 3466.87 | C15: 1000 | D15: -1000 | E15: 0.2884446201 | M15: =Fund!W22 -> 0 | N15: =Fund!X22 -> 0 | O15: =-Fund!V22 -> 0 | P15: =Fund!V22 -> 0 | Q15: =Fund!P22 ->  | S15: 41673 | T15: =IF(C15<>$C$2,"",SUM($E$2:E15)) -> 4.11277044 | U15: 14258.44046
A16: 41701 | B16: 3597.18 | C16: 1000 | D16: -1000 | E16: 0.277995541 | M16: =Fund!W23 -> 0 | N16: =Fund!X23 -> 0 | O16: =-Fund!V23 -> 0 | P16: =Fund!V23 -> 0 | Q16: =Fund!P23 ->  | S16: 41701 | T16: =IF(C16<>$C$2,"",SUM($E$2:E16)) -> 4.390765981 | U16: 15794.37557
A17: 41732 | B17: 3919.4 | C17: 1000 | D17: -1000 | E17: 0.255141093 | M17: =Fund!W24 -> 0 | N17: =Fund!X24 -> 0 | O17: =-Fund!V24 -> 0 | P17: =Fund!V24 -> 0 | Q17: =Fund!P24 ->  | S17: 41732 | T17: =IF(C17<>$C$2,"",SUM($E$2:E17)) -> 4.645907074 | U17: 18209.16819
A18: 41764 | B18: 3914.65 | C18: 1000 | D18: -1000 | E18: 0.2554506789 | M18: =Fund!W25 -> 0 | N18: =Fund!X25 -> 0 | O18: =-Fund!V25 -> 0 | P18: =Fund!V25 -> 0 | Q18: =Fund!P25 ->  | S18: 41764 | T18: =IF(C18<>$C$2,"",SUM($E$2:E18)) -> 4.901357753 | U18: 19187.10013
A19: 41793 | B19: 4407.7 | C19: 1000 | D19: -1000 | E19: 0.2268756948 | M19: =Fund!W26 -> 0 | N19: =Fund!X26 -> 0 | O19: =-Fund!V26 -> 0 | P19: =Fund!V26 -> 0 | Q19: =Fund!P26 ->  | S19: 41793 | T19: =IF(C19<>$C$2,"",SUM($E$2:E19)) -> 5.128233448 | U19: 22603.71457
A20: 41824 | B20: 4655.63 | C20: 1000 | D20: -1000 | E20: 0.2147937014 | M20: =Fund!W27 -> 0 | N20: =Fund!X27 -> 0 | O20: =-Fund!V27 -> 0 | P20: =Fund!V27 -> 0 | Q20: =Fund!P27 ->  | S20: 41824 | T20: =IF(C20<>$C$2,"",SUM($E$2:E20)) -> 5.343027149 | U20: 24875.15749
A21: 41855 | B21: 4586.85 | C21: 1000 | D21: -1000 | E21: 0.2180145416 | M21: =Fund!W28 -> 0 | N21: =Fund!X28 -> 0 | O21: =-Fund!V28 -> 0 | P21: =Fund!V28 -> 0 | Q21: =Fund!P28 ->  | S21: 41855 | T21: =IF(C21<>$C$2,"",SUM($E$2:E21)) -> 5.561041691 | U21: 25507.66408
A22: 41885 | B22: 4849.49 | C22: 1000 | D22: -1000 | E22: 0.2062072507 | M22: =Fund!W29 -> 0 | N22: =Fund!X29 -> 0 | O22: =-Fund!V29 -> 0 | P22: =Fund!V29 -> 0 | Q22: =Fund!P29 ->  | S22: 41885 | T22: =IF(C22<>$C$2,"",SUM($E$2:E22)) -> 5.767248941 | U22: 27968.21607
A23: 41919 | B23: 4693.26 | C23: 1000 | D23: -1000 | E23: 0.2130715111 | M23: =Fund!W30 -> 0 | N23: =Fund!X30 -> 0 | O23: =-Fund!V30 -> 0 | P23: =Fund!V30 -> 0 | Q23: =Fund!P30 ->  | S23: 41919 | T23: =IF(C23<>$C$2,"",SUM($E$2:E23)) -> 5.980320452 | U23: 28067.19877
A24: 41946 | B24: 4987.01 | C24: 1000 | D24: -1000 | E24: 0.2005209534 | M24: =Fund!W31 -> 0 | N24: =Fund!X31 -> 0 | O24: =-Fund!V31 -> 0 | P24: =Fund!V31 -> 0 | Q24: =Fund!P31 ->  | S24: 41946 | T24: =IF(C24<>$C$2,"",SUM($E$2:E24)) -> 6.180841406 | U24: 30823.9179
A25: 41976 | B25: 5161.31 | C25: 1000 | D25: -1000 | E25: 0.1937492613 | M25: =Fund!W32 -> 0 | N25: =Fund!X32 -> 0 | O25: =-Fund!V32 -> 0 | P25: =Fund!V32 -> 0 | Q25: =Fund!P32 ->  | S25: 41976 | T25: =IF(C25<>$C$2,"",SUM($E$2:E25)) -> 6.374590667 | U25: 32901.23856
A26: 42009 | B26: 5092.98 | C26: 1000 | D26: -1000 | E26: 0.1963486996 | M26: =Fund!W33 -> 0 | N26: =Fund!X33 -> 0 | O26: =-Fund!V33 -> 0 | P26: =Fund!V33 -> 0 | Q26: =Fund!P33 ->  | S26: 42009 | T26: =IF(C26<>$C$2,"",SUM($E$2:E26)) -> 6.570939367 | U26: 33465.66278
A27: 42038 | B27: 5311.87 | C27: 1000 | D27: -1000 | E27: 0.1882576193 | M27: =Fund!W34 -> 0 | N27: =Fund!X34 -> 0 | O27: =-Fund!V34 -> 0 | P27: =Fund!V34 -> 0 | Q27: =Fund!P34 ->  | S27: 42038 | T27: =IF(C27<>$C$2,"",SUM($E$2:E27)) -> 6.759196986 | U27: 35903.97569
A28: 42066 | B28: 5468.92 | C28: 1000 | D28: -1000 | E28: 0.1828514588 | M28: =Fund!W35 -> 0 | N28: =Fund!X35 -> 0 | O28: =-Fund!V35 -> 0 | P28: =Fund!V35 -> 0 | Q28: =Fund!P35 ->  | S28: 42066 | T28: =IF(C28<>$C$2,"",SUM($E$2:E28)) -> 6.942048445 | U28: 37965.50758
A29: 42100 | B29: 5299.95 | C29: 1000 | D29: -1000 | E29: 0.1886810253 | M29: =Fund!W36 -> 0 | N29: =Fund!X36 -> 0 | O29: =-Fund!V36 -> 0 | P29: =Fund!V36 -> 0 | Q29: =Fund!P36 ->  | S29: 42100 | T29: =IF(C29<>$C$2,"",SUM($E$2:E29)) -> 7.13072947 | U29: 37792.50966
A30: 42128 | B30: 5109.78 | C30: 1000 | D30: -1000 | E30: 0.1957031418 | M30: =Fund!W37 -> 0 | N30: =Fund!X37 -> 0 | O30: =-Fund!V37 -> 0 | P30: =Fund!V37 -> 0 | Q30: =Fund!P37 ->  | S30: 42128 | T30: =IF(C30<>$C$2,"",SUM($E$2:E30)) -> 7.326432612 | U30: 37436.45883
A31: 42160 | B31: 4999.89 | C31: 1000 | D31: -1000 | E31: 0.2000044001 | M31: =Fund!W38 -> 0 | N31: =Fund!X38 -> 0 | O31: =-Fund!V38 -> 0 | P31: =Fund!V38 -> 0 | Q31: =Fund!P38 ->  | S31: 42160 | T31: =IF(C31<>$C$2,"",SUM($E$2:E31)) -> 7.526437012 | U31: 37631.35715
A32: 42188 | B32: 5232.05 | C32: 1000 | D32: -1000 | E32: 0.1911296719 | M32: =Fund!W39 -> 0 | N32: =Fund!X39 -> 0 | O32: =-Fund!V39 -> 0 | P32: =Fund!V39 -> 0 | Q32: =Fund!P39 ->  | S32: 42188 | T32: =IF(C32<>$C$2,"",SUM($E$2:E32)) -> 7.717566684 | U32: 40378.69477
A33: 42219 | B33: 5313.66 | C33: 1000 | D33: -1000 | E33: 0.1881942014 | M33: =Fund!W40 -> 0 | N33: =Fund!X40 -> 0 | O33: =-Fund!V40 -> 0 | P33: =Fund!V40 -> 0 | Q33: =Fund!P40 ->  | S33: 42219 | T33: =IF(C33<>$C$2,"",SUM($E$2:E33)) -> 7.905760885 | U33: 42008.52539
A34: 42250 | B34: 4888.39 | C34: 1000 | D34: -1000 | E34: 0.2045663296 | M34: =Fund!W41 -> 0 | N34: =Fund!X41 -> 0 | O34: =-Fund!V41 -> 0 | P34: =Fund!V41 -> 0 | Q34: =Fund!P41 ->  | S34: 42250 | T34: =IF(C34<>$C$2,"",SUM($E$2:E34)) -> 8.110327215 | U34: 39646.44245
A35: 42282 | B35: 5066.51 | C35: 1000 | D35: -1000 | E35: 0.1973745241 | M35: =Fund!W42 -> 0 | N35: =Fund!X42 -> 0 | O35: =-Fund!V42 -> 0 | P35: =Fund!V42 -> 0 | Q35: =Fund!P42 ->  | S35: 42282 | T35: =IF(C35<>$C$2,"",SUM($E$2:E35)) -> 8.307701739 | U35: 42091.05394
A36: 42311 | B36: 5034.15 | C36: 1000 | D36: -1000 | E36: 0.1986432665 | M36: =Fund!W43 -> 0 | N36: =Fund!X43 -> 0 | O36: =-Fund!V43 -> 0 | P36: =Fund!V43 -> 0 | Q36: =Fund!P43 ->  | S36: 42311 | T36: =IF(C36<>$C$2,"",SUM($E$2:E36)) -> 8.506345006 | U36: 42822.21671
A37: 42341 | B37: 4940.78 | C37: 1000 | D37: -1000 | E37: 0.2023971923 | M37: =Fund!W44 -> 0 | N37: =Fund!X44 -> 0 | O37: =-Fund!V44 -> 0 | P37: =Fund!V44 -> 0 | Q37: =Fund!P44 ->  | S37: 42341 | T37: =IF(C37<>$C$2,"",SUM($E$2:E37)) -> 8.708742198 | U37: 43027.97928
A38: 42373 | B38: 4919.91 | C38: 1000 | D38: -1000 | E38: 0.2032557506 | M38: =Fund!W45 -> 0 | N38: =Fund!X45 -> 0 | O38: =-Fund!V45 -> 0 | P38: =Fund!V45 -> 0 | Q38: =Fund!P45 ->  | S38: 42373 | T38: =IF(C38<>$C$2,"",SUM($E$2:E38)) -> 8.911997948 | U38: 43846.22783
A39: 42403 | B39: 4593 | C39: 1000 | D39: -1000 | E39: 0.2177226214 | M39: =Fund!W46 -> 0 | N39: =Fund!X46 -> 0 | O39: =-Fund!V46 -> 0 | P39: =Fund!V46 -> 0 | Q39: =Fund!P46 ->  | S39: 42403 | T39: =IF(C39<>$C$2,"",SUM($E$2:E39)) -> 9.12972057 | U39: 41932.80658
A40: 42432 | B40: 4648.96 | C40: 1000 | D40: -1000 | E40: 0.2151018722 | M40: =Fund!W47 -> 0 | N40: =Fund!X47 -> 0 | O40: =-Fund!V47 -> 0 | P40: =Fund!V47 -> 0 | Q40: =Fund!P47 ->  | S40: 42432 | T40: =IF(C40<>$C$2,"",SUM($E$2:E40)) -> 9.344822442 | U40: 43443.70574
A41: 42464 | B41: 4848.19 | C41: 1000 | D41: -1000 | E41: 0.2062625433 | M41: =Fund!W48 -> 0 | N41: =Fund!X48 -> 0 | O41: =-Fund!V48 -> 0 | P41: =Fund!V48 -> 0 | Q41: =Fund!P48 ->  | S41: 42464 | T41: =IF(C41<>$C$2,"",SUM($E$2:E41)) -> 9.551084985 | U41: 46305.47472
A42: 42493 | B42: 4876.27 | C42: 1000 | D42: -1000 | E42: 0.2050747805 | M42: =Fund!W49 -> 0 | N42: =Fund!X49 -> 0 | O42: =-Fund!V49 -> 0 | P42: =Fund!V49 -> 0 | Q42: =Fund!P49 ->  | S42: 42493 | T42: =IF(C42<>$C$2,"",SUM($E$2:E42)) -> 9.756159766 | U42: 47573.66918
A43: 42524 | B43: 5131.1 | C43: 1000 | D43: -1000 | E43: 0.1948899846 | M43: =Fund!W50 -> 0 | N43: =Fund!X50 -> 0 | O43: =-Fund!V50 -> 0 | P43: =Fund!V50 -> 0 | Q43: =Fund!P50 ->  | S43: 42524 | T43: =IF(C43<>$C$2,"",SUM($E$2:E43)) -> 9.951049751 | U43: 51059.83138
A44: 42555 | B44: 5290.57 | C44: 1000 | D44: -1000 | E44: 0.1890155503 | M44: =Fund!W51 -> 0 | N44: =Fund!X51 -> 0 | O44: =-Fund!V51 -> 0 | P44: =Fund!V51 -> 0 | Q44: =Fund!P51 ->  | S44: 42555 | T44: =IF(C44<>$C$2,"",SUM($E$2:E44)) -> 10.1400653 | U44: 53646.72528
A45: 42585 | B45: 5425.84 | C45: 1000 | D45: -1000 | E45: 0.18430326 | M45: =Fund!W52 -> 0 | N45: =Fund!X52 -> 0 | O45: =-Fund!V52 -> 0 | P45: =Fund!V52 -> 0 | Q45: =Fund!P52 ->  | S45: 42585 | T45: =IF(C45<>$C$2,"",SUM($E$2:E45)) -> 10.32436856 | U45: 56018.37191
A46: 42619 | B46: 5720.2 | C46: 1000 | D46: -1000 | E46: 0.1748190623 | M46: =Fund!W53 -> 0 | N46: =Fund!X53 -> 0 | O46: =-Fund!V53 -> 0 | P46: =Fund!V53 -> 0 | Q46: =Fund!P53 ->  | S46: 42619 | T46: =IF(C46<>$C$2,"",SUM($E$2:E46)) -> 10.49918762 | U46: 60057.45304
A47: 42646 | B47: 5642.78 | C47: 1000 | D47: -1000 | E47: 0.1772176126 | M47: =Fund!W54 -> 0 | N47: =Fund!X54 -> 0 | O47: =-Fund!V54 -> 0 | P47: =Fund!V54 -> 0 | Q47: =Fund!P54 ->  | S47: 42646 | T47: =IF(C47<>$C$2,"",SUM($E$2:E47)) -> 10.67640524 | U47: 60244.60594
A48: 42677 | B48: 5490.43 | C48: 1000 | D48: -1000 | E48: 0.1821350969 | M48: =Fund!W55 -> 0 | N48: =Fund!X55 -> 0 | O48: =-Fund!V55 -> 0 | P48: =Fund!V55 -> 0 | Q48: =Fund!P55 ->  | S48: 42677 | T48: =IF(C48<>$C$2,"",SUM($E$2:E48)) -> 10.85854033 | U48: 59618.0556
A49: 42709 | B49: 5242.78 | C49: 1000 | D49: -1000 | E49: 0.1907385013 | M49: =Fund!W56 -> 0 | N49: =Fund!X56 -> 0 | O49: =-Fund!V56 -> 0 | P49: =Fund!V56 -> 0 | Q49: =Fund!P56 ->  | S49: 42709 | T49: =IF(C49<>$C$2,"",SUM($E$2:E49)) -> 11.04927883 | U49: 57928.93808
A50: 42738 | B50: 5274.47 | C50: 1000 | D50: -1000 | E50: 0.1895925088 | M50: =Fund!W57 -> 0 | N50: =Fund!X57 -> 0 | O50: =-Fund!V57 -> 0 | P50: =Fund!V57 -> 0 | Q50: =Fund!P57 ->  | S50: 42738 | T50: =IF(C50<>$C$2,"",SUM($E$2:E50)) -> 11.23887134 | U50: 59279.08973
A51: 42769 | B51: 5671.78 | C51: 1000 | D51: -1000 | E51: 0.176311493 | M51: =Fund!W58 -> 0 | N51: =Fund!X58 -> 0 | O51: =-Fund!V58 -> 0 | P51: =Fund!V58 -> 0 | Q51: =Fund!P58 ->  | S51: 42769 | T51: =IF(C51<>$C$2,"",SUM($E$2:E51)) -> 11.41518284 | U51: 64744.4057
A52: 42797 | B52: 5776.14 | C52: 1000 | D52: -1000 | E52: 0.1731259976 | M52: =Fund!W59 -> 0 | N52: =Fund!X59 -> 0 | O52: =-Fund!V59 -> 0 | P52: =Fund!V59 -> 0 | Q52: =Fund!P59 ->  | S52: 42797 | T52: =IF(C52<>$C$2,"",SUM($E$2:E52)) -> 11.58830883 | U52: 66935.69419
A53: 42828 | B53: 6033.57 | C53: 1000 | D53: -1000 | E53: 0.165739355 | M53: =Fund!W60 -> 0 | N53: =Fund!X60 -> 0 | O53: =-Fund!V60 -> 0 | P53: =Fund!V60 -> 0 | Q53: =Fund!P60 ->  | S53: 42828 | T53: =IF(C53<>$C$2,"",SUM($E$2:E53)) -> 11.75404819 | U53: 70918.87253
A54: 42858 | B54: 6145.02 | C54: 1000 | D54: -1000 | E54: 0.1627334004 | M54: =Fund!W61 -> 0 | N54: =Fund!X61 -> 0 | O54: =-Fund!V61 -> 0 | P54: =Fund!V61 -> 0 | Q54: =Fund!P61 ->  | S54: 42858 | T54: =IF(C54<>$C$2,"",SUM($E$2:E54)) -> 11.91678159 | U54: 73228.8612
A55: 42891 | B55: 6328.77 | C55: 1000 | D55: -1000 | E55: 0.1580085862 | M55: =Fund!W62 -> 0 | N55: =Fund!X62 -> 0 | O55: =-Fund!V62 -> 0 | P55: =Fund!V62 -> 0 | Q55: =Fund!P62 ->  | S55: 42891 | T55: =IF(C55<>$C$2,"",SUM($E$2:E55)) -> 12.07479017 | U55: 76418.56982
A56: 42919 | B56: 6314.25 | C56: 1000 | D56: -1000 | E56: 0.1583719365 | M56: =Fund!W63 -> 0 | N56: =Fund!X63 -> 0 | O56: =-Fund!V63 -> 0 | P56: =Fund!V63 -> 0 | Q56: =Fund!P63 ->  | S56: 42919 | T56: =IF(C56<>$C$2,"",SUM($E$2:E56)) -> 12.23316211 | U56: 77243.24386
A57: 42950 | B57: 6584.08 | C57: 1000 | D57: -1000 | E57: 0.1518815081 | M57: =Fund!W64 -> 0 | N57: =Fund!X64 -> 0 | O57: =-Fund!V64 -> 0 | P57: =Fund!V64 -> 0 | Q57: =Fund!P64 ->  | S57: 42950 | T57: =IF(C57<>$C$2,"",SUM($E$2:E57)) -> 12.38504362 | U57: 81544.11799
A58: 42982 | B58: 6555.74 | C58: 1000 | D58: -1000 | E58: 0.1525380811 | M58: =Fund!W65 -> 0 | N58: =Fund!X65 -> 0 | O58: =-Fund!V65 -> 0 | P58: =Fund!V65 -> 0 | Q58: =Fund!P65 ->  | S58: 42982 | T58: =IF(C58<>$C$2,"",SUM($E$2:E58)) -> 12.5375817 | U58: 82193.12586
A59: 43011 | B59: 6526.87 | C59: 1000 | D59: -1000 | E59: 0.1532127957 | M59: =Fund!W66 -> 0 | N59: =Fund!X66 -> 0 | O59: =-Fund!V66 -> 0 | P59: =Fund!V66 -> 0 | Q59: =Fund!P66 ->  | S59: 43011 | T59: =IF(C59<>$C$2,"",SUM($E$2:E59)) -> 12.6907945 | U59: 82831.16587
A60: 43042 | B60: 6960.46 | C60: 1000 | D60: -1000 | E60: 0.1436686656 | M60: =Fund!W67 -> 0 | N60: =Fund!X67 -> 0 | O60: =-Fund!V67 -> 0 | P60: =Fund!V67 -> 0 | Q60: =Fund!P67 ->  | S60: 43042 | T60: =IF(C60<>$C$2,"",SUM($E$2:E60)) -> 12.83446316 | U60: 89333.76746
A61: 43073 | B61: 6792.54 | C61: 1000 | D61: -1000 | E61: 0.1472203329 | M61: =Fund!W68 -> 0 | N61: =Fund!X68 -> 0 | O61: =-Fund!V68 -> 0 | P61: =Fund!V68 -> 0 | Q61: =Fund!P68 ->  | S61: 43073 | T61: =IF(C61<>$C$2,"",SUM($E$2:E61)) -> 12.98168349 | U61: 88178.60441
A62: 43103 | B62: 7051.52 | C62: 1000 | D62: -1000 | E62: 0.1418133963 | M62: =Fund!W69 -> 0 | N62: =Fund!X69 -> 0 | O62: =-Fund!V69 -> 0 | P62: =Fund!V69 -> 0 | Q62: =Fund!P69 ->  | S62: 43103 | T62: =IF(C62<>$C$2,"",SUM($E$2:E62)) -> 13.12349689 | U62: 92540.6008
A63: 43136 | B63: 7043.22 | C63: 1000 | D63: -1000 | E63: 0.1419805146 | M63: =Fund!W70 -> 0 | N63: =Fund!X70 -> 0 | O63: =-Fund!V70 -> 0 | P63: =Fund!V70 -> 0 | Q63: =Fund!P70 ->  | S63: 43136 | T63: =IF(C63<>$C$2,"",SUM($E$2:E63)) -> 13.26547741 | U63: 93431.67577
A64: 43164 | B64: 6874.58 | C64: 1000 | D64: -1000 | E64: 0.1454634319 | M64: =Fund!W71 -> 0 | N64: =Fund!X71 -> 0 | O64: =-Fund!V71 -> 0 | P64: =Fund!V71 -> 0 | Q64: =Fund!P71 ->  | S64: 43164 | T64: =IF(C64<>$C$2,"",SUM($E$2:E64)) -> 13.41094084 | U64: 92194.58566
A65: 43193 | B65: 6853.23 | C65: 1000 | D65: -1000 | E65: 0.145916597 | M65: =Fund!W72 -> 0 | N65: =Fund!X72 -> 0 | O65: =-Fund!V72 -> 0 | P65: =Fund!V72 -> 0 | Q65: =Fund!P72 ->  | S65: 43193 | T65: =IF(C65<>$C$2,"",SUM($E$2:E65)) -> 13.55685743 | U65: 92908.26208
A66: 43223 | B66: 7105.8 | C66: 1000 | D66: -1000 | E66: 0.1407301078 | M66: =Fund!W73 -> 0 | N66: =Fund!X73 -> 0 | O66: =-Fund!V73 -> 0 | P66: =Fund!V73 -> 0 | Q66: =Fund!P73 ->  | S66: 43223 | T66: =IF(C66<>$C$2,"",SUM($E$2:E66)) -> 13.69758754 | U66: 97332.31756
A67: 43255 | B67: 6993.5 | C67: 1000 | D67: -1000 | E67: 0.1429899192 | M67: =Fund!W74 -> 0 | N67: =Fund!X74 -> 0 | O67: =-Fund!V74 -> 0 | P67: =Fund!V74 -> 0 | Q67: =Fund!P74 ->  | S67: =IF(C67<>$C$2,"",A67) -> 43255 | T67: =IF(C67<>$C$2,"",SUM($E$2:E67)) -> 13.84057746 | U67: =IF(C67<>$C$2,"",T67*B67) -> 96794.07848
A68: 43284 | B68: 7015.72 | C68: 1000 | D68: -1000 | E68: 0.1425370454 | M68: =Fund!W75 -> 0 | N68: =Fund!X75 -> 0 | O68: =-Fund!V75 -> 0 | P68: =Fund!V75 -> 0 | Q68: =Fund!P75 ->  | S68: 43284 | T68: =IF(C68<>$C$2,"",SUM($E$2:E68)) -> 13.98311451 | U68: 98101.61611
A69: 43315 | B69: 7454.86 | C69: 1000 | D69: -1000 | E69: 0.1341406814 | M69: =Fund!W76 -> 0 | N69: =Fund!X76 -> 0 | O69: =-Fund!V76 -> 0 | P69: =Fund!V76 -> 0 | Q69: =Fund!P76 ->  | S69: 43315 | T69: =IF(C69<>$C$2,"",SUM($E$2:E69)) -> 14.11725519 | U69: 105242.161
A70: 43346 | B70: 7643.58 | C70: 1000 | D70: -1000 | E70: 0.1308287478 | M70: =Fund!W77 -> 0 | N70: =Fund!X77 -> 0 | O70: =-Fund!V77 -> 0 | P70: =Fund!V77 -> 0 | Q70: =Fund!P77 ->  | S70: 43346 | T70: =IF(C70<>$C$2,"",SUM($E$2:E70)) -> 14.24808394 | U70: 108906.3694
A71: 43376 | B71: 7033.63 | C71: 1000 | D71: -1000 | E71: 0.1421740979 | M71: =Fund!W78 -> 0 | N71: =Fund!X78 -> 0 | O71: =-Fund!V78 -> 0 | P71: =Fund!V78 -> 0 | Q71: =Fund!P78 ->  | S71: 43376 | T71: =IF(C71<>$C$2,"",SUM($E$2:E71)) -> 14.39025803 | U71: 101215.7506
A72: 43409 | B72: 6893.82 | C72: 1000 | D72: -1000 | E72: 0.1450574573 | M72: =Fund!W79 -> 0 | N72: =Fund!X79 -> 0 | O72: =-Fund!V79 -> 0 | P72: =Fund!V79 -> 0 | Q72: =Fund!P79 ->  | S72: 43409 | T72: =IF(C72<>$C$2,"",SUM($E$2:E72)) -> 14.53531549 | U72: 100203.8486
A73: 43437 | B73: 7101.23 | C73: 1000 | D73: -1000 | E73: 0.1408206747 | M73: =Fund!W80 -> 0 | N73: =Fund!X80 -> 0 | O73: =-Fund!V80 -> 0 | P73: =Fund!V80 -> 0 | Q73: =Fund!P80 ->  | S73: 43437 | T73: =IF(C73<>$C$2,"",SUM($E$2:E73)) -> 14.67613617 | U73: 104218.6184
A74: 43468 | B74: 6993.48 | C74: 1000 | D74: -1000 | E74: 0.1429903281 | M74: =Fund!W81 -> 0 | N74: =Fund!X81 -> 0 | O74: =-Fund!V81 -> 0 | P74: =Fund!V81 -> 0 | Q74: =Fund!P81 ->  | S74: 43468 | T74: =IF(C74<>$C$2,"",SUM($E$2:E74)) -> 14.81912649 | U74: 103637.2648
A75: 43500 | B75: 7051.47 | C75: 1000 | D75: -1000 | E75: 0.1418144018 | M75: =Fund!W82 -> 0 | N75: =Fund!X82 -> 0 | O75: =-Fund!V82 -> 0 | P75: =Fund!V82 -> 0 | Q75: =Fund!P82 ->  | S75: 43500 | T75: =IF(C75<>$C$2,"",SUM($E$2:E75)) -> 14.9609409 | U75: 105496.6259
A76: 43529 | B76: 7145.98 | C76: 1000 | D76: -1000 | E76: 0.1399388187 | M76: =Fund!W83 -> 0 | N76: =Fund!X83 -> 0 | O76: =-Fund!V83 -> 0 | P76: =Fund!V83 -> 0 | Q76: =Fund!P83 ->  | S76: 43529 | T76: =IF(C76<>$C$2,"",SUM($E$2:E76)) -> 15.10087971 | U76: 107910.5844
A77: 43558 | B77: 7537.44 | C77: 1000 | D77: -1000 | E77: 0.1326710395 | M77: =Fund!W84 -> 0 | N77: =Fund!X84 -> 0 | O77: =-Fund!V84 -> 0 | P77: =Fund!V84 -> 0 | Q77: =Fund!P84 ->  | S77: 43558 | T77: =IF(C77<>$C$2,"",SUM($E$2:E77)) -> 15.23355075 | U77: 114821.9748
A78: 43591 | B78: 7451.57 | C78: 1000 | D78: -1000 | E78: 0.1341999069 | M78: =Fund!W85 -> 0 | N78: =Fund!X85 -> 0 | O78: =-Fund!V85 -> 0 | P78: =Fund!V85 -> 0 | Q78: =Fund!P85 ->  | S78: 43591 | T78: =IF(C78<>$C$2,"",SUM($E$2:E78)) -> 15.36775066 | U78: 114513.8698
A79: 43599 | B79: 7203.37 | C79: -110699.5941 | D79: 110699.5941 | E79: 15.36775066 | M79: =Fund!W86 -> 0 | N79: =Fund!X86 -> 0 | O79: =-Fund!V86 -> 0 | P79: =Fund!V86 -> 0 | Q79: =Fund!P86 ->  | T79: =IF(C79<>$C$2,"",SUM($E$2:E79)) -> 
M80: =Fund!W87 -> 0 | N80: =Fund!X87 -> 0 | O80: =-Fund!V87 -> 0 | P80: =Fund!V87 -> 0 | Q80: =Fund!P87 ->  | T80: =IF(C80<>$C$2,"",SUM($E$2:E80)) -> 
M81: =Fund!W88 -> 0 | N81: =Fund!X88 -> 0 | O81: =-Fund!V88 -> 0 | P81: =Fund!V88 -> 0 | Q81: =Fund!P88 ->  | T81: =IF(C81<>$C$2,"",SUM($E$2:E81)) -> 
M82: =Fund!W89 -> 0 | N82: =Fund!X89 -> 0 | O82: =-Fund!V89 -> 0 | P82: =Fund!V89 -> 0 | Q82: =Fund!P89 ->  | T82: =IF(C82<>$C$2,"",SUM($E$2:E82)) -> 
M83: =Fund!W90 -> 0 | N83: =Fund!X90 -> 0 | O83: =-Fund!V90 -> 0 | P83: =Fund!V90 -> 0 | Q83: =Fund!P90 ->  | T83: =IF(C83<>$C$2,"",SUM($E$2:E83)) -> 
M84: =Fund!W91 -> 0 | N84: =Fund!X91 -> 0 | O84: =-Fund!V91 -> 0 | P84: =Fund!V91 -> 0 | Q84: =Fund!P91 ->  | T84: =IF(C84<>$C$2,"",SUM($E$2:E84)) -> 
M85: =Fund!W92 -> 0 | N85: =Fund!X92 -> 0 | O85: =-Fund!V92 -> 0 | P85: =Fund!V92 -> 0 | Q85: =Fund!P92 ->  | T85: =IF(C85<>$C$2,"",SUM($E$2:E85)) -> 
M86: =Fund!W93 -> 0 | N86: =Fund!X93 -> 0 | O86: =-Fund!V93 -> 0 | P86: =Fund!V93 -> 0 | Q86: =Fund!P93 ->  | T86: =IF(C86<>$C$2,"",SUM($E$2:E86)) -> 
M87: =Fund!W94 -> 0 | N87: =Fund!X94 -> 0 | O87: =-Fund!V94 -> 0 | P87: =Fund!V94 -> 0 | Q87: =Fund!P94 ->  | T87: =IF(C87<>$C$2,"",SUM($E$2:E87)) -> 
M88: =Fund!W95 -> 0 | N88: =Fund!X95 -> 0 | O88: =-Fund!V95 -> 0 | P88: =Fund!V95 -> 0 | Q88: =Fund!P95 ->  | T88: =IF(C88<>$C$2,"",SUM($E$2:E88)) -> 
M89: =Fund!W96 -> 0 | N89: =Fund!X96 -> 0 | O89: =-Fund!V96 -> 0 | P89: =Fund!V96 -> 0 | Q89: =Fund!P96 ->  | T89: =IF(C89<>$C$2,"",SUM($E$2:E89)) -> 
M90: =Fund!W97 -> 0 | N90: =Fund!X97 -> 0 | O90: =-Fund!V97 -> 0 | P90: =Fund!V97 -> 0 | Q90: =Fund!P97 ->  | T90: =IF(C90<>$C$2,"",SUM($E$2:E90)) -> 
M91: =Fund!W98 -> 0 | N91: =Fund!X98 -> 0 | O91: =-Fund!V98 -> 0 | P91: =Fund!V98 -> 0 | Q91: =Fund!P98 ->  | T91: =IF(C91<>$C$2,"",SUM($E$2:E91)) -> 
M92: =Fund!W99 -> 0 | N92: =Fund!X99 -> 0 | O92: =-Fund!V99 -> 0 | P92: =Fund!V99 -> 0 | Q92: =Fund!P99 ->  | T92: =IF(C92<>$C$2,"",SUM($E$2:E92)) -> 
M93: =Fund!W100 -> 0 | N93: =Fund!X100 -> 0 | O93: =-Fund!V100 -> 0 | P93: =Fund!V100 -> 0 | Q93: =Fund!P100 ->  | T93: =IF(C93<>$C$2,"",SUM($E$2:E93)) -> 
M94: =Fund!W101 -> 0 | N94: =Fund!X101 -> 0 | O94: =-Fund!V101 -> 0 | P94: =Fund!V101 -> 0 | Q94: =Fund!P101 ->  | T94: =IF(C94<>$C$2,"",SUM($E$2:E94)) -> 
M95: =Fund!W102 -> 0 | N95: =Fund!X102 -> 0 | O95: =-Fund!V102 -> 0 | P95: =Fund!V102 -> 0 | Q95: =Fund!P102 ->  | T95: =IF(C95<>$C$2,"",SUM($E$2:E95)) -> 
M96: =Fund!W103 -> 0 | N96: =Fund!X103 -> 0 | O96: =-Fund!V103 -> 0 | P96: =Fund!V103 -> 0 | Q96: =Fund!P103 ->  | T96: =IF(C96<>$C$2,"",SUM($E$2:E96)) -> 
M97: =Fund!W104 -> 0 | N97: =Fund!X104 -> 0 | O97: =-Fund!V104 -> 0 | P97: =Fund!V104 -> 0 | Q97: =Fund!P104 ->  | T97: =IF(C97<>$C$2,"",SUM($E$2:E97)) -> 
M98: =Fund!W105 -> 0 | N98: =Fund!X105 -> 0 | O98: =-Fund!V105 -> 0 | P98: =Fund!V105 -> 0 | Q98: =Fund!P105 ->  | T98: =IF(C98<>$C$2,"",SUM($E$2:E98)) -> 
M99: =Fund!W106 -> 0 | N99: =Fund!X106 -> 0 | O99: =-Fund!V106 -> 0 | P99: =Fund!V106 -> 0 | Q99: =Fund!P106 ->  | T99: =IF(C99<>$C$2,"",SUM($E$2:E99)) -> 
M100: =Fund!W107 -> 0 | N100: =Fund!X107 -> 0 | O100: =-Fund!V107 -> 0 | P100: =Fund!V107 -> 0 | Q100: =Fund!P107 ->  | T100: =IF(C100<>$C$2,"",SUM($E$2:E100)) -> 
M101: =Fund!W108 -> 0 | N101: =Fund!X108 -> 0 | O101: =-Fund!V108 -> 0 | P101: =Fund!V108 -> 0 | Q101: =Fund!P108 ->  | T101: =IF(C101<>$C$2,"",SUM($E$2:E101)) -> 
M102: =Fund!W109 -> 0 | N102: =Fund!X109 -> 0 | O102: =-Fund!V109 -> 0 | P102: =Fund!V109 -> 0 | Q102: =Fund!P109 ->  | T102: =IF(C102<>$C$2,"",SUM($E$2:E102)) -> 
M103: =Fund!W110 -> 0 | N103: =Fund!X110 -> 0 | O103: =-Fund!V110 -> 0 | P103: =Fund!V110 -> 0 | Q103: =Fund!P110 ->  | T103: =IF(C103<>$C$2,"",SUM($E$2:E103)) -> 
M104: =Fund!W111 -> 0 | N104: =Fund!X111 -> 0 | O104: =-Fund!V111 -> 0 | P104: =Fund!V111 -> 0 | Q104: =Fund!P111 ->  | T104: =IF(C104<>$C$2,"",SUM($E$2:E104)) -> 
M105: =Fund!W112 -> 0 | N105: =Fund!X112 -> 0 | O105: =-Fund!V112 -> 0 | P105: =Fund!V112 -> 0 | Q105: =Fund!P112 ->  | T105: =IF(C105<>$C$2,"",SUM($E$2:E105)) -> 
M106: =Fund!W113 -> 0 | N106: =Fund!X113 -> 0 | O106: =-Fund!V113 -> 0 | P106: =Fund!V113 -> 0 | Q106: =Fund!P113 ->  | T106: =IF(C106<>$C$2,"",SUM($E$2:E106)) -> 
M107: =Fund!W114 -> 0 | N107: =Fund!X114 -> 0 | O107: =-Fund!V114 -> 0 | P107: =Fund!V114 -> 0 | Q107: =Fund!P114 ->  | T107: =IF(C107<>$C$2,"",SUM($E$2:E107)) -> 
M108: =Fund!W115 -> 0 | N108: =Fund!X115 -> 0 | O108: =-Fund!V115 -> 0 | P108: =Fund!V115 -> 0 | Q108: =Fund!P115 ->  | T108: =IF(C108<>$C$2,"",SUM($E$2:E108)) -> 
M109: =Fund!W116 -> 0 | N109: =Fund!X116 -> 0 | O109: =-Fund!V116 -> 0 | P109: =Fund!V116 -> 0 | Q109: =Fund!P116 ->  | T109: =IF(C109<>$C$2,"",SUM($E$2:E109)) -> 
M110: =Fund!W117 -> 0 | N110: =Fund!X117 -> 0 | O110: =-Fund!V117 -> 0 | P110: =Fund!V117 -> 0 | Q110: =Fund!P117 ->  | T110: =IF(C110<>$C$2,"",SUM($E$2:E110)) -> 
M111: =Fund!W118 -> 0 | N111: =Fund!X118 -> 0 | O111: =-Fund!V118 -> 0 | P111: =Fund!V118 -> 0 | Q111: =Fund!P118 ->  | T111: =IF(C111<>$C$2,"",SUM($E$2:E111)) -> 
M112: =Fund!W119 -> 0 | N112: =Fund!X119 -> 0 | O112: =-Fund!V119 -> 0 | P112: =Fund!V119 -> 0 | Q112: =Fund!P119 ->  | T112: =IF(C112<>$C$2,"",SUM($E$2:E112)) -> 
M113: =Fund!W120 -> 0 | N113: =Fund!X120 -> 0 | O113: =-Fund!V120 -> 0 | P113: =Fund!V120 -> 0 | Q113: =Fund!P120 ->  | T113: =IF(C113<>$C$2,"",SUM($E$2:E113)) -> 
M114: =Fund!W121 -> 0 | N114: =Fund!X121 -> 0 | O114: =-Fund!V121 -> 0 | P114: =Fund!V121 -> 0 | Q114: =Fund!P121 ->  | T114: =IF(C114<>$C$2,"",SUM($E$2:E114)) -> 
M115: =Fund!W122 -> 0 | N115: =Fund!X122 -> 0 | O115: =-Fund!V122 -> 0 | P115: =Fund!V122 -> 0 | Q115: =Fund!P122 ->  | T115: =IF(C115<>$C$2,"",SUM($E$2:E115)) -> 
M116: =Fund!W123 -> 0 | N116: =Fund!X123 -> 0 | O116: =-Fund!V123 -> 0 | P116: =Fund!V123 -> 0 | Q116: =Fund!P123 ->  | T116: =IF(C116<>$C$2,"",SUM($E$2:E116)) -> 
M117: =Fund!W124 -> 0 | N117: =Fund!X124 -> 0 | O117: =-Fund!V124 -> 0 | P117: =Fund!V124 -> 0 | Q117: =Fund!P124 ->  | T117: =IF(C117<>$C$2,"",SUM($E$2:E117)) -> 
M118: =Fund!W125 -> 0 | N118: =Fund!X125 -> 0 | O118: =-Fund!V125 -> 0 | P118: =Fund!V125 -> 0 | Q118: =Fund!P125 ->  | T118: =IF(C118<>$C$2,"",SUM($E$2:E118)) -> 
M119: =Fund!W126 -> 0 | N119: =Fund!X126 -> 0 | O119: =-Fund!V126 -> 0 | P119: =Fund!V126 -> 0 | Q119: =Fund!P126 ->  | T119: =IF(C119<>$C$2,"",SUM($E$2:E119)) -> 
M120: =Fund!W127 -> 0 | N120: =Fund!X127 -> 0 | O120: =-Fund!V127 -> 0 | P120: =Fund!V127 -> 0 | Q120: =Fund!P127 ->  | T120: =IF(C120<>$C$2,"",SUM($E$2:E120)) -> 
M121: =Fund!W128 -> 0 | N121: =Fund!X128 -> 0 | O121: =-Fund!V128 -> 0 | P121: =Fund!V128 -> 0 | Q121: =Fund!P128 ->  | T121: =IF(C121<>$C$2,"",SUM($E$2:E121)) -> 
M122: =Fund!W129 -> 0 | N122: =Fund!X129 -> 0 | O122: =-Fund!V129 -> 0 | P122: =Fund!V129 -> 0 | Q122: =Fund!P129 ->  | T122: =IF(C122<>$C$2,"",SUM($E$2:E122)) -> 
M123: =Fund!W130 -> 0 | N123: =Fund!X130 -> 0 | O123: =-Fund!V130 -> 0 | P123: =Fund!V130 -> 0 | Q123: =Fund!P130 ->  | T123: =IF(C123<>$C$2,"",SUM($E$2:E123)) -> 
M124: =Fund!W131 -> 0 | N124: =Fund!X131 -> 0 | O124: =-Fund!V131 -> 0 | P124: =Fund!V131 -> 0 | Q124: =Fund!P131 ->  | T124: =IF(C124<>$C$2,"",SUM($E$2:E124)) -> 
M125: =Fund!W132 -> 0 | N125: =Fund!X132 -> 0 | O125: =-Fund!V132 -> 0 | P125: =Fund!V132 -> 0 | Q125: =Fund!P132 ->  | T125: =IF(C125<>$C$2,"",SUM($E$2:E125)) -> 
M126: =Fund!W133 -> 0 | N126: =Fund!X133 -> 0 | O126: =-Fund!V133 -> 0 | P126: =Fund!V133 -> 0 | Q126: =Fund!P133 ->  | T126: =IF(C126<>$C$2,"",SUM($E$2:E126)) -> 
M127: =Fund!W134 -> 0 | N127: =Fund!X134 -> 0 | O127: =-Fund!V134 -> 0 | P127: =Fund!V134 -> 0 | Q127: =Fund!P134 ->  | T127: =IF(C127<>$C$2,"",SUM($E$2:E127)) -> 
M128: =Fund!W135 -> 0 | N128: =Fund!X135 -> 0 | O128: =-Fund!V135 -> 0 | P128: =Fund!V135 -> 0 | Q128: =Fund!P135 ->  | T128: =IF(C128<>$C$2,"",SUM($E$2:E128)) -> 
M129: =Fund!W136 -> 0 | N129: =Fund!X136 -> 0 | O129: =-Fund!V136 -> 0 | P129: =Fund!V136 -> 0 | Q129: =Fund!P136 ->  | T129: =IF(C129<>$C$2,"",SUM($E$2:E129)) -> 
M130: =Fund!W137 -> 0 | N130: =Fund!X137 -> 0 | O130: =-Fund!V137 -> 0 | P130: =Fund!V137 -> 0 | Q130: =Fund!P137 ->  | T130: =IF(C130<>$C$2,"",SUM($E$2:E130)) -> 
M131: =Fund!W138 -> 0 | N131: =Fund!X138 -> 0 | O131: =-Fund!V138 -> 0 | P131: =Fund!V138 -> 0 | Q131: =Fund!P138 ->  | S131: =IF(C131<>$C$2,"",A131) ->  | T131: =IF(C131<>$C$2,"",SUM($E$2:E131)) ->  | U131: =IF(C131<>$C$2,"",T131*B131) -> 
M132: =Fund!W139 -> 0 | N132: =Fund!X139 -> 0 | O132: =-Fund!V139 -> 0 | P132: =Fund!V139 -> 0 | Q132: =Fund!P139 ->  | T132: =IF(C132<>$C$2,"",SUM($E$2:E132)) -> 
M133: =Fund!W140 -> 0 | N133: =Fund!X140 -> 0 | O133: =-Fund!V140 -> 0 | P133: =Fund!V140 -> 0 | Q133: =Fund!P140 ->  | T133: =IF(C133<>$C$2,"",SUM($E$2:E133)) -> 
M134: =Fund!W141 -> 0 | N134: =Fund!X141 -> 0 | O134: =-Fund!V141 -> 0 | P134: =Fund!V141 -> 0 | Q134: =Fund!P141 ->  | T134: =IF(C134<>$C$2,"",SUM($E$2:E134)) -> 
M135: =Fund!W142 -> 0 | N135: =Fund!X142 -> 0 | O135: =-Fund!V142 -> 0 | P135: =Fund!V142 -> 0 | Q135: =Fund!P142 ->  | T135: =IF(C135<>$C$2,"",SUM($E$2:E135)) -> 
M136: =Fund!W143 -> 0 | N136: =Fund!X143 -> 0 | O136: =-Fund!V143 -> 0 | P136: =Fund!V143 -> 0 | Q136: =Fund!P143 ->  | T136: =IF(C136<>$C$2,"",SUM($E$2:E136)) -> 
M137: =Fund!W144 -> 0 | N137: =Fund!X144 -> 0 | O137: =-Fund!V144 -> 0 | P137: =Fund!V144 -> 0 | Q137: =Fund!P144 ->  | T137: =IF(C137<>$C$2,"",SUM($E$2:E137)) -> 
M138: =Fund!W145 -> 0 | N138: =Fund!X145 -> 0 | O138: =-Fund!V145 -> 0 | P138: =Fund!V145 -> 0 | Q138: =Fund!P145 ->  | T138: =IF(C138<>$C$2,"",SUM($E$2:E138)) -> 
M139: =Fund!W146 -> 0 | N139: =Fund!X146 -> 0 | O139: =-Fund!V146 -> 0 | P139: =Fund!V146 -> 0 | Q139: =Fund!P146 ->  | T139: =IF(C139<>$C$2,"",SUM($E$2:E139)) -> 
M140: =Fund!W147 -> 0 | N140: =Fund!X147 -> 0 | O140: =-Fund!V147 -> 0 | P140: =Fund!V147 -> 0 | Q140: =Fund!P147 ->  | T140: =IF(C140<>$C$2,"",SUM($E$2:E140)) -> 
M141: =Fund!W148 -> 0 | N141: =Fund!X148 -> 0 | O141: =-Fund!V148 -> 0 | P141: =Fund!V148 -> 0 | Q141: =Fund!P148 ->  | T141: =IF(C141<>$C$2,"",SUM($E$2:E141)) -> 
M142: =Fund!W149 -> 0 | N142: =Fund!X149 -> 0 | O142: =-Fund!V149 -> 0 | P142: =Fund!V149 -> 0 | Q142: =Fund!P149 ->  | T142: =IF(C142<>$C$2,"",SUM($E$2:E142)) -> 
M143: =Fund!W150 -> 0 | N143: =Fund!X150 -> 0 | O143: =-Fund!V150 -> 0 | P143: =Fund!V150 -> 0 | Q143: =Fund!P150 ->  | T143: =IF(C143<>$C$2,"",SUM($E$2:E143)) -> 
M144: =Fund!W151 -> 0 | N144: =Fund!X151 -> 0 | O144: =-Fund!V151 -> 0 | P144: =Fund!V151 -> 0 | Q144: =Fund!P151 ->  | T144: =IF(C144<>$C$2,"",SUM($E$2:E144)) -> 
M145: =Fund!W152 -> 0 | N145: =Fund!X152 -> 0 | O145: =-Fund!V152 -> 0 | P145: =Fund!V152 -> 0 | Q145: =Fund!P152 ->  | T145: =IF(C145<>$C$2,"",SUM($E$2:E145)) -> 
M146: =Fund!W153 -> 0 | N146: =Fund!X153 -> 0 | O146: =-Fund!V153 -> 0 | P146: =Fund!V153 -> 0 | Q146: =Fund!P153 ->  | T146: =IF(C146<>$C$2,"",SUM($E$2:E146)) -> 
M147: =Fund!W154 -> 0 | N147: =Fund!X154 -> 0 | O147: =-Fund!V154 -> 0 | P147: =Fund!V154 -> 0 | Q147: =Fund!P154 ->  | T147: =IF(C147<>$C$2,"",SUM($E$2:E147)) -> 
M148: =Fund!W155 -> 0 | N148: =Fund!X155 -> 0 | O148: =-Fund!V155 -> 0 | P148: =Fund!V155 -> 0 | Q148: =Fund!P155 ->  | T148: =IF(C148<>$C$2,"",SUM($E$2:E148)) -> 
M149: =Fund!W156 -> 0 | N149: =Fund!X156 -> 0 | O149: =-Fund!V156 -> 0 | P149: =Fund!V156 -> 0 | Q149: =Fund!P156 ->  | T149: =IF(C149<>$C$2,"",SUM($E$2:E149)) -> 
M150: =Fund!W157 -> 0 | N150: =Fund!X157 -> 0 | O150: =-Fund!V157 -> 0 | P150: =Fund!V157 -> 0 | Q150: =Fund!P157 ->  | T150: =IF(C150<>$C$2,"",SUM($E$2:E150)) -> 
M151: =Fund!W158 -> 0 | N151: =Fund!X158 -> 0 | O151: =-Fund!V158 -> 0 | P151: =Fund!V158 -> 0 | Q151: =Fund!P158 ->  | T151: =IF(C151<>$C$2,"",SUM($E$2:E151)) -> 
M152: =Fund!W159 -> 0 | N152: =Fund!X159 -> 0 | O152: =-Fund!V159 -> 0 | P152: =Fund!V159 -> 0 | Q152: =Fund!P159 ->  | T152: =IF(C152<>$C$2,"",SUM($E$2:E152)) -> 
M153: =Fund!W160 -> 0 | N153: =Fund!X160 -> 0 | O153: =-Fund!V160 -> 0 | P153: =Fund!V160 -> 0 | Q153: =Fund!P160 ->  | T153: =IF(C153<>$C$2,"",SUM($E$2:E153)) -> 
M154: =Fund!W161 -> 0 | N154: =Fund!X161 -> 0 | O154: =-Fund!V161 -> 0 | P154: =Fund!V161 -> 0 | Q154: =Fund!P161 ->  | T154: =IF(C154<>$C$2,"",SUM($E$2:E154)) -> 
M155: =Fund!W162 -> 0 | N155: =Fund!X162 -> 0 | O155: =-Fund!V162 -> 0 | P155: =Fund!V162 -> 0 | Q155: =Fund!P162 ->  | T155: =IF(C155<>$C$2,"",SUM($E$2:E155)) -> 
M156: =Fund!W163 -> 0 | N156: =Fund!X163 -> 0 | O156: =-Fund!V163 -> 0 | P156: =Fund!V163 -> 0 | Q156: =Fund!P163 ->  | T156: =IF(C156<>$C$2,"",SUM($E$2:E156)) -> 
M157: =Fund!W164 -> 0 | N157: =Fund!X164 -> 0 | O157: =-Fund!V164 -> 0 | P157: =Fund!V164 -> 0 | Q157: =Fund!P164 ->  | T157: =IF(C157<>$C$2,"",SUM($E$2:E157)) -> 
M158: =Fund!W165 -> 0 | N158: =Fund!X165 -> 0 | O158: =-Fund!V165 -> 0 | P158: =Fund!V165 -> 0 | Q158: =Fund!P165 ->  | T158: =IF(C158<>$C$2,"",SUM($E$2:E158)) -> 
M159: =Fund!W166 -> 0 | N159: =Fund!X166 -> 0 | O159: =-Fund!V166 -> 0 | P159: =Fund!V166 -> 0 | Q159: =Fund!P166 ->  | T159: =IF(C159<>$C$2,"",SUM($E$2:E159)) -> 
M160: =Fund!W167 -> 0 | N160: =Fund!X167 -> 0 | O160: =-Fund!V167 -> 0 | P160: =Fund!V167 -> 0 | Q160: =Fund!P167 ->  | T160: =IF(C160<>$C$2,"",SUM($E$2:E160)) -> 
M161: =Fund!W168 -> 0 | N161: =Fund!X168 -> 0 | O161: =-Fund!V168 -> 0 | P161: =Fund!V168 -> 0 | Q161: =Fund!P168 ->  | T161: =IF(C161<>$C$2,"",SUM($E$2:E161)) -> 
M162: =Fund!W169 -> 0 | N162: =Fund!X169 -> 0 | O162: =-Fund!V169 -> 0 | P162: =Fund!V169 -> 0 | Q162: =Fund!P169 ->  | T162: =IF(C162<>$C$2,"",SUM($E$2:E162)) -> 
M163: =Fund!W170 -> 0 | N163: =Fund!X170 -> 0 | O163: =-Fund!V170 -> 0 | P163: =Fund!V170 -> 0 | Q163: =Fund!P170 ->  | T163: =IF(C163<>$C$2,"",SUM($E$2:E163)) -> 
M164: =Fund!W171 -> 0 | N164: =Fund!X171 -> 0 | O164: =-Fund!V171 -> 0 | P164: =Fund!V171 -> 0 | Q164: =Fund!P171 ->  | T164: =IF(C164<>$C$2,"",SUM($E$2:E164)) -> 
M165: =Fund!W172 -> 0 | N165: =Fund!X172 -> 0 | O165: =-Fund!V172 -> 0 | P165: =Fund!V172 -> 0 | Q165: =Fund!P172 ->  | T165: =IF(C165<>$C$2,"",SUM($E$2:E165)) -> 
M166: =Fund!W173 -> 0 | N166: =Fund!X173 -> 0 | O166: =-Fund!V173 -> 0 | P166: =Fund!V173 -> 0 | Q166: =Fund!P173 ->  | T166: =IF(C166<>$C$2,"",SUM($E$2:E166)) -> 
M167: =Fund!W174 -> 0 | N167: =Fund!X174 -> 0 | O167: =-Fund!V174 -> 0 | P167: =Fund!V174 -> 0 | Q167: =Fund!P174 ->  | T167: =IF(C167<>$C$2,"",SUM($E$2:E167)) -> 
M168: =Fund!W175 -> 0 | N168: =Fund!X175 -> 0 | O168: =-Fund!V175 -> 0 | P168: =Fund!V175 -> 0 | Q168: =Fund!P175 ->  | T168: =IF(C168<>$C$2,"",SUM($E$2:E168)) -> 
M169: =Fund!W176 -> 0 | N169: =Fund!X176 -> 0 | O169: =-Fund!V176 -> 0 | P169: =Fund!V176 -> 0 | Q169: =Fund!P176 ->  | T169: =IF(C169<>$C$2,"",SUM($E$2:E169)) -> 
M170: =Fund!W177 -> 0 | N170: =Fund!X177 -> 0 | O170: =-Fund!V177 -> 0 | P170: =Fund!V177 -> 0 | Q170: =Fund!P177 ->  | T170: =IF(C170<>$C$2,"",SUM($E$2:E170)) -> 
M171: =Fund!W178 -> 0 | N171: =Fund!X178 -> 0 | O171: =-Fund!V178 -> 0 | P171: =Fund!V178 -> 0 | Q171: =Fund!P178 ->  | T171: =IF(C171<>$C$2,"",SUM($E$2:E171)) -> 
M172: =Fund!W179 -> 0 | N172: =Fund!X179 -> 0 | O172: =-Fund!V179 -> 0 | P172: =Fund!V179 -> 0 | Q172: =Fund!P179 ->  | T172: =IF(C172<>$C$2,"",SUM($E$2:E172)) -> 
M173: =Fund!W180 -> 0 | N173: =Fund!X180 -> 0 | O173: =-Fund!V180 -> 0 | P173: =Fund!V180 -> 0 | Q173: =Fund!P180 ->  | T173: =IF(C173<>$C$2,"",SUM($E$2:E173)) -> 
M174: =Fund!W181 -> 0 | N174: =Fund!X181 -> 0 | O174: =-Fund!V181 -> 0 | P174: =Fund!V181 -> 0 | Q174: =Fund!P181 ->  | T174: =IF(C174<>$C$2,"",SUM($E$2:E174)) -> 
M175: =Fund!W182 -> 0 | N175: =Fund!X182 -> 0 | O175: =-Fund!V182 -> 0 | P175: =Fund!V182 -> 0 | Q175: =Fund!P182 ->  | T175: =IF(C175<>$C$2,"",SUM($E$2:E175)) -> 
M176: =Fund!W183 -> 0 | N176: =Fund!X183 -> 0 | O176: =-Fund!V183 -> 0 | P176: =Fund!V183 -> 0 | Q176: =Fund!P183 ->  | T176: =IF(C176<>$C$2,"",SUM($E$2:E176)) -> 
M177: =Fund!W184 -> 0 | N177: =Fund!X184 -> 0 | O177: =-Fund!V184 -> 0 | P177: =Fund!V184 -> 0 | Q177: =Fund!P184 ->  | T177: =IF(C177<>$C$2,"",SUM($E$2:E177)) -> 
M178: =Fund!W185 -> 0 | N178: =Fund!X185 -> 0 | O178: =-Fund!V185 -> 0 | P178: =Fund!V185 -> 0 | Q178: =Fund!P185 ->  | T178: =IF(C178<>$C$2,"",SUM($E$2:E178)) -> 
M179: =Fund!W186 -> 0 | N179: =Fund!X186 -> 0 | O179: =-Fund!V186 -> 0 | P179: =Fund!V186 -> 0 | Q179: =Fund!P186 ->  | T179: =IF(C179<>$C$2,"",SUM($E$2:E179)) -> 
M180: =Fund!W187 -> 0 | N180: =Fund!X187 -> 0 | O180: =-Fund!V187 -> 0 | P180: =Fund!V187 -> 0 | Q180: =Fund!P187 ->  | T180: =IF(C180<>$C$2,"",SUM($E$2:E180)) -> 
M181: =Fund!W188 -> 0 | N181: =Fund!X188 -> 0 | O181: =-Fund!V188 -> 0 | P181: =Fund!V188 -> 0 | Q181: =Fund!P188 ->  | T181: =IF(C181<>$C$2,"",SUM($E$2:E181)) -> 
M182: =Fund!W189 -> 0 | N182: =Fund!X189 -> 0 | O182: =-Fund!V189 -> 0 | P182: =Fund!V189 -> 0 | Q182: =Fund!P189 ->  | T182: =IF(C182<>$C$2,"",SUM($E$2:E182)) -> 
M183: =Fund!W190 -> 0 | N183: =Fund!X190 -> 0 | O183: =-Fund!V190 -> 0 | P183: =Fund!V190 -> 0 | Q183: =Fund!P190 ->  | T183: =IF(C183<>$C$2,"",SUM($E$2:E183)) -> 
M184: =Fund!W191 -> 0 | N184: =Fund!X191 -> 0 | O184: =-Fund!V191 -> 0 | P184: =Fund!V191 -> 0 | Q184: =Fund!P191 ->  | T184: =IF(C184<>$C$2,"",SUM($E$2:E184)) -> 
M185: =Fund!W192 -> 0 | N185: =Fund!X192 -> 0 | O185: =-Fund!V192 -> 0 | P185: =Fund!V192 -> 0 | Q185: =Fund!P192 ->  | T185: =IF(C185<>$C$2,"",SUM($E$2:E185)) -> 
M186: =Fund!W193 -> 0 | N186: =Fund!X193 -> 0 | O186: =-Fund!V193 -> 0 | P186: =Fund!V193 -> 0 | Q186: =Fund!P193 ->  | T186: =IF(C186<>$C$2,"",SUM($E$2:E186)) -> 
M187: =Fund!W194 -> 0 | N187: =Fund!X194 -> 0 | O187: =-Fund!V194 -> 0 | P187: =Fund!V194 -> 0 | Q187: =Fund!P194 ->  | T187: =IF(C187<>$C$2,"",SUM($E$2:E187)) -> 
M188: =Fund!W195 -> 0 | N188: =Fund!X195 -> 0 | O188: =-Fund!V195 -> 0 | P188: =Fund!V195 -> 0 | Q188: =Fund!P195 ->  | T188: =IF(C188<>$C$2,"",SUM($E$2:E188)) -> 
M189: =Fund!W196 -> 0 | N189: =Fund!X196 -> 0 | O189: =-Fund!V196 -> 0 | P189: =Fund!V196 -> 0 | Q189: =Fund!P196 ->  | T189: =IF(C189<>$C$2,"",SUM($E$2:E189)) -> 
M190: =Fund!W197 -> 0 | N190: =Fund!X197 -> 0 | O190: =-Fund!V197 -> 0 | P190: =Fund!V197 -> 0 | Q190: =Fund!P197 ->  | T190: =IF(C190<>$C$2,"",SUM($E$2:E190)) -> 
M191: =Fund!W198 -> 0 | N191: =Fund!X198 -> 0 | O191: =-Fund!V198 -> 0 | P191: =Fund!V198 -> 0 | Q191: =Fund!P198 ->  | T191: =IF(C191<>$C$2,"",SUM($E$2:E191)) -> 
M192: =Fund!W199 -> 0 | N192: =Fund!X199 -> 0 | O192: =-Fund!V199 -> 0 | P192: =Fund!V199 -> 0 | Q192: =Fund!P199 ->  | T192: =IF(C192<>$C$2,"",SUM($E$2:E192)) -> 
M193: =Fund!W200 -> 0 | N193: =Fund!X200 -> 0 | O193: =-Fund!V200 -> 0 | P193: =Fund!V200 -> 0 | Q193: =Fund!P200 ->  | T193: =IF(C193<>$C$2,"",SUM($E$2:E193)) -> 
M194: =Fund!W201 -> 0 | N194: =Fund!X201 -> 0 | O194: =-Fund!V201 -> 0 | P194: =Fund!V201 -> 0 | Q194: =Fund!P201 ->  | T194: =IF(C194<>$C$2,"",SUM($E$2:E194)) -> 
M195: =Fund!W202 -> 0 | N195: =Fund!X202 -> 0 | O195: =-Fund!V202 -> 0 | P195: =Fund!V202 -> 0 | Q195: =Fund!P202 ->  | S195: =IF(C195<>$C$2,"",A195) ->  | T195: =IF(C195<>$C$2,"",SUM($E$2:E195)) ->  | U195: =IF(C195<>$C$2,"",T195*B195) -> 
M196: =Fund!W203 -> 0 | N196: =Fund!X203 -> 0 | O196: =-Fund!V203 -> 0 | P196: =Fund!V203 -> 0 | Q196: =Fund!P203 ->  | T196: =IF(C196<>$C$2,"",SUM($E$2:E196)) -> 
M197: =Fund!W204 -> 0 | N197: =Fund!X204 -> 0 | O197: =-Fund!V204 -> 0 | P197: =Fund!V204 -> 0 | Q197: =Fund!P204 ->  | T197: =IF(C197<>$C$2,"",SUM($E$2:E197)) -> 
M198: =Fund!W205 -> 0 | N198: =Fund!X205 -> 0 | O198: =-Fund!V205 -> 0 | P198: =Fund!V205 -> 0 | Q198: =Fund!P205 ->  | T198: =IF(C198<>$C$2,"",SUM($E$2:E198)) -> 
M199: =Fund!W206 -> 0 | N199: =Fund!X206 -> 0 | O199: =-Fund!V206 -> 0 | P199: =Fund!V206 -> 0 | Q199: =Fund!P206 ->  | T199: =IF(C199<>$C$2,"",SUM($E$2:E199)) -> 
M200: =Fund!W207 -> 0 | N200: =Fund!X207 -> 0 | O200: =-Fund!V207 -> 0 | P200: =Fund!V207 -> 0 | Q200: =Fund!P207 ->  | T200: =IF(C200<>$C$2,"",SUM($E$2:E200)) -> 
... 4624 more rows

Sheet Results
P9: First date in fund NAV history | Q9: 2006-04-03
P10: First date in index history | Q10: 37991
P13: If the first date in the index history is after your SIP start date, you can
P14: choose another index or change your start date to the index history start date

Sheet Index (hidden)

Sheet nifty (hidden)
A1: Date | B1: Open | C1: High | D1: Low | E1: Close | F1: Shares Traded | G1: Turnover (Rs. Cr)
A2: 38810 | B2: 3403.15 | C2: 3478.25 | D2: 3402.45 | E2: 3473.3 | F2: 73250033 | G2: 3804.68
A3: 38811 | B3: 3473.1 | C3: 3508.25 | D3: 3463.85 | E3: 3483.15 | F3: 92359007 | G3: 4230.1
A4: 38812 | B4: 3483.15 | C4: 3513.95 | D4: 3483.15 | E4: 3510.9 | F4: 79374868 | G4: 4099.01
A5: 38814 | B5: 3525.6 | C5: 3555.5 | D5: 3445.9 | E5: 3454.8 | F5: 137089599 | G5: 7354.61
A6: 38817 | B6: 3455 | C6: 3489.05 | D6: 3430.4 | E6: 3478.45 | F6: 104980176 | G6: 4807.96
A7: 38819 | B7: 3479.1 | C7: 3484.65 | D7: 3366.75 | E7: 3380 | F7: 124245306 | G7: 6146.48
A8: 38820 | B8: 3380.4 | C8: 3391.05 | D8: 3290.35 | E8: 3345.5 | F8: 129244802 | G8: 6733.14
A9: 38824 | B9: 3342.15 | C9: 3433.65 | D9: 3342.15 | E9: 3425.15 | F9: 94138429 | G9: 4856.61
A10: 38825 | B10: 3429 | C10: 3521.95 | D10: 3429 | E10: 3518.1 | F10: 103920172 | G10: 5605.22
A11: 38826 | B11: 3523.65 | C11: 3570.5 | D11: 3502.75 | E11: 3535.85 | F11: 119462639 | G11: 5833.57
A12: 38827 | B12: 3539.8 | C12: 3578.35 | D12: 3527.25 | E12: 3573.5 | F12: 113701322 | G12: 5774.69
A13: 38828 | B13: 3576.75 | C13: 3592.75 | D13: 3517.1 | E13: 3573.05 | F13: 134014772 | G13: 6849.64
A14: 38831 | B14: 3572.8 | C14: 3585.35 | D14: 3536.3 | E14: 3548.9 | F14: 90785788 | G14: 4698.35
A15: 38832 | B15: 3548.8 | C15: 3552.65 | D15: 3433.55 | E15: 3462.65 | F15: 83494373 | G15: 4284.69
A16: 38833 | B16: 3462.65 | C16: 3562.3 | D16: 3454.1 | E16: 3555.75 | F16: 90642187 | G16: 4568.22
A17: 38834 | B17: 3554.7 | C17: 3598.95 | D17: 3492.75 | E17: 3508.1 | F17: 148887167 | G17: 10435.62
A18: 38835 | B18: 3507.45 | C18: 3517.65 | D18: 3342.85 | E18: 3508.35 | F18: 108821039 | G18: 4943.01
A19: 38836 | B19: 3508.35 | C19: 3565.75 | D19: 3508.35 | E19: 3557.6 | F19: 35740010 | G19: 1515.59
A20: 38839 | B20: 3557.55 | C20: 3622.05 | D20: 3556.9 | E20: 3605.45 | F20: 108347510 | G20: 5259.84
A21: 38840 | B21: 3604.4 | C21: 3640.8 | D21: 3581.4 | E21: 3634.25 | F21: 95591194 | G21: 4537.19
A22: 38841 | B22: 3630.65 | C22: 3674.5 | D22: 3621.55 | E22: 3648.4 | F22: 100108143 | G22: 5141
A23: 38842 | B23: 3649.45 | C23: 3676.55 | D23: 3639.55 | E23: 3663.95 | F23: 106747561 | G23: 4261.22
A24: 38845 | B24: 3668.65 | C24: 3708.55 | D24: 3668.65 | E24: 3693.15 | F24: 70284895 | G24: 3777.17
A25: 38846 | B25: 3694.65 | C25: 3725.4 | D25: 3655.65 | E25: 3720.55 | F25: 83890001 | G25: 4706.15
A26: 38847 | B26: 3720.75 | C26: 3758.05 | D26: 3717.25 | E26: 3754.25 | F26: 93510261 | G26: 4998.59
A27: 38848 | B27: 3755.8 | C27: 3774.15 | D27: 3687.9 | E27: 3701.05 | F27: 77726368 | G27: 4255.37
A28: 38849 | B28: 3704.15 | C28: 3704.15 | D28: 3633.85 | E28: 3650.05 | F28: 94028454 | G28: 4448.04
A29: 38852 | B29: 3651 | C29: 3653 | D29: 3482.85 | E29: 3502.95 | F29: 125542855 | G29: 5652.8
A30: 38853 | B30: 3502.95 | C30: 3543.5 | D30: 3382.4 | E30: 3523.3 | F30: 139746059 | G30: 6200.73
A31: 38854 | B31: 3525.05 | C31: 3641.85 | D31: 3525.05 | E31: 3635.1 | F31: 100892613 | G31: 4550.85
A32: 38855 | B32: 3636.45 | C32: 3636.45 | D32: 3365.9 | E32: 3388.9 | F32: 137036044 | G32: 6090.7
A33: 38856 | B33: 3391.85 | C33: 3493.05 | D33: 3205.25 | E33: 3246.9 | F33: 143372267 | G33: 6499.15
A34: 38859 | B34: 3254.3 | C34: 3313.9 | D34: 2896.4 | E34: 3081.35 | F34: 148001127 | G34: 6043.37
A35: 38860 | B35: 3068.6 | C35: 3221.05 | D35: 2997.35 | E35: 3199.35 | F35: 114894339 | G35: 4682.56
A36: 38861 | B36: 3203.5 | C36: 3249.75 | D36: 3091.6 | E36: 3115.55 | F36: 134699170 | G36: 5908.84
A37: 38862 | B37: 3114.7 | C37: 3198.35 | D37: 3012.95 | E37: 3177.7 | F37: 154894775 | G37: 6720.25
A38: 38863 | B38: 3177.7 | C38: 3277.95 | D38: 3177.7 | E38: 3209.6 | F38: 105522896 | G38: 4245.44
A39: 38866 | B39: 3207.25 | C39: 3255.25 | D39: 3193.15 | E39: 3214.9 | F39: 73032523 | G39: 2981.85
A40: 38867 | B40: 3215.5 | C40: 3252.1 | D40: 3167.05 | E40: 3185.3 | F40: 69451029 | G40: 3202.35
A41: 38868 | B41: 3181.95 | C41: 3181.95 | D41: 2972.9 | E41: 3071.05 | F41: 119568428 | G41: 4934.32
A42: 38869 | B42: 3072.55 | C42: 3130 | D42: 2936.6 | E42: 2962.25 | F42: 112881053 | G42: 5065.82
A43: 38870 | B43: 2961.5 | C43: 3099.35 | D43: 2940.2 | E43: 3091.35 | F43: 106179408 | G43: 4324.06
A44: 38873 | B44: 3092.6 | C44: 3125.4 | D44: 3006.4 | E44: 3016.65 | F44: 88204812 | G44: 4034.23
A45: 38874 | B45: 3015.05 | C45: 3015.05 | D45: 2910.3 | E45: 2937.3 | F45: 98819077 | G45: 4198.29
A46: 38875 | B46: 2935.25 | C46: 2956.9 | D46: 2819.45 | E46: 2860.45 | F46: 122677884 | G46: 4954.39
A47: 38876 | B47: 2856.9 | C47: 2859.4 | D47: 2683.2 | E47: 2724.35 | F47: 133611695 | G47: 5155.37
A48: 38877 | B48: 2721.2 | C48: 2875.75 | D48: 2707.85 | E48: 2866.3 | F48: 101500861 | G48: 4255.42
A49: 38880 | B49: 2867.65 | C49: 2877.8 | D49: 2761.85 | E49: 2776.85 | F49: 78190250 | G49: 3359.69
A50: 38881 | B50: 2773.6 | C50: 2773.6 | D50: 2638.1 | E50: 2663.3 | F50: 85457365 | G50: 3459.33
A51: 38882 | B51: 2665.05 | C51: 2767.75 | D51: 2595.65 | E51: 2632.8 | F51: 98860315 | G51: 4513.9
A52: 38883 | B52: 2634.1 | C52: 2814.15 | D52: 2634.1 | E52: 2798.8 | F52: 88836911 | G52: 3820.2
A53: 38884 | B53: 2799.85 | C53: 2960.15 | D53: 2799.85 | E53: 2890.35 | F53: 117621143 | G53: 5258.32
A54: 38887 | B54: 2892 | C54: 2932.9 | D54: 2846.5 | E54: 2916.9 | F54: 75179603 | G54: 3186.42
A55: 38888 | B55: 2919 | C55: 2919 | D55: 2837.45 | E55: 2861.3 | F55: 85067878 | G55: 3342.93
A56: 38889 | B56: 2861.4 | C56: 2930.8 | D56: 2836.4 | E56: 2923.45 | F56: 81725635 | G56: 3417
A57: 38890 | B57: 2923.75 | C57: 3017.65 | D57: 2923.75 | E57: 2994.75 | F57: 81030379 | G57: 3567
A58: 38891 | B58: 2993.55 | C58: 3063.2 | D58: 2920.2 | E58: 3042.7 | F58: 86904356 | G58: 3615.07
A59: 38893 | B59: 3043.15 | C59: 3083 | D59: 3035.95 | E59: 3050.3 | F59: 12073961 | G59: 433.29
A60: 38894 | B60: 3051.8 | C60: 3059.85 | D60: 2928 | E60: 2943.2 | F60: 87442622 | G60: 3613.02
A61: 38895 | B61: 2943.6 | C61: 3004.15 | D61: 2899.25 | E61: 2982.45 | F61: 116745741 | G61: 5252.39
A62: 38896 | B62: 2982.2 | C62: 3003.65 | D62: 2909.6 | E62: 2981.1 | F62: 84897439 | G62: 3840.16
A63: 38897 | B63: 2982.9 | C63: 3049.25 | D63: 2982.9 | E63: 2997.9 | F63: 110790760 | G63: 5017.76
A64: 38898 | B64: 2993.5 | C64: 3134.15 | D64: 2993.5 | E64: 3128.2 | F64: 98679172 | G64: 4453.99
A65: 38901 | B65: 3128.75 | C65: 3160.35 | D65: 3114.85 | E65: 3150.95 | F65: 66603275 | G65: 3157.85
A66: 38902 | B66: 3151.05 | C66: 3177.4 | D66: 3130.3 | E66: 3138.65 | F66: 66682150 | G66: 3147.66
A67: 38903 | B67: 3136.95 | C67: 3201.2 | D67: 3121.8 | E67: 3197.1 | F67: 90419711 | G67: 4195.99
A68: 38904 | B68: 3197.5 | C68: 3197.5 | D68: 3138.4 | E68: 3156.4 | F68: 74893378 | G68: 3524.77
A69: 38905 | B69: 3157.95 | C69: 3193.1 | D69: 3056.3 | E69: 3075.85 | F69: 90060282 | G69: 4068.6
A70: 38908 | B70: 3077.1 | C70: 3147.7 | D70: 3064.1 | E70: 3142 | F70: 65284375 | G70: 2980.45
A71: 38909 | B71: 3145.3 | C71: 3146 | D71: 3100.4 | E71: 3116.15 | F71: 66336970 | G71: 3096.43
A72: 38910 | B72: 3124.95 | C72: 3201.35 | D72: 3078.25 | E72: 3195.9 | F72: 93623050 | G72: 5499.45
A73: 38911 | B73: 3196.3 | C73: 3208.85 | D73: 3148.95 | E73: 3169.3 | F73: 81620172 | G73: 3475.59
A74: 38912 | B74: 3166.25 | C74: 3166.25 | D74: 3089.55 | E74: 3123.35 | F74: 61512609 | G74: 3055.66
A75: 38915 | B75: 3123.65 | C75: 3125.1 | D75: 2999.35 | E75: 3007.55 | F75: 60049023 | G75: 2953.6
A76: 38916 | B76: 3007.15 | C76: 3038.25 | D76: 2967.95 | E76: 2993.65 | F76: 70494264 | G76: 3522.91
A77: 38917 | B77: 2995.85 | C77: 3045.35 | D77: 2919.95 | E77: 2932.75 | F77: 79085652 | G77: 3948.34
A78: 38918 | B78: 2943.65 | C78: 3041.25 | D78: 2943.65 | E78: 3023.05 | F78: 77712999 | G78: 3686.36
A79: 38919 | B79: 3025.1 | C79: 3029.1 | D79: 2930.15 | E79: 2945 | F79: 74876151 | G79: 3454.86
A80: 38922 | B80: 2944.9 | C80: 2996.65 | D80: 2878.25 | E80: 2985.85 | F80: 78139891 | G80: 3721.14
A81: 38923 | B81: 2989.5 | C81: 3046.95 | D81: 2987.15 | E81: 3040.5 | F81: 70646865 | G81: 3378.75
A82: 38924 | B82: 3040.45 | C82: 3121.4 | D82: 3022.7 | E82: 3110.15 | F82: 77137663 | G82: 3749.48
A83: 38925 | B83: 3109.85 | C83: 3167.1 | D83: 3109.85 | E83: 3156.15 | F83: 106694441 | G83: 5295.1
A84: 38926 | B84: 3158 | C84: 3168.5 | D84: 3109.45 | E84: 3130.8 | F84: 81278521 | G84: 3571.94
A85: 38929 | B85: 3131.35 | C85: 3179.7 | D85: 3110.6 | E85: 3143.2 | F85: 61675413 | G85: 3130.17
A86: 38930 | B86: 3128.2 | C86: 3154.7 | D86: 3113.6 | E86: 3147.8 | F86: 57028169 | G86: 2790.09
A87: 38931 | B87: 3129.45 | C87: 3187.85 | D87: 3127.9 | E87: 3182.1 | F87: 55484351 | G87: 2628.88
A88: 38932 | B88: 3182.55 | C88: 3234.25 | D88: 3175.15 | E88: 3190 | F88: 69084722 | G88: 3556.26
A89: 38933 | B89: 3189.7 | C89: 3228.15 | D89: 3161.8 | E89: 3176.75 | F89: 69528047 | G89: 3282.36
A90: 38936 | B90: 3176.7 | C90: 3178.5 | D90: 3142.55 | E90: 3151.1 | F90: 50260661 | G90: 2482.52
A91: 38937 | B91: 3151.55 | C91: 3216.75 | D91: 3151.55 | E91: 3212.4 | F91: 52271647 | G91: 2334.3
A92: 38938 | B92: 3211.55 | C92: 3267.2 | D92: 3187.85 | E92: 3254.6 | F92: 71781978 | G92: 3410.66
A93: 38939 | B93: 3254.6 | C93: 3274.75 | D93: 3229.45 | E93: 3260.1 | F93: 59287718 | G93: 2795.74
A94: 38940 | B94: 3260.05 | C94: 3286.5 | D94: 3236.95 | E94: 3274.35 | F94: 63497173 | G94: 3339.55
A95: 38943 | B95: 3274.95 | C95: 3317.8 | D95: 3269.15 | E95: 3313.1 | F95: 51600194 | G95: 2309.79
A96: 38945 | B96: 3314.75 | C96: 3377.1 | D96: 3314.75 | E96: 3356.05 | F96: 69199131 | G96: 3288.12
A97: 38946 | B97: 3359.7 | C97: 3385.15 | D97: 3328.6 | E97: 3353.9 | F97: 72570406 | G97: 3678.42
A98: 38947 | B98: 3354.5 | C98: 3366.25 | D98: 3332.2 | E98: 3356.75 | F98: 57031969 | G98: 2744.7
A99: 38950 | B99: 3356.8 | C99: 3374.9 | D99: 3332.9 | E99: 3366 | F99: 48935056 | G99: 2623.86
A100: 38951 | B100: 3369.6 | C100: 3398.35 | D100: 3351.5 | E100: 3364.6 | F100: 58614547 | G100: 2780.25
A101: 38952 | B101: 3363.6 | C101: 3369.65 | D101: 3325.1 | E101: 3335.8 | F101: 52060467 | G101: 2595.68
A102: 38953 | B102: 3336.65 | C102: 3379.55 | D102: 3304.85 | E102: 3370.4 | F102: 70794902 | G102: 3625.17
A103: 38954 | B103: 3368.55 | C103: 3402.7 | D103: 3368.55 | E103: 3385.95 | F103: 68458051 | G103: 3290.78
A104: 38957 | B104: 3386 | C104: 3405.3 | D104: 3377.75 | E104: 3401.1 | F104: 46753742 | G104: 2051.97
A105: 38958 | B105: 3405.05 | C105: 3434.95 | D105: 3396.1 | E105: 3425.7 | F105: 60674227 | G105: 2935.97
A106: 38959 | B106: 3425.8 | C106: 3440.2 | D106: 3407.75 | E106: 3430.35 | F106: 61671400 | G106: 2963.16
A107: 38960 | B107: 3404.5 | C107: 3452.3 | D107: 3403.65 | E107: 3413.9 | F107: 98616609 | G107: 4581.17
A108: 38961 | B108: 3414 | C108: 3439.5 | D108: 3402.9 | E108: 3435.45 | F108: 71355586 | G108: 3118.13
A109: 38964 | B109: 3435.55 | C109: 3483.1 | D109: 3435.55 | E109: 3476.85 | F109: 55794558 | G109: 2672.11
A110: 38965 | B110: 3471.4 | C110: 3488.6 | D110: 3457.9 | E110: 3473.75 | F110: 49637615 | G110: 2330.87
A111: 38966 | B111: 3474.4 | C111: 3490.7 | D111: 3465.8 | E111: 3477.25 | F111: 64632141 | G111: 3020.81
A112: 38967 | B112: 3477.15 | C112: 3478.85 | D112: 3438.8 | E112: 3454.55 | F112: 61695576 | G112: 3097.76
A113: 38968 | B113: 3454.65 | C113: 3477.95 | D113: 3442.85 | E113: 3471.45 | F113: 75299798 | G113: 3823.16
A114: 38971 | B114: 3470.35 | C114: 3486.65 | D114: 3351.3 | E114: 3366.15 | F114: 78022331 | G114: 3948.22
A115: 38972 | B115: 3363.3 | C115: 3395.05 | D115: 3328.45 | E115: 3389.9 | F115: 80287997 | G115: 3899.77
A116: 38973 | B116: 3389.85 | C116: 3470.65 | D116: 3389.8 | E116: 3454.55 | F116: 71103462 | G116: 3702.22
A117: 38974 | B117: 3454.6 | C117: 3484 | D117: 3454.6 | E117: 3471.6 | F117: 88081056 | G117: 4891.78
A118: 38975 | B118: 3471.65 | C118: 3487.45 | D118: 3434.55 | E118: 3478.6 | F118: 71320369 | G118: 3491.83
A119: 38978 | B119: 3478.65 | C119: 3506.2 | D119: 3478.4 | E119: 3492.75 | F119: 60726317 | G119: 2990.54
A120: 38979 | B120: 3493.5 | C120: 3514.95 | D120: 3438.8 | E120: 3457.35 | F120: 69738853 | G120: 3565.22
A121: 38980 | B121: 3457.85 | C121: 3509.85 | D121: 3419.75 | E121: 3502.8 | F121: 62440086 | G121: 3133.57
A122: 38981 | B122: 3506.7 | C122: 3556.35 | D122: 3506.7 | E122: 3553.05 | F122: 65971047 | G122: 3470.59
A123: 38982 | B123: 3554.05 | C123: 3562.45 | D123: 3525.4 | E123: 3544.05 | F123: 60146361 | G123: 3402.22
A124: 38985 | B124: 3545.1 | C124: 3568.65 | D124: 3514.85 | E124: 3523.45 | F124: 59718564 | G124: 2973.4
A125: 38986 | B125: 3523.7 | C125: 3576.75 | D125: 3517.15 | E125: 3571.75 | F125: 67280328 | G125: 3513.92
A126: 38987 | B126: 3571.75 | C126: 3603.7 | D126: 3568.4 | E126: 3579.3 | F126: 65272270 | G126: 3388.77
A127: 38988 | B127: 3579.95 | C127: 3589.3 | D127: 3560.75 | E127: 3571.75 | F127: 82845862 | G127: 4431.1
A128: 38989 | B128: 3572.15 | C128: 3599.8 | D128: 3564.7 | E128: 3588.4 | F128: 71280518 | G128: 3291.25
A129: 38993 | B129: 3588.95 | C129: 3606.2 | D129: 3561.7 | E129: 3569.6 | F129: 55658446 | G129: 2746.91
A130: 38994 | B130: 3570.95 | C130: 3580.05 | D130: 3508.65 | E130: 3515.35 | F130: 68278198 | G130: 3819.03
A131: 38995 | B131: 3515.6 | C131: 3574.95 | D131: 3515.6 | E131: 3564.9 | F131: 74898110 | G131: 3523.08
A132: 38996 | B132: 3565.45 | C132: 3583.75 | D132: 3560.9 | E132: 3569.7 | F132: 83455201 | G132: 3254.23
A133: 38999 | B133: 3570.05 | C133: 3585.35 | D133: 3540.45 | E133: 3567.15 | F133: 52281974 | G133: 2351.09
A134: 39000 | B134: 3567.45 | C134: 3597.2 | D134: 3563.1 | E134: 3571.05 | F134: 61272629 | G134: 2759.2
A135: 39001 | B135: 3581.55 | C135: 3614.5 | D135: 3544.25 | E135: 3558.55 | F135: 64789296 | G135: 3439.29
A136: 39002 | B136: 3562.55 | C136: 3626.8 | D136: 3545.95 | E136: 3621.05 | F136: 67079130 | G136: 3436.45
A137: 39003 | B137: 3621.65 | C137: 3682.35 | D137: 3621.65 | E137: 3676.05 | F137: 77576341 | G137: 4180.34
A138: 39006 | B138: 3668.9 | C138: 3729.7 | D138: 3668.9 | E138: 3723.95 | F138: 74544319 | G138: 4114.25
A139: 39007 | B139: 3726.4 | C139: 3742.5 | D139: 3691.35 | E139: 3715 | F139: 72710899 | G139: 3601.25
A140: 39008 | B140: 3715.2 | C140: 3727 | D140: 3701.3 | E140: 3710.65 | F140: 98341144 | G140: 4457.77
A141: 39009 | B141: 3711.1 | C141: 3726.95 | D141: 3655.05 | E141: 3677.8 | F141: 87373113 | G141: 3801.97
A142: 39010 | B142: 3678.75 | C142: 3714.25 | D142: 3665.5 | E142: 3676.85 | F142: 71910699 | G142: 3349.3
A143: 39011 | B143: 3680.85 | C143: 3708.4 | D143: 3662.85 | E143: 3683.5 | F143: 10531676 | G143: 507.73
A144: 39013 | B144: 3683.4 | C144: 3690.85 | D144: 3651.2 | E144: 3657.3 | F144: 45483007 | G144: 2204.29
A145: 39016 | B145: 3656.2 | C145: 3686.85 | D145: 3651.2 | E145: 3677.55 | F145: 97769504 | G145: 4879.43
A146: 39017 | B146: 3676.85 | C146: 3747.35 | D146: 3674.8 | E146: 3739.35 | F146: 81362792 | G146: 4114.12
A147: 39020 | B147: 3739.35 | C147: 3776.05 | D147: 3719.45 | E147: 3769.1 | F147: 85610530 | G147: 4741.7
A148: 39021 | B148: 3770.5 | C148: 3782.85 | D148: 3726.75 | E148: 3744.1 | F148: 87732761 | G148: 4104.67
A149: 39022 | B149: 3744.1 | C149: 3777.7 | D149: 3737 | E149: 3767.05 | F149: 70546138 | G149: 3544.68
A150: 39023 | B150: 3769.4 | C150: 3805.5 | D150: 3761.9 | E150: 3791.2 | F150: 57711779 | G150: 3121.02
A151: 39024 | B151: 3793.05 | C151: 3809.65 | D151: 3771 | E151: 3805.35 | F151: 61269479 | G151: 3313.66
A152: 39027 | B152: 3804.75 | C152: 3822.4 | D152: 3798.25 | E152: 3809.25 | F152: 68853934 | G152: 3137.47
A153: 39028 | B153: 3812.15 | C153: 3840.45 | D153: 3789.4 | E153: 3798.75 | F153: 72012582 | G153: 3596.23
A154: 39029 | B154: 3799.2 | C154: 3809.95 | D154: 3737.2 | E154: 3777.3 | F154: 81509881 | G154: 4427.67
A155: 39030 | B155: 3777.8 | C155: 3808.2 | D155: 3769.8 | E155: 3796.4 | F155: 71619806 | G155: 3934.11
A156: 39031 | B156: 3796.05 | C156: 3842.4 | D156: 3785.4 | E156: 3834.75 | F156: 70384022 | G156: 3936.21
A157: 39034 | B157: 3834.8 | C157: 3862.05 | D157: 3834 | E157: 3858.75 | F157: 56173959 | G157: 2739.11
A158: 39035 | B158: 3862 | C158: 3883 | D158: 3850.75 | E158: 3865.9 | F158: 68081114 | G158: 3651.51
A159: 39036 | B159: 3865.95 | C159: 3888.8 | D159: 3838.25 | E159: 3876.3 | F159: 69066795 | G159: 3511.53
A160: 39037 | B160: 3876.4 | C160: 3900.4 | D160: 3863.85 | E160: 3876.85 | F160: 81514258 | G160: 4686.36
A161: 39038 | B161: 3877 | C161: 3891.85 | D161: 3835.7 | E161: 3852.8 | F161: 77876260 | G161: 4194.93
A162: 39041 | B162: 3852.65 | C162: 3866.95 | D162: 3794.3 | E162: 3856.15 | F162: 84182263 | G162: 4952.26
A163: 39042 | B163: 3859.5 | C163: 3921.7 | D163: 3856.75 | E163: 3918.25 | F163: 67180630 | G163: 3907.31
A164: 39043 | B164: 3918.3 | C164: 3960 | D164: 3909.6 | E164: 3954.75 | F164: 87853870 | G164: 5284.69
A165: 39044 | B165: 3955.3 | C165: 3976.8 | D165: 3933.7 | E165: 3945.45 | F165: 64562640 | G165: 4000.52
A166: 39045 | B166: 3945.45 | C166: 3965.8 | D166: 3935.3 | E166: 3950.85 | F166: 68029182 | G166: 3633.78
A167: 39048 | B167: 3974.95 | C167: 3974.95 | D167: 3948.85 | E167: 3968.9 | F167: 56622181 | G167: 3350.7
A168: 39049 | B168: 3966 | C168: 3966 | D168: 3911.55 | E168: 3921.75 | F168: 59759241 | G168: 3564.33
A169: 39050 | B169: 3922.5 | C169: 3952.4 | D169: 3920 | E169: 3928.2 | F169: 59745228 | G169: 3170.71
A170: 39051 | B170: 3929.4 | C170: 3973 | D170: 3929.4 | E170: 3954.5 | F170: 99230654 | G170: 5200.26
A171: 39052 | B171: 3955.7 | C171: 4001.3 | D171: 3953.95 | E171: 3997.6 | F171: 58708116 | G171: 3309.49
A172: 39055 | B172: 4002.4 | C172: 4015.25 | D172: 3991.55 | E172: 4001 | F172: 54018198 | G172: 3426.05
A173: 39056 | B173: 4001.25 | C173: 4033.2 | D173: 4001.25 | E173: 4015.75 | F173: 65921607 | G173: 3669.1
A174: 39057 | B174: 4016 | C174: 4036.2 | D174: 3982.5 | E174: 4015.95 | F174: 65477220 | G174: 3637.13
A175: 39058 | B175: 4015 | C175: 4027.7 | D175: 4001.4 | E175: 4015.35 | F175: 52637334 | G175: 3396.24
A176: 39059 | B176: 4015.75 | C176: 4046.85 | D176: 3948.7 | E176: 3962 | F176: 53674764 | G176: 3113.85
A177: 39062 | B177: 3961.9 | C177: 3965.05 | D177: 3798.3 | E177: 3849.5 | F177: 79520623 | G177: 4688.29
A178: 39063 | B178: 3849.1 | C178: 3861.25 | D178: 3661.6 | E178: 3716.9 | F178: 105472463 | G178: 5958.99
A179: 39064 | B179: 3716.75 | C179: 3777.6 | D179: 3657.65 | E179: 3765.2 | F179: 93071516 | G179: 5185.84
A180: 39065 | B180: 3765.7 | C180: 3855.05 | D180: 3763.5 | E180: 3843.05 | F180: 72361721 | G180: 3750.19
A181: 39066 | B181: 3849.6 | C181: 3908.45 | D181: 3845.45 | E181: 3888.65 | F181: 91020399 | G181: 4491.99
A182: 39069 | B182: 3888.2 | C182: 3934 | D182: 3828.15 | E182: 3928.75 | F182: 72483576 | G182: 4122.31
A183: 39070 | B183: 3928.85 | C183: 3931.9 | D183: 3783.45 | E183: 3832 | F183: 75208480 | G183: 4700.27
A184: 39071 | B184: 3832.15 | C184: 3886.1 | D184: 3787.55 | E184: 3815.55 | F184: 81933913 | G184: 4707.85
A185: 39072 | B185: 3814.75 | C185: 3851.2 | D185: 3768.8 | E185: 3833.5 | F185: 57300356 | G185: 3118.95
A186: 39073 | B186: 3834.9 | C186: 3880.15 | D186: 3823.4 | E186: 3871.15 | F186: 51348663 | G186: 2468.08
A187: 39077 | B187: 3871.3 | C187: 3946.1 | D187: 3870.45 | E187: 3940.5 | F187: 45448366 | G187: 2356.62
A188: 39078 | B188: 3942.75 | C188: 3986.75 | D188: 3937.7 | E188: 3974.25 | F188: 54698735 | G188: 2965.96
A189: 39079 | B189: 3974.2 | C189: 3997.35 | D189: 3961.95 | E189: 3970.55 | F189: 82886489 | G189: 4414.78
A190: 39080 | B190: 3971.65 | C190: 3991.6 | D190: 3960.45 | E190: 3966.4 | F190: 46461571 | G190: 2383.73
A191: 39084 | B191: 3966.25 | C191: 4016.65 | D191: 3964.95 | E191: 4007.4 | F191: 40789960 | G191: 1929.76
A192: 39085 | B192: 4007.7 | C192: 4029.8 | D192: 3985 | E192: 4024.05 | F192: 63826475 | G192: 3291.66
A193: 39086 | B193: 4027.3 | C193: 4041 | D193: 3979.8 | E193: 3988.8 | F193: 67096186 | G193: 3446.19
A194: 39087 | B194: 3990.15 | C194: 4011.45 | D194: 3969.65 | E194: 3983.4 | F194: 69146575 | G194: 3558.69
A195: 39090 | B195: 3983.3 | C195: 3987.45 | D195: 3913 | E195: 3933.4 | F195: 63615668 | G195: 3590.08
A196: 39091 | B196: 3933.3 | C196: 3963.75 | D196: 3890.75 | E196: 3911.4 | F196: 65321592 | G196: 3753.18
A197: 39092 | B197: 3910.95 | C197: 3911.95 | D197: 3841.7 | E197: 3850.3 | F197: 68470689 | G197: 3892.68
A198: 39093 | B198: 3852.15 | C198: 3953.1 | D198: 3833.6 | E198: 3942.25 | F198: 83152375 | G198: 5058.74
A199: 39094 | B199: 3944.55 | C199: 4059.15 | D199: 3944.55 | E199: 4052.45 | F199: 81362992 | G199: 4727.43
A200: 39097 | B200: 4052.85 | C200: 4099.65 | D200: 4052.4 | E200: 4078.4 | F200: 81723925 | G200: 4103.23
... 1667 more rows

Sheet temp (hidden)
A1: Date | B1: Open | C1: High | D1: Low | E1: Close | F1: - SPREAD -
F2: (High-Low) | G2: (Open-Close)
A3: No data to display.

Sheet Navdaily (hidden)

Sheet rr (hidden)
A1: =RSQ(B7:B8000,D7:D8000) -> 0.9550818199 | E1: =RSQ(F7:F8000,H7:H8000) -> 0.9925207619 | I1: =RSQ(J7:J8000,L7:L8000) -> 0.9908062247 | M1: =RSQ(N7:N8000,P7:P8000) -> 0.9858682974 | Q1: =RSQ(R7:R8000,T7:T8000) -> 0.9640394659 | U1: =RSQ(V7:V8000,X7:X8000) -> 0.9592480394 | Y1: =RSQ(Z7:Z8000,AB7:AB8000) ->  | AC1: =RSQ(AD7:AD8000,AF7:AF8000) ->  | AP1: Beta | AQ1: =SLOPE(AQ12:AQ8004,AT12:AT8004) -> 0.1729542924 | AR1: R-squared | AS1: =INTERCEPT(AQ12:AQ8004,AT12:AT8004) -> 0.0007510290448 | AT1: Index_avg | AW1: =COUNT(AV12:AV8004) -> 0 | AX1: Omega fund | AY1: =SUM(IF(AQ12:INDEX(AQ12:AQ8004,AW1)>AQ8,AQ12:INDEX(AQ12:AQ8004,AW1)-AQ8,""))/-SUM(IF(AQ12:INDEX(AQ12:AQ8004,AW1)<AQ8,AQ12:INDEX(AQ12:AQ8004,AW1)-AQ8,"")) ->  | AZ1: =COUNT(AY12:AY8004) -> 0 | BC1: =BC10/BE10 ->  | BE1: =BD10/BF10 ->  | BG1: Beta | BH1: =SLOPE(BH12:BH8004,BK12:BK8004) -> 0.03094806923 | BI1: R-squared | BJ1: =INTERCEPT(BH12:BH8004,BK12:BK8004) -> 0.00101954072 | BK1: Index_avg | BN1: =COUNT(BM12:BM8004) -> 0 | BO1: Omega fund | BP1: =SUM(IF(BH12:INDEX(BH12:BH8004,BN1)>BH8,BH12:INDEX(BH12:BH8004,BN1)-BH8,""))/-SUM(IF(BH12:INDEX(BH12:BH8004,BN1)<BH8,BH12:INDEX(BH12:BH8004,BN1)-BH8,"")) ->  | BQ1: =COUNT(BP12:BP8004) -> 0 | BT1: =BT10/BV10 ->  | BV1: =BU10/BW10 ->  | BX1: Beta | BY1: =SLOPE(BY12:BY8004,CB12:CB8004) -> -0.00916954935 | BZ1: R-squared | CA1: =INTERCEPT(BY12:BY8004,CB12:CB8004) -> 0.0009394685133 | CB1: Index_avg | CE1: =COUNT(CD12:CD8004) -> 0 | CF1: Omega fund | CG1: =SUM(IF(BY12:INDEX(BY12:BY8004,CE1)>BY8,BY12:INDEX(BY12:BY8004,CE1)-BY8,""))/-SUM(IF(BY12:INDEX(BY12:BY8004,CE1)<BY8,BY12:INDEX(BY12:BY8004,CE1)-BY8,"")) ->  | CH1: =COUNT(CG12:CG8004) -> 0 | CK1: =CK10/CM10 ->  | CM1: =CL10/CN10 ->  | CO1: Beta | CP1: =SLOPE(CP12:CP8004,CS12:CS8004) -> 0.1407777021 | CQ1: R-squared | CR1: =INTERCEPT(CP12:CP8004,CS12:CS8004) -> 0.0005976191072 | CS1: Index_avg | CV1: =COUNT(CU12:CU8004) -> 0 | CW1: Omega fund | CX1: =SUM(IF(CP12:INDEX(CP12:CP8004,CV1)>CP8,CP12:INDEX(CP12:CP8004,CV1)-CP8,""))/-SUM(IF(CP12:INDEX(CP12:CP8004,CV1)<CP8,CP12:INDEX(CP12:CP8004,CV1)-CP8,"")) ->  | CY1: =COUNT(CX12:CX8004) -> 0 | DB1: =DB10/DD10 ->  | DD1: =DC10/DE10 ->  | DF1: Beta | DG1: =SLOPE(DG12:DG8004,DJ12:DJ8004) -> 0.2609636323 | DH1: R-squared | DI1: =INTERCEPT(DG12:DG8004,DJ12:DJ8004) -> 0.000546229543 | DJ1: Index_avg | DM1: =COUNT(DL12:DL8004) -> 0 | DN1: Omega fund | DO1: =SUM(IF(DG12:INDEX(DG12:DG8004,DM1)>DG8,DG12:INDEX(DG12:DG8004,DM1)-DG8,""))/-SUM(IF(DG12:INDEX(DG12:DG8004,DM1)<DG8,DG12:INDEX(DG12:DG8004,DM1)-DG8,"")) ->  | DP1: =COUNT(DO12:DO8004) -> 0 | DS1: =DS10/DU10 ->  | DU1: =DT10/DV10 ->  | DW1: Beta | DX1: =SLOPE(DX12:DX8004,EA12:EA8004) -> 0.05506635652 | DY1: R-squared | DZ1: =INTERCEPT(DX12:DX8004,EA12:EA8004) -> 0.0007443151313 | EA1: Index_avg | ED1: =COUNT(EC12:EC8004) -> 0 | EE1: Omega fund | EF1: =SUM(IF(DX12:INDEX(DX12:DX8004,ED1)>DX8,DX12:INDEX(DX12:DX8004,ED1)-DX8,""))/-SUM(IF(DX12:INDEX(DX12:DX8004,ED1)<DX8,DX12:INDEX(DX12:DX8004,ED1)-DX8,"")) ->  | EG1: =COUNT(EF12:EF8004) -> 0 | EJ1: =EJ10/EL10 ->  | EL1: =EK10/EM10 ->  | EN1: Beta | EO1: =SLOPE(EO12:EO8004,ER12:ER8004) ->  | EP1: R-squared | EQ1: =INTERCEPT(EO12:EO8004,ER12:ER8004) ->  | ER1: Index_avg | EU1: =COUNT(ET12:ET8004) -> 0 | EV1: Omega fund | EW1: =SUM(IF(EO12:INDEX(EO12:EO8004,EU1)>EO8,EO12:INDEX(EO12:EO8004,EU1)-EO8,""))/-SUM(IF(EO12:INDEX(EO12:EO8004,EU1)<EO8,EO12:INDEX(EO12:EO8004,EU1)-EO8,"")) ->  | EX1: =COUNT(EW12:EW8004) -> 0 | FA1: =FA10/FC10 ->  | FC1: =FB10/FD10 ->  | FE1: Beta | FF1: =SLOPE(FF12:FF8004,FI12:FI8004) ->  | FG1: R-squared | FH1: =INTERCEPT(FF12:FF8004,FI12:FI8004) ->  | FI1: Index_avg | FL1: =COUNT(FK12:FK8004) -> 0 | FM1: Omega fund | FN1: =SUM(IF(FF12:INDEX(FF12:FF8004,FL1)>FF8,FF12:INDEX(FF12:FF8004,FL1)-FF8,""))/-SUM(IF(FF12:INDEX(FF12:FF8004,FL1)<FF8,FF12:INDEX(FF12:FF8004,FL1)-FF8,"")) ->  | FO1: =COUNT(FN12:FN8004) -> 0 | FR1: =FR10/FT10 ->  | FT1: =FS10/FU10 -> 
AP2: Fund_avg | AQ2: =AVERAGE(AQ12:AQ8004) -> 0.0008204576319 | AR2: =RSQ(AQ12:AQ8004,AT12:AT8004) -> 0.03032873561 | AS2: =(1+AQ2)^trading-1 -> 0 | AT2: =AVERAGE(AT12:AT8004) -> 0.0005600246282 | AV2: =(1+AT2)^trading-1 -> 0 | AW2: Sortino fund | AX2: Omega index | AY2: =SUM(IF(AT12:INDEX(AT12:AT8004,AZ1)>AQ8,AT12:INDEX(AT12:AT8004,AZ1)-AQ8,""))/-SUM(IF(AT12:INDEX(AT12:AT8004,AZ1)<AQ8,AT12:INDEX(AT12:AT8004,AZ1)-AQ8,"")) ->  | AZ2: Sortino index | BG2: Fund_avg | BH2: =AVERAGE(BH12:BH8004) -> 0.0009787167979 | BI2: =RSQ(BH12:BH8004,BK12:BK8004) -> 0.02288881196 | BJ2: =(1+BH2)^trading-1 -> 0 | BK2: =AVERAGE(BK12:BK8004) -> -0.001319110469 | BM2: =(1+BK2)^trading-1 -> 0 | BN2: Sortino fund | BO2: Omega index | BP2: =SUM(IF(BK12:INDEX(BK12:BK8004,BQ1)>BH8,BK12:INDEX(BK12:BK8004,BQ1)-BH8,""))/-SUM(IF(BK12:INDEX(BK12:BK8004,BQ1)<BH8,BK12:INDEX(BK12:BK8004,BQ1)-BH8,"")) ->  | BQ2: Sortino index | BX2: Fund_avg | BY2: =AVERAGE(BY12:BY8004) -> 0.0009322612338 | BZ2: =RSQ(BY12:BY8004,CB12:CB8004) -> 0.0001004681615 | CA2: =(1+BY2)^trading-1 -> 0 | CB2: =AVERAGE(CB12:CB8004) -> 0.0007645733929 | CD2: =(1+CB2)^trading-1 -> 0 | CE2: Sortino rfr | CF2: Omega index | CG2: =SUM(IF(CB12:INDEX(CB12:CB8004,CH1)>BY8,CB12:INDEX(CB12:CB8004,CH1)-BY8,""))/-SUM(IF(CB12:INDEX(CB12:CB8004,CH1)<BY8,CB12:INDEX(CB12:CB8004,CH1)-BY8,"")) ->  | CH2: Sortino index | CO2: Fund_avg | CP2: =AVERAGE(CP12:CP8004) -> 0.0006663950812 | CQ2: =RSQ(CP12:CP8004,CS12:CS8004) -> 0.02449022266 | CR2: =(1+CP2)^trading-1 -> 0 | CS2: =AVERAGE(CS12:CS8004) -> 0.0004829581158 | CU2: =(1+CS2)^trading-1 -> 0 | CV2: Sortino rfr | CW2: Omega index | CX2: =SUM(IF(CS12:INDEX(CS12:CS8004,CY1)>CP8,CS12:INDEX(CS12:CS8004,CY1)-CP8,""))/-SUM(IF(CS12:INDEX(CS12:CS8004,CY1)<CP8,CS12:INDEX(CS12:CS8004,CY1)-CP8,"")) ->  | CY2: Sortino index | DF2: Fund_avg | DG2: =AVERAGE(DG12:DG8004) -> 0.000670153358 | DH2: =RSQ(DG12:DG8004,DJ12:DJ8004) -> 0.08362827041 | DI2: =(1+DG2)^trading-1 -> 0 | DJ2: =AVERAGE(DJ12:DJ8004) -> 0.0004693264024 | DL2: =(1+DJ2)^trading-1 -> 0 | DM2: Sortino rfr | DN2: Omega index | DO2: =SUM(IF(DJ12:INDEX(DJ12:DJ8004,DP1)>DG8,DJ12:INDEX(DJ12:DJ8004,DP1)-DG8,""))/-SUM(IF(DJ12:INDEX(DJ12:DJ8004,DP1)<DG8,DJ12:INDEX(DJ12:DJ8004,DP1)-DG8,"")) ->  | DP2: Sortino index | DW2: Fund_avg | DX2: =AVERAGE(DX12:DX8004) -> 0.0007722158852 | DY2: =RSQ(DX12:DX8004,EA12:EA8004) -> 0.003711355089 | DZ2: =(1+DX2)^trading-1 -> 0 | EA2: =AVERAGE(EA12:EA8004) -> 0.0005134413573 | EC2: =(1+EA2)^trading-1 -> 0 | ED2: Sortino rfr | EE2: Omega index | EF2: =SUM(IF(EA12:INDEX(EA12:EA8004,EG1)>DX8,EA12:INDEX(EA12:EA8004,EG1)-DX8,""))/-SUM(IF(EA12:INDEX(EA12:EA8004,EG1)<DX8,EA12:INDEX(EA12:EA8004,EG1)-DX8,"")) ->  | EG2: Sortino index | EN2: Fund_avg | EO2: =AVERAGE(EO12:EO8004) ->  | EP2: =RSQ(EO12:EO8004,ER12:ER8004) ->  | EQ2: =(1+EO2)^trading-1 ->  | ER2: =AVERAGE(ER12:ER8004) -> 0.0004287637587 | ET2: =(1+ER2)^trading-1 -> 0 | EU2: Sortino rfr | EV2: Omega index | EW2: =SUM(IF(ER12:INDEX(ER12:ER8004,EX1)>EO8,ER12:INDEX(ER12:ER8004,EX1)-EO8,""))/-SUM(IF(ER12:INDEX(ER12:ER8004,EX1)<EO8,ER12:INDEX(ER12:ER8004,EX1)-EO8,"")) ->  | EX2: Sortino index | FE2: Fund_avg | FF2: =AVERAGE(FF12:FF8004) ->  | FG2: =RSQ(FF12:FF8004,FI12:FI8004) ->  | FH2: =(1+FF2)^trading-1 ->  | FI2: =AVERAGE(FI12:FI8004) -> 0.000467208421 | FK2: =(1+FI2)^trading-1 -> 0 | FL2: Sortino rfr | FM2: Omega index | FN2: =SUM(IF(FI12:INDEX(FI12:FI8004,FO1)>FF8,FI12:INDEX(FI12:FI8004,FO1)-FF8,""))/-SUM(IF(FI12:INDEX(FI12:FI8004,FO1)<FF8,FI12:INDEX(FI12:FI8004,FO1)-FF8,"")) ->  | FO2: Sortino index
AP3: Alpha | AQ3: =AQ2-((1+rfr1y)^(1/trading)-1)-AQ1*(AT2-((1+rfr1y)^(1/trading)-1)) ->  | AS3: =(1+AQ3)^trading-1 ->  | AW3: =SQRT(trading)*AVERAGE(AV12:AV8004)/(SUMSQ(AW12:AW8004)/AW1)^0.5 ->  | AX3: Upside mar fund | AY3: =SUM(IF(AQ12:INDEX(AQ12:AQ8004,AW1)>AQ8,AQ12:INDEX(AQ12:AQ8004,AW1)-AQ8))*1/AW1/SQRT(SUM(IF(AQ12:INDEX(AQ12:AQ8004,AW1)<AQ8,(AQ12:INDEX(AQ12:AQ8004,AW1)-AQ8)^2)*1/AW1)) ->  | AZ3: =SQRT(trading)*AVERAGE(AY12:AY8004)/(SUMSQ(AZ12:AZ8004)/AZ1)^0.5 ->  | BG3: Alpha | BH3: =BH2-((1+rfr2y)^(1/trading)-1)-BH1*(BK2-((1+rfr2y)^(1/trading)-1)) ->  | BJ3: =(1+BH3)^trading-1 ->  | BN3: =SQRT(trading)*AVERAGE(BM12:BM8004)/(SUMSQ(BN12:BN8004)/BN1)^0.5 ->  | BO3: Upside mar fund | BP3: =SUM(IF(BH12:INDEX(BH12:BH8004,BN1)>BH8,BH12:INDEX(BH12:BH8004,BN1)-BH8))*1/BN1/SQRT(SUM(IF(BH12:INDEX(BH12:BH8004,BN1)<BH8,(BH12:INDEX(BH12:BH8004,BN1)-BH8)^2)*1/BN1)) ->  | BQ3: =SQRT(trading)*AVERAGE(BP12:BP8004)/(SUMSQ(BQ12:BQ8004)/BQ1)^0.5 ->  | BX3: Alpha | BY3: =BY2-((1+rfr3y)^(1/trading)-1)-BY1*(CB2-((1+rfr3y)^(1/trading)-1)) ->  | CA3: =(1+BY3)^trading-1 ->  | CE3: =SQRT(trading)*AVERAGE(CD12:CD8004)/(SUMSQ(CE12:CE8004)/CE1)^0.5 ->  | CF3: Upside mar fund | CG3: =SUM(IF(BY12:INDEX(BY12:BY8004,CE1)>BY8,BY12:INDEX(BY12:BY8004,CE1)-BY8))*1/CE1/SQRT(SUM(IF(BY12:INDEX(BY12:BY8004,CE1)<BY8,(BY12:INDEX(BY12:BY8004,CE1)-BY8)^2)*1/CE1)) ->  | CH3: =SQRT(trading)*AVERAGE(CG12:CG8004)/(SUMSQ(CH12:CH8004)/CH1)^0.5 ->  | CO3: Alpha | CP3: =CP2-((1+rfr4y)^(1/trading)-1)-CP1*(CS2-((1+rfr4y)^(1/trading)-1)) ->  | CR3: =(1+CP3)^trading-1 ->  | CV3: =SQRT(trading)*AVERAGE(CU12:CU8004)/(SUMSQ(CV12:CV8004)/CV1)^0.5 ->  | CW3: Upside mar fund | CX3: =SUM(IF(CP12:INDEX(CP12:CP8004,CV1)>CP8,CP12:INDEX(CP12:CP8004,CV1)-CP8))*1/CV1/SQRT(SUM(IF(CP12:INDEX(CP12:CP8004,CV1)<CP8,(CP12:INDEX(CP12:CP8004,CV1)-CP8)^2)*1/CV1)) ->  | CY3: =SQRT(trading)*AVERAGE(CX12:CX8004)/(SUMSQ(CY12:CY8004)/CY1)^0.5 ->  | DF3: Alpha | DG3: =DG2-((1+rfr5y)^(1/trading)-1)-DG1*(DJ2-((1+rfr5y)^(1/trading)-1)) ->  | DI3: =(1+DG3)^trading-1 ->  | DM3: =SQRT(trading)*AVERAGE(DL12:DL8004)/(SUMSQ(DM12:DM8004)/DM1)^0.5 ->  | DN3: Upside mar fund | DO3: =SUM(IF(DG12:INDEX(DG12:DG8004,DM1)>DG8,DG12:INDEX(DG12:DG8004,DM1)-DG8))*1/DM1/SQRT(SUM(IF(DG12:INDEX(DG12:DG8004,DM1)<DG8,(DG12:INDEX(DG12:DG8004,DM1)-DG8)^2)*1/DM1)) ->  | DP3: =SQRT(trading)*AVERAGE(DO12:DO8004)/(SUMSQ(DP12:DP8004)/DP1)^0.5 ->  | DW3: Alpha | DX3: =DX2-((1+rfr6y)^(1/trading)-1)-DX1*(EA2-((1+rfr6y)^(1/trading)-1)) ->  | DZ3: =(1+DX3)^trading-1 ->  | ED3: =SQRT(trading)*AVERAGE(EC12:EC8004)/(SUMSQ(ED12:ED8004)/ED1)^0.5 ->  | EE3: Upside mar fund | EF3: =SUM(IF(DX12:INDEX(DX12:DX8004,ED1)>DX8,DX12:INDEX(DX12:DX8004,ED1)-DX8))*1/ED1/SQRT(SUM(IF(DX12:INDEX(DX12:DX8004,ED1)<DX8,(DX12:INDEX(DX12:DX8004,ED1)-DX8)^2)*1/ED1)) ->  | EG3: =SQRT(trading)*AVERAGE(EF12:EF8004)/(SUMSQ(EG12:EG8004)/EG1)^0.5 ->  | EN3: Alpha | EO3: =EO2-((1+rfr7y)^(1/trading)-1)-EO1*(ER2-((1+rfr7y)^(1/trading)-1)) ->  | EQ3: =(1+EO3)^trading-1 ->  | EU3: =SQRT(trading)*AVERAGE(ET12:ET8004)/(SUMSQ(EU12:EU8004)/EU1)^0.5 ->  | EV3: Upside mar fund | EW3: =SUM(IF(EO12:INDEX(EO12:EO8004,EU1)>EO8,EO12:INDEX(EO12:EO8004,EU1)-EO8))*1/EU1/SQRT(SUM(IF(EO12:INDEX(EO12:EO8004,EU1)<EO8,(EO12:INDEX(EO12:EO8004,EU1)-EO8)^2)*1/EU1)) ->  | EX3: =SQRT(trading)*AVERAGE(EW12:EW8004)/(SUMSQ(EX12:EX8004)/EX1)^0.5 ->  | FE3: Alpha | FF3: =FF2-((1+rfr8y)^(1/trading)-1)-FF1*(FI2-((1+rfr8y)^(1/trading)-1)) ->  | FH3: =(1+FF3)^trading-1 ->  | FL3: =SQRT(trading)*AVERAGE(FK12:FK8004)/(SUMSQ(FL12:FL8004)/FL1)^0.5 ->  | FM3: Upside mar fund | FN3: =SUM(IF(FF12:INDEX(FF12:FF8004,FL1)>FF8,FF12:INDEX(FF12:FF8004,FL1)-FF8))*1/FL1/SQRT(SUM(IF(FF12:INDEX(FF12:FF8004,FL1)<FF8,(FF12:INDEX(FF12:FF8004,FL1)-FF8)^2)*1/FL1)) ->  | FO3: =SQRT(trading)*AVERAGE(FN12:FN8004)/(SUMSQ(FO12:FO8004)/FO1)^0.5 -> 
A4: 1 | B4: =A4+1 -> 2 | C4: =B4+1 -> 3 | D4: 4 | E4: 5 | F4: 6 | G4: 7 | H4: 8 | I4: 9 | J4: 10 | K4: 11 | L4: 12 | M4: 13 | N4: 14 | O4: 15 | P4: 16 | Q4: 17 | R4: 18 | S4: 19 | T4: 20 | U4: 21 | V4: 22 | W4: 23 | X4: 24 | Y4: 25 | Z4: 26 | AA4: 27 | AB4: 28 | AC4: 29 | AD4: 30 | AE4: 31 | AF4: 32 | AG4: 33 | AH4: 34 | AI4: 35 | AJ4: 36 | AK4: 37 | AL4: 38 | AM4: 39 | AN4: 40 | AP4: Sharpe ratio | AQ4: =SQRT(trading)*AVERAGE(AV12:AV8004)/STDEV(AV12:AV8004) ->  | AW4: sharpe ratio index | AX4: Upside mar index | AY4: =SUM(IF(AT12:INDEX(AT12:AT8004,AZ1)>AQ8,AT12:INDEX(AT12:AT8004,AZ1)-AQ8))*1/AZ1/SQRT(SUM(IF(AT12:INDEX(AT12:AT8004,AZ1)<AQ8,(AT12:INDEX(AT12:AT8004,AZ1)-AQ8)^2)*1/AZ1)) ->  | BG4: Sharpe ratio | BH4: =SQRT(trading)*AVERAGE(BM12:BM8004)/STDEV(BM12:BM8004) ->  | BN4: sharpe ratio index | BO4: Upside mar index | BP4: =SUM(IF(BK12:INDEX(BK12:BK8004,BQ1)>BH8,BK12:INDEX(BK12:BK8004,BQ1)-BH8))*1/BQ1/SQRT(SUM(IF(BK12:INDEX(BK12:BK8004,BQ1)<BH8,(BK12:INDEX(BK12:BK8004,BQ1)-BH8)^2)*1/BQ1)) ->  | BX4: Sharpe ratio | BY4: =SQRT(trading)*AVERAGE(CD12:CD8004)/STDEV(CD12:CD8004) ->  | CE4: sharpe ratio index | CF4: Upside mar index | CG4: =SUM(IF(CB12:INDEX(CB12:CB8004,CH1)>BY8,CB12:INDEX(CB12:CB8004,CH1)-BY8))*1/CH1/SQRT(SUM(IF(CB12:INDEX(CB12:CB8004,CH1)<BY8,(CB12:INDEX(CB12:CB8004,CH1)-BY8)^2)*1/CH1)) ->  | CO4: Sharpe ratio | CP4: =SQRT(trading)*AVERAGE(CU12:CU8004)/STDEV(CU12:CU8004) ->  | CV4: sharpe ratio index | CW4: Upside mar index | CX4: =SUM(IF(CS12:INDEX(CS12:CS8004,CY1)>CP8,CS12:INDEX(CS12:CS8004,CY1)-CP8))*1/CY1/SQRT(SUM(IF(CS12:INDEX(CS12:CS8004,CY1)<CP8,(CS12:INDEX(CS12:CS8004,CY1)-CP8)^2)*1/CY1)) ->  | DF4: Sharpe ratio | DG4: =SQRT(trading)*AVERAGE(DL12:DL8004)/STDEV(DL12:DL8004) ->  | DM4: sharpe ratio index | DN4: Upside mar index | DO4: =SUM(IF(DJ12:INDEX(DJ12:DJ8004,DP1)>DG8,DJ12:INDEX(DJ12:DJ8004,DP1)-DG8))*1/DP1/SQRT(SUM(IF(DJ12:INDEX(DJ12:DJ8004,DP1)<DG8,(DJ12:INDEX(DJ12:DJ8004,DP1)-DG8)^2)*1/DP1)) ->  | DW4: Sharpe ratio | DX4: =SQRT(trading)*AVERAGE(EC12:EC8004)/STDEV(EC12:EC8004) ->  | ED4: sharpe ratio index | EE4: Upside mar index | EF4: =SUM(IF(EA12:INDEX(EA12:EA8004,EG1)>DX8,EA12:INDEX(EA12:EA8004,EG1)-DX8))*1/EG1/SQRT(SUM(IF(EA12:INDEX(EA12:EA8004,EG1)<DX8,(EA12:INDEX(EA12:EA8004,EG1)-DX8)^2)*1/EG1)) ->  | EN4: Sharpe ratio | EO4: =SQRT(trading)*AVERAGE(ET12:ET8004)/STDEV(ET12:ET8004) ->  | EU4: sharpe ratio index | EV4: Upside mar index | EW4: =SUM(IF(ER12:INDEX(ER12:ER8004,EX1)>EO8,ER12:INDEX(ER12:ER8004,EX1)-EO8))*1/EX1/SQRT(SUM(IF(ER12:INDEX(ER12:ER8004,EX1)<EO8,(ER12:INDEX(ER12:ER8004,EX1)-EO8)^2)*1/EX1)) ->  | FE4: Sharpe ratio | FF4: =SQRT(trading)*AVERAGE(FK12:FK8004)/STDEV(FK12:FK8004) ->  | FL4: sharpe ratio index | FM4: Upside mar index | FN4: =SUM(IF(FI12:INDEX(FI12:FI8004,FO1)>FF8,FI12:INDEX(FI12:FI8004,FO1)-FF8))*1/FO1/SQRT(SUM(IF(FI12:INDEX(FI12:FI8004,FO1)<FF8,(FI12:INDEX(FI12:FI8004,FO1)-FF8)^2)*1/FO1)) -> 
A5: 1 year | E5: 2 year | I5: 3 year | M5: 4 year | Q5: 5 year | U5: 6 year | Y5: 7 year | AC5: 8 year | AG5: 9 year | AK5: 10 year | AP5: Std dev | AQ5: =STDEV(AQ12:AQ8004) -> 0.00899508919 | AS5: =SQRT(trading)*AQ5 -> 0 | AT5: =STDEV(AT12:AT8004) -> 0.009065984343 | AV5: =SQRT(trading)*AT5 -> 0 | AW5: =SQRT(trading)*AVERAGE(AY12:AY8004)/STDEV(AY12:AY8004) ->  | AX5: upside rfr fund | AY5: =SUM(IF(AQ12:INDEX(AQ12:AQ8004,AW1)>AQ6,AQ12:INDEX(AQ12:AQ8004,AW1)-AQ6))*1/AW1/SQRT(SUM(IF(AQ12:INDEX(AQ12:AQ8004,AW1)<AQ6,(AQ12:INDEX(AQ12:AQ8004,AW1)-AQ6)^2)*1/AW1)) ->  | BG5: Std dev | BH5: =STDEV(BH12:BH8004) -> 0.009510043028 | BJ5: =SQRT(trading)*BH5 -> 0 | BK5: =STDEV(BK12:BK8004) -> 0.04649010723 | BM5: =SQRT(trading)*BK5 -> 0 | BN5: =SQRT(trading)*AVERAGE(BP12:BP8004)/STDEV(BP12:BP8004) ->  | BO5: upside rfr fund | BP5: =SUM(IF(BH12:INDEX(BH12:BH8004,BN1)>BH6,BH12:INDEX(BH12:BH8004,BN1)-BH6))*1/BN1/SQRT(SUM(IF(BH12:INDEX(BH12:BH8004,BN1)<BH6,(BH12:INDEX(BH12:BH8004,BN1)-BH6)^2)*1/BN1)) ->  | BX5: Std dev | BY5: =STDEV(BY12:BY8004) -> 0.008831708977 | CA5: =SQRT(trading)*BY5 -> 0 | CB5: =STDEV(CB12:CB8004) -> 0.009651285082 | CD5: =SQRT(trading)*CB5 -> 0 | CE5: =SQRT(trading)*AVERAGE(CG12:CG8004)/STDEV(CG12:CG8004) ->  | CF5: upside rfr fund | CG5: =SUM(IF(BY12:INDEX(BY12:BY8004,CE1)>BY6,BY12:INDEX(BY12:BY8004,CE1)-BY6))*1/CE1/SQRT(SUM(IF(BY12:INDEX(BY12:BY8004,CE1)<BY6,(BY12:INDEX(BY12:BY8004,CE1)-BY6)^2)*1/CE1)) ->  | CO5: Std dev | CP5: =STDEV(CP12:CP8004) -> 0.009494686455 | CR5: =SQRT(trading)*CP5 -> 0 | CS5: =STDEV(CS12:CS8004) -> 0.01053719766 | CU5: =SQRT(trading)*CS5 -> 0 | CV5: =SQRT(trading)*AVERAGE(CX12:CX8004)/STDEV(CX12:CX8004) ->  | CW5: upside rfr fund | CX5: =SUM(IF(CP12:INDEX(CP12:CP8004,CV1)>CP6,CP12:INDEX(CP12:CP8004,CV1)-CP6))*1/CV1/SQRT(SUM(IF(CP12:INDEX(CP12:CP8004,CV1)<CP6,(CP12:INDEX(CP12:CP8004,CV1)-CP6)^2)*1/CV1)) ->  | DF5: Std dev | DG5: =STDEV(DG12:DG8004) -> 0.009589484234 | DI5: =SQRT(trading)*DG5 -> 0 | DJ5: =STDEV(DJ12:DJ8004) -> 0.01060824499 | DL5: =SQRT(trading)*DJ5 -> 0 | DM5: =SQRT(trading)*AVERAGE(DO12:DO8004)/STDEV(DO12:DO8004) ->  | DN5: upside rfr fund | DO5: =SUM(IF(DG12:INDEX(DG12:DG8004,DM1)>DG6,DG12:INDEX(DG12:DG8004,DM1)-DG6))*1/DM1/SQRT(SUM(IF(DG12:INDEX(DG12:DG8004,DM1)<DG6,(DG12:INDEX(DG12:DG8004,DM1)-DG6)^2)*1/DM1)) ->  | DW5: Std dev | DX5: =STDEV(DX12:DX8004) -> 0.01020802024 | DZ5: =SQRT(trading)*DX5 -> 0 | EA5: =STDEV(EA12:EA8004) -> 0.01127428392 | EC5: =SQRT(trading)*EA5 -> 0 | ED5: =SQRT(trading)*AVERAGE(EF12:EF8004)/STDEV(EF12:EF8004) ->  | EE5: upside rfr fund | EF5: =SUM(IF(DX12:INDEX(DX12:DX8004,ED1)>DX6,DX12:INDEX(DX12:DX8004,ED1)-DX6))*1/ED1/SQRT(SUM(IF(DX12:INDEX(DX12:DX8004,ED1)<DX6,(DX12:INDEX(DX12:DX8004,ED1)-DX6)^2)*1/ED1)) ->  | EN5: Std dev | EO5: =STDEV(EO12:EO8004) ->  | EQ5: =SQRT(trading)*EO5 ->  | ER5: =STDEV(ER12:ER8004) -> 0.01526402078 | ET5: =SQRT(trading)*ER5 -> 0 | EU5: =SQRT(trading)*AVERAGE(EW12:EW8004)/STDEV(EW12:EW8004) ->  | EV5: upside rfr fund | EW5: =SUM(IF(EO12:INDEX(EO12:EO8004,EU1)>EO6,EO12:INDEX(EO12:EO8004,EU1)-EO6))*1/EU1/SQRT(SUM(IF(EO12:INDEX(EO12:EO8004,EU1)<EO6,(EO12:INDEX(EO12:EO8004,EU1)-EO6)^2)*1/EU1)) ->  | FE5: Std dev | FF5: =STDEV(FF12:FF8004) ->  | FH5: =SQRT(trading)*FF5 ->  | FI5: =STDEV(FI12:FI8004) -> 0.0159540656 | FK5: =SQRT(trading)*FI5 -> 0 | FL5: =SQRT(trading)*AVERAGE(FN12:FN8004)/STDEV(FN12:FN8004) ->  | FM5: upside rfr fund | FN5: =SUM(IF(FF12:INDEX(FF12:FF8004,FL1)>FF6,FF12:INDEX(FF12:FF8004,FL1)-FF6))*1/FL1/SQRT(SUM(IF(FF12:INDEX(FF12:FF8004,FL1)<FF6,(FF12:INDEX(FF12:FF8004,FL1)-FF6)^2)*1/FL1)) -> 
A6: Fund | C6: Index | E6: Fund | G6: Index | I6: Fund | K6: Index | M6: Fund | O6: Index | Q6: Fund | S6: Index | U6: Fund | W6: Index | Y6: Fund | AA6: Index | AC6: Fund | AE6: Index | AG6: Fund | AI6: Index | AK6: Fund | AM6: Index | AP6: Riskfreerate | AQ6: =((1+rfr1y)^(1/trading)-1) ->  | AS6: info ratio | AT6: =SQRT(trading)*AVERAGE(BB12:BB8004)/STDEV(BB12:BB8004) -> 0 | AU6: sortino rfr fund | AV6: =SQRT(trading)*(AR10-AQ6)/(SUMSQ(AW12:AW8004)/AW1)^0.5 ->  | AW6: info ratio index | AX6: upside rfr index | AY6: =SUM(IF(AT12:INDEX(AT12:AT8004,AZ1)>AQ6,AT12:INDEX(AT12:AT8004,AZ1)-AQ6))*1/AZ1/SQRT(SUM(IF(AT12:INDEX(AT12:AT8004,AZ1)<AQ6,(AT12:INDEX(AT12:AT8004,AZ1)-AQ6)^2)*1/AZ1)) ->  | AZ6: downside rfr fund | BA6: =SQRT(trading)*(SUMSQ(AW12:AW8004)/AW1)^0.5 ->  | BG6: Riskfreerate | BH6: =((1+rfr2y)^(1/trading)-1) ->  | BJ6: info ratio | BK6: =SQRT(trading)*AVERAGE(BS12:BS8004)/STDEV(BS12:BS8004) -> 0 | BL6: sortino rfr fund | BM6: =SQRT(trading)*(BI10-BH6)/(SUMSQ(BN12:BN8004)/BN1)^0.5 ->  | BN6: info ratio index | BO6: upside rfr index | BP6: =SUM(IF(BK12:INDEX(BK12:BK8004,BQ1)>BH6,BK12:INDEX(BK12:BK8004,BQ1)-BH6))*1/BQ1/SQRT(SUM(IF(BK12:INDEX(BK12:BK8004,BQ1)<BH6,(BK12:INDEX(BK12:BK8004,BQ1)-BH6)^2)*1/BQ1)) ->  | BQ6: downside rfr fund | BR6: =SQRT(trading)*(SUMSQ(BN12:BN8004)/BN1)^0.5 ->  | BX6: Riskfreerate | BY6: =((1+rfr3y)^(1/trading)-1) ->  | CA6: info ratio | CB6: =SQRT(trading)*AVERAGE(CJ12:CJ8004)/STDEV(CJ12:CJ8004) -> 0 | CC6: sortino rfr fund | CD6: =SQRT(trading)*(BZ10-BY6)/(SUMSQ(CE12:CE8004)/CE1)^0.5 ->  | CE6: info ratio index | CF6: upside rfr index | CG6: =SUM(IF(CB12:INDEX(CB12:CB8004,CH1)>BY6,CB12:INDEX(CB12:CB8004,CH1)-BY6))*1/CH1/SQRT(SUM(IF(CB12:INDEX(CB12:CB8004,CH1)<BY6,(CB12:INDEX(CB12:CB8004,CH1)-BY6)^2)*1/CH1)) ->  | CH6: downside rfr fund | CI6: =SQRT(trading)*(SUMSQ(CE12:CE8004)/CE1)^0.5 ->  | CO6: Riskfreerate | CP6: =((1+rfr4y)^(1/trading)-1) ->  | CR6: info ratio | CS6: =SQRT(trading)*AVERAGE(DA12:DA8004)/STDEV(DA12:DA8004) -> 0 | CT6: sortino rfr fund | CU6: =SQRT(trading)*(CQ10-CP6)/(SUMSQ(CV12:CV8004)/CV1)^0.5 ->  | CV6: info ratio index | CW6: upside rfr index | CX6: =SUM(IF(CS12:INDEX(CS12:CS8004,CY1)>CP6,CS12:INDEX(CS12:CS8004,CY1)-CP6))*1/CY1/SQRT(SUM(IF(CS12:INDEX(CS12:CS8004,CY1)<CP6,(CS12:INDEX(CS12:CS8004,CY1)-CP6)^2)*1/CY1)) ->  | CY6: downside rfr fund | CZ6: =SQRT(trading)*(SUMSQ(CV12:CV8004)/CV1)^0.5 ->  | DF6: Riskfreerate | DG6: =((1+rfr5y)^(1/trading)-1) ->  | DI6: info ratio | DJ6: =SQRT(trading)*AVERAGE(DR12:DR8004)/STDEV(DR12:DR8004) -> 0 | DK6: sortino rfr fund | DL6: =SQRT(trading)*(DH10-DG6)/(SUMSQ(DM12:DM8004)/DM1)^0.5 ->  | DM6: info ratio index | DN6: upside rfr index | DO6: =SUM(IF(DJ12:INDEX(DJ12:DJ8004,DP1)>DG6,DJ12:INDEX(DJ12:DJ8004,DP1)-DG6))*1/DP1/SQRT(SUM(IF(DJ12:INDEX(DJ12:DJ8004,DP1)<DG6,(DJ12:INDEX(DJ12:DJ8004,DP1)-DG6)^2)*1/DP1)) ->  | DP6: downside rfr fund | DQ6: =SQRT(trading)*(SUMSQ(DM12:DM8004)/DM1)^0.5 ->  | DW6: Riskfreerate | DX6: =((1+rfr6y)^(1/trading)-1) ->  | DZ6: info ratio | EA6: =SQRT(trading)*AVERAGE(EI12:EI8004)/STDEV(EI12:EI8004) -> 0 | EB6: sortino rfr fund | EC6: =SQRT(trading)*(DY10-DX6)/(SUMSQ(ED12:ED8004)/ED1)^0.5 ->  | ED6: info ratio index | EE6: upside rfr index | EF6: =SUM(IF(EA12:INDEX(EA12:EA8004,EG1)>DX6,EA12:INDEX(EA12:EA8004,EG1)-DX6))*1/EG1/SQRT(SUM(IF(EA12:INDEX(EA12:EA8004,EG1)<DX6,(EA12:INDEX(EA12:EA8004,EG1)-DX6)^2)*1/EG1)) ->  | EG6: downside rfr fund | EH6: =SQRT(trading)*(SUMSQ(ED12:ED8004)/ED1)^0.5 ->  | EN6: Riskfreerate | EO6: =((1+rfr7y)^(1/trading)-1) ->  | EQ6: info ratio | ER6: =SQRT(trading)*AVERAGE(EZ12:EZ8004)/STDEV(EZ12:EZ8004) ->  | ES6: sortino rfr fund | ET6: =SQRT(trading)*(EP10-EO6)/(SUMSQ(EU12:EU8004)/EU1)^0.5 ->  | EU6: info ratio index | EV6: upside rfr index | EW6: =SUM(IF(ER12:INDEX(ER12:ER8004,EX1)>EO6,ER12:INDEX(ER12:ER8004,EX1)-EO6))*1/EX1/SQRT(SUM(IF(ER12:INDEX(ER12:ER8004,EX1)<EO6,(ER12:INDEX(ER12:ER8004,EX1)-EO6)^2)*1/EX1)) ->  | EX6: downside rfr fund | EY6: =SQRT(trading)*(SUMSQ(EU12:EU8004)/EU1)^0.5 ->  | FE6: Riskfreerate | FF6: =((1+rfr8y)^(1/trading)-1) ->  | FH6: info ratio | FI6: =SQRT(trading)*AVERAGE(FQ12:FQ8004)/STDEV(FQ12:FQ8004) ->  | FJ6: sortino rfr fund | FK6: =SQRT(trading)*(FG10-FF6)/(SUMSQ(FL12:FL8004)/FL1)^0.5 ->  | FL6: info ratio index | FM6: upside rfr index | FN6: =SUM(IF(FI12:INDEX(FI12:FI8004,FO1)>FF6,FI12:INDEX(FI12:FI8004,FO1)-FF6))*1/FO1/SQRT(SUM(IF(FI12:INDEX(FI12:FI8004,FO1)<FF6,(FI12:INDEX(FI12:FI8004,FO1)-FF6)^2)*1/FO1)) ->  | FO6: downside rfr fund | FP6: =SQRT(trading)*(SUMSQ(FL12:FL8004)/FL1)^0.5 -> 
A7: 41782 | B7: 24.17 | C7: 41785 | D7: 7359.0498 | E7: 41418 | F7: 18.53 | G7: 41418 | H7: 5983.55 | I7: 41054 | J7: 15.17 | K7: 41054 | L7: 4920.4 | M7: 40689 | N7: 15.89 | O7: 40690 | P7: 5476.1 | Q7: 40324 | R7: 13.54 | S7: 40325 | T7: 5003.1 | U7: 39959 | V7: 10.08 | W7: 39960 | X7: 4276.05 | AA7: 39595 | AB7: 4859.8 | AE7: 39230 | AF7: 4256.55 | AI7: 38863 | AJ7: 3209.6 | AP7: Treynor ratio | AQ7: =SQRT(trading)*(AQ2-AQ6)/AQ1 ->  | AU7: sortino rfr index | AV7: =SQRT(trading)*(AU10-AQ6)/(SUMSQ(AZ12:AZ8004)/AZ1)^0.5 ->  | AZ7: downside rfr index | BA7: =SQRT(trading)*(SUMSQ(AZ12:AZ8004)/AZ1)^0.5 ->  | BC7: Fund | BE7: Index | BG7: Treynor ratio | BH7: =SQRT(trading)*(BH2-BH6)/BH1 ->  | BL7: sortino rfr index | BM7: =SQRT(trading)*(BL10-BH6)/(SUMSQ(BQ12:BQ8004)/BQ1)^0.5 ->  | BQ7: downside rfr index | BR7: =SQRT(trading)*(SUMSQ(BQ12:BQ8004)/BQ1)^0.5 ->  | BT7: Fund | BV7: Index | BX7: Treynor ratio | BY7: =SQRT(trading)*(BY2-BY6)/BY1 ->  | CC7: sortino rfr index | CD7: =SQRT(trading)*(CC10-BY6)/(SUMSQ(CH12:CH8004)/CH1)^0.5 ->  | CH7: downside rfr index | CI7: =SQRT(trading)*(SUMSQ(CH12:CH8004)/CH1)^0.5 ->  | CK7: Fund | CM7: Index | CO7: Treynor ratio | CP7: =SQRT(trading)*(CP2-CP6)/CP1 ->  | CT7: sortino rfr index | CU7: =SQRT(trading)*(CT10-CP6)/(SUMSQ(CY12:CY8004)/CY1)^0.5 ->  | CY7: downside rfr index | CZ7: =SQRT(trading)*(SUMSQ(CY12:CY8004)/CY1)^0.5 ->  | DB7: Fund | DD7: Index | DF7: Treynor ratio | DG7: =SQRT(trading)*(DG2-DG6)/DG1 ->  | DK7: sortino rfr index | DL7: =SQRT(trading)*(DK10-DG6)/(SUMSQ(DP12:DP8004)/DP1)^0.5 ->  | DP7: downside rfr index | DQ7: =SQRT(trading)*(SUMSQ(DP12:DP8004)/DP1)^0.5 ->  | DS7: Fund | DU7: Index | DW7: Treynor ratio | DX7: =SQRT(trading)*(DX2-DX6)/DX1 ->  | EB7: sortino rfr index | EC7: =SQRT(trading)*(EB10-DX6)/(SUMSQ(EG12:EG8004)/EG1)^0.5 ->  | EG7: downside rfr index | EH7: =SQRT(trading)*(SUMSQ(EG12:EG8004)/EG1)^0.5 ->  | EJ7: Fund | EL7: Index | EN7: Treynor ratio | EO7: =SQRT(trading)*(EO2-EO6)/EO1 ->  | ES7: sortino rfr index | ET7: =SQRT(trading)*(ES10-EO6)/(SUMSQ(EX12:EX8004)/EX1)^0.5 ->  | EX7: downside rfr index | EY7: =SQRT(trading)*(SUMSQ(EX12:EX8004)/EX1)^0.5 ->  | FA7: Fund | FC7: Index | FE7: Treynor ratio | FF7: =SQRT(trading)*(FF2-FF6)/FF1 ->  | FJ7: sortino rfr index | FK7: =SQRT(trading)*(FJ10-FF6)/(SUMSQ(FO12:FO8004)/FO1)^0.5 ->  | FO7: downside rfr index | FP7: =SQRT(trading)*(SUMSQ(FO12:FO8004)/FO1)^0.5 ->  | FR7: Fund | FT7: Index | FV7: 9 year | FZ7: 10 year
A8: 41785 | B8: 24.13 | C8: 41786 | D8: 7318 | E8: 41421 | F8: 18.74 | G8: 41421 | H8: 6083.15 | I8: 41057 | J8: 15.37 | K8: 41057 | L8: 4985.65 | M8: 40690 | N8: 16.1 | O8: 40693 | P8: 5473.1 | Q8: 40325 | R8: 13.79 | S8: 40326 | T8: 5066.55 | U8: 39960 | V8: 10.38 | W8: 39961 | X8: 4337.1 | AA8: 39596 | AB8: 4918.35 | AE8: 39231 | AF8: 4293.25 | AI8: 38866 | AJ8: 3214.9 | AP8: mar | AQ8: =((1+mar1y)^(1/trading)-1) ->  | AU8: sortino mar fund | AV8: =SQRT(trading)*(AR10-AQ8)/(SUMSQ(AX12:AX8004)/AW1)^0.5 ->  | AW8: Treynor ratio index | AZ8: downside mar fund | BA8: =SQRT(trading)*(SUMSQ(AX12:AX8004)/AW1)^0.5 ->  | BC8: Upside | BD8: Downside | BE8: Upside | BF8: Downside | BG8: mar | BH8: =((1+mar2y)^(1/trading)-1) ->  | BL8: sortino mar fund | BM8: =SQRT(trading)*(BI10-BH8)/(SUMSQ(BO12:BO8004)/BN1)^0.5 ->  | BN8: Treynor ratio index | BQ8: downside mar fund | BR8: =SQRT(trading)*(SUMSQ(BO12:BO8004)/BN1)^0.5 ->  | BT8: Upside | BU8: Downside | BV8: Upside | BW8: Downside | BX8: mar | BY8: =((1+mar3y)^(1/trading)-1) ->  | CC8: sortino mar fund | CD8: =SQRT(trading)*(BZ10-BY8)/(SUMSQ(CF12:CF8004)/CE1)^0.5 ->  | CE8: Treynor ratio index | CH8: downside mar fund | CI8: =SQRT(trading)*(SUMSQ(CF12:CF8004)/CE1)^0.5 ->  | CK8: Upside | CL8: Downside | CM8: Upside | CN8: Downside | CO8: mar | CP8: =((1+mar4y)^(1/trading)-1) ->  | CT8: sortino mar fund | CU8: =SQRT(trading)*(CQ10-CP8)/(SUMSQ(CW12:CW8004)/CV1)^0.5 ->  | CV8: Treynor ratio index | CY8: downside mar fund | CZ8: =SQRT(trading)*(SUMSQ(CW12:CW8004)/CV1)^0.5 ->  | DB8: Upside | DC8: Downside | DD8: Upside | DE8: Downside | DF8: mar | DG8: =((1+mar5y)^(1/trading)-1) ->  | DK8: sortino mar fund | DL8: =SQRT(trading)*(DH10-DG8)/(SUMSQ(DN12:DN8004)/DM1)^0.5 ->  | DM8: Treynor ratio index | DP8: downside mar fund | DQ8: =SQRT(trading)*(SUMSQ(DN12:DN8004)/DM1)^0.5 ->  | DS8: Upside | DT8: Downside | DU8: Upside | DV8: Downside | DW8: mar | DX8: =((1+mar6y)^(1/trading)-1) ->  | EB8: sortino mar fund | EC8: =SQRT(trading)*(DY10-DX8)/(SUMSQ(EE12:EE8004)/ED1)^0.5 ->  | ED8: Treynor ratio index | EG8: downside mar fund | EH8: =SQRT(trading)*(SUMSQ(EE12:EE8004)/ED1)^0.5 ->  | EJ8: Upside | EK8: Downside | EL8: Upside | EM8: Downside | EN8: mar | EO8: =((1+mar7y)^(1/trading)-1) ->  | ES8: sortino mar fund | ET8: =SQRT(trading)*(EP10-EO8)/(SUMSQ(EV12:EV8004)/EU1)^0.5 ->  | EU8: Treynor ratio index | EX8: downside mar fund | EY8: =SQRT(trading)*(SUMSQ(EV12:EV8004)/EU1)^0.5 ->  | FA8: Upside | FB8: Downside | FC8: Upside | FD8: Downside | FE8: mar | FF8: =((1+mar8y)^(1/trading)-1) ->  | FJ8: sortino mar fund | FK8: =SQRT(trading)*(FG10-FF8)/(SUMSQ(FM12:FM8004)/FL1)^0.5 ->  | FL8: Treynor ratio index | FO8: downside mar fund | FP8: =SQRT(trading)*(SUMSQ(FM12:FM8004)/FL1)^0.5 ->  | FR8: Upside | FS8: Downside | FT8: Upside | FU8: Downside | FV8: Fund | FX8: Index | FZ8: Fund | GB8: Index
A9: 41786 | B9: 24.07 | C9: 41787 | D9: 7329.6499 | E9: 41422 | F9: 18.82 | G9: 41422 | H9: 6111.25 | I9: 41058 | J9: 15.38 | K9: 41058 | L9: 4990.1 | M9: 40693 | N9: 16.08 | O9: 40694 | P9: 5560.15 | Q9: 40326 | R9: 13.95 | S9: 40329 | T9: 5086.3 | U9: 39961 | V9: 10.47 | W9: 39962 | X9: 4448.95 | AA9: 39597 | AB9: 4835.3 | AE9: 39232 | AF9: 4249.65 | AI9: 38867 | AJ9: 3185.3 | AP9: 1 year | AU9: sortino mar index | AV9: =SQRT(trading)*(AU10-AQ8)/(SUMSQ(BA12:BA8004)/AZ1)^0.5 ->  | AW9: =SQRT(trading)*(AT2-AQ6)/1 ->  | AZ9: downside mar index | BA9: =SQRT(trading)*(SUMSQ(BA12:BA8004)/AZ1)^0.5 ->  | BG9: 2 year | BL9: sortino mar index | BM9: =SQRT(trading)*(BL10-BH8)/(SUMSQ(BR12:BR8004)/BQ1)^0.5 ->  | BN9: =SQRT(trading)*(BK2-BH6)/1 ->  | BQ9: downside mar index | BR9: =SQRT(trading)*(SUMSQ(BR12:BR8004)/BQ1)^0.5 ->  | BX9: 3 year | CC9: sortino mar index | CD9: =SQRT(trading)*(CC10-BY8)/(SUMSQ(CI12:CI8004)/CH1)^0.5 ->  | CE9: =SQRT(trading)*(CB2-BY6)/1 ->  | CH9: downside mar index | CI9: =SQRT(trading)*(SUMSQ(CI12:CI8004)/CH1)^0.5 ->  | CO9: 4 year | CT9: sortino mar index | CU9: =SQRT(trading)*(CT10-CP8)/(SUMSQ(CZ12:CZ8004)/CY1)^0.5 ->  | CV9: =SQRT(trading)*(CS2-CP6)/1 ->  | CY9: downside mar index | CZ9: =SQRT(trading)*(SUMSQ(CZ12:CZ8004)/CY1)^0.5 ->  | DF9: 5 year | DK9: sortino mar index | DL9: =SQRT(trading)*(DK10-DG8)/(SUMSQ(DQ12:DQ8004)/DP1)^0.5 ->  | DM9: =SQRT(trading)*(DJ2-DG6)/1 ->  | DP9: downside mar index | DQ9: =SQRT(trading)*(SUMSQ(DQ12:DQ8004)/DP1)^0.5 ->  | DW9: 6 year | EB9: sortino mar index | EC9: =SQRT(trading)*(EB10-DX8)/(SUMSQ(EH12:EH8004)/EG1)^0.5 ->  | ED9: =SQRT(trading)*(EA2-DX6)/1 ->  | EG9: downside mar index | EH9: =SQRT(trading)*(SUMSQ(EH12:EH8004)/EG1)^0.5 ->  | EN9: 7 year | ES9: sortino mar index | ET9: =SQRT(trading)*(ES10-EO8)/(SUMSQ(EY12:EY8004)/EX1)^0.5 ->  | EU9: =SQRT(trading)*(ER2-EO6)/1 ->  | EX9: downside mar index | EY9: =SQRT(trading)*(SUMSQ(EY12:EY8004)/EX1)^0.5 ->  | FE9: 8 year | FJ9: sortino mar index | FK9: =SQRT(trading)*(FJ10-FF8)/(SUMSQ(FP12:FP8004)/FO1)^0.5 ->  | FL9: =SQRT(trading)*(FI2-FF6)/1 ->  | FO9: downside mar index | FP9: =SQRT(trading)*(SUMSQ(FP12:FP8004)/FO1)^0.5 -> 
A10: 41787 | B10: 24.16 | C10: 41788 | D10: 7235.6499 | E10: 41423 | F10: 18.79 | G10: 41423 | H10: 6104.3 | I10: 41059 | J10: 15.29 | K10: 41059 | L10: 4950.75 | M10: 40694 | N10: 16.33 | O10: 40695 | P10: 5592 | Q10: 40329 | R10: 14.05 | S10: 40330 | T10: 4970.2 | U10: 39962 | V10: 10.72 | W10: 39965 | X10: 4529.9 | AA10: 39598 | AB10: 4870.1 | AE10: 39233 | AF10: 4295.8 | AI10: 38868 | AJ10: 3071.05 | AP10: Fund | AR10: =PRODUCT(AR12:AR8004)^(1/AW1)-1 ->  | AS10: Index | AU10: =PRODUCT(AU12:AU8004)^(1/AZ1)-1 ->  | AV10: Excess fund | AW10: Downside fund | AX10: dside mar fund | AY10: Excess index | AZ10: Downside index | BA10: dside mar index | BC10: =PRODUCT(BC12:BC8004)^(trading/AW1)-1 ->  | BD10: =PRODUCT(BD12:BD8004)^(trading/AW1)-1 ->  | BE10: =PRODUCT(BE12:BE8004)^(trading/AW1)-1 ->  | BF10: =PRODUCT(BF12:BF8004)^(trading/AW1)-1 ->  | BG10: Fund | BI10: =PRODUCT(BI12:BI8004)^(1/BN1)-1 ->  | BJ10: Index | BL10: =PRODUCT(BL12:BL8004)^(1/BQ1)-1 ->  | BM10: Excess | BN10: Downside | BO10: dside mar fund | BP10: Excess index | BQ10: Downside index | BR10: dside mar index | BT10: =PRODUCT(BT12:BT8004)^(trading/BN1)-1 ->  | BU10: =PRODUCT(BU12:BU8004)^(trading/BN1)-1 ->  | BV10: =PRODUCT(BV12:BV8004)^(trading/BN1)-1 ->  | BW10: =PRODUCT(BW12:BW8004)^(trading/BN1)-1 ->  | BX10: Fund | BZ10: =PRODUCT(BZ12:BZ8004)^(1/CE1)-1 ->  | CA10: Index | CC10: =PRODUCT(CC12:CC8004)^(1/CH1)-1 ->  | CD10: Excess | CE10: Downside | CF10: dside mar fund | CG10: Excess index | CH10: Downside index | CI10: dside mar index | CK10: =PRODUCT(CK12:CK8004)^(trading/CE1)-1 ->  | CL10: =PRODUCT(CL12:CL8004)^(trading/CE1)-1 ->  | CM10: =PRODUCT(CM12:CM8004)^(trading/CE1)-1 ->  | CN10: =PRODUCT(CN12:CN8004)^(trading/CE1)-1 ->  | CO10: Fund | CQ10: =PRODUCT(CQ12:CQ8004)^(1/CV1)-1 ->  | CR10: Index | CT10: =PRODUCT(CT12:CT8004)^(1/CY1)-1 ->  | CU10: Excess | CV10: Downside | CW10: dside mar fund | CX10: Excess index | CY10: Downside index | CZ10: dside mar index | DB10: =PRODUCT(DB12:DB8004)^(trading/CV1)-1 ->  | DC10: =PRODUCT(DC12:DC8004)^(trading/CV1)-1 ->  | DD10: =PRODUCT(DD12:DD8004)^(trading/CV1)-1 ->  | DE10: =PRODUCT(DE12:DE8004)^(trading/CV1)-1 ->  | DF10: Fund | DH10: =PRODUCT(DH12:DH8004)^(1/DM1)-1 ->  | DI10: Index | DK10: =PRODUCT(DK12:DK8004)^(1/DP1)-1 ->  | DL10: Excess | DM10: Downside | DN10: dside mar fund | DO10: Excess index | DP10: Downside index | DQ10: dside mar index | DS10: =PRODUCT(DS12:DS8004)^(trading/DM1)-1 ->  | DT10: =PRODUCT(DT12:DT8004)^(trading/DM1)-1 ->  | DU10: =PRODUCT(DU12:DU8004)^(trading/DM1)-1 ->  | DV10: =PRODUCT(DV12:DV8004)^(trading/DM1)-1 ->  | DW10: Fund | DY10: =PRODUCT(DY12:DY8004)^(1/ED1)-1 ->  | DZ10: Index | EB10: =PRODUCT(EB12:EB8004)^(1/EG1)-1 ->  | EC10: Excess | ED10: Downside | EE10: dside mar fund | EF10: Excess index | EG10: Downside index | EH10: dside mar index | EJ10: =PRODUCT(EJ12:EJ8004)^(trading/ED1)-1 ->  | EK10: =PRODUCT(EK12:EK8004)^(trading/ED1)-1 ->  | EL10: =PRODUCT(EL12:EL8004)^(trading/ED1)-1 ->  | EM10: =PRODUCT(EM12:EM8004)^(trading/ED1)-1 ->  | EN10: Fund | EP10: =PRODUCT(EP12:EP8004)^(1/EU1)-1 ->  | EQ10: Index | ES10: =PRODUCT(ES12:ES8004)^(1/EX1)-1 ->  | ET10: Excess | EU10: Downside | EV10: dside mar fund | EW10: Excess index | EX10: Downside index | EY10: dside mar index | FA10: =PRODUCT(FA12:FA8004)^(trading/EU1)-1 ->  | FB10: =PRODUCT(FB12:FB8004)^(trading/EU1)-1 ->  | FC10: =PRODUCT(FC12:FC8004)^(trading/EU1)-1 ->  | FD10: =PRODUCT(FD12:FD8004)^(trading/EU1)-1 ->  | FE10: Fund | FG10: =PRODUCT(FG12:FG8004)^(1/FL1)-1 ->  | FH10: Index | FJ10: =PRODUCT(FJ12:FJ8004)^(1/FO1)-1 ->  | FK10: Excess | FL10: Downside | FM10: dside mar fund | FN10: Excess index | FO10: Downside index | FP10: dside mar fund | FR10: =PRODUCT(FR12:FR8004)^(trading/FL1)-1 ->  | FS10: =PRODUCT(FS12:FS8004)^(trading/FL1)-1 ->  | FT10: =PRODUCT(FT12:FT8004)^(trading/FL1)-1 ->  | FU10: =PRODUCT(FU12:FU8004)^(trading/FL1)-1 -> 
A11: 41788 | B11: 23.85 | C11: 41789 | D11: 7229.9502 | E11: 41424 | F11: 18.86 | G11: 41424 | H11: 6124.05 | I11: 41060 | J11: 15.25 | K11: 41060 | L11: 4924.25 | M11: 40695 | N11: 16.37 | O11: 40696 | P11: 5550.35 | Q11: 40330 | R11: 13.78 | S11: 40331 | T11: 5019.85 | U11: 39965 | V11: 10.82 | W11: 39966 | X11: 4525.25 | AA11: 39601 | AB11: 4739.6 | AE11: 39234 | AF11: 4297.05 | AI11: 38869 | AJ11: 2962.25 | AP11: =A7 -> 41782 | AS11: =C7 -> 41785 | BG11: =E7 -> 41418 | BJ11: =G7 -> 41418 | BX11: =I7 -> 41054 | CA11: =K7 -> 41054 | CO11: =M7 -> 40689 | CR11: =O7 -> 40690 | DF11: =Q7 -> 40324 | DI11: =S7 -> 40325 | DW11: =U7 -> 39959 | DZ11: =W7 -> 39960 | EN11: =Y7 -> 0 | EQ11: =AA7 -> 39595 | FE11: =AC7 -> 0 | FH11: =AE7 -> 39230
A12: 41789 | B12: 23.8 | C12: 41792 | D12: 7362.5 | E12: 41425 | F12: 18.56 | G12: 41425 | H12: 5985.95 | I12: 41061 | J12: 15.05 | K12: 41061 | L12: 4841.6 | M12: 40696 | N12: 16.29 | O12: 40697 | P12: 5516.75 | Q12: 40331 | R12: 13.9 | S12: 40332 | T12: 5110.5 | U12: 39966 | V12: 10.82 | W12: 39967 | X12: 4530.7 | AA12: 39602 | AB12: 4715.9 | AE12: 39237 | AF12: 4267.05 | AI12: 38870 | AJ12: 3091.35 | AP12: =A8 -> 41785 | AQ12: =IF(AP12=0,"",(B8-B7)/B7) -> -0.001654944146 | AR12: =1+IF(AQ12="",0,AQ12) -> 0.9983450559 | AS12: =C8 -> 41786 | AT12: =IF(AS12=0,"",(D8-D7)/D7) -> -0.005578138634 | AU12: =1+IF(AT12="",0,AT12) -> 0.9944218614 | AV12: =IF(AP12=0,"",IF(ISERROR(AQ12-((1+rfr1y)^(1/trading)-1)),"",AQ12-((1+rfr1y)^(1/trading)-1))) ->  | AW12: =IF(AV12<=0,AV12,0) -> 0 | AX12: =IF(IF(ISERROR(AQ12-$AQ$8),0,AQ12-$AQ$8)<=0,IF(ISERROR(AQ12-$AQ$8),"",AQ12-$AQ$8),0) ->  | AY12: =IF(AS12=0,"",IF(ISERROR(AT12-((1+rfr1y)^(1/trading)-1)),"",AT12-((1+rfr1y)^(1/trading)-1))) ->  | AZ12: =IF(AY12<=0,AY12,0) -> 0 | BA12: =IF(IF(ISERROR(AT12-$AQ$8),0,AT12-$AQ$8)<=0,IF(ISERROR(AT12-$AQ$8),"",AT12-$AQ$8),0) ->  | BB12: =IF(ISERROR(AQ12-AT12),"",AQ12-AT12) -> 0.003923194489 | BC12: =1+IF(AQ12="",0,IF(AT12>=0,IF(AQ12="",0,AQ12),0)) -> 1 | BD12: =1+IF(AQ12="",0,IF(AT12<0,IF(AQ12="",0,AQ12),0)) -> 0.9983450559 | BE12: =1+IF(AQ12="",0,IF(AT12>=0,IF(AT12="",0,AT12),0)) -> 1 | BF12: =1+IF(AQ12="",0,IF(AT12<0,IF(AT12="",0,AT12),0)) -> 0.9944218614 | BG12: =E8 -> 41421 | BH12: =IF(BG12=0,"",(F8-F7)/F7) -> 0.01133297356 | BI12: =1+IF(BH12="",0,BH12) -> 1.011332974 | BJ12: =G8 -> 41421 | BK12: =IF(BG12=0,"",(H8-H7)/H7) -> 0.01664563679 | BL12: =1+IF(BK12="",0,BK12) -> 1.016645637 | BM12: =IF(BG12=0,"",BH12-((1+rfr2y)^(1/trading)-1)) ->  | BN12: =IF(BM12<=0,BM12,0) ->  | BO12: =IF(IF(ISERROR(BH12-$BH$8),0,BH12-$BH$8)<=0,IF(ISERROR(BH12-$BH$8),"",BH12-$BH$8),0) ->  | BP12: =IF(BJ12=0,"",IF(ISERROR(BK12-((1+rfr2y)^(1/trading)-1)),"",BK12-((1+rfr2y)^(1/trading)-1))) ->  | BQ12: =IF(BP12<=0,BP12,0) -> 0 | BR12: =IF(IF(ISERROR(BK12-$BH$8),0,BK12-$BH$8)<=0,IF(ISERROR(BK12-$BH$8),"",BK12-$BH$8),0) ->  | BS12: =IF(ISERROR(BH12-BK12),"",BH12-BK12) -> -0.005312663231 | BT12: =1+IF(BH12="",0,IF(BK12>=0,IF(BH12="",0,BH12),0)) -> 1.011332974 | BU12: =1+IF(BH12="",0,IF(BK12<0,IF(BH12="",0,BH12),0)) -> 1 | BV12: =1+IF(BH12="",0,IF(BK12>=0,IF(BK12="",0,BK12),0)) -> 1.016645637 | BW12: =1+IF(BH12="",0,IF(BK12<0,IF(BK12="",0,BK12),0)) -> 1 | BX12: =I8 -> 41057 | BY12: =IF(BX12=0,"",(J8-J7)/J7) -> 0.01318391562 | BZ12: =1+IF(BY12="",0,BY12) -> 1.013183916 | CA12: =K8 -> 41057 | CB12: =IF(CA12=0,"",(L8-L7)/L7) -> 0.01326111698 | CC12: =1+IF(CB12="",0,CB12) -> 1.013261117 | CD12: =IF(BX12=0,"",BY12-((1+rfr3y)^(1/trading)-1)) ->  | CE12: =IF(CD12<=0,CD12,0) ->  | CF12: =IF(IF(ISERROR(BY12-$BY$8),0,BY12-$BY$8)<=0,IF(ISERROR(BY12-$BY$8),"",BY12-$BY$8),0) ->  | CG12: =IF(CA12=0,"",IF(ISERROR(CB12-((1+rfr3y)^(1/trading)-1)),"",CB12-((1+rfr3y)^(1/trading)-1))) ->  | CH12: =IF(CG12<=0,CG12,0) -> 0 | CI12: =IF(IF(ISERROR(CB12-$BY$8),0,CB12-$BY$8)<=0,IF(ISERROR(CB12-$BY$8),"",CB12-$BY$8),0) ->  | CJ12: =IF(ISERROR(BY12-CB12),"",BY12-CB12) -> -7.720135942e-05 | CK12: =1+IF(BY12="",0,IF(CB12>=0,IF(BY12="",0,BY12),0)) -> 1.013183916 | CL12: =1+IF(BY12="",0,IF(CB12<0,IF(BY12="",0,BY12),0)) -> 1 | CM12: =1+IF(BY12="",0,IF(CB12>=0,IF(CB12="",0,CB12),0)) -> 1.013261117 | CN12: =1+IF(BY12="",0,IF(CB12<0,IF(CB12="",0,CB12),0)) -> 1 | CO12: =M8 -> 40690 | CP12: =IF(CO12=0,"",(N8-N7)/N7) -> 0.01321585903 | CQ12: =1+IF(CP12="",0,CP12) -> 1.013215859 | CR12: =O8 -> 40693 | CS12: =IF(CR12=0,"",(P8-P7)/P7) -> -0.0005478351381 | CT12: =1+IF(CS12="",0,CS12) -> 0.9994521649 | CU12: =IF(CO12=0,"",CP12-((1+rfr4y)^(1/trading)-1)) ->  | CV12: =IF(CU12<=0,CU12,0) ->  | CW12: =IF(IF(ISERROR(CP12-$CP$8),0,CP12-$CP$8)<=0,IF(ISERROR(CP12-$CP$8),"",CP12-$CP$8),0) ->  | CX12: =IF(CR12=0,"",IF(ISERROR(CS12-((1+rfr4y)^(1/trading)-1)),"",CS12-((1+rfr4y)^(1/trading)-1))) ->  | CY12: =IF(CX12<=0,CX12,0) -> 0 | CZ12: =IF(IF(ISERROR(CS12-$CP$8),0,CS12-$CP$8)<=0,IF(ISERROR(CS12-$CP$8),"",CS12-$CP$8),0) ->  | DA12: =IF(ISERROR(CP12-CS12),"",CP12-CS12) -> 0.01376369417 | DB12: =1+IF(CP12="",0,IF(CS12>=0,IF(CP12="",0,CP12),0)) -> 1 | DC12: =1+IF(CP12="",0,IF(CS12<0,IF(CP12="",0,CP12),0)) -> 1.013215859 | DD12: =1+IF(CP12="",0,IF(CS12>=0,IF(CS12="",0,CS12),0)) -> 1 | DE12: =1+IF(CP12="",0,IF(CS12<0,IF(CS12="",0,CS12),0)) -> 0.9994521649 | DF12: =Q8 -> 40325 | DG12: =IF(DF12=0,"",(R8-R7)/R7) -> 0.01846381093 | DH12: =1+IF(DG12="",0,DG12) -> 1.018463811 | DI12: =S8 -> 40326 | DJ12: =IF(DI12=0,"",(T8-T7)/T7) -> 0.01268213708 | DK12: =1+IF(DJ12="",0,DJ12) -> 1.012682137 | DL12: =IF(DF12=0,"",DG12-((1+rfr5y)^(1/trading)-1)) ->  | DM12: =IF(DL12<=0,DL12,0) ->  | DN12: =IF(IF(ISERROR(DG12-$DG$8),0,DG12-$DG$8)<=0,IF(ISERROR(DG12-$DG$8),"",DG12-$DG$8),0) ->  | DO12: =IF(DI12=0,"",IF(ISERROR(DJ12-((1+rfr5y)^(1/trading)-1)),"",DJ12-((1+rfr5y)^(1/trading)-1))) ->  | DP12: =IF(DO12<=0,DO12,0) -> 0 | DQ12: =IF(IF(ISERROR(DJ12-$DG$8),0,DJ12-$DG$8)<=0,IF(ISERROR(DJ12-$DG$8),"",DJ12-$DG$8),0) ->  | DR12: =IF(ISERROR(DG12-DJ12),"",DG12-DJ12) -> 0.005781673856 | DS12: =1+IF(DG12="",0,IF(DJ12>=0,IF(DG12="",0,DG12),0)) -> 1.018463811 | DT12: =1+IF(DG12="",0,IF(DJ12<0,IF(DG12="",0,DG12),0)) -> 1 | DU12: =1+IF(DG12="",0,IF(DJ12>=0,IF(DJ12="",0,DJ12),0)) -> 1.012682137 | DV12: =1+IF(DG12="",0,IF(DJ12<0,IF(DJ12="",0,DJ12),0)) -> 1 | DW12: =U8 -> 39960 | DX12: =IF(DW12=0,"",(V8-V7)/V7) -> 0.02976190476 | DY12: =1+IF(DX12="",0,DX12) -> 1.029761905 | DZ12: =W8 -> 39961 | EA12: =IF(DZ12=0,"",(X8-X7)/X7) -> 0.01427719507 | EB12: =1+IF(EA12="",0,EA12) -> 1.014277195 | EC12: =IF(DW12=0,"",DX12-((1+rfr6y)^(1/trading)-1)) ->  | ED12: =IF(EC12<=0,EC12,0) ->  | EE12: =IF(IF(ISERROR(DX12-$DX$8),0,DX12-$DX$8)<=0,IF(ISERROR(DX12-$DX$8),"",DX12-$DX$8),0) ->  | EF12: =IF(DZ12=0,"",IF(ISERROR(EA12-((1+rfr6y)^(1/trading)-1)),"",EA12-((1+rfr6y)^(1/trading)-1))) ->  | EG12: =IF(EF12<=0,EF12,0) -> 0 | EH12: =IF(IF(ISERROR(EA12-$DX$8),0,EA12-$DX$8)<=0,IF(ISERROR(EA12-$DX$8),"",EA12-$DX$8),0) ->  | EI12: =IF(ISERROR(DX12-EA12),"",DX12-EA12) -> 0.01548470969 | EJ12: =1+IF(DX12="",0,IF(EA12>=0,IF(DX12="",0,DX12),0)) -> 1.029761905 | EK12: =1+IF(DX12="",0,IF(EA12<0,IF(DX12="",0,DX12),0)) -> 1 | EL12: =1+IF(DX12="",0,IF(EA12>=0,IF(EA12="",0,EA12),0)) -> 1.014277195 | EM12: =1+IF(DX12="",0,IF(EA12<0,IF(EA12="",0,EA12),0)) -> 1 | EN12: =Y8 -> 0 | EO12: =IF(EN12=0,"",(Z8-Z7)/Z7) ->  | EP12: =1+IF(EO12="",0,EO12) -> 1 | EQ12: =AA8 -> 39596 | ER12: =IF(EQ12=0,"",(AB8-AB7)/AB7) -> 0.0120478209 | ES12: =1+IF(ER12="",0,ER12) -> 1.012047821 | ET12: =IF(EN12=0,"",EO12-((1+rfr7y)^(1/trading)-1)) ->  | EU12: =IF(ET12<=0,ET12,0) -> 0 | EV12: =IF(IF(ISERROR(EO12-$EO$8),0,EO12-$EO$8)<=0,IF(ISERROR(EO12-$EO$8),"",EO12-$EO$8),0) ->  | EW12: =IF(EQ12=0,"",IF(ISERROR(ER12-((1+rfr7y)^(1/trading)-1)),"",ER12-((1+rfr7y)^(1/trading)-1))) ->  | EX12: =IF(EW12<=0,EW12,0) -> 0 | EY12: =IF(IF(ISERROR(ER12-$EO$8),0,ER12-$EO$8)<=0,IF(ISERROR(ER12-$EO$8),"",ER12-$EO$8),0) ->  | EZ12: =IF(ISERROR(EO12-ER12),"",EO12-ER12) ->  | FA12: =1+IF(EO12="",0,IF(ER12>=0,IF(EO12="",0,EO12),0)) -> 1 | FB12: =1+IF(EO12="",0,IF(ER12<0,IF(EO12="",0,EO12),0)) -> 1 | FC12: =1+IF(EO12="",0,IF(ER12>=0,IF(ER12="",0,ER12),0)) -> 1 | FD12: =1+IF(EO12="",0,IF(ER12<0,IF(ER12="",0,ER12),0)) -> 1 | FE12: =AC8 -> 0 | FF12: =IF(FE12=0,"",(AD8-AD7)/AD7) ->  | FG12: =1+IF(FF12="",0,FF12) -> 1 | FH12: =AE8 -> 39231 | FI12: =IF(FH12=0,"",(AF8-AF7)/AF7) -> 0.008622006085 | FJ12: =1+IF(FI12="",0,FI12) -> 1.008622006 | FK12: =IF(FE12=0,"",FF12-((1+rfr8y)^(1/trading)-1)) ->  | FL12: =IF(FK12<=0,FK12,0) -> 0 | FM12: =IF(IF(ISERROR(FF12-$FF$8),0,FF12-$FF$8)<=0,IF(ISERROR(FF12-$FF$8),"",FF12-$FF$8),0) ->  | FN12: =IF(FH12=0,"",IF(ISERROR(FI12-((1+rfr8y)^(1/trading)-1)),"",FI12-((1+rfr8y)^(1/trading)-1))) ->  | FO12: =IF(FN12<=0,FN12,0) -> 0 | FP12: =IF(IF(ISERROR(FI12-$FF$8),0,FI12-$FF$8)<=0,IF(ISERROR(FI12-$FF$8),"",FI12-$FF$8),0) ->  | FQ12: =IF(ISERROR(FF12-FI12),"",FF12-FI12) ->  | FR12: =1+IF(FF12="",0,IF(FI12>=0,IF(FF12="",0,FF12),0)) -> 1 | FS12: =1+IF(FF12="",0,IF(FI12<0,IF(FF12="",0,FF12),0)) -> 1 | FT12: =1+IF(FF12="",0,IF(FI12>=0,IF(FI12="",0,FI12),0)) -> 1 | FU12: =1+IF(FF12="",0,IF(FI12<0,IF(FI12="",0,FI12),0)) -> 1
A13: 41792 | B13: 24.32 | C13: 41793 | D13: 7415.8501 | E13: 41428 | F13: 18.43 | G13: 41428 | H13: 5939.3 | I13: 41064 | J13: 15.06 | K13: 41064 | L13: 4848.15 | M13: 40697 | N13: 16.21 | O13: 40700 | P13: 5532.05 | Q13: 40332 | R13: 14.14 | S13: 40333 | T13: 5135.5 | U13: 39967 | V13: 10.79 | W13: 39968 | X13: 4572.65 | AA13: 39603 | AB13: 4585.6 | AE13: 39238 | AF13: 4284.65 | AI13: 38873 | AJ13: 3016.65 | AP13: =A9 -> 41786 | AQ13: =IF(AP13=0,"",(B9-B8)/B8) -> -0.002486531289 | AR13: =1+IF(AQ13="",0,AQ13) -> 0.9975134687 | AS13: =C9 -> 41787 | AT13: =IF(AS13=0,"",(D9-D8)/D8) -> 0.001591951353 | AU13: =1+IF(AT13="",0,AT13) -> 1.001591951 | AW13: =IF(AV13<=0,AV13,0) -> 0 | AX13: =IF(IF(ISERROR(AQ13-$AQ$8),0,AQ13-$AQ$8)<=0,IF(ISERROR(AQ13-$AQ$8),"",AQ13-$AQ$8),0) ->  | AZ13: =IF(AY13<=0,AY13,0) -> 0 | BA13: =IF(IF(ISERROR(AT13-$AQ$8),0,AT13-$AQ$8)<=0,IF(ISERROR(AT13-$AQ$8),"",AT13-$AQ$8),0) ->  | BB13: =IF(ISERROR(AQ13-AT13),"",AQ13-AT13) -> -0.004078482642 | BC13: =1+IF(AQ13="",0,IF(AT13>=0,IF(AQ13="",0,AQ13),0)) -> 0.9975134687 | BD13: =1+IF(AQ13="",0,IF(AT13<0,IF(AQ13="",0,AQ13),0)) -> 1 | BE13: =1+IF(AQ13="",0,IF(AT13>=0,IF(AT13="",0,AT13),0)) -> 1.001591951 | BF13: =1+IF(AQ13="",0,IF(AT13<0,IF(AT13="",0,AT13),0)) -> 1 | BG13: =E9 -> 41422 | BH13: 0.004268943436 | BI13: =1+IF(BH13="",0,BH13) -> 1.004268943 | BJ13: =G9 -> 41422 | BK13: 0.004619317294 | BL13: =1+IF(BK13="",0,BK13) -> 1.004619317 | BM13: =IF(BG13=0,"",BH13-((1+rfr2y)^(1/trading)-1)) ->  | BN13: =IF(BM13<=0,BM13,0) ->  | BO13: =IF(IF(ISERROR(BH13-$BH$8),0,BH13-$BH$8)<=0,IF(ISERROR(BH13-$BH$8),"",BH13-$BH$8),0) ->  | BQ13: =IF(BP13<=0,BP13,0) -> 0 | BR13: =IF(IF(ISERROR(BK13-$BH$8),0,BK13-$BH$8)<=0,IF(ISERROR(BK13-$BH$8),"",BK13-$BH$8),0) ->  | BS13: =IF(ISERROR(BH13-BK13),"",BH13-BK13) -> -0.000350373858 | BT13: =1+IF(BH13="",0,IF(BK13>=0,IF(BH13="",0,BH13),0)) -> 1.004268943 | BU13: =1+IF(BH13="",0,IF(BK13<0,IF(BH13="",0,BH13),0)) -> 1 | BV13: =1+IF(BH13="",0,IF(BK13>=0,IF(BK13="",0,BK13),0)) -> 1.004619317 | BW13: =1+IF(BH13="",0,IF(BK13<0,IF(BK13="",0,BK13),0)) -> 1 | BX13: =I9 -> 41058 | BY13: 0.0006506180872 | BZ13: =1+IF(BY13="",0,BY13) -> 1.000650618 | CA13: =K9 -> 41058 | CB13: 0.0008925616519 | CC13: =1+IF(CB13="",0,CB13) -> 1.000892562 | CD13: =IF(BX13=0,"",BY13-((1+rfr3y)^(1/trading)-1)) ->  | CE13: =IF(CD13<=0,CD13,0) ->  | CF13: =IF(IF(ISERROR(BY13-$BY$8),0,BY13-$BY$8)<=0,IF(ISERROR(BY13-$BY$8),"",BY13-$BY$8),0) ->  | CH13: =IF(CG13<=0,CG13,0) -> 0 | CI13: =IF(IF(ISERROR(CB13-$BY$8),0,CB13-$BY$8)<=0,IF(ISERROR(CB13-$BY$8),"",CB13-$BY$8),0) ->  | CJ13: =IF(ISERROR(BY13-CB13),"",BY13-CB13) -> -0.0002419435648 | CK13: =1+IF(BY13="",0,IF(CB13>=0,IF(BY13="",0,BY13),0)) -> 1.000650618 | CL13: =1+IF(BY13="",0,IF(CB13<0,IF(BY13="",0,BY13),0)) -> 1 | CM13: =1+IF(BY13="",0,IF(CB13>=0,IF(CB13="",0,CB13),0)) -> 1.000892562 | CN13: =1+IF(BY13="",0,IF(CB13<0,IF(CB13="",0,CB13),0)) -> 1 | CO13: =M9 -> 40693 | CP13: -0.001242236025 | CQ13: =1+IF(CP13="",0,CP13) -> 0.998757764 | CR13: =O9 -> 40694 | CS13: 0.01590506294 | CT13: =1+IF(CS13="",0,CS13) -> 1.015905063 | CU13: =IF(CO13=0,"",CP13-((1+rfr4y)^(1/trading)-1)) ->  | CV13: =IF(CU13<=0,CU13,0) ->  | CW13: =IF(IF(ISERROR(CP13-$CP$8),0,CP13-$CP$8)<=0,IF(ISERROR(CP13-$CP$8),"",CP13-$CP$8),0) ->  | CY13: =IF(CX13<=0,CX13,0) -> 0 | CZ13: =IF(IF(ISERROR(CS13-$CP$8),0,CS13-$CP$8)<=0,IF(ISERROR(CS13-$CP$8),"",CS13-$CP$8),0) ->  | DA13: =IF(ISERROR(CP13-CS13),"",CP13-CS13) -> -0.01714729897 | DB13: =1+IF(CP13="",0,IF(CS13>=0,IF(CP13="",0,CP13),0)) -> 0.998757764 | DC13: =1+IF(CP13="",0,IF(CS13<0,IF(CP13="",0,CP13),0)) -> 1 | DD13: =1+IF(CP13="",0,IF(CS13>=0,IF(CS13="",0,CS13),0)) -> 1.015905063 | DE13: =1+IF(CP13="",0,IF(CS13<0,IF(CS13="",0,CS13),0)) -> 1 | DF13: =Q9 -> 40326 | DG13: 0.01160261059 | DH13: =1+IF(DG13="",0,DG13) -> 1.011602611 | DI13: =S9 -> 40329 | DJ13: 0.003898116075 | DK13: =1+IF(DJ13="",0,DJ13) -> 1.003898116 | DL13: =IF(DF13=0,"",DG13-((1+rfr5y)^(1/trading)-1)) ->  | DM13: =IF(DL13<=0,DL13,0) ->  | DN13: =IF(IF(ISERROR(DG13-$DG$8),0,DG13-$DG$8)<=0,IF(ISERROR(DG13-$DG$8),"",DG13-$DG$8),0) ->  | DP13: =IF(DO13<=0,DO13,0) -> 0 | DQ13: =IF(IF(ISERROR(DJ13-$DG$8),0,DJ13-$DG$8)<=0,IF(ISERROR(DJ13-$DG$8),"",DJ13-$DG$8),0) ->  | DR13: =IF(ISERROR(DG13-DJ13),"",DG13-DJ13) -> 0.007704494512 | DS13: =1+IF(DG13="",0,IF(DJ13>=0,IF(DG13="",0,DG13),0)) -> 1.011602611 | DT13: =1+IF(DG13="",0,IF(DJ13<0,IF(DG13="",0,DG13),0)) -> 1 | DU13: =1+IF(DG13="",0,IF(DJ13>=0,IF(DJ13="",0,DJ13),0)) -> 1.003898116 | DV13: =1+IF(DG13="",0,IF(DJ13<0,IF(DJ13="",0,DJ13),0)) -> 1 | DW13: =U9 -> 39961 | DX13: 0.008670520231 | DY13: =1+IF(DX13="",0,DX13) -> 1.00867052 | DZ13: =W9 -> 39962 | EA13: 0.02578912176 | EB13: =1+IF(EA13="",0,EA13) -> 1.025789122 | EC13: =IF(DW13=0,"",DX13-((1+rfr6y)^(1/trading)-1)) ->  | ED13: =IF(EC13<=0,EC13,0) ->  | EE13: =IF(IF(ISERROR(DX13-$DX$8),0,DX13-$DX$8)<=0,IF(ISERROR(DX13-$DX$8),"",DX13-$DX$8),0) ->  | EG13: =IF(EF13<=0,EF13,0) -> 0 | EH13: =IF(IF(ISERROR(EA13-$DX$8),0,EA13-$DX$8)<=0,IF(ISERROR(EA13-$DX$8),"",EA13-$DX$8),0) ->  | EI13: =IF(ISERROR(DX13-EA13),"",DX13-EA13) -> -0.01711860153 | EJ13: =1+IF(DX13="",0,IF(EA13>=0,IF(DX13="",0,DX13),0)) -> 1.00867052 | EK13: =1+IF(DX13="",0,IF(EA13<0,IF(DX13="",0,DX13),0)) -> 1 | EL13: =1+IF(DX13="",0,IF(EA13>=0,IF(EA13="",0,EA13),0)) -> 1.025789122 | EM13: =1+IF(DX13="",0,IF(EA13<0,IF(EA13="",0,EA13),0)) -> 1 | EN13: =Y9 -> 0 | EP13: =1+IF(EO13="",0,EO13) -> 1 | EQ13: =AA9 -> 39597 | ER13: -0.0168857442 | ES13: =1+IF(ER13="",0,ER13) -> 0.9831142558 | ET13: =IF(EN13=0,"",EO13-((1+rfr7y)^(1/trading)-1)) ->  | EU13: =IF(ET13<=0,ET13,0) -> 0 | EV13: =IF(IF(ISERROR(EO13-$EO$8),0,EO13-$EO$8)<=0,IF(ISERROR(EO13-$EO$8),"",EO13-$EO$8),0) ->  | EX13: =IF(EW13<=0,EW13,0) -> 0 | EY13: =IF(IF(ISERROR(ER13-$EO$8),0,ER13-$EO$8)<=0,IF(ISERROR(ER13-$EO$8),"",ER13-$EO$8),0) ->  | EZ13: =IF(ISERROR(EO13-ER13),"",EO13-ER13) ->  | FA13: =1+IF(EO13="",0,IF(ER13>=0,IF(EO13="",0,EO13),0)) -> 1 | FB13: =1+IF(EO13="",0,IF(ER13<0,IF(EO13="",0,EO13),0)) -> 1 | FC13: =1+IF(EO13="",0,IF(ER13>=0,IF(ER13="",0,ER13),0)) -> 1 | FD13: =1+IF(EO13="",0,IF(ER13<0,IF(ER13="",0,ER13),0)) -> 1 | FE13: =AC9 -> 0 | FG13: =1+IF(FF13="",0,FF13) -> 1 | FH13: =AE9 -> 39232 | FI13: -0.01015547662 | FJ13: =1+IF(FI13="",0,FI13) -> 0.9898445234 | FK13: =IF(FE13=0,"",FF13-((1+rfr8y)^(1/trading)-1)) ->  | FL13: =IF(FK13<=0,FK13,0) -> 0 | FM13: =IF(IF(ISERROR(FF13-$FF$8),0,FF13-$FF$8)<=0,IF(ISERROR(FF13-$FF$8),"",FF13-$FF$8),0) ->  | FO13: =IF(FN13<=0,FN13,0) -> 0 | FP13: =IF(IF(ISERROR(FI13-$FF$8),0,FI13-$FF$8)<=0,IF(ISERROR(FI13-$FF$8),"",FI13-$FF$8),0) ->  | FQ13: =IF(ISERROR(FF13-FI13),"",FF13-FI13) ->  | FR13: =1+IF(FF13="",0,IF(FI13>=0,IF(FF13="",0,FF13),0)) -> 1 | FS13: =1+IF(FF13="",0,IF(FI13<0,IF(FF13="",0,FF13),0)) -> 1 | FT13: =1+IF(FF13="",0,IF(FI13>=0,IF(FI13="",0,FI13),0)) -> 1 | FU13: =1+IF(FF13="",0,IF(FI13<0,IF(FI13="",0,FI13),0)) -> 1
A14: 41793 | B14: 24.51 | C14: 41794 | D14: 7402.25 | E14: 41429 | F14: 18.4 | G14: 41429 | H14: 5919.45 | I14: 41065 | J14: 15.08 | K14: 41065 | L14: 4863.3 | M14: 40700 | N14: 16.23 | O14: 40701 | P14: 5556.15 | Q14: 40333 | R14: 14.19 | S14: 40336 | T14: 5034 | U14: 39968 | V14: 10.88 | W14: 39969 | X14: 4586.9 | AA14: 39604 | AB14: 4676.95 | AE14: 39239 | AF14: 4198.25 | AI14: 38874 | AJ14: 2937.3 | AP14: 41787 | AQ14: 0.003739094308 | AR14: 1.003739094 | AS14: 41788 | AT14: -0.01282462345 | AU14: 0.9871753765 | AW14: 0 | AZ14: 0 | BB14: 0.01656371776 | BC14: 1 | BD14: 1.003739094 | BE14: 1 | BF14: 0.9871753765 | BG14: 41423 | BH14: -0.001594048884 | BI14: 0.9984059511 | BJ14: 41423 | BK14: -0.001137246881 | BL14: 0.9988627531 | BQ14: 0 | BS14: -0.0004568020034 | BT14: 1 | BU14: 0.9984059511 | BV14: 1 | BW14: 0.9988627531 | BX14: 41059 | BY14: -0.005851755527 | BZ14: 0.9941482445 | CA14: 41059 | CB14: -0.007885613515 | CC14: 0.9921143865 | CH14: 0 | CJ14: 0.002033857988 | CK14: 1 | CL14: 0.9941482445 | CM14: 1 | CN14: 0.9921143865 | CO14: 40694 | CP14: 0.01554726368 | CQ14: 1.015547264 | CR14: 40695 | CS14: 0.005728262727 | CT14: 1.005728263 | CY14: 0 | DA14: 0.009819000955 | DB14: 1.015547264 | DC14: 1 | DD14: 1.005728263 | DE14: 1 | DF14: 40329 | DG14: 0.007168458781 | DH14: 1.007168459 | DI14: 40330 | DJ14: -0.02282602285 | DK14: 0.9771739772 | DP14: 0 | DR14: 0.02999448163 | DS14: 1 | DT14: 1.007168459 | DU14: 1 | DV14: 0.9771739772 | DW14: 39962 | DX14: 0.02387774594 | DY14: 1.023877746 | DZ14: 39965 | EA14: 0.01819530451 | EB14: 1.018195305 | EG14: 0 | EI14: 0.005682441431 | EJ14: 1.023877746 | EK14: 1 | EL14: 1.018195305 | EM14: 1 | EN14: 0 | EP14: 1 | EQ14: 39598 | ER14: 0.007197071536 | ES14: 1.007197072 | EU14: 0 | EX14: 0 | FA14: 1 | FB14: 1 | FC14: 1 | FD14: 1 | FE14: 0 | FG14: 1 | FH14: 39233 | FI14: 0.01085971786 | FJ14: 1.010859718 | FL14: 0 | FO14: 0 | FR14: 1 | FS14: 1 | FT14: 1 | FU14: 1
A15: 41794 | B15: 24.56 | C15: 41795 | D15: 7474.1001 | E15: 41430 | F15: 18.42 | G15: 41430 | H15: 5923.85 | I15: 41066 | J15: 15.44 | K15: 41066 | L15: 4997.1 | M15: 40701 | N15: 16.31 | O15: 40702 | P15: 5526.85 | Q15: 40336 | R15: 13.95 | S15: 40337 | T15: 4987.1 | U15: 39969 | V15: 11.03 | W15: 39972 | X15: 4429.9 | AA15: 39605 | AB15: 4627.8 | AE15: 39240 | AF15: 4179.5 | AI15: 38875 | AJ15: 2860.45 | AP15: 41788 | AQ15: -0.01283112583 | AR15: 0.9871688742 | AS15: 41789 | AT15: -0.0007877246797 | AU15: 0.9992122753 | AW15: 0 | AZ15: 0 | BB15: -0.01204340115 | BC15: 1 | BD15: 0.9871688742 | BE15: 1 | BF15: 0.9992122753 | BG15: 41424 | BH15: 0.003725385844 | BI15: 1.003725386 | BJ15: 41424 | BK15: 0.003235424209 | BL15: 1.003235424 | BQ15: 0 | BS15: 0.0004899616344 | BT15: 1.003725386 | BU15: 1 | BV15: 1.003235424 | BW15: 1 | BX15: 41060 | BY15: -0.002616088947 | BZ15: 0.9973839111 | CA15: 41060 | CB15: -0.005352724335 | CC15: 0.9946472757 | CH15: 0 | CJ15: 0.002736635388 | CK15: 1 | CL15: 0.9973839111 | CM15: 1 | CN15: 0.9946472757 | CO15: 40695 | CP15: 0.002449479486 | CQ15: 1.002449479 | CR15: 40696 | CS15: -0.0074481402 | CT15: 0.9925518598 | CY15: 0 | DA15: 0.009897619686 | DB15: 1 | DC15: 1.002449479 | DD15: 1 | DE15: 0.9925518598 | DF15: 40330 | DG15: -0.01921708185 | DH15: 0.9807829181 | DI15: 40331 | DJ15: 0.009989537644 | DK15: 1.009989538 | DP15: 0 | DR15: -0.02920661949 | DS15: 0.9807829181 | DT15: 1 | DU15: 1.009989538 | DV15: 1 | DW15: 39965 | DX15: 0.009328358209 | DY15: 1.009328358 | DZ15: 39966 | EA15: -0.001026512727 | EB15: 0.9989734873 | EG15: 0 | EI15: 0.01035487094 | EJ15: 1 | EK15: 1.009328358 | EL15: 1 | EM15: 0.9989734873 | EN15: 0 | EP15: 1 | EQ15: 39601 | ER15: -0.02679616435 | ES15: 0.9732038357 | EU15: 0 | EX15: 0 | FA15: 1 | FB15: 1 | FC15: 1 | FD15: 1 | FE15: 0 | FG15: 1 | FH15: 39234 | FI15: 0.0002909818893 | FJ15: 1.000290982 | FL15: 0 | FO15: 0 | FR15: 1 | FS15: 1 | FT15: 1 | FU15: 1
A16: 41795 | B16: 24.79 | C16: 41796 | D16: 7583.3999 | E16: 41431 | F16: 18.41 | G16: 41431 | H16: 5921.4 | I16: 41067 | J16: 15.57 | K16: 41067 | L16: 5049.65 | M16: 40702 | N16: 16.27 | O16: 40703 | P16: 5521.05 | Q16: 40337 | R16: 13.88 | S16: 40338 | T16: 5000.3 | U16: 39972 | V16: 10.76 | W16: 39973 | X16: 4550.95 | AA16: 39608 | AB16: 4500.95 | AE16: 39241 | AF16: 4145 | AI16: 38876 | AJ16: 2724.35 | AP16: 41789 | AQ16: -0.002096436059 | AR16: 0.9979035639 | AS16: 41792 | AT16: 0.01833343195 | AU16: 1.018333432 | AW16: 0 | AZ16: 0 | BB16: -0.02042986801 | BC16: 0.9979035639 | BD16: 1 | BE16: 1.018333432 | BF16: 1 | BG16: 41425 | BH16: -0.01590668081 | BI16: 0.9840933192 | BJ16: 41425 | BK16: -0.02255043639 | BL16: 0.9774495636 | BQ16: 0 | BS16: 0.006643755588 | BT16: 1 | BU16: 0.9840933192 | BV16: 1 | BW16: 0.9774495636 | BX16: 41061 | BY16: -0.0131147541 | BZ16: 0.9868852459 | CA16: 41061 | CB16: -0.01678428187 | CC16: 0.9832157181 | CH16: 0 | CJ16: 0.003669527772 | CK16: 1 | CL16: 0.9868852459 | CM16: 1 | CN16: 0.9832157181 | CO16: 40696 | CP16: -0.004886988393 | CQ16: 0.9951130116 | CR16: 40697 | CS16: -0.006053672291 | CT16: 0.9939463277 | CY16: 0 | DA16: 0.001166683898 | DB16: 1 | DC16: 0.9951130116 | DD16: 1 | DE16: 0.9939463277 | DF16: 40331 | DG16: 0.008708272859 | DH16: 1.008708273 | DI16: 40332 | DJ16: 0.01805830852 | DK16: 1.018058309 | DP16: 0 | DR16: -0.009350035656 | DS16: 1.008708273 | DT16: 1 | DU16: 1.018058309 | DV16: 1 | DW16: 39966 | DX16: 0 | DY16: 1 | DZ16: 39967 | EA16: 0.001204353351 | EB16: 1.001204353 | EG16: 0 | EI16: -0.001204353351 | EJ16: 1 | EK16: 1 | EL16: 1.001204353 | EM16: 1 | EN16: 0 | EP16: 1 | EQ16: 39602 | ER16: -0.005000421977 | ES16: 0.994999578 | EU16: 0 | EX16: 0 | FA16: 1 | FB16: 1 | FC16: 1 | FD16: 1 | FE16: 0 | FG16: 1 | FH16: 39237 | FI16: -0.006981533843 | FJ16: 0.9930184662 | FL16: 0 | FO16: 0 | FR16: 1 | FS16: 1 | FT16: 1 | FU16: 1
A17: 41796 | B17: 25.15 | C17: 41799 | D17: 7654.6001 | E17: 41432 | F17: 18.33 | G17: 41432 | H17: 5881 | I17: 41068 | J17: 15.61 | K17: 41068 | L17: 5068.35 | M17: 40703 | N17: 16.28 | O17: 40704 | P17: 5485.8 | Q17: 40338 | R17: 13.94 | S17: 40339 | T17: 5078.6 | U17: 39973 | V17: 11.04 | W17: 39974 | X17: 4655.25 | AA17: 39609 | AB17: 4449.8 | AE17: 39244 | AF17: 4145.6 | AI17: 38877 | AJ17: 2866.3 | AP17: 41792 | AQ17: 0.0218487395 | AR17: 1.021848739 | AS17: 41793 | AT17: 0.007246193548 | AU17: 1.007246194 | AW17: 0 | AZ17: 0 | BB17: 0.01460254595 | BC17: 1.021848739 | BD17: 1 | BE17: 1.007246194 | BF17: 1 | BG17: 41428 | BH17: -0.007004310345 | BI17: 0.9929956897 | BJ17: 41428 | BK17: -0.007793249192 | BL17: 0.9922067508 | BQ17: 0 | BS17: 0.000788938847 | BT17: 1 | BU17: 0.9929956897 | BV17: 1 | BW17: 0.9922067508 | BX17: 41064 | BY17: 0.0006644518272 | BZ17: 1.000664452 | CA17: 41064 | CB17: 0.001352858559 | CC17: 1.001352859 | CH17: 0 | CJ17: -0.0006884067319 | CK17: 1.000664452 | CL17: 1 | CM17: 1.001352859 | CN17: 1 | CO17: 40697 | CP17: -0.004910988336 | CQ17: 0.9950890117 | CR17: 40700 | CS17: 0.002773372003 | CT17: 1.002773372 | CY17: 0 | DA17: -0.00768436034 | DB17: 0.9950890117 | DC17: 1 | DD17: 1.002773372 | DE17: 1 | DF17: 40332 | DG17: 0.01726618705 | DH17: 1.017266187 | DI17: 40333 | DJ17: 0.004891889248 | DK17: 1.004891889 | DP17: 0 | DR17: 0.0123742978 | DS17: 1.017266187 | DT17: 1 | DU17: 1.004891889 | DV17: 1 | DW17: 39967 | DX17: -0.002772643253 | DY17: 0.9972273567 | DZ17: 39968 | EA17: 0.009259054892 | EB17: 1.009259055 | EG17: 0 | EI17: -0.01203169815 | EJ17: 0.9972273567 | EK17: 1 | EL17: 1.009259055 | EM17: 1 | EN17: 0 | EP17: 1 | EQ17: 39603 | ER17: -0.02762993278 | ES17: 0.9723700672 | EU17: 0 | EX17: 0 | FA17: 1 | FB17: 1 | FC17: 1 | FD17: 1 | FE17: 0 | FG17: 1 | FH17: 39238 | FI17: 0.004124629428 | FJ17: 1.004124629 | FL17: 0 | FO17: 0 | FR17: 1 | FS17: 1 | FT17: 1 | FU17: 1
A18: 41799 | B18: 25.36 | C18: 41800 | D18: 7656.3999 | E18: 41435 | F18: 18.26 | G18: 41435 | H18: 5878 | I18: 41071 | J18: 15.6 | K18: 41071 | L18: 5054.1 | M18: 40704 | N18: 16.23 | O18: 40707 | P18: 5482.8 | Q18: 40339 | R18: 14.12 | S18: 40340 | T18: 5119.35 | U18: 39974 | V18: 11.31 | W18: 39975 | X18: 4637.7 | AA18: 39610 | AB18: 4523.6 | AE18: 39245 | AF18: 4155.2 | AI18: 38880 | AJ18: 2776.85 | AP18: 41793 | AQ18: 0.0078125 | AR18: 1.0078125 | AS18: 41794 | AT18: -0.001833923261 | AU18: 0.9981660767 | AW18: 0 | AZ18: 0 | BB18: 0.009646423261 | BC18: 1 | BD18: 1.0078125 | BE18: 1 | BF18: 0.9981660767 | BG18: 41429 | BH18: -0.001627780792 | BI18: 0.9983722192 | BJ18: 41429 | BK18: -0.003342144697 | BL18: 0.9966578553 | BQ18: 0 | BS18: 0.001714363905 | BT18: 1 | BU18: 0.9983722192 | BV18: 1 | BW18: 0.9966578553 | BX18: 41065 | BY18: 0.001328021248 | BZ18: 1.001328021 | CA18: 41065 | CB18: 0.003124903314 | CC18: 1.003124903 | CH18: 0 | CJ18: -0.001796882065 | CK18: 1.001328021 | CL18: 1 | CM18: 1.003124903 | CN18: 1 | CO18: 40700 | CP18: 0.001233806292 | CQ18: 1.001233806 | CR18: 40701 | CS18: 0.004356432064 | CT18: 1.004356432 | CY18: 0 | DA18: -0.003122625772 | DB18: 1.001233806 | DC18: 1 | DD18: 1.004356432 | DE18: 1 | DF18: 40333 | DG18: 0.003536067893 | DH18: 1.003536068 | DI18: 40336 | DJ18: -0.01976438516 | DK18: 0.9802356148 | DP18: 0 | DR18: 0.02330045305 | DS18: 1 | DT18: 1.003536068 | DU18: 1 | DV18: 0.9802356148 | DW18: 39968 | DX18: 0.008341056534 | DY18: 1.008341057 | DZ18: 39969 | EA18: 0.003116354849 | EB18: 1.003116355 | EG18: 0 | EI18: 0.005224701685 | EJ18: 1.008341057 | EK18: 1 | EL18: 1.003116355 | EM18: 1 | EN18: 0 | EP18: 1 | EQ18: 39604 | ER18: 0.01992105722 | ES18: 1.019921057 | EU18: 0 | EX18: 0 | FA18: 1 | FB18: 1 | FC18: 1 | FD18: 1 | FE18: 0 | FG18: 1 | FH18: 39239 | FI18: -0.02016500764 | FJ18: 0.9798349924 | FL18: 0 | FO18: 0 | FR18: 1 | FS18: 1 | FT18: 1 | FU18: 1
A19: 41800 | B19: 25.3 | C19: 41801 | D19: 7626.8501 | E19: 41436 | F19: 18.04 | G19: 41436 | H19: 5788.8 | I19: 41072 | J19: 15.75 | K19: 41072 | L19: 5115.9 | M19: 40707 | N19: 16.26 | O19: 40708 | P19: 5500.5 | Q19: 40340 | R19: 14.23 | S19: 40343 | T19: 5197.7 | U19: 39975 | V19: 11.22 | W19: 39976 | X19: 4583.4 | AA19: 39611 | AB19: 4539.35 | AE19: 39246 | AF19: 4113.05 | AI19: 38881 | AJ19: 2663.3 | AP19: 41794 | AQ19: 0.00203998368 | AR19: 1.002039984 | AS19: 41795 | AT19: 0.009706521666 | AU19: 1.009706522 | AW19: 0 | AZ19: 0 | BB19: -0.007666537986 | BC19: 1.002039984 | BD19: 1 | BE19: 1.009706522 | BF19: 1 | BG19: 41430 | BH19: 0.001086956522 | BI19: 1.001086957 | BJ19: 41430 | BK19: 0.000743312301 | BL19: 1.000743312 | BQ19: 0 | BS19: 0.0003436442208 | BT19: 1.001086957 | BU19: 1 | BV19: 1.000743312 | BW19: 1 | BX19: 41066 | BY19: 0.02387267905 | BZ19: 1.023872679 | CA19: 41066 | CB19: 0.02751218309 | CC19: 1.027512183 | CH19: 0 | CJ19: -0.00363950404 | CK19: 1.023872679 | CL19: 1 | CM19: 1.027512183 | CN19: 1 | CO19: 40701 | CP19: 0.004929143561 | CQ19: 1.004929144 | CR19: 40702 | CS19: -0.005273435742 | CT19: 0.9947265643 | CY19: 0 | DA19: 0.0102025793 | DB19: 1 | DC19: 1.004929144 | DD19: 1 | DE19: 0.9947265643 | DF19: 40336 | DG19: -0.01691331924 | DH19: 0.9830866808 | DI19: 40337 | DJ19: -0.009316646802 | DK19: 0.9906833532 | DP19: 0 | DR19: -0.007596672437 | DS19: 1 | DT19: 0.9830866808 | DU19: 1 | DV19: 0.9906833532 | DW19: 39969 | DX19: 0.01378676471 | DY19: 1.013786765 | DZ19: 39972 | EA19: -0.03422790992 | EB19: 0.9657720901 | EG19: 0 | EI19: 0.04801467462 | EJ19: 1 | EK19: 1.013786765 | EL19: 1 | EM19: 0.9657720901 | EN19: 0 | EP19: 1 | EQ19: 39605 | ER19: -0.01050898556 | ES19: 0.9894910144 | EU19: 0 | EX19: 0 | FA19: 1 | FB19: 1 | FC19: 1 | FD19: 1 | FE19: 0 | FG19: 1 | FH19: 39240 | FI19: -0.004466146609 | FJ19: 0.9955338534 | FL19: 0 | FO19: 0 | FR19: 1 | FS19: 1 | FT19: 1 | FU19: 1
A20: 41801 | B20: 25.22 | C20: 41802 | D20: 7649.8999 | E20: 41437 | F20: 18.01 | G20: 41437 | H20: 5760.2 | I20: 41073 | J20: 15.74 | K20: 41073 | L20: 5121.45 | M20: 40708 | N20: 16.35 | O20: 40709 | P20: 5447.5 | Q20: 40343 | R20: 14.41 | S20: 40344 | T20: 5222.35 | U20: 39976 | V20: 11.02 | W20: 39979 | X20: 4484 | AA20: 39612 | AB20: 4517.1 | AE20: 39247 | AF20: 4170 | AI20: 38882 | AJ20: 2632.8 | AP20: 41795 | AQ20: 0.009364820847 | AR20: 1.009364821 | AS20: 41796 | AT20: 0.01462380735 | AU20: 1.014623807 | AW20: 0 | AZ20: 0 | BB20: -0.005258986506 | BC20: 1.009364821 | BD20: 1 | BE20: 1.014623807 | BF20: 1 | BG20: 41431 | BH20: -0.000542888165 | BI20: 0.9994571118 | BJ20: 41431 | BK20: -0.0004135823831 | BL20: 0.9995864176 | BQ20: 0 | BS20: -0.000129305782 | BT20: 1 | BU20: 0.9994571118 | BV20: 1 | BW20: 0.9995864176 | BX20: 41067 | BY20: 0.008419689119 | BZ20: 1.008419689 | CA20: 41067 | CB20: 0.01051609934 | CC20: 1.010516099 | CH20: 0 | CJ20: -0.002096410218 | CK20: 1.008419689 | CL20: 1 | CM20: 1.010516099 | CN20: 1 | CO20: 40702 | CP20: -0.002452483139 | CQ20: 0.9975475169 | CR20: 40703 | CS20: -0.001049422365 | CT20: 0.9989505776 | CY20: 0 | DA20: -0.001403060774 | DB20: 1 | DC20: 0.9975475169 | DD20: 1 | DE20: 0.9989505776 | DF20: 40337 | DG20: -0.005017921147 | DH20: 0.9949820789 | DI20: 40338 | DJ20: 0.002646828818 | DK20: 1.002646829 | DP20: 0 | DR20: -0.007664749965 | DS20: 0.9949820789 | DT20: 1 | DU20: 1.002646829 | DV20: 1 | DW20: 39972 | DX20: -0.02447869447 | DY20: 0.9755213055 | DZ20: 39973 | EA20: 0.02732567327 | EB20: 1.027325673 | EG20: 0 | EI20: -0.05180436774 | EJ20: 0.9755213055 | EK20: 1 | EL20: 1.027325673 | EM20: 1 | EN20: 0 | EP20: 1 | EQ20: 39608 | ER20: -0.0274104326 | ES20: 0.9725895674 | EU20: 0 | EX20: 0 | FA20: 1 | FB20: 1 | FC20: 1 | FD20: 1 | FE20: 0 | FG20: 1 | FH20: 39241 | FI20: -0.008254575906 | FJ20: 0.9917454241 | FL20: 0 | FO20: 0 | FR20: 1 | FS20: 1 | FT20: 1 | FU20: 1
A21: 41802 | B21: 25.34 | C21: 41803 | D21: 7542.1001 | E21: 41438 | F21: 17.81 | G21: 41438 | H21: 5699.1 | I21: 41074 | J21: 15.61 | K21: 41074 | L21: 5054.75 | M21: 40709 | N21: 16.22 | O21: 40710 | P21: 5396.75 | Q21: 40344 | R21: 14.42 | S21: 40345 | T21: 5233.35 | U21: 39979 | V21: 10.79 | W21: 39980 | X21: 4517.8 | AA21: 39615 | AB21: 4572.5 | AE21: 39248 | AF21: 4171.45 | AI21: 38883 | AJ21: 2798.8 | AP21: 41796 | AQ21: 0.01452198467 | AR21: 1.014521985 | AS21: 41799 | AT21: 0.009388954946 | AU21: 1.009388955 | AW21: 0 | AZ21: 0 | BB21: 0.005133029725 | BC21: 1.014521985 | BD21: 1 | BE21: 1.009388955 | BF21: 1 | BG21: 41432 | BH21: -0.004345464422 | BI21: 0.9956545356 | BJ21: 41432 | BK21: -0.006822710845 | BL21: 0.9931772892 | BQ21: 0 | BS21: 0.002477246424 | BT21: 1 | BU21: 0.9956545356 | BV21: 1 | BW21: 0.9931772892 | BX21: 41068 | BY21: 0.002569043031 | BZ21: 1.002569043 | CA21: 41068 | CB21: 0.003703226956 | CC21: 1.003703227 | CH21: 0 | CJ21: -0.001134183925 | CK21: 1.002569043 | CL21: 1 | CM21: 1.003703227 | CN21: 1 | CO21: 40703 | CP21: 0.00061462815 | CQ21: 1.000614628 | CR21: 40704 | CS21: -0.006384655093 | CT21: 0.9936153449 | CY21: 0 | DA21: 0.006999283243 | DB21: 1 | DC21: 1.000614628 | DD21: 1 | DE21: 0.9936153449 | DF21: 40338 | DG21: 0.004322766571 | DH21: 1.004322767 | DI21: 40339 | DJ21: 0.01565906046 | DK21: 1.01565906 | DP21: 0 | DR21: -0.01133629389 | DS21: 1.004322767 | DT21: 1 | DU21: 1.01565906 | DV21: 1 | DW21: 39973 | DX21: 0.02602230483 | DY21: 1.026022305 | DZ21: 39974 | EA21: 0.02291829179 | EB21: 1.022918292 | EG21: 0 | EI21: 0.003104013047 | EJ21: 1.026022305 | EK21: 1 | EL21: 1.022918292 | EM21: 1 | EN21: 0 | EP21: 1 | EQ21: 39609 | ER21: -0.01136426754 | ES21: 0.9886357325 | EU21: 0 | EX21: 0 | FA21: 1 | FB21: 1 | FC21: 1 | FD21: 1 | FE21: 0 | FG21: 1 | FH21: 39244 | FI21: 0.0001447527141 | FJ21: 1.000144753 | FL21: 0 | FO21: 0 | FR21: 1 | FS21: 1 | FT21: 1 | FU21: 1
A22: 41803 | B22: 24.97 | C22: 41806 | D22: 7533.5498 | E22: 41439 | F22: 18.08 | G22: 41439 | H22: 5808.4 | I22: 41075 | J22: 15.8 | K22: 41075 | L22: 5139.05 | M22: 40710 | N22: 16.07 | O22: 40711 | P22: 5366.4 | Q22: 40345 | R22: 14.44 | S22: 40346 | T22: 5274.85 | U22: 39980 | V22: 10.87 | W22: 39981 | X22: 4356.15 | AA22: 39616 | AB22: 4653 | AE22: 39251 | AF22: 4147.1 | AI22: 38884 | AJ22: 2890.35 | AP22: 41799 | AQ22: 0.008349900596 | AR22: 1.008349901 | AS22: 41800 | AT22: 0.0002351265875 | AU22: 1.000235127 | AW22: 0 | AZ22: 0 | BB22: 0.008114774009 | BC22: 1.008349901 | BD22: 1 | BE22: 1.000235127 | BF22: 1 | BG22: 41435 | BH22: -0.003818876159 | BI22: 0.9961811238 | BJ22: 41435 | BK22: -0.000510117327 | BL22: 0.9994898827 | BQ22: 0 | BS22: -0.003308758832 | BT22: 1 | BU22: 0.9961811238 | BV22: 1 | BW22: 0.9994898827 | BX22: 41071 | BY22: -0.0006406149904 | BZ22: 0.999359385 | CA22: 41071 | CB22: -0.002811565894 | CC22: 0.9971884341 | CH22: 0 | CJ22: 0.002170950904 | CK22: 1 | CL22: 0.999359385 | CM22: 1 | CN22: 0.9971884341 | CO22: 40704 | CP22: -0.003071253071 | CQ22: 0.9969287469 | CR22: 40707 | CS22: -0.0005468664552 | CT22: 0.9994531335 | CY22: 0 | DA22: -0.002524386616 | DB22: 1 | DC22: 0.9969287469 | DD22: 1 | DE22: 0.9994531335 | DF22: 40339 | DG22: 0.01291248207 | DH22: 1.012912482 | DI22: 40340 | DJ22: 0.008023864845 | DK22: 1.008023865 | DP22: 0 | DR22: 0.004888617221 | DS22: 1.012912482 | DT22: 1 | DU22: 1.008023865 | DV22: 1 | DW22: 39974 | DX22: 0.02445652174 | DY22: 1.024456522 | DZ22: 39975 | EA22: -0.003769937168 | EB22: 0.9962300628 | EG22: 0 | EI22: 0.02822645891 | EJ22: 1 | EK22: 1.024456522 | EL22: 1 | EM22: 0.9962300628 | EN22: 0 | EP22: 1 | EQ22: 39610 | ER22: 0.01658501506 | ES22: 1.016585015 | EU22: 0 | EX22: 0 | FA22: 1 | FB22: 1 | FC22: 1 | FD22: 1 | FE22: 0 | FG22: 1 | FH22: 39245 | FI22: 0.002315708221 | FJ22: 1.002315708 | FL22: 0 | FO22: 0 | FR22: 1 | FS22: 1 | FT22: 1 | FU22: 1
A23: 41806 | B23: 24.95 | C23: 41807 | D23: 7631.7002 | E23: 41442 | F23: 18.16 | G23: 41442 | H23: 5850.05 | I23: 41078 | J23: 15.61 | K23: 41078 | L23: 5064.25 | M23: 40711 | N23: 15.96 | O23: 40714 | P23: 5257.9 | Q23: 40346 | R23: 14.49 | S23: 40347 | T23: 5262.6 | U23: 39981 | V23: 10.59 | W23: 39982 | X23: 4251.4 | AA23: 39617 | AB23: 4582.4 | AE23: 39252 | AF23: 4214.3 | AI23: 38887 | AJ23: 2916.9 | AP23: 41800 | AQ23: -0.002365930599 | AR23: 0.9976340694 | AS23: 41801 | AT23: -0.00385949015 | AU23: 0.9961405098 | AW23: 0 | AZ23: 0 | BB23: 0.001493559551 | BC23: 1 | BD23: 0.9976340694 | BE23: 1 | BF23: 0.9961405098 | BG23: 41436 | BH23: -0.01204819277 | BI23: 0.9879518072 | BJ23: 41436 | BK23: -0.01517522967 | BL23: 0.9848247703 | BQ23: 0 | BS23: 0.003127036899 | BT23: 1 | BU23: 0.9879518072 | BV23: 1 | BW23: 0.9848247703 | BX23: 41072 | BY23: 0.009615384615 | BZ23: 1.009615385 | CA23: 41072 | CB23: 0.01222769633 | CC23: 1.012227696 | CH23: 0 | CJ23: -0.00261231171 | CK23: 1.009615385 | CL23: 1 | CM23: 1.012227696 | CN23: 1 | CO23: 40707 | CP23: 0.001848428835 | CQ23: 1.001848429 | CR23: 40708 | CS23: 0.003228277522 | CT23: 1.003228278 | CY23: 0 | DA23: -0.001379848687 | DB23: 1.001848429 | DC23: 1 | DD23: 1.003228278 | DE23: 1 | DF23: 40340 | DG23: 0.007790368272 | DH23: 1.007790368 | DI23: 40343 | DJ23: 0.01530467735 | DK23: 1.015304677 | DP23: 0 | DR23: -0.00751430908 | DS23: 1.007790368 | DT23: 1 | DU23: 1.015304677 | DV23: 1 | DW23: 39975 | DX23: -0.007957559682 | DY23: 0.9920424403 | DZ23: 39976 | EA23: -0.01170838993 | EB23: 0.9882916101 | EG23: 0 | EI23: 0.003750830253 | EJ23: 1 | EK23: 0.9920424403 | EL23: 1 | EM23: 0.9882916101 | EN23: 0 | EP23: 1 | EQ23: 39611 | ER23: 0.003481740207 | ES23: 1.00348174 | EU23: 0 | EX23: 0 | FA23: 1 | FB23: 1 | FC23: 1 | FD23: 1 | FE23: 0 | FG23: 1 | FH23: 39246 | FI23: -0.01014391606 | FJ23: 0.9898560839 | FL23: 0 | FO23: 0 | FR23: 1 | FS23: 1 | FT23: 1 | FU23: 1
A24: 41807 | B24: 25.29 | C24: 41808 | D24: 7558.2002 | E24: 41443 | F24: 18.12 | G24: 41443 | H24: 5813.6 | I24: 41079 | J24: 15.71 | K24: 41079 | L24: 5103.85 | M24: 40714 | N24: 15.68 | O24: 40715 | P24: 5275.85 | Q24: 40347 | R24: 14.44 | S24: 40350 | T24: 5353.3 | U24: 39982 | V24: 10.49 | W24: 39983 | X24: 4313.6 | AA24: 39618 | AB24: 4504.25 | AE24: 39253 | AF24: 4248.65 | AI24: 38888 | AJ24: 2861.3 | AP24: 41801 | AQ24: -0.003162055336 | AR24: 0.9968379447 | AS24: 41802 | AT24: 0.003022191298 | AU24: 1.003022191 | AW24: 0 | AZ24: 0 | BB24: -0.006184246634 | BC24: 0.9968379447 | BD24: 1 | BE24: 1.003022191 | BF24: 1 | BG24: 41437 | BH24: -0.001662971175 | BI24: 0.9983370288 | BJ24: 41437 | BK24: -0.004940574903 | BL24: 0.9950594251 | BQ24: 0 | BS24: 0.003277603728 | BT24: 1 | BU24: 0.9983370288 | BV24: 1 | BW24: 0.9950594251 | BX24: 41073 | BY24: -0.0006349206349 | BZ24: 0.9993650794 | CA24: 41073 | CB24: 0.001084853105 | CC24: 1.001084853 | CH24: 0 | CJ24: -0.00171977374 | CK24: 0.9993650794 | CL24: 1 | CM24: 1.001084853 | CN24: 1 | CO24: 40708 | CP24: 0.005535055351 | CQ24: 1.005535055 | CR24: 40709 | CS24: -0.009635487683 | CT24: 0.9903645123 | CY24: 0 | DA24: 0.01517054303 | DB24: 1 | DC24: 1.005535055 | DD24: 1 | DE24: 0.9903645123 | DF24: 40343 | DG24: 0.0126493324 | DH24: 1.012649332 | DI24: 40344 | DJ24: 0.004742482252 | DK24: 1.004742482 | DP24: 0 | DR24: 0.007906850145 | DS24: 1.012649332 | DT24: 1 | DU24: 1.004742482 | DV24: 1 | DW24: 39976 | DX24: -0.01782531194 | DY24: 0.9821746881 | DZ24: 39979 | EA24: -0.02168695728 | EB24: 0.9783130427 | EG24: 0 | EI24: 0.003861645338 | EJ24: 1 | EK24: 0.9821746881 | EL24: 1 | EM24: 0.9783130427 | EN24: 0 | EP24: 1 | EQ24: 39612 | ER24: -0.004901582826 | ES24: 0.9950984172 | EU24: 0 | EX24: 0 | FA24: 1 | FB24: 1 | FC24: 1 | FD24: 1 | FE24: 0 | FG24: 1 | FH24: 39247 | FI24: 0.01384617255 | FJ24: 1.013846173 | FL24: 0 | FO24: 0 | FR24: 1 | FS24: 1 | FT24: 1 | FU24: 1
A25: 41808 | B25: 25.14 | C25: 41809 | D25: 7540.7002 | E25: 41444 | F25: 18.17 | G25: 41444 | H25: 5822.25 | I25: 41080 | J25: 15.78 | K25: 41080 | L25: 5120.55 | M25: 40715 | N25: 15.72 | O25: 40716 | P25: 5278.3 | Q25: 40350 | R25: 14.69 | S25: 40351 | T25: 5316.55 | U25: 39983 | V25: 10.68 | W25: 39986 | X25: 4235.25 | AA25: 39619 | AB25: 4347.55 | AE25: 39254 | AF25: 4267.4 | AI25: 38889 | AJ25: 2923.45 | AP25: 41802 | AQ25: 0.004758128469 | AR25: 1.004758128 | AS25: 41803 | AT25: -0.01409166151 | AU25: 0.9859083385 | AW25: 0 | AZ25: 0 | BB25: 0.01884978998 | BC25: 1 | BD25: 1.004758128 | BE25: 1 | BF25: 0.9859083385 | BG25: 41438 | BH25: -0.0111049417 | BI25: 0.9888950583 | BJ25: 41438 | BK25: -0.01060727058 | BL25: 0.9893927294 | BQ25: 0 | BS25: -0.0004976711182 | BT25: 1 | BU25: 0.9888950583 | BV25: 1 | BW25: 0.9893927294 | BX25: 41074 | BY25: -0.008259212198 | BZ25: 0.9917407878 | CA25: 41074 | CB25: -0.01302365541 | CC25: 0.9869763446 | CH25: 0 | CJ25: 0.004764443212 | CK25: 1 | CL25: 0.9917407878 | CM25: 1 | CN25: 0.9869763446 | CO25: 40709 | CP25: -0.007951070336 | CQ25: 0.9920489297 | CR25: 40710 | CS25: -0.009316200092 | CT25: 0.9906837999 | CY25: 0 | DA25: 0.001365129755 | DB25: 1 | DC25: 0.9920489297 | DD25: 1 | DE25: 0.9906837999 | DF25: 40344 | DG25: 0.000693962526 | DH25: 1.000693963 | DI25: 40345 | DJ25: 0.002106331441 | DK25: 1.002106331 | DP25: 0 | DR25: -0.001412368915 | DS25: 1.000693963 | DT25: 1 | DU25: 1.002106331 | DV25: 1 | DW25: 39979 | DX25: -0.02087114338 | DY25: 0.9791288566 | DZ25: 39980 | EA25: 0.007537912578 | EB25: 1.007537913 | EG25: 0 | EI25: -0.02840905595 | EJ25: 0.9791288566 | EK25: 1 | EL25: 1.007537913 | EM25: 1 | EN25: 0 | EP25: 1 | EQ25: 39615 | ER25: 0.01226450599 | ES25: 1.012264506 | EU25: 0 | EX25: 0 | FA25: 1 | FB25: 1 | FC25: 1 | FD25: 1 | FE25: 0 | FG25: 1 | FH25: 39248 | FI25: 0.0003477218225 | FJ25: 1.000347722 | FL25: 0 | FO25: 0 | FR25: 1 | FS25: 1 | FT25: 1 | FU25: 1
A26: 41809 | B26: 25 | C26: 41810 | D26: 7511.4502 | E26: 41445 | F26: 17.74 | G26: 41445 | H26: 5655.9 | I26: 41081 | J26: 15.9 | K26: 41081 | L26: 5165 | M26: 40716 | N26: 15.8 | O26: 40717 | P26: 5320 | Q26: 40351 | R26: 14.61 | S26: 40352 | T26: 5323.15 | U26: 39986 | V26: 10.57 | W26: 39987 | X26: 4247 | AA26: 39622 | AB26: 4266.4 | AE26: 39255 | AF26: 4252.05 | AI26: 38890 | AJ26: 2994.75 | AP26: 41803 | AQ26: -0.01460142068 | AR26: 0.9853985793 | AS26: 41806 | AT26: -0.001133676282 | AU26: 0.9988663237 | AW26: 0 | AZ26: 0 | BB26: -0.0134677444 | BC26: 1 | BD26: 0.9853985793 | BE26: 1 | BF26: 0.9988663237 | BG26: 41439 | BH26: 0.01516002246 | BI26: 1.015160022 | BJ26: 41439 | BK26: 0.01917846678 | BL26: 1.019178467 | BQ26: 0 | BS26: -0.004018444316 | BT26: 1.015160022 | BU26: 1 | BV26: 1.019178467 | BW26: 1 | BX26: 41075 | BY26: 0.01217168482 | BZ26: 1.012171685 | CA26: 41075 | CB26: 0.01667738266 | CC26: 1.016677383 | CH26: 0 | CJ26: -0.004505697842 | CK26: 1.012171685 | CL26: 1 | CM26: 1.016677383 | CN26: 1 | CO26: 40710 | CP26: -0.00924784217 | CQ26: 0.9907521578 | CR26: 40711 | CS26: -0.005623755038 | CT26: 0.994376245 | CY26: 0 | DA26: -0.003624087132 | DB26: 1 | DC26: 0.9907521578 | DD26: 1 | DE26: 0.994376245 | DF26: 40345 | DG26: 0.001386962552 | DH26: 1.001386963 | DI26: 40346 | DJ26: 0.007929911051 | DK26: 1.007929911 | DP26: 0 | DR26: -0.006542948499 | DS26: 1.001386963 | DT26: 1 | DU26: 1.007929911 | DV26: 1 | DW26: 39980 | DX26: 0.007414272475 | DY26: 1.007414272 | DZ26: 39981 | EA26: -0.03578068972 | EB26: 0.9642193103 | EG26: 0 | EI26: 0.04319496219 | EJ26: 1 | EK26: 1.007414272 | EL26: 1 | EM26: 0.9642193103 | EN26: 0 | EP26: 1 | EQ26: 39616 | ER26: 0.01760524877 | ES26: 1.017605249 | EU26: 0 | EX26: 0 | FA26: 1 | FB26: 1 | FC26: 1 | FD26: 1 | FE26: 0 | FG26: 1 | FH26: 39251 | FI26: -0.005837298781 | FJ26: 0.9941627012 | FL26: 0 | FO26: 0 | FR26: 1 | FS26: 1 | FT26: 1 | FU26: 1
A27: 41810 | B27: 24.9 | C27: 41813 | D27: 7493.3501 | E27: 41446 | F27: 17.76 | G27: 41446 | H27: 5667.65 | I27: 41082 | J27: 15.88 | K27: 41082 | L27: 5146.05 | M27: 40717 | N27: 15.87 | O27: 40718 | P27: 5471.25 | Q27: 40352 | R27: 14.64 | S27: 40353 | T27: 5320.6 | U27: 39987 | V27: 10.54 | W27: 39988 | X27: 4292.95 | AA27: 39623 | AB27: 4191.1 | AE27: 39258 | AF27: 4259.4 | AI27: 38891 | AJ27: 3042.7 | AP27: 41806 | AQ27: -0.0008009611534 | AR27: 0.9991990388 | AS27: 41807 | AT27: 0.01302843979 | AU27: 1.01302844 | AW27: 0 | AZ27: 0 | BB27: -0.01382940095 | BC27: 0.9991990388 | BD27: 1 | BE27: 1.01302844 | BF27: 1 | BG27: 41442 | BH27: 0.004424778761 | BI27: 1.004424779 | BJ27: 41442 | BK27: 0.007170649404 | BL27: 1.007170649 | BQ27: 0 | BS27: -0.002745870643 | BT27: 1.004424779 | BU27: 1 | BV27: 1.007170649 | BW27: 1 | BX27: 41078 | BY27: -0.01202531646 | BZ27: 0.9879746835 | CA27: 41078 | CB27: -0.01455521935 | CC27: 0.9854447807 | CH27: 0 | CJ27: 0.002529902894 | CK27: 1 | CL27: 0.9879746835 | CM27: 1 | CN27: 0.9854447807 | CO27: 40711 | CP27: -0.006845052894 | CQ27: 0.9931549471 | CR27: 40714 | CS27: -0.02021839595 | CT27: 0.9797816041 | CY27: 0 | DA27: 0.01337334305 | DB27: 1 | DC27: 0.9931549471 | DD27: 1 | DE27: 0.9797816041 | DF27: 40346 | DG27: 0.003462603878 | DH27: 1.003462604 | DI27: 40347 | DJ27: -0.00232234092 | DK27: 0.9976776591 | DP27: 0 | DR27: 0.005784944798 | DS27: 1 | DT27: 1.003462604 | DU27: 1 | DV27: 0.9976776591 | DW27: 39981 | DX27: -0.02575896964 | DY27: 0.9742410304 | DZ27: 39982 | EA27: -0.02404646305 | EB27: 0.975953537 | EG27: 0 | EI27: -0.001712506595 | EJ27: 1 | EK27: 0.9742410304 | EL27: 1 | EM27: 0.975953537 | EN27: 0 | EP27: 1 | EQ27: 39617 | ER27: -0.01517300666 | ES27: 0.9848269933 | EU27: 0 | EX27: 0 | FA27: 1 | FB27: 1 | FC27: 1 | FD27: 1 | FE27: 0 | FG27: 1 | FH27: 39252 | FI27: 0.01620409443 | FJ27: 1.016204094 | FL27: 0 | FO27: 0 | FR27: 1 | FS27: 1 | FT27: 1 | FU27: 1
A28: 41813 | B28: 24.85 | C28: 41814 | D28: 7580.2002 | E28: 41449 | F28: 17.44 | G28: 41449 | H28: 5590.25 | I28: 41085 | J28: 15.77 | K28: 41085 | L28: 5114.65 | M28: 40718 | N28: 16.24 | O28: 40721 | P28: 5526.6 | Q28: 40353 | R28: 14.65 | S28: 40354 | T28: 5269.05 | U28: 39988 | V28: 10.64 | W28: 39989 | X28: 4241.85 | AA28: 39624 | AB28: 4252.65 | AE28: 39259 | AF28: 4285.7 | AI28: 38893 | AJ28: 3050.3 | AP28: 41807 | AQ28: 0.01362725451 | AR28: 1.013627255 | AS28: 41808 | AT28: -0.009630881465 | AU28: 0.9903691185 | AW28: 0 | AZ28: 0 | BB28: 0.02325813597 | BC28: 1 | BD28: 1.013627255 | BE28: 1 | BF28: 0.9903691185 | BG28: 41443 | BH28: -0.002202643172 | BI28: 0.9977973568 | BJ28: 41443 | BK28: -0.006230715977 | BL28: 0.993769284 | BQ28: 0 | BS28: 0.004028072805 | BT28: 1 | BU28: 0.9977973568 | BV28: 1 | BW28: 0.993769284 | BX28: 41079 | BY28: 0.006406149904 | BZ28: 1.00640615 | CA28: 41079 | CB28: 0.007819519179 | CC28: 1.007819519 | CH28: 0 | CJ28: -0.001413369275 | CK28: 1.00640615 | CL28: 1 | CM28: 1.007819519 | CN28: 1 | CO28: 40714 | CP28: -0.01754385965 | CQ28: 0.9824561404 | CR28: 40715 | CS28: 0.003413910497 | CT28: 1.00341391 | CY28: 0 | DA28: -0.02095777015 | DB28: 0.9824561404 | DC28: 1 | DD28: 1.00341391 | DE28: 1 | DF28: 40347 | DG28: -0.003450655625 | DH28: 0.9965493444 | DI28: 40350 | DJ28: 0.01723482689 | DK28: 1.017234827 | DP28: 0 | DR28: -0.02068548252 | DS28: 0.9965493444 | DT28: 1 | DU28: 1.017234827 | DV28: 1 | DW28: 39982 | DX28: -0.009442870633 | DY28: 0.9905571294 | DZ28: 39983 | EA28: 0.01463047467 | EB28: 1.014630475 | EG28: 0 | EI28: -0.0240733453 | EJ28: 0.9905571294 | EK28: 1 | EL28: 1.014630475 | EM28: 1 | EN28: 0 | EP28: 1 | EQ28: 39618 | ER28: -0.01705438198 | ES28: 0.982945618 | EU28: 0 | EX28: 0 | FA28: 1 | FB28: 1 | FC28: 1 | FD28: 1 | FE28: 0 | FG28: 1 | FH28: 39253 | FI28: 0.008150819828 | FJ28: 1.00815082 | FL28: 0 | FO28: 0 | FR28: 1 | FS28: 1 | FT28: 1 | FU28: 1
A29: 41814 | B29: 25.11 | C29: 41815 | D29: 7569.25 | E29: 41450 | F29: 17.43 | G29: 41450 | H29: 5609.1 | I29: 41086 | J29: 15.81 | K29: 41086 | L29: 5120.8 | M29: 40721 | N29: 16.44 | O29: 40722 | P29: 5545.3 | Q29: 40354 | R29: 14.55 | S29: 40357 | T29: 5333.5 | U29: 39989 | V29: 10.58 | W29: 39990 | X29: 4375.5 | AA29: 39625 | AB29: 4315.85 | AE29: 39260 | AF29: 4263.95 | AI29: 38894 | AJ29: 2943.2 | AP29: 41808 | AQ29: -0.005931198102 | AR29: 0.9940688019 | AS29: 41809 | AT29: -0.002315366031 | AU29: 0.997684634 | AW29: 0 | AZ29: 0 | BB29: -0.003615832071 | BC29: 1 | BD29: 0.9940688019 | BE29: 1 | BF29: 0.997684634 | BG29: 41444 | BH29: 0.002759381898 | BI29: 1.002759382 | BJ29: 41444 | BK29: 0.001487890464 | BL29: 1.00148789 | BQ29: 0 | BS29: 0.001271491435 | BT29: 1.002759382 | BU29: 1 | BV29: 1.00148789 | BW29: 1 | BX29: 41080 | BY29: 0.004455760662 | BZ29: 1.004455761 | CA29: 41080 | CB29: 0.003272039735 | CC29: 1.00327204 | CH29: 0 | CJ29: 0.001183720927 | CK29: 1.004455761 | CL29: 1 | CM29: 1.00327204 | CN29: 1 | CO29: 40715 | CP29: 0.002551020408 | CQ29: 1.00255102 | CR29: 40716 | CS29: 0.0004643801473 | CT29: 1.00046438 | CY29: 0 | DA29: 0.002086640261 | DB29: 1.00255102 | DC29: 1 | DD29: 1.00046438 | DE29: 1 | DF29: 40350 | DG29: 0.01731301939 | DH29: 1.017313019 | DI29: 40351 | DJ29: -0.006864924439 | DK29: 0.9931350756 | DP29: 0 | DR29: 0.02417794383 | DS29: 1 | DT29: 1.017313019 | DU29: 1 | DV29: 0.9931350756 | DW29: 39983 | DX29: 0.01811248808 | DY29: 1.018112488 | DZ29: 39986 | EA29: -0.01816348294 | EB29: 0.9818365171 | EG29: 0 | EI29: 0.03627597102 | EJ29: 1 | EK29: 1.018112488 | EL29: 1 | EM29: 0.9818365171 | EN29: 0 | EP29: 1 | EQ29: 39619 | ER29: -0.0347893656 | ES29: 0.9652106344 | EU29: 0 | EX29: 0 | FA29: 1 | FB29: 1 | FC29: 1 | FD29: 1 | FE29: 0 | FG29: 1 | FH29: 39254 | FI29: 0.004413166535 | FJ29: 1.004413167 | FL29: 0 | FO29: 0 | FR29: 1 | FS29: 1 | FT29: 1 | FU29: 1
A30: 41815 | B30: 25.03 | C30: 41816 | D30: 7493.2002 | E30: 41451 | F30: 17.37 | G30: 41451 | H30: 5588.7 | I30: 41087 | J30: 15.87 | K30: 41087 | L30: 5141.9 | M30: 40722 | N30: 16.5 | O30: 40723 | P30: 5600.45 | Q30: 40357 | R30: 14.74 | S30: 40358 | T30: 5256.15 | U30: 39990 | V30: 10.92 | W30: 39993 | X30: 4390.95 | AA30: 39626 | AB30: 4136.65 | AE30: 39261 | AF30: 4282 | AI30: 38895 | AJ30: 2982.45 | AP30: 41809 | AQ30: -0.005568814638 | AR30: 0.9944311854 | AS30: 41810 | AT30: -0.003878950127 | AU30: 0.9961210499 | AW30: 0 | AZ30: 0 | BB30: -0.001689864511 | BC30: 1 | BD30: 0.9944311854 | BE30: 1 | BF30: 0.9961210499 | BG30: 41445 | BH30: -0.0236653825 | BI30: 0.9763346175 | BJ30: 41445 | BK30: -0.02857142857 | BL30: 0.9714285714 | BQ30: 0 | BS30: 0.004906046073 | BT30: 1 | BU30: 0.9763346175 | BV30: 1 | BW30: 0.9714285714 | BX30: 41081 | BY30: 0.007604562738 | BZ30: 1.007604563 | CA30: 41081 | CB30: 0.008680708127 | CC30: 1.008680708 | CH30: 0 | CJ30: -0.001076145389 | CK30: 1.007604563 | CL30: 1 | CM30: 1.008680708 | CN30: 1 | CO30: 40716 | CP30: 0.005089058524 | CQ30: 1.005089059 | CR30: 40717 | CS30: 0.007900270921 | CT30: 1.007900271 | CY30: 0 | DA30: -0.002811212396 | DB30: 1.005089059 | DC30: 1 | DD30: 1.007900271 | DE30: 1 | DF30: 40351 | DG30: -0.005445881552 | DH30: 0.9945541184 | DI30: 40352 | DJ30: 0.001241406551 | DK30: 1.001241407 | DP30: 0 | DR30: -0.006687288103 | DS30: 0.9945541184 | DT30: 1 | DU30: 1.001241407 | DV30: 1 | DW30: 39986 | DX30: -0.01029962547 | DY30: 0.9897003745 | DZ30: 39987 | EA30: 0.002774334455 | EB30: 1.002774334 | EG30: 0 | EI30: -0.01307395992 | EJ30: 0.9897003745 | EK30: 1 | EL30: 1.002774334 | EM30: 1 | EN30: 0 | EP30: 1 | EQ30: 39622 | ER30: -0.01866568527 | ES30: 0.9813343147 | EU30: 0 | EX30: 0 | FA30: 1 | FB30: 1 | FC30: 1 | FD30: 1 | FE30: 0 | FG30: 1 | FH30: 39255 | FI30: -0.003597038009 | FJ30: 0.996402962 | FL30: 0 | FO30: 0 | FR30: 1 | FS30: 1 | FT30: 1 | FU30: 1
A31: 41816 | B31: 24.82 | C31: 41817 | D31: 7508.7998 | E31: 41452 | F31: 17.61 | G31: 41452 | H31: 5682.35 | I31: 41088 | J31: 15.89 | K31: 41088 | L31: 5149.15 | M31: 40723 | N31: 16.6 | O31: 40724 | P31: 5647.4 | Q31: 40358 | R31: 14.6 | S31: 40359 | T31: 5312.5 | U31: 39993 | V31: 10.97 | W31: 39994 | X31: 4291.1 | AA31: 39629 | AB31: 4040.55 | AE31: 39262 | AF31: 4318.3 | AI31: 38896 | AJ31: 2981.1 | AP31: 41810 | AQ31: -0.004 | AR31: 0.996 | AS31: 41813 | AT31: -0.002409667843 | AU31: 0.9975903322 | AW31: 0 | AZ31: 0 | BB31: -0.001590332157 | BC31: 1 | BD31: 0.996 | BE31: 1 | BF31: 0.9975903322 | BG31: 41446 | BH31: 0.001127395716 | BI31: 1.001127396 | BJ31: 41446 | BK31: 0.002077476617 | BL31: 1.002077477 | BQ31: 0 | BS31: -0.0009500809014 | BT31: 1.001127396 | BU31: 1 | BV31: 1.002077477 | BW31: 1 | BX31: 41082 | BY31: -0.001257861635 | BZ31: 0.9987421384 | CA31: 41082 | CB31: -0.00366892546 | CC31: 0.9963310745 | CH31: 0 | CJ31: 0.002411063825 | CK31: 1 | CL31: 0.9987421384 | CM31: 1 | CN31: 0.9963310745 | CO31: 40717 | CP31: 0.004430379747 | CQ31: 1.00443038 | CR31: 40718 | CS31: 0.02843045113 | CT31: 1.028430451 | CY31: 0 | DA31: -0.02400007138 | DB31: 1.00443038 | DC31: 1 | DD31: 1.028430451 | DE31: 1 | DF31: 40352 | DG31: 0.00205338809 | DH31: 1.002053388 | DI31: 40353 | DJ31: -0.0004790396664 | DK31: 0.9995209603 | DP31: 0 | DR31: 0.002532427757 | DS31: 1 | DT31: 1.002053388 | DU31: 1 | DV31: 0.9995209603 | DW31: 39987 | DX31: -0.002838221381 | DY31: 0.9971617786 | DZ31: 39988 | EA31: 0.01081940193 | EB31: 1.010819402 | EG31: 0 | EI31: -0.01365762331 | EJ31: 0.9971617786 | EK31: 1 | EL31: 1.010819402 | EM31: 1 | EN31: 0 | EP31: 1 | EQ31: 39623 | ER31: -0.0176495406 | ES31: 0.9823504594 | EU31: 0 | EX31: 0 | FA31: 1 | FB31: 1 | FC31: 1 | FD31: 1 | FE31: 0 | FG31: 1 | FH31: 39258 | FI31: 0.00172857798 | FJ31: 1.001728578 | FL31: 0 | FO31: 0 | FR31: 1 | FS31: 1 | FT31: 1 | FU31: 1
A32: 41817 | B32: 24.95 | C32: 41820 | D32: 7611.3501 | E32: 41453 | F32: 18.01 | G32: 41453 | H32: 5842.2 | I32: 41089 | J32: 16.26 | K32: 41089 | L32: 5278.9 | M32: 40724 | N32: 16.68 | O32: 40725 | P32: 5627.2 | Q32: 40359 | R32: 14.7 | S32: 40360 | T32: 5251.4 | U32: 39994 | V32: 10.76 | W32: 39995 | X32: 4340.9 | AA32: 39630 | AB32: 3896.75 | AE32: 39265 | AF32: 4313.75 | AI32: 38897 | AJ32: 2997.9 | AP32: 41813 | AQ32: -0.002008032129 | AR32: 0.9979919679 | AS32: 41814 | AT32: 0.0115902899 | AU32: 1.01159029 | AW32: 0 | AZ32: 0 | BB32: -0.01359832203 | BC32: 0.9979919679 | BD32: 1 | BE32: 1.01159029 | BF32: 1 | BG32: 41449 | BH32: -0.01801801802 | BI32: 0.981981982 | BJ32: 41449 | BK32: -0.01365645373 | BL32: 0.9863435463 | BQ32: 0 | BS32: -0.004361564285 | BT32: 1 | BU32: 0.981981982 | BV32: 1 | BW32: 0.9863435463 | BX32: 41085 | BY32: -0.006926952141 | BZ32: 0.9930730479 | CA32: 41085 | CB32: -0.006101767375 | CC32: 0.9938982326 | CH32: 0 | CJ32: -0.0008251847661 | CK32: 1 | CL32: 0.9930730479 | CM32: 1 | CN32: 0.9938982326 | CO32: 40718 | CP32: 0.02331442974 | CQ32: 1.02331443 | CR32: 40721 | CS32: 0.01011651816 | CT32: 1.010116518 | CY32: 0 | DA32: 0.01319791158 | DB32: 1.02331443 | DC32: 1 | DD32: 1.010116518 | DE32: 1 | DF32: 40353 | DG32: 0.0006830601093 | DH32: 1.00068306 | DI32: 40354 | DJ32: -0.009688756907 | DK32: 0.9903112431 | DP32: 0 | DR32: 0.01037181702 | DS32: 1 | DT32: 1.00068306 | DU32: 1 | DV32: 0.9903112431 | DW32: 39988 | DX32: 0.009487666034 | DY32: 1.009487666 | DZ32: 39989 | EA32: -0.0119032367 | EB32: 0.9880967633 | EG32: 0 | EI32: 0.02139090274 | EJ32: 1 | EK32: 1.009487666 | EL32: 1 | EM32: 0.9880967633 | EN32: 0 | EP32: 1 | EQ32: 39624 | ER32: 0.01468588199 | ES32: 1.014685882 | EU32: 0 | EX32: 0 | FA32: 1 | FB32: 1 | FC32: 1 | FD32: 1 | FE32: 0 | FG32: 1 | FH32: 39259 | FI32: 0.006174578579 | FJ32: 1.006174579 | FL32: 0 | FO32: 0 | FR32: 1 | FS32: 1 | FT32: 1 | FU32: 1
A33: 41820 | B33: 25.27 | C33: 41821 | D33: 7634.7002 | E33: 41456 | F33: 18.12 | G33: 41456 | H33: 5898.85 | I33: 41092 | J33: 16.28 | K33: 41092 | L33: 5278.6 | M33: 40725 | N33: 16.68 | O33: 40728 | P33: 5650.5 | Q33: 40360 | R33: 14.57 | S33: 40361 | T33: 5237.1 | U33: 39995 | V33: 10.9 | W33: 39996 | X33: 4348.85 | AA33: 39631 | AB33: 4093.35 | AE33: 39266 | AF33: 4357.55 | AI33: 38898 | AJ33: 3128.2 | AP33: 41814 | AQ33: 0.01046277666 | AR33: 1.010462777 | AS33: 41815 | AT33: -0.001444579261 | AU33: 0.9985554207 | AW33: 0 | AZ33: 0 | BB33: 0.01190735592 | BC33: 1 | BD33: 1.010462777 | BE33: 1 | BF33: 0.9985554207 | BG33: 41450 | BH33: -0.0005733944954 | BI33: 0.9994266055 | BJ33: 41450 | BK33: 0.003371942221 | BL33: 1.003371942 | BQ33: 0 | BS33: -0.003945336716 | BT33: 0.9994266055 | BU33: 1 | BV33: 1.003371942 | BW33: 1 | BX33: 41086 | BY33: 0.002536461636 | BZ33: 1.002536462 | CA33: 41086 | CB33: 0.001202428319 | CC33: 1.001202428 | CH33: 0 | CJ33: 0.001334033317 | CK33: 1.002536462 | CL33: 1 | CM33: 1.001202428 | CN33: 1 | CO33: 40721 | CP33: 0.01231527094 | CQ33: 1.012315271 | CR33: 40722 | CS33: 0.003383635508 | CT33: 1.003383636 | CY33: 0 | DA33: 0.008931635428 | DB33: 1.012315271 | DC33: 1 | DD33: 1.003383636 | DE33: 1 | DF33: 40354 | DG33: -0.006825938567 | DH33: 0.9931740614 | DI33: 40357 | DJ33: 0.01223180649 | DK33: 1.012231806 | DP33: 0 | DR33: -0.01905774506 | DS33: 0.9931740614 | DT33: 1 | DU33: 1.012231806 | DV33: 1 | DW33: 39989 | DX33: -0.005639097744 | DY33: 0.9943609023 | DZ33: 39990 | EA33: 0.03150747905 | EB33: 1.031507479 | EG33: 0 | EI33: -0.03714657679 | EJ33: 0.9943609023 | EK33: 1 | EL33: 1.031507479 | EM33: 1 | EN33: 0 | EP33: 1 | EQ33: 39625 | ER33: 0.01486132176 | ES33: 1.014861322 | EU33: 0 | EX33: 0 | FA33: 1 | FB33: 1 | FC33: 1 | FD33: 1 | FE33: 0 | FG33: 1 | FH33: 39260 | FI33: -0.005075016917 | FJ33: 0.9949249831 | FL33: 0 | FO33: 0 | FR33: 1 | FS33: 1 | FT33: 1 | FU33: 1
A34: 41821 | B34: 25.46 | C34: 41822 | D34: 7725.1499 | E34: 41457 | F34: 18.02 | G34: 41457 | H34: 5857.55 | I34: 41093 | J34: 16.31 | K34: 41093 | L34: 5287.95 | M34: 40728 | N34: 16.78 | O34: 40729 | P34: 5632.1 | Q34: 40361 | R34: 14.53 | S34: 40364 | T34: 5235.9 | U34: 39996 | V34: 10.84 | W34: 39997 | X34: 4424.25 | AA34: 39632 | AB34: 3925.75 | AE34: 39267 | AF34: 4359.3 | AI34: 38901 | AJ34: 3150.95 | AP34: 41815 | AQ34: -0.003185981681 | AR34: 0.9968140183 | AS34: 41816 | AT34: -0.01004720415 | AU34: 0.9899527959 | AW34: 0 | AZ34: 0 | BB34: 0.006861222468 | BC34: 1 | BD34: 0.9968140183 | BE34: 1 | BF34: 0.9899527959 | BG34: 41451 | BH34: -0.003442340792 | BI34: 0.9965576592 | BJ34: 41451 | BK34: -0.003636947104 | BL34: 0.9963630529 | BQ34: 0 | BS34: 0.0001946063121 | BT34: 1 | BU34: 0.9965576592 | BV34: 1 | BW34: 0.9963630529 | BX34: 41087 | BY34: 0.003795066414 | BZ34: 1.003795066 | CA34: 41087 | CB34: 0.00412044993 | CC34: 1.00412045 | CH34: 0 | CJ34: -0.000325383516 | CK34: 1.003795066 | CL34: 1 | CM34: 1.00412045 | CN34: 1 | CO34: 40722 | CP34: 0.003649635036 | CQ34: 1.003649635 | CR34: 40723 | CS34: 0.009945359133 | CT34: 1.009945359 | CY34: 0 | DA34: -0.006295724096 | DB34: 1.003649635 | DC34: 1 | DD34: 1.009945359 | DE34: 1 | DF34: 40357 | DG34: 0.01305841924 | DH34: 1.013058419 | DI34: 40358 | DJ34: -0.01450267179 | DK34: 0.9854973282 | DP34: 0 | DR34: 0.02756109104 | DS34: 1 | DT34: 1.013058419 | DU34: 1 | DV34: 0.9854973282 | DW34: 39990 | DX34: 0.03213610586 | DY34: 1.032136106 | DZ34: 39993 | EA34: 0.003531025026 | EB34: 1.003531025 | EG34: 0 | EI34: 0.02860508083 | EJ34: 1.032136106 | EK34: 1 | EL34: 1.003531025 | EM34: 1 | EN34: 0 | EP34: 1 | EQ34: 39626 | ER34: -0.04152136891 | ES34: 0.9584786311 | EU34: 0 | EX34: 0 | FA34: 1 | FB34: 1 | FC34: 1 | FD34: 1 | FE34: 0 | FG34: 1 | FH34: 39261 | FI34: 0.004233164085 | FJ34: 1.004233164 | FL34: 0 | FO34: 0 | FR34: 1 | FS34: 1 | FT34: 1 | FU34: 1
A35: 41822 | B35: 25.7 | C35: 41823 | D35: 7714.7998 | E35: 41458 | F35: 17.75 | G35: 41458 | H35: 5770.9 | I35: 41094 | J35: 16.36 | K35: 41094 | L35: 5302.55 | M35: 40729 | N35: 16.73 | O35: 40730 | P35: 5625.45 | Q35: 40364 | R35: 14.54 | S35: 40365 | T35: 5289.05 | U35: 39997 | V35: 11.02 | W35: 40000 | X35: 4165.7 | AA35: 39633 | AB35: 4016 | AE35: 39268 | AF35: 4353.95 | AI35: 38902 | AJ35: 3138.65 | AP35: 41816 | AQ35: -0.008389932082 | AR35: 0.9916100679 | AS35: 41817 | AT35: 0.002081834141 | AU35: 1.002081834 | AW35: 0 | AZ35: 0 | BB35: -0.01047176622 | BC35: 0.9916100679 | BD35: 1 | BE35: 1.002081834 | BF35: 1 | BG35: 41452 | BH35: 0.01381692573 | BI35: 1.013816926 | BJ35: 41452 | BK35: 0.01675702757 | BL35: 1.016757028 | BQ35: 0 | BS35: -0.002940101839 | BT35: 1.013816926 | BU35: 1 | BV35: 1.016757028 | BW35: 1 | BX35: 41088 | BY35: 0.001260239445 | BZ35: 1.001260239 | CA35: 41088 | CB35: 0.001409984636 | CC35: 1.001409985 | CH35: 0 | CJ35: -0.0001497451905 | CK35: 1.001260239 | CL35: 1 | CM35: 1.001409985 | CN35: 1 | CO35: 40723 | CP35: 0.006060606061 | CQ35: 1.006060606 | CR35: 40724 | CS35: 0.008383254917 | CT35: 1.008383255 | CY35: 0 | DA35: -0.002322648856 | DB35: 1.006060606 | DC35: 1 | DD35: 1.008383255 | DE35: 1 | DF35: 40358 | DG35: -0.009497964722 | DH35: 0.9905020353 | DI35: 40359 | DJ35: 0.01072077471 | DK35: 1.010720775 | DP35: 0 | DR35: -0.02021873943 | DS35: 0.9905020353 | DT35: 1 | DU35: 1.010720775 | DV35: 1 | DW35: 39993 | DX35: 0.004578754579 | DY35: 1.004578755 | DZ35: 39994 | EA35: -0.02273995377 | EB35: 0.9772600462 | EG35: 0 | EI35: 0.02731870835 | EJ35: 1 | EK35: 1.004578755 | EL35: 1 | EM35: 0.9772600462 | EN35: 0 | EP35: 1 | EQ35: 39629 | ER35: -0.02323135871 | ES35: 0.9767686413 | EU35: 0 | EX35: 0 | FA35: 1 | FB35: 1 | FC35: 1 | FD35: 1 | FE35: 0 | FG35: 1 | FH35: 39262 | FI35: 0.008477347034 | FJ35: 1.008477347 | FL35: 0 | FO35: 0 | FR35: 1 | FS35: 1 | FT35: 1 | FU35: 1
A36: 41823 | B36: 25.72 | C36: 41824 | D36: 7751.6001 | E36: 41459 | F36: 17.99 | G36: 41459 | H36: 5836.95 | I36: 41095 | J36: 16.44 | K36: 41095 | L36: 5327.3 | M36: 40730 | N36: 16.68 | O36: 40731 | P36: 5728.95 | Q36: 40365 | R36: 14.68 | S36: 40366 | T36: 5241.1 | U36: 40000 | V36: 10.4 | W36: 40001 | X36: 4202.15 | AA36: 39636 | AB36: 4030 | AE36: 39269 | AF36: 4384.85 | AI36: 38903 | AJ36: 3197.1 | AP36: 41817 | AQ36: 0.005237711523 | AR36: 1.005237712 | AS36: 41820 | AT36: 0.01365734907 | AU36: 1.013657349 | AW36: 0 | AZ36: 0 | BB36: -0.008419637552 | BC36: 1.005237712 | BD36: 1 | BE36: 1.013657349 | BF36: 1 | BG36: 41453 | BH36: 0.02271436684 | BI36: 1.022714367 | BJ36: 41453 | BK36: 0.02813096694 | BL36: 1.028130967 | BQ36: 0 | BS36: -0.005416600104 | BT36: 1.022714367 | BU36: 1 | BV36: 1.028130967 | BW36: 1 | BX36: 41089 | BY36: 0.02328508496 | BZ36: 1.023285085 | CA36: 41089 | CB36: 0.02519833371 | CC36: 1.025198334 | CH36: 0 | CJ36: -0.001913248746 | CK36: 1.023285085 | CL36: 1 | CM36: 1.025198334 | CN36: 1 | CO36: 40724 | CP36: 0.004819277108 | CQ36: 1.004819277 | CR36: 40725 | CS36: -0.003576867231 | CT36: 0.9964231328 | CY36: 0 | DA36: 0.008396144339 | DB36: 1 | DC36: 1.004819277 | DD36: 1 | DE36: 0.9964231328 | DF36: 40359 | DG36: 0.006849315068 | DH36: 1.006849315 | DI36: 40360 | DJ36: -0.01150117647 | DK36: 0.9884988235 | DP36: 0 | DR36: 0.01835049154 | DS36: 1 | DT36: 1.006849315 | DU36: 1 | DV36: 0.9884988235 | DW36: 39994 | DX36: -0.01914311759 | DY36: 0.9808568824 | DZ36: 39995 | EA36: 0.01160541586 | EB36: 1.011605416 | EG36: 0 | EI36: -0.03074853345 | EJ36: 0.9808568824 | EK36: 1 | EL36: 1.011605416 | EM36: 1 | EN36: 0 | EP36: 1 | EQ36: 39630 | ER36: -0.03558921434 | ES36: 0.9644107857 | EU36: 0 | EX36: 0 | FA36: 1 | FB36: 1 | FC36: 1 | FD36: 1 | FE36: 0 | FG36: 1 | FH36: 39265 | FI36: -0.001053655374 | FJ36: 0.9989463446 | FL36: 0 | FO36: 0 | FR36: 1 | FS36: 1 | FT36: 1 | FU36: 1
A37: 41824 | B37: 25.91 | C37: 41827 | D37: 7787.1499 | E37: 41460 | F37: 18.06 | G37: 41460 | H37: 5867.9 | I37: 41096 | J37: 16.39 | K37: 41096 | L37: 5316.95 | M37: 40731 | N37: 16.95 | O37: 40732 | P37: 5660.65 | Q37: 40366 | R37: 14.57 | S37: 40367 | T37: 5296.85 | U37: 40001 | V37: 10.53 | W37: 40002 | X37: 4078.9 | AA37: 39637 | AB37: 3988.55 | AE37: 39272 | AF37: 4419.4 | AI37: 38904 | AJ37: 3156.4 | AP37: 41820 | AQ37: 0.0128256513 | AR37: 1.012825651 | AS37: 41821 | AT37: 0.003067800021 | AU37: 1.0030678 | AW37: 0 | AZ37: 0 | BB37: 0.009757851281 | BC37: 1.012825651 | BD37: 1 | BE37: 1.0030678 | BF37: 1 | BG37: 41456 | BH37: 0.006107717934 | BI37: 1.006107718 | BJ37: 41456 | BK37: 0.009696689603 | BL37: 1.00969669 | BQ37: 0 | BS37: -0.003588971669 | BT37: 1.006107718 | BU37: 1 | BV37: 1.00969669 | BW37: 1 | BX37: 41092 | BY37: 0.0012300123 | BZ37: 1.001230012 | CA37: 41092 | CB37: -5.683002141e-05 | CC37: 0.99994317 | CH37: 0 | CJ37: 0.001286842322 | CK37: 1 | CL37: 1.001230012 | CM37: 1 | CN37: 0.99994317 | CO37: 40725 | CP37: 0 | CQ37: 1 | CR37: 40728 | CS37: 0.004140602786 | CT37: 1.004140603 | CY37: 0 | DA37: -0.004140602786 | DB37: 1 | DC37: 1 | DD37: 1.004140603 | DE37: 1 | DF37: 40360 | DG37: -0.008843537415 | DH37: 0.9911564626 | DI37: 40361 | DJ37: -0.002723083368 | DK37: 0.9972769166 | DP37: 0 | DR37: -0.006120454047 | DS37: 1 | DT37: 0.9911564626 | DU37: 1 | DV37: 0.9972769166 | DW37: 39995 | DX37: 0.01301115242 | DY37: 1.013011152 | DZ37: 39996 | EA37: 0.001831417448 | EB37: 1.001831417 | EG37: 0 | EI37: 0.01117973497 | EJ37: 1.013011152 | EK37: 1 | EL37: 1.001831417 | EM37: 1 | EN37: 0 | EP37: 1 | EQ37: 39631 | ER37: 0.05045229999 | ES37: 1.0504523 | EU37: 0 | EX37: 0 | FA37: 1 | FB37: 1 | FC37: 1 | FD37: 1 | FE37: 0 | FG37: 1 | FH37: 39266 | FI37: 0.01015357867 | FJ37: 1.010153579 | FL37: 0 | FO37: 0 | FR37: 1 | FS37: 1 | FT37: 1 | FU37: 1
A38: 41827 | B38: 25.9 | C38: 41828 | D38: 7623.2002 | E38: 41463 | F38: 17.94 | G38: 41463 | H38: 5811.55 | I38: 41099 | J38: 16.23 | K38: 41099 | L38: 5275.15 | M38: 40732 | N38: 16.79 | O38: 40735 | P38: 5616.1 | Q38: 40367 | R38: 14.71 | S38: 40368 | T38: 5352.45 | U38: 40002 | V38: 10.25 | W38: 40003 | X38: 4080.95 | AA38: 39638 | AB38: 4157.1 | AE38: 39273 | AF38: 4406.05 | AI38: 38905 | AJ38: 3075.85 | AP38: 41821 | AQ38: 0.007518796992 | AR38: 1.007518797 | AS38: 41822 | AT38: 0.01184718425 | AU38: 1.011847184 | AW38: 0 | AZ38: 0 | BB38: -0.004328387262 | BC38: 1.007518797 | BD38: 1 | BE38: 1.011847184 | BF38: 1 | BG38: 41457 | BH38: -0.005518763797 | BI38: 0.9944812362 | BJ38: 41457 | BK38: -0.007001364673 | BL38: 0.9929986353 | BQ38: 0 | BS38: 0.001482600876 | BT38: 1 | BU38: 0.9944812362 | BV38: 1 | BW38: 0.9929986353 | BX38: 41093 | BY38: 0.001842751843 | BZ38: 1.001842752 | CA38: 41093 | CB38: 0.001771302997 | CC38: 1.001771303 | CH38: 0 | CJ38: 7.144884575e-05 | CK38: 1.001842752 | CL38: 1 | CM38: 1.001771303 | CN38: 1 | CO38: 40728 | CP38: 0.005995203837 | CQ38: 1.005995204 | CR38: 40729 | CS38: -0.003256348996 | CT38: 0.996743651 | CY38: 0 | DA38: 0.009251552833 | DB38: 1 | DC38: 1.005995204 | DD38: 1 | DE38: 0.996743651 | DF38: 40361 | DG38: -0.002745367193 | DH38: 0.9972546328 | DI38: 40364 | DJ38: -0.0002291344446 | DK38: 0.9997708656 | DP38: 0 | DR38: -0.002516232748 | DS38: 1 | DT38: 0.9972546328 | DU38: 1 | DV38: 0.9997708656 | DW38: 39996 | DX38: -0.005504587156 | DY38: 0.9944954128 | DZ38: 39997 | EA38: 0.01733791692 | EB38: 1.017337917 | EG38: 0 | EI38: -0.02284250408 | EJ38: 0.9944954128 | EK38: 1 | EL38: 1.017337917 | EM38: 1 | EN38: 0 | EP38: 1 | EQ38: 39632 | ER38: -0.0409444587 | ES38: 0.9590555413 | EU38: 0 | EX38: 0 | FA38: 1 | FB38: 1 | FC38: 1 | FD38: 1 | FE38: 0 | FG38: 1 | FH38: 39267 | FI38: 0.0004016018175 | FJ38: 1.000401602 | FL38: 0 | FO38: 0 | FR38: 1 | FS38: 1 | FT38: 1 | FU38: 1
A39: 41828 | B39: 25.28 | C39: 41829 | D39: 7585 | E39: 41464 | F39: 18.08 | G39: 41464 | H39: 5859 | I39: 41100 | J39: 16.43 | K39: 41100 | L39: 5345.35 | M39: 40735 | N39: 16.64 | O39: 40736 | P39: 5526.15 | Q39: 40368 | R39: 14.87 | S39: 40371 | T39: 5383 | U39: 40003 | V39: 10.25 | W39: 40004 | X39: 4003.9 | AA39: 39639 | AB39: 4162.2 | AE39: 39274 | AF39: 4387.15 | AI39: 38908 | AJ39: 3142 | AP39: 41822 | AQ39: 0.009426551453 | AR39: 1.009426551 | AS39: 41823 | AT39: -0.001339792772 | AU39: 0.9986602072 | AW39: 0 | AZ39: 0 | BB39: 0.01076634423 | BC39: 1 | BD39: 1.009426551 | BE39: 1 | BF39: 0.9986602072 | BG39: 41458 | BH39: -0.01498335183 | BI39: 0.9850166482 | BJ39: 41458 | BK39: -0.01479287415 | BL39: 0.9852071258 | BQ39: 0 | BS39: -0.0001904776774 | BT39: 1 | BU39: 0.9850166482 | BV39: 1 | BW39: 0.9852071258 | BX39: 41094 | BY39: 0.003065603924 | BZ39: 1.003065604 | CA39: 41094 | CB39: 0.002760994336 | CC39: 1.002760994 | CH39: 0 | CJ39: 0.0003046095878 | CK39: 1.003065604 | CL39: 1 | CM39: 1.002760994 | CN39: 1 | CO39: 40729 | CP39: -0.002979737783 | CQ39: 0.9970202622 | CR39: 40730 | CS39: -0.001180731876 | CT39: 0.9988192681 | CY39: 0 | DA39: -0.001799005907 | DB39: 1 | DC39: 0.9970202622 | DD39: 1 | DE39: 0.9988192681 | DF39: 40364 | DG39: 0.0006882312457 | DH39: 1.000688231 | DI39: 40365 | DJ39: 0.0101510724 | DK39: 1.010151072 | DP39: 0 | DR39: -0.009462841158 | DS39: 1.000688231 | DT39: 1 | DU39: 1.010151072 | DV39: 1 | DW39: 39997 | DX39: 0.01660516605 | DY39: 1.016605166 | DZ39: 40000 | EA39: -0.05843928349 | EB39: 0.9415607165 | EG39: 0 | EI39: 0.07504444955 | EJ39: 1 | EK39: 1.016605166 | EL39: 1 | EM39: 0.9415607165 | EN39: 0 | EP39: 1 | EQ39: 39633 | ER39: 0.02298923773 | ES39: 1.022989238 | EU39: 0 | EX39: 0 | FA39: 1 | FB39: 1 | FC39: 1 | FD39: 1 | FE39: 0 | FG39: 1 | FH39: 39268 | FI39: -0.001227261258 | FJ39: 0.9987727387 | FL39: 0 | FO39: 0 | FR39: 1 | FS39: 1 | FT39: 1 | FU39: 1
A40: 41829 | B40: 25.15 | C40: 41830 | D40: 7567.75 | E40: 41465 | F40: 18.03 | G40: 41465 | H40: 5816.7 | I40: 41101 | J40: 16.31 | K40: 41101 | L40: 5306.3 | M40: 40736 | N40: 16.47 | O40: 40737 | P40: 5585.45 | Q40: 40371 | R40: 14.94 | S40: 40372 | T40: 5400.65 | U40: 40004 | V40: 10.1 | W40: 40007 | X40: 3974.05 | AA40: 39640 | AB40: 4049 | AE40: 39275 | AF40: 4446.15 | AI40: 38909 | AJ40: 3116.15 | AP40: 41823 | AQ40: 0.0007782101167 | AR40: 1.00077821 | AS40: 41824 | AT40: 0.004770091377 | AU40: 1.004770091 | AW40: 0 | AZ40: 0 | BB40: -0.00399188126 | BC40: 1.00077821 | BD40: 1 | BE40: 1.004770091 | BF40: 1 | BG40: 41459 | BH40: 0.01352112676 | BI40: 1.013521127 | BJ40: 41459 | BK40: 0.01144535514 | BL40: 1.011445355 | BQ40: 0 | BS40: 0.002075771617 | BT40: 1.013521127 | BU40: 1 | BV40: 1.011445355 | BW40: 1 | BX40: 41095 | BY40: 0.00488997555 | BZ40: 1.004889976 | CA40: 41095 | CB40: 0.004667565605 | CC40: 1.004667566 | CH40: 0 | CJ40: 0.0002224099449 | CK40: 1.004889976 | CL40: 1 | CM40: 1.004667566 | CN40: 1 | CO40: 40730 | CP40: -0.002988643156 | CQ40: 0.9970113568 | CR40: 40731 | CS40: 0.01839852812 | CT40: 1.018398528 | CY40: 0 | DA40: -0.02138717127 | DB40: 0.9970113568 | DC40: 1 | DD40: 1.018398528 | DE40: 1 | DF40: 40365 | DG40: 0.009628610729 | DH40: 1.009628611 | DI40: 40366 | DJ40: -0.009065900303 | DK40: 0.9909340997 | DP40: 0 | DR40: 0.01869451103 | DS40: 1 | DT40: 1.009628611 | DU40: 1 | DV40: 0.9909340997 | DW40: 40000 | DX40: -0.05626134301 | DY40: 0.943738657 | DZ40: 40001 | EA40: 0.008750030007 | EB40: 1.00875003 | EG40: 0 | EI40: -0.06501137302 | EJ40: 0.943738657 | EK40: 1 | EL40: 1.00875003 | EM40: 1 | EN40: 0 | EP40: 1 | EQ40: 39636 | ER40: 0.003486055777 | ES40: 1.003486056 | EU40: 0 | EX40: 0 | FA40: 1 | FB40: 1 | FC40: 1 | FD40: 1 | FE40: 0 | FG40: 1 | FH40: 39269 | FI40: 0.00709700387 | FJ40: 1.007097004 | FL40: 0 | FO40: 0 | FR40: 1 | FS40: 1 | FT40: 1 | FU40: 1
A41: 41830 | B41: 25.15 | C41: 41831 | D41: 7459.6001 | E41: 41466 | F41: 18.3 | G41: 41466 | H41: 5935.1 | I41: 41102 | J41: 16.07 | K41: 41102 | L41: 5235.25 | M41: 40737 | N41: 16.62 | O41: 40738 | P41: 5599.8 | Q41: 40372 | R41: 14.94 | S41: 40373 | T41: 5386.15 | U41: 40007 | V41: 10.11 | W41: 40008 | X41: 4111.4 | AA41: 39643 | AB41: 4039.7 | AE41: 39276 | AF41: 4504.55 | AI41: 38910 | AJ41: 3195.9 | AP41: 41824 | AQ41: 0.007387247278 | AR41: 1.007387247 | AS41: 41827 | AT41: 0.004586124096 | AU41: 1.004586124 | AW41: 0 | AZ41: 0 | BB41: 0.002801123183 | BC41: 1.007387247 | BD41: 1 | BE41: 1.004586124 | BF41: 1 | BG41: 41460 | BH41: 0.003891050584 | BI41: 1.003891051 | BJ41: 41460 | BK41: 0.005302426781 | BL41: 1.005302427 | BQ41: 0 | BS41: -0.001411376197 | BT41: 1.003891051 | BU41: 1 | BV41: 1.005302427 | BW41: 1 | BX41: 41096 | BY41: -0.00304136253 | BZ41: 0.9969586375 | CA41: 41096 | CB41: -0.001942822818 | CC41: 0.9980571772 | CH41: 0 | CJ41: -0.001098539712 | CK41: 1 | CL41: 0.9969586375 | CM41: 1 | CN41: 0.9980571772 | CO41: 40731 | CP41: 0.01618705036 | CQ41: 1.01618705 | CR41: 40732 | CS41: -0.01192190541 | CT41: 0.9880780946 | CY41: 0 | DA41: 0.02810895577 | DB41: 1 | DC41: 1.01618705 | DD41: 1 | DE41: 0.9880780946 | DF41: 40366 | DG41: -0.007493188011 | DH41: 0.992506812 | DI41: 40367 | DJ41: 0.01063708 | DK41: 1.01063708 | DP41: 0 | DR41: -0.01813026801 | DS41: 0.992506812 | DT41: 1 | DU41: 1.01063708 | DV41: 1 | DW41: 40001 | DX41: 0.0125 | DY41: 1.0125 | DZ41: 40002 | EA41: -0.02933022381 | EB41: 0.9706697762 | EG41: 0 | EI41: 0.04183022381 | EJ41: 1 | EK41: 1.0125 | EL41: 1 | EM41: 0.9706697762 | EN41: 0 | EP41: 1 | EQ41: 39637 | ER41: -0.0102853598 | ES41: 0.9897146402 | EU41: 0 | EX41: 0 | FA41: 1 | FB41: 1 | FC41: 1 | FD41: 1 | FE41: 0 | FG41: 1 | FH41: 39272 | FI41: 0.007879402944 | FJ41: 1.007879403 | FL41: 0 | FO41: 0 | FR41: 1 | FS41: 1 | FT41: 1 | FU41: 1
A42: 41831 | B42: 24.75 | C42: 41834 | D42: 7454.1499 | E42: 41467 | F42: 18.54 | G42: 41467 | H42: 6009 | I42: 41103 | J42: 16.07 | K42: 41103 | L42: 5227.25 | M42: 40738 | N42: 16.62 | O42: 40739 | P42: 5581.1 | Q42: 40373 | R42: 14.91 | S42: 40374 | T42: 5378.75 | U42: 40008 | V42: 10.42 | W42: 40009 | X42: 4233.5 | AA42: 39644 | AB42: 3861.1 | AE42: 39279 | AF42: 4512.15 | AI42: 38911 | AJ42: 3169.3 | AP42: 41827 | AQ42: -0.0003859513701 | AR42: 0.9996140486 | AS42: 41828 | AT42: -0.02105387749 | AU42: 0.9789461225 | AW42: 0 | AZ42: 0 | BB42: 0.02066792612 | BC42: 1 | BD42: 0.9996140486 | BE42: 1 | BF42: 0.9789461225 | BG42: 41463 | BH42: -0.006644518272 | BI42: 0.9933554817 | BJ42: 41463 | BK42: -0.009603094804 | BL42: 0.9903969052 | BQ42: 0 | BS42: 0.002958576532 | BT42: 1 | BU42: 0.9933554817 | BV42: 1 | BW42: 0.9903969052 | BX42: 41099 | BY42: -0.009762050031 | BZ42: 0.99023795 | CA42: 41099 | CB42: -0.007861650006 | CC42: 0.99213835 | CH42: 0 | CJ42: -0.001900400024 | CK42: 1 | CL42: 0.99023795 | CM42: 1 | CN42: 0.99213835 | CO42: 40732 | CP42: -0.009439528024 | CQ42: 0.990560472 | CR42: 40735 | CS42: -0.007870120923 | CT42: 0.9921298791 | CY42: 0 | DA42: -0.001569407101 | DB42: 1 | DC42: 0.990560472 | DD42: 1 | DE42: 0.9921298791 | DF42: 40367 | DG42: 0.009608785175 | DH42: 1.009608785 | DI42: 40368 | DJ42: 0.0104968047 | DK42: 1.010496805 | DP42: 0 | DR42: -0.0008880195297 | DS42: 1.009608785 | DT42: 1 | DU42: 1.010496805 | DV42: 1 | DW42: 40002 | DX42: -0.02659069326 | DY42: 0.9734093067 | DZ42: 40003 | EA42: 0.0005025864816 | EB42: 1.000502586 | EG42: 0 | EI42: -0.02709327974 | EJ42: 0.9734093067 | EK42: 1 | EL42: 1.000502586 | EM42: 1 | EN42: 0 | EP42: 1 | EQ42: 39638 | ER42: 0.04225846486 | ES42: 1.042258465 | EU42: 0 | EX42: 0 | FA42: 1 | FB42: 1 | FC42: 1 | FD42: 1 | FE42: 0 | FG42: 1 | FH42: 39273 | FI42: -0.003020772051 | FJ42: 0.9969792279 | FL42: 0 | FO42: 0 | FR42: 1 | FS42: 1 | FT42: 1 | FU42: 1
A43: 41834 | B43: 24.75 | C43: 41835 | D43: 7526.6499 | E43: 41470 | F43: 18.68 | G43: 41470 | H43: 6030.8 | I43: 41106 | J43: 16.01 | K43: 41106 | L43: 5197.25 | M43: 40739 | N43: 16.56 | O43: 40742 | P43: 5567.05 | Q43: 40374 | R43: 14.93 | S43: 40375 | T43: 5393.9 | U43: 40009 | V43: 10.71 | W43: 40010 | X43: 4231.4 | AA43: 39645 | AB43: 3816.7 | AE43: 39280 | AF43: 4496.75 | AI43: 38912 | AJ43: 3123.35 | AP43: 41828 | AQ43: -0.02393822394 | AR43: 0.9760617761 | AS43: 41829 | AT43: -0.005011045099 | AU43: 0.9949889549 | AW43: 0 | AZ43: 0 | BB43: -0.01892717884 | BC43: 1 | BD43: 0.9760617761 | BE43: 1 | BF43: 0.9949889549 | BG43: 41464 | BH43: 0.007803790412 | BI43: 1.00780379 | BJ43: 41464 | BK43: 0.008164775318 | BL43: 1.008164775 | BQ43: 0 | BS43: -0.0003609849056 | BT43: 1.00780379 | BU43: 1 | BV43: 1.008164775 | BW43: 1 | BX43: 41100 | BY43: 0.0123228589 | BZ43: 1.012322859 | CA43: 41100 | CB43: 0.01330767845 | CC43: 1.013307678 | CH43: 0 | CJ43: -0.0009848195514 | CK43: 1.012322859 | CL43: 1 | CM43: 1.013307678 | CN43: 1 | CO43: 40735 | CP43: -0.00893388922 | CQ43: 0.9910661108 | CR43: 40736 | CS43: -0.0160164527 | CT43: 0.9839835473 | CY43: 0 | DA43: 0.007082563479 | DB43: 1 | DC43: 0.9910661108 | DD43: 1 | DE43: 0.9839835473 | DF43: 40368 | DG43: 0.01087695445 | DH43: 1.010876954 | DI43: 40371 | DJ43: 0.005707666583 | DK43: 1.005707667 | DP43: 0 | DR43: 0.00516928787 | DS43: 1.010876954 | DT43: 1 | DU43: 1.005707667 | DV43: 1 | DW43: 40003 | DX43: 0 | DY43: 1 | DZ43: 40004 | EA43: -0.01888040775 | EB43: 0.9811195923 | EG43: 0 | EI43: 0.01888040775 | EJ43: 1 | EK43: 1 | EL43: 1 | EM43: 0.9811195923 | EN43: 0 | EP43: 1 | EQ43: 39639 | ER43: 0.001226816771 | ES43: 1.001226817 | EU43: 0 | EX43: 0 | FA43: 1 | FB43: 1 | FC43: 1 | FD43: 1 | FE43: 0 | FG43: 1 | FH43: 39274 | FI43: -0.004289556405 | FJ43: 0.9957104436 | FL43: 0 | FO43: 0 | FR43: 1 | FS43: 1 | FT43: 1 | FU43: 1
A44: 41835 | B44: 25.09 | C44: 41836 | D44: 7624.3999 | E44: 41471 | F44: 18.43 | G44: 41471 | H44: 5955.25 | I44: 41107 | J44: 16.02 | K44: 41107 | L44: 5192.85 | M44: 40742 | N44: 16.52 | O44: 40743 | P44: 5613.55 | Q44: 40375 | R44: 15.01 | S44: 40378 | T44: 5386.45 | U44: 40010 | V44: 10.73 | W44: 40011 | X44: 4374.95 | AA44: 39646 | AB44: 3947.2 | AE44: 39281 | AF44: 4499.55 | AI44: 38915 | AJ44: 3007.55 | AP44: 41829 | AQ44: -0.005142405063 | AR44: 0.9948575949 | AS44: 41830 | AT44: -0.002274225445 | AU44: 0.9977257746 | AW44: 0 | AZ44: 0 | BB44: -0.002868179618 | BC44: 1 | BD44: 0.9948575949 | BE44: 1 | BF44: 0.9977257746 | BG44: 41465 | BH44: -0.002765486726 | BI44: 0.9972345133 | BJ44: 41465 | BK44: -0.007219662058 | BL44: 0.9927803379 | BQ44: 0 | BS44: 0.004454175333 | BT44: 1 | BU44: 0.9972345133 | BV44: 1 | BW44: 0.9927803379 | BX44: 41101 | BY44: -0.007303712721 | BZ44: 0.9926962873 | CA44: 41101 | CB44: -0.007305414987 | CC44: 0.992694585 | CH44: 0 | CJ44: 1.702266225e-06 | CK44: 1 | CL44: 0.9926962873 | CM44: 1 | CN44: 0.992694585 | CO44: 40736 | CP44: -0.01021634615 | CQ44: 0.9897836538 | CR44: 40737 | CS44: 0.01073079811 | CT44: 1.010730798 | CY44: 0 | DA44: -0.02094714427 | DB44: 0.9897836538 | DC44: 1 | DD44: 1.010730798 | DE44: 1 | DF44: 40371 | DG44: 0.004707464694 | DH44: 1.004707465 | DI44: 40372 | DJ44: 0.003278840795 | DK44: 1.003278841 | DP44: 0 | DR44: 0.001428623899 | DS44: 1.004707465 | DT44: 1 | DU44: 1.003278841 | DV44: 1 | DW44: 40004 | DX44: -0.01463414634 | DY44: 0.9853658537 | DZ44: 40007 | EA44: -0.00745523115 | EB44: 0.9925447689 | EG44: 0 | EI44: -0.007178915192 | EJ44: 1 | EK44: 0.9853658537 | EL44: 1 | EM44: 0.9925447689 | EN44: 0 | EP44: 1 | EQ44: 39640 | ER44: -0.02719715535 | ES44: 0.9728028446 | EU44: 0 | EX44: 0 | FA44: 1 | FB44: 1 | FC44: 1 | FD44: 1 | FE44: 0 | FG44: 1 | FH44: 39275 | FI44: 0.01344836625 | FJ44: 1.013448366 | FL44: 0 | FO44: 0 | FR44: 1 | FS44: 1 | FT44: 1 | FU44: 1
A45: 41836 | B45: 25.5 | C45: 41837 | D45: 7640.4502 | E45: 41472 | F45: 18.36 | G45: 41472 | H45: 5973.3 | I45: 41108 | J45: 16.11 | K45: 41108 | L45: 5216.3 | M45: 40743 | N45: 16.67 | O45: 40744 | P45: 5567.05 | Q45: 40378 | R45: 14.98 | S45: 40379 | T45: 5368 | U45: 40011 | V45: 11.11 | W45: 40014 | X45: 4502.25 | AA45: 39647 | AB45: 4092.25 | AE45: 39282 | AF45: 4562.1 | AI45: 38916 | AJ45: 2993.65 | AP45: 41830 | AQ45: 0 | AR45: 1 | AS45: 41831 | AT45: -0.01429089227 | AU45: 0.9857091077 | AW45: 0 | AZ45: 0 | BB45: 0.01429089227 | BC45: 1 | BD45: 1 | BE45: 1 | BF45: 0.9857091077 | BG45: 41466 | BH45: 0.0149750416 | BI45: 1.014975042 | BJ45: 41466 | BK45: 0.02035518421 | BL45: 1.020355184 | BQ45: 0 | BS45: -0.005380142614 | BT45: 1.014975042 | BU45: 1 | BV45: 1.020355184 | BW45: 1 | BX45: 41102 | BY45: -0.01471489884 | BZ45: 0.9852851012 | CA45: 41102 | CB45: -0.01338974427 | CC45: 0.9866102557 | CH45: 0 | CJ45: -0.001325154569 | CK45: 1 | CL45: 0.9852851012 | CM45: 1 | CN45: 0.9866102557 | CO45: 40737 | CP45: 0.009107468124 | CQ45: 1.009107468 | CR45: 40738 | CS45: 0.002569175268 | CT45: 1.002569175 | CY45: 0 | DA45: 0.006538292856 | DB45: 1.009107468 | DC45: 1 | DD45: 1.002569175 | DE45: 1 | DF45: 40372 | DG45: 0 | DH45: 1 | DI45: 40373 | DJ45: -0.002684862007 | DK45: 0.997315138 | DP45: 0 | DR45: 0.002684862007 | DS45: 1 | DT45: 1 | DU45: 1 | DV45: 0.997315138 | DW45: 40007 | DX45: 0.0009900990099 | DY45: 1.000990099 | DZ45: 40008 | EA45: 0.03456171915 | EB45: 1.034561719 | EG45: 0 | EI45: -0.03357162014 | EJ45: 1.000990099 | EK45: 1 | EL45: 1.034561719 | EM45: 1 | EN45: 0 | EP45: 1 | EQ45: 39643 | ER45: -0.002296863423 | ES45: 0.9977031366 | EU45: 0 | EX45: 0 | FA45: 1 | FB45: 1 | FC45: 1 | FD45: 1 | FE45: 0 | FG45: 1 | FH45: 39276 | FI45: 0.01313495946 | FJ45: 1.013134959 | FL45: 0 | FO45: 0 | FR45: 1 | FS45: 1 | FT45: 1 | FU45: 1
A46: 41837 | B46: 25.59 | C46: 41838 | D46: 7663.8999 | E46: 41473 | F46: 18.54 | G46: 41473 | H46: 6038.05 | I46: 41109 | J46: 16.19 | K46: 41109 | L46: 5242.7 | M46: 40744 | N46: 16.55 | O46: 40745 | P46: 5541.6 | Q46: 40379 | R46: 14.96 | S46: 40380 | T46: 5399.35 | U46: 40014 | V46: 11.47 | W46: 40015 | X46: 4469.1 | AA46: 39650 | AB46: 4159.5 | AE46: 39283 | AF46: 4566.05 | AI46: 38917 | AJ46: 2932.75 | AP46: 41831 | AQ46: -0.01590457256 | AR46: 0.9840954274 | AS46: 41834 | AT46: -0.0007306289784 | AU46: 0.999269371 | AW46: 0 | AZ46: 0 | BB46: -0.01517394359 | BC46: 1 | BD46: 0.9840954274 | BE46: 1 | BF46: 0.999269371 | BG46: 41467 | BH46: 0.0131147541 | BI46: 1.013114754 | BJ46: 41467 | BK46: 0.01245134876 | BL46: 1.012451349 | BQ46: 0 | BS46: 0.0006634053427 | BT46: 1.013114754 | BU46: 1 | BV46: 1.012451349 | BW46: 1 | BX46: 41103 | BY46: 0 | BZ46: 1 | CA46: 41103 | CB46: -0.001528102765 | CC46: 0.9984718972 | CH46: 0 | CJ46: 0.001528102765 | CK46: 1 | CL46: 1 | CM46: 1 | CN46: 0.9984718972 | CO46: 40738 | CP46: 0 | CQ46: 1 | CR46: 40739 | CS46: -0.003339404979 | CT46: 0.996660595 | CY46: 0 | DA46: 0.003339404979 | DB46: 1 | DC46: 1 | DD46: 1 | DE46: 0.996660595 | DF46: 40373 | DG46: -0.002008032129 | DH46: 0.9979919679 | DI46: 40374 | DJ46: -0.001373894154 | DK46: 0.9986261058 | DP46: 0 | DR46: -0.0006341379741 | DS46: 1 | DT46: 0.9979919679 | DU46: 1 | DV46: 0.9986261058 | DW46: 40008 | DX46: 0.03066271019 | DY46: 1.03066271 | DZ46: 40009 | EA46: 0.02969791312 | EB46: 1.029697913 | EG46: 0 | EI46: 0.0009647970683 | EJ46: 1.03066271 | EK46: 1 | EL46: 1.029697913 | EM46: 1 | EN46: 0 | EP46: 1 | EQ46: 39644 | ER46: -0.0442112038 | ES46: 0.9557887962 | EU46: 0 | EX46: 0 | FA46: 1 | FB46: 1 | FC46: 1 | FD46: 1 | FE46: 0 | FG46: 1 | FH46: 39279 | FI46: 0.001687182959 | FJ46: 1.001687183 | FL46: 0 | FO46: 0 | FR46: 1 | FS46: 1 | FT46: 1 | FU46: 1
A47: 41838 | B47: 25.67 | C47: 41841 | D47: 7684.2002 | E47: 41474 | F47: 18.59 | G47: 41474 | H47: 6029.2 | I47: 41110 | J47: 16.09 | K47: 41110 | L47: 5205.1 | M47: 40745 | N47: 16.48 | O47: 40746 | P47: 5633.95 | Q47: 40380 | R47: 15.03 | S47: 40381 | T47: 5441.95 | U47: 40015 | V47: 11.37 | W47: 40016 | X47: 4398.9 | AA47: 39651 | AB47: 4240.1 | AE47: 39286 | AF47: 4619.35 | AI47: 38918 | AJ47: 3023.05 | AP47: 41834 | AQ47: 0 | AR47: 1 | AS47: 41835 | AT47: 0.009726125846 | AU47: 1.009726126 | AW47: 0 | AZ47: 0 | BB47: -0.009726125846 | BC47: 1 | BD47: 1 | BE47: 1.009726126 | BF47: 1 | BG47: 41470 | BH47: 0.007551240561 | BI47: 1.007551241 | BJ47: 41470 | BK47: 0.003627891496 | BL47: 1.003627891 | BQ47: 0 | BS47: 0.003923349065 | BT47: 1.007551241 | BU47: 1 | BV47: 1.003627891 | BW47: 1 | BX47: 41106 | BY47: -0.003733665215 | BZ47: 0.9962663348 | CA47: 41106 | CB47: -0.005739155388 | CC47: 0.9942608446 | CH47: 0 | CJ47: 0.002005490173 | CK47: 1 | CL47: 0.9962663348 | CM47: 1 | CN47: 0.9942608446 | CO47: 40739 | CP47: -0.003610108303 | CQ47: 0.9963898917 | CR47: 40742 | CS47: -0.00251742488 | CT47: 0.9974825751 | CY47: 0 | DA47: -0.001092683423 | DB47: 1 | DC47: 0.9963898917 | DD47: 1 | DE47: 0.9974825751 | DF47: 40374 | DG47: 0.001341381623 | DH47: 1.001341382 | DI47: 40375 | DJ47: 0.002816639554 | DK47: 1.00281664 | DP47: 0 | DR47: -0.001475257931 | DS47: 1.001341382 | DT47: 1 | DU47: 1.00281664 | DV47: 1 | DW47: 40009 | DX47: 0.02783109405 | DY47: 1.027831094 | DZ47: 40010 | EA47: -0.0004960434629 | EB47: 0.9995039565 | EG47: 0 | EI47: 0.02832713751 | EJ47: 1 | EK47: 1.027831094 | EL47: 1 | EM47: 0.9995039565 | EN47: 0 | EP47: 1 | EQ47: 39645 | ER47: -0.01149931367 | ES47: 0.9885006863 | EU47: 0 | EX47: 0 | FA47: 1 | FB47: 1 | FC47: 1 | FD47: 1 | FE47: 0 | FG47: 1 | FH47: 39280 | FI47: -0.003413007103 | FJ47: 0.9965869929 | FL47: 0 | FO47: 0 | FR47: 1 | FS47: 1 | FT47: 1 | FU47: 1
A48: 41841 | B48: 25.64 | C48: 41842 | D48: 7767.8501 | E48: 41477 | F48: 18.65 | G48: 41477 | H48: 6031.8 | I48: 41113 | J48: 15.84 | K48: 41113 | L48: 5117.95 | M48: 40746 | N48: 16.8 | O48: 40749 | P48: 5680.3 | Q48: 40381 | R48: 15.13 | S48: 40382 | T48: 5449.1 | U48: 40016 | V48: 11.19 | W48: 40017 | X48: 4523.75 | AA48: 39652 | AB48: 4476.8 | AE48: 39287 | AF48: 4620.75 | AI48: 38919 | AJ48: 2945 | AP48: 41835 | AQ48: 0.01373737374 | AR48: 1.013737374 | AS48: 41836 | AT48: 0.01298718571 | AU48: 1.012987186 | AW48: 0 | AZ48: 0 | BB48: 0.0007501880308 | BC48: 1.013737374 | BD48: 1 | BE48: 1.012987186 | BF48: 1 | BG48: 41471 | BH48: -0.01338329764 | BI48: 0.9866167024 | BJ48: 41471 | BK48: -0.01252735955 | BL48: 0.9874726404 | BQ48: 0 | BS48: -0.0008559380903 | BT48: 1 | BU48: 0.9866167024 | BV48: 1 | BW48: 0.9874726404 | BX48: 41107 | BY48: 0.000624609619 | BZ48: 1.00062461 | CA48: 41107 | CB48: -0.0008466015681 | CC48: 0.9991533984 | CH48: 0 | CJ48: 0.001471211187 | CK48: 1 | CL48: 1.00062461 | CM48: 1 | CN48: 0.9991533984 | CO48: 40742 | CP48: -0.002415458937 | CQ48: 0.9975845411 | CR48: 40743 | CS48: 0.008352718226 | CT48: 1.008352718 | CY48: 0 | DA48: -0.01076817716 | DB48: 0.9975845411 | DC48: 1 | DD48: 1.008352718 | DE48: 1 | DF48: 40375 | DG48: 0.005358338915 | DH48: 1.005358339 | DI48: 40378 | DJ48: -0.001381189863 | DK48: 0.9986188101 | DP48: 0 | DR48: 0.006739528778 | DS48: 1 | DT48: 1.005358339 | DU48: 1 | DV48: 0.9986188101 | DW48: 40010 | DX48: 0.001867413632 | DY48: 1.001867414 | DZ48: 40011 | EA48: 0.0339249421 | EB48: 1.033924942 | EG48: 0 | EI48: -0.03205752847 | EJ48: 1.001867414 | EK48: 1 | EL48: 1.033924942 | EM48: 1 | EN48: 0 | EP48: 1 | EQ48: 39646 | ER48: 0.03419184112 | ES48: 1.034191841 | EU48: 0 | EX48: 0 | FA48: 1 | FB48: 1 | FC48: 1 | FD48: 1 | FE48: 0 | FG48: 1 | FH48: 39281 | FI48: 0.0006226719297 | FJ48: 1.000622672 | FL48: 0 | FO48: 0 | FR48: 1 | FS48: 1 | FT48: 1 | FU48: 1
A49: 41842 | B49: 25.8 | C49: 41843 | D49: 7795.75 | E49: 41478 | F49: 18.78 | G49: 41478 | H49: 6077.8 | I49: 41114 | J49: 15.85 | K49: 41114 | L49: 5128.2 | M49: 40749 | N49: 16.94 | O49: 40750 | P49: 5574.85 | Q49: 40382 | R49: 15.16 | S49: 40385 | T49: 5418.6 | U49: 40017 | V49: 11.41 | W49: 40018 | X49: 4568.55 | AA49: 39653 | AB49: 4433.55 | AE49: 39288 | AF49: 4588.7 | AI49: 38922 | AJ49: 2985.85 | AP49: 41836 | AQ49: 0.01634117178 | AR49: 1.016341172 | AS49: 41837 | AT49: 0.002105123054 | AU49: 1.002105123 | AW49: 0 | AZ49: 0 | BB49: 0.01423604873 | BC49: 1.016341172 | BD49: 1 | BE49: 1.002105123 | BF49: 1 | BG49: 41472 | BH49: -0.003798155182 | BI49: 0.9962018448 | BJ49: 41472 | BK49: 0.003030939087 | BL49: 1.003030939 | BQ49: 0 | BS49: -0.006829094269 | BT49: 0.9962018448 | BU49: 1 | BV49: 1.003030939 | BW49: 1 | BX49: 41108 | BY49: 0.005617977528 | BZ49: 1.005617978 | CA49: 41108 | CB49: 0.004515824644 | CC49: 1.004515825 | CH49: 0 | CJ49: 0.001102152885 | CK49: 1.005617978 | CL49: 1 | CM49: 1.004515825 | CN49: 1 | CO49: 40743 | CP49: 0.009079903148 | CQ49: 1.009079903 | CR49: 40744 | CS49: -0.008283528249 | CT49: 0.9917164718 | CY49: 0 | DA49: 0.0173634314 | DB49: 1 | DC49: 1.009079903 | DD49: 1 | DE49: 0.9917164718 | DF49: 40378 | DG49: -0.001998667555 | DH49: 0.9980013324 | DI49: 40379 | DJ49: -0.003425261536 | DK49: 0.9965747385 | DP49: 0 | DR49: 0.001426593981 | DS49: 1 | DT49: 0.9980013324 | DU49: 1 | DV49: 0.9965747385 | DW49: 40011 | DX49: 0.03541472507 | DY49: 1.035414725 | DZ49: 40014 | EA49: 0.0290974754 | EB49: 1.029097475 | EG49: 0 | EI49: 0.00631724967 | EJ49: 1.035414725 | EK49: 1 | EL49: 1.029097475 | EM49: 1 | EN49: 0 | EP49: 1 | EQ49: 39647 | ER49: 0.0367475679 | ES49: 1.036747568 | EU49: 0 | EX49: 0 | FA49: 1 | FB49: 1 | FC49: 1 | FD49: 1 | FE49: 0 | FG49: 1 | FH49: 39282 | FI49: 0.01390139014 | FJ49: 1.01390139 | FL49: 0 | FO49: 0 | FR49: 1 | FS49: 1 | FT49: 1 | FU49: 1
A50: 41843 | B50: 25.78 | C50: 41844 | D50: 7830.6001 | E50: 41479 | F50: 18.5 | G50: 41479 | H50: 5990.5 | I50: 41115 | J50: 15.83 | K50: 41115 | L50: 5109.6 | M50: 40750 | N50: 16.7 | O50: 40751 | P50: 5546.8 | Q50: 40385 | R50: 15.16 | S50: 40386 | T50: 5430.6 | U50: 40018 | V50: 11.51 | W50: 40021 | X50: 4572.3 | AA50: 39654 | AB50: 4311.85 | AE50: 39289 | AF50: 4619.8 | AI50: 38923 | AJ50: 3040.5 | AP50: 41837 | AQ50: 0.003529411765 | AR50: 1.003529412 | AS50: 41838 | AT50: 0.003069151606 | AU50: 1.003069152 | AW50: 0 | AZ50: 0 | BB50: 0.000460260159 | BC50: 1.003529412 | BD50: 1 | BE50: 1.003069152 | BF50: 1 | BG50: 41473 | BH50: 0.009803921569 | BI50: 1.009803922 | BJ50: 41473 | BK50: 0.01083990424 | BL50: 1.010839904 | BQ50: 0 | BS50: -0.001035982672 | BT50: 1.009803922 | BU50: 1 | BV50: 1.010839904 | BW50: 1 | BX50: 41109 | BY50: 0.004965859714 | BZ50: 1.00496586 | CA50: 41109 | CB50: 0.005061058605 | CC50: 1.005061059 | CH50: 0 | CJ50: -9.519889029e-05 | CK50: 1.00496586 | CL50: 1 | CM50: 1.005061059 | CN50: 1 | CO50: 40744 | CP50: -0.007198560288 | CQ50: 0.9928014397 | CR50: 40745 | CS50: -0.004571541481 | CT50: 0.9954284585 | CY50: 0 | DA50: -0.002627018807 | DB50: 1 | DC50: 0.9928014397 | DD50: 1 | DE50: 0.9954284585 | DF50: 40379 | DG50: -0.001335113485 | DH50: 0.9986648865 | DI50: 40380 | DJ50: 0.005840163934 | DK50: 1.005840164 | DP50: 0 | DR50: -0.007175277419 | DS50: 0.9986648865 | DT50: 1 | DU50: 1.005840164 | DV50: 1 | DW50: 40014 | DX50: 0.03240324032 | DY50: 1.03240324 | DZ50: 40015 | EA50: -0.007362985174 | EB50: 0.9926370148 | EG50: 0 | EI50: 0.0397662255 | EJ50: 1 | EK50: 1.03240324 | EL50: 1 | EM50: 0.9926370148 | EN50: 0 | EP50: 1 | EQ50: 39650 | ER50: 0.01643350235 | ES50: 1.016433502 | EU50: 0 | EX50: 0 | FA50: 1 | FB50: 1 | FC50: 1 | FD50: 1 | FE50: 0 | FG50: 1 | FH50: 39283 | FI50: 0.000865829333 | FJ50: 1.000865829 | FL50: 0 | FO50: 0 | FR50: 1 | FS50: 1 | FT50: 1 | FU50: 1
A51: 41844 | B51: 25.86 | C51: 41845 | D51: 7790.4502 | E51: 41480 | F51: 18.27 | G51: 41480 | H51: 5907.5 | I51: 41116 | J51: 15.67 | K51: 41116 | L51: 5043 | M51: 40751 | N51: 16.57 | O51: 40752 | P51: 5487.75 | Q51: 40386 | R51: 15.24 | S51: 40387 | T51: 5397.55 | U51: 40021 | V51: 11.55 | W51: 40022 | X51: 4564.1 | AA51: 39657 | AB51: 4332.1 | AE51: 39290 | AF51: 4445.2 | AI51: 38924 | AJ51: 3110.15 | AP51: 41838 | AQ51: 0.00312622118 | AR51: 1.003126221 | AS51: 41841 | AT51: 0.002648821131 | AU51: 1.002648821 | AW51: 0 | AZ51: 0 | BB51: 0.0004774000493 | BC51: 1.003126221 | BD51: 1 | BE51: 1.002648821 | BF51: 1 | BG51: 41474 | BH51: 0.002696871629 | BI51: 1.002696872 | BJ51: 41474 | BK51: -0.001465704988 | BL51: 0.998534295 | BQ51: 0 | BS51: 0.004162576616 | BT51: 1 | BU51: 1.002696872 | BV51: 1 | BW51: 0.998534295 | BX51: 41110 | BY51: -0.006176652254 | BZ51: 0.9938233477 | CA51: 41110 | CB51: -0.007171877086 | CC51: 0.9928281229 | CH51: 0 | CJ51: 0.0009952248318 | CK51: 1 | CL51: 0.9938233477 | CM51: 1 | CN51: 0.9928281229 | CO51: 40745 | CP51: -0.004229607251 | CQ51: 0.9957703927 | CR51: 40746 | CS51: 0.01666486213 | CT51: 1.016664862 | CY51: 0 | DA51: -0.02089446938 | DB51: 0.9957703927 | DC51: 1 | DD51: 1.016664862 | DE51: 1 | DF51: 40380 | DG51: 0.004679144385 | DH51: 1.004679144 | DI51: 40381 | DJ51: 0.007889838592 | DK51: 1.007889839 | DP51: 0 | DR51: -0.003210694207 | DS51: 1.004679144 | DT51: 1 | DU51: 1.007889839 | DV51: 1 | DW51: 40015 | DX51: -0.008718395815 | DY51: 0.9912816042 | DZ51: 40016 | EA51: -0.01570786064 | EB51: 0.9842921394 | EG51: 0 | EI51: 0.006989464828 | EJ51: 1 | EK51: 0.9912816042 | EL51: 1 | EM51: 0.9842921394 | EN51: 0 | EP51: 1 | EQ51: 39651 | ER51: 0.01937732901 | ES51: 1.019377329 | EU51: 0 | EX51: 0 | FA51: 1 | FB51: 1 | FC51: 1 | FD51: 1 | FE51: 0 | FG51: 1 | FH51: 39286 | FI51: 0.01167310914 | FJ51: 1.011673109 | FL51: 0 | FO51: 0 | FR51: 1 | FS51: 1 | FT51: 1 | FU51: 1
A52: 41845 | B52: 25.65 | C52: 41848 | D52: 7748.7002 | E52: 41481 | F52: 18.21 | G52: 41481 | H52: 5886.2 | I52: 41117 | J52: 15.86 | K52: 41117 | L52: 5099.85 | M52: 40752 | N52: 16.47 | O52: 40753 | P52: 5482 | Q52: 40387 | R52: 15.19 | S52: 40388 | T52: 5408.9 | U52: 40022 | V52: 11.57 | W52: 40023 | X52: 4513.5 | AA52: 39658 | AB52: 4189.85 | AE52: 39293 | AF52: 4440.05 | AI52: 38925 | AJ52: 3156.15 | AP52: 41841 | AQ52: -0.001168679392 | AR52: 0.9988313206 | AS52: 41842 | AT52: 0.01088596052 | AU52: 1.010885961 | AW52: 0 | AZ52: 0 | BB52: -0.01205463991 | BC52: 0.9988313206 | BD52: 1 | BE52: 1.010885961 | BF52: 1 | BG52: 41477 | BH52: 0.003227541689 | BI52: 1.003227542 | BJ52: 41477 | BK52: 0.000431234658 | BL52: 1.000431235 | BQ52: 0 | BS52: 0.002796307031 | BT52: 1.003227542 | BU52: 1 | BV52: 1.000431235 | BW52: 1 | BX52: 41113 | BY52: -0.01553760099 | BZ52: 0.984462399 | CA52: 41113 | CB52: -0.01674319417 | CC52: 0.9832568058 | CH52: 0 | CJ52: 0.001205593181 | CK52: 1 | CL52: 0.984462399 | CM52: 1 | CN52: 0.9832568058 | CO52: 40746 | CP52: 0.01941747573 | CQ52: 1.019417476 | CR52: 40749 | CS52: 0.008226910072 | CT52: 1.00822691 | CY52: 0 | DA52: 0.01119056566 | DB52: 1.019417476 | DC52: 1 | DD52: 1.00822691 | DE52: 1 | DF52: 40381 | DG52: 0.006653359947 | DH52: 1.00665336 | DI52: 40382 | DJ52: 0.001313867272 | DK52: 1.001313867 | DP52: 0 | DR52: 0.005339492675 | DS52: 1.00665336 | DT52: 1 | DU52: 1.001313867 | DV52: 1 | DW52: 40016 | DX52: -0.01583113456 | DY52: 0.9841688654 | DZ52: 40017 | EA52: 0.02838209552 | EB52: 1.028382096 | EG52: 0 | EI52: -0.04421323009 | EJ52: 0.9841688654 | EK52: 1 | EL52: 1.028382096 | EM52: 1 | EN52: 0 | EP52: 1 | EQ52: 39652 | ER52: 0.05582415509 | ES52: 1.055824155 | EU52: 0 | EX52: 0 | FA52: 1 | FB52: 1 | FC52: 1 | FD52: 1 | FE52: 0 | FG52: 1 | FH52: 39287 | FI52: 0.0003030729432 | FJ52: 1.000303073 | FL52: 0 | FO52: 0 | FR52: 1 | FS52: 1 | FT52: 1 | FU52: 1
A53: 41848 | B53: 25.56 | C53: 41850 | D53: 7791.3999 | E53: 41484 | F53: 18.03 | G53: 41484 | H53: 5831.65 | I53: 41120 | J53: 16.1 | K53: 41120 | L53: 5199.8 | M53: 40753 | N53: 16.54 | O53: 40756 | P53: 5516.8 | Q53: 40388 | R53: 15.21 | S53: 40389 | T53: 5367.6 | U53: 40023 | V53: 11.52 | W53: 40024 | X53: 4571.45 | AA53: 39659 | AB53: 4313.55 | AE53: 39294 | AF53: 4528.85 | AI53: 38926 | AJ53: 3130.8 | AP53: 41842 | AQ53: 0.00624024961 | AR53: 1.00624025 | AS53: 41843 | AT53: 0.003591714521 | AU53: 1.003591715 | AW53: 0 | AZ53: 0 | BB53: 0.002648535089 | BC53: 1.00624025 | BD53: 1 | BE53: 1.003591715 | BF53: 1 | BG53: 41478 | BH53: 0.006970509383 | BI53: 1.006970509 | BJ53: 41478 | BK53: 0.007626247555 | BL53: 1.007626248 | BQ53: 0 | BS53: -0.0006557381712 | BT53: 1.006970509 | BU53: 1 | BV53: 1.007626248 | BW53: 1 | BX53: 41114 | BY53: 0.0006313131313 | BZ53: 1.000631313 | CA53: 41114 | CB53: 0.002002755009 | CC53: 1.002002755 | CH53: 0 | CJ53: -0.001371441878 | CK53: 1.000631313 | CL53: 1 | CM53: 1.002002755 | CN53: 1 | CO53: 40749 | CP53: 0.008333333333 | CQ53: 1.008333333 | CR53: 40750 | CS53: -0.01856416034 | CT53: 0.9814358397 | CY53: 0 | DA53: 0.02689749368 | DB53: 1 | DC53: 1.008333333 | DD53: 1 | DE53: 0.9814358397 | DF53: 40382 | DG53: 0.001982815598 | DH53: 1.001982816 | DI53: 40385 | DJ53: -0.005597254593 | DK53: 0.9944027454 | DP53: 0 | DR53: 0.007580070191 | DS53: 1 | DT53: 1.001982816 | DU53: 1 | DV53: 0.9944027454 | DW53: 40017 | DX53: 0.01966041108 | DY53: 1.019660411 | DZ53: 40018 | EA53: 0.009903288201 | EB53: 1.009903288 | EG53: 0 | EI53: 0.00975712288 | EJ53: 1.019660411 | EK53: 1 | EL53: 1.009903288 | EM53: 1 | EN53: 0 | EP53: 1 | EQ53: 39653 | ER53: -0.009660918513 | ES53: 0.9903390815 | EU53: 0 | EX53: 0 | FA53: 1 | FB53: 1 | FC53: 1 | FD53: 1 | FE53: 0 | FG53: 1 | FH53: 39288 | FI53: -0.006936103446 | FJ53: 0.9930638966 | FL53: 0 | FO53: 0 | FR53: 1 | FS53: 1 | FT53: 1 | FU53: 1
A54: 41850 | B54: 25.76 | C54: 41851 | D54: 7721.2998 | E54: 41485 | F54: 17.75 | G54: 41485 | H54: 5755.05 | I54: 41121 | J54: 16.16 | K54: 41121 | L54: 5229 | M54: 40756 | N54: 16.62 | O54: 40757 | P54: 5456.55 | Q54: 40389 | R54: 15.17 | S54: 40392 | T54: 5431.65 | U54: 40024 | V54: 11.68 | W54: 40025 | X54: 4636.45 | AA54: 39660 | AB54: 4332.95 | AE54: 39295 | AF54: 4345.85 | AI54: 38929 | AJ54: 3143.2 | AP54: 41843 | AQ54: -0.0007751937984 | AR54: 0.9992248062 | AS54: 41844 | AT54: 0.004470397332 | AU54: 1.004470397 | AW54: 0 | AZ54: 0 | BB54: -0.00524559113 | BC54: 0.9992248062 | BD54: 1 | BE54: 1.004470397 | BF54: 1 | BG54: 41479 | BH54: -0.01490947817 | BI54: 0.9850905218 | BJ54: 41479 | BK54: -0.01436375004 | BL54: 0.98563625 | BQ54: 0 | BS54: -0.0005457281271 | BT54: 1 | BU54: 0.9850905218 | BV54: 1 | BW54: 0.98563625 | BX54: 41115 | BY54: -0.001261829653 | BZ54: 0.9987381703 | CA54: 41115 | CB54: -0.003627003627 | CC54: 0.9963729964 | CH54: 0 | CJ54: 0.002365173974 | CK54: 1 | CL54: 0.9987381703 | CM54: 1 | CN54: 0.9963729964 | CO54: 40750 | CP54: -0.01416765053 | CQ54: 0.9858323495 | CR54: 40751 | CS54: -0.005031525512 | CT54: 0.9949684745 | CY54: 0 | DA54: -0.009136125019 | DB54: 1 | DC54: 0.9858323495 | DD54: 1 | DE54: 0.9949684745 | DF54: 40385 | DG54: 0 | DH54: 1 | DI54: 40386 | DJ54: 0.002214594176 | DK54: 1.002214594 | DP54: 0 | DR54: -0.002214594176 | DS54: 1 | DT54: 1 | DU54: 1.002214594 | DV54: 1 | DW54: 40018 | DX54: 0.008764241893 | DY54: 1.008764242 | DZ54: 40021 | EA54: 0.000820829366 | EB54: 1.000820829 | EG54: 0 | EI54: 0.007943412527 | EJ54: 1.008764242 | EK54: 1 | EL54: 1.000820829 | EM54: 1 | EN54: 0 | EP54: 1 | EQ54: 39654 | ER54: -0.02744978629 | ES54: 0.9725502137 | EU54: 0 | EX54: 0 | FA54: 1 | FB54: 1 | FC54: 1 | FD54: 1 | FE54: 0 | FG54: 1 | FH54: 39289 | FI54: 0.006777518687 | FJ54: 1.006777519 | FL54: 0 | FO54: 0 | FR54: 1 | FS54: 1 | FT54: 1 | FU54: 1
A55: 41851 | B55: 25.59 | C55: 41852 | D55: 7602.6001 | E55: 41486 | F55: 17.82 | G55: 41486 | H55: 5742 | I55: 41122 | J55: 16.19 | K55: 41122 | L55: 5240.5 | M55: 40757 | N55: 16.5 | O55: 40758 | P55: 5404.8 | Q55: 40392 | R55: 15.38 | S55: 40393 | T55: 5439.55 | U55: 40025 | V55: 11.8 | W55: 40028 | X55: 4711.4 | AA55: 39661 | AB55: 4413.55 | AE55: 39296 | AF55: 4356.35 | AI55: 38930 | AJ55: 3147.8 | AP55: 41844 | AQ55: 0.00310318076 | AR55: 1.003103181 | AS55: 41845 | AT55: -0.005127308187 | AU55: 0.9948726918 | AW55: 0 | AZ55: 0 | BB55: 0.008230488947 | BC55: 1 | BD55: 1.003103181 | BE55: 1 | BF55: 0.9948726918 | BG55: 41480 | BH55: -0.01243243243 | BI55: 0.9875675676 | BJ55: 41480 | BK55: -0.01385527085 | BL55: 0.9861447292 | BQ55: 0 | BS55: 0.001422838413 | BT55: 1 | BU55: 0.9875675676 | BV55: 1 | BW55: 0.9861447292 | BX55: 41116 | BY55: -0.01010739103 | BZ55: 0.989892609 | CA55: 41116 | CB55: -0.0130342884 | CC55: 0.9869657116 | CH55: 0 | CJ55: 0.002926897369 | CK55: 1 | CL55: 0.989892609 | CM55: 1 | CN55: 0.9869657116 | CO55: 40751 | CP55: -0.007784431138 | CQ55: 0.9922155689 | CR55: 40752 | CS55: -0.01064577775 | CT55: 0.9893542223 | CY55: 0 | DA55: 0.002861346608 | DB55: 1 | DC55: 0.9922155689 | DD55: 1 | DE55: 0.9893542223 | DF55: 40386 | DG55: 0.005277044855 | DH55: 1.005277045 | DI55: 40387 | DJ55: -0.006085883696 | DK55: 0.9939141163 | DP55: 0 | DR55: 0.01136292855 | DS55: 1 | DT55: 1.005277045 | DU55: 1 | DV55: 0.9939141163 | DW55: 40021 | DX55: 0.003475238923 | DY55: 1.003475239 | DZ55: 40022 | EA55: -0.001793408132 | EB55: 0.9982065919 | EG55: 0 | EI55: 0.005268647054 | EJ55: 1 | EK55: 1.003475239 | EL55: 1 | EM55: 0.9982065919 | EN55: 0 | EP55: 1 | EQ55: 39657 | ER55: 0.004696360031 | ES55: 1.00469636 | EU55: 0 | EX55: 0 | FA55: 1 | FB55: 1 | FC55: 1 | FD55: 1 | FE55: 0 | FG55: 1 | FH55: 39290 | FI55: -0.03779384389 | FJ55: 0.9622061561 | FL55: 0 | FO55: 0 | FR55: 1 | FS55: 1 | FT55: 1 | FU55: 1
A56: 41852 | B56: 25.31 | C56: 41855 | D56: 7683.6499 | E56: 41487 | F56: 17.85 | G56: 41487 | H56: 5727.85 | I56: 41123 | J56: 16.16 | K56: 41123 | L56: 5227.75 | M56: 40758 | N56: 16.36 | O56: 40759 | P56: 5331.8 | Q56: 40393 | R56: 15.44 | S56: 40394 | T56: 5467.85 | U56: 40028 | V56: 12 | W56: 40029 | X56: 4680.5 | AA56: 39664 | AB56: 4395.35 | AE56: 39297 | AF56: 4401.55 | AI56: 38931 | AJ56: 3182.1 | AP56: 41845 | AQ56: -0.008120649652 | AR56: 0.9918793503 | AS56: 41848 | AT56: -0.005359125459 | AU56: 0.9946408745 | AW56: 0 | AZ56: 0 | BB56: -0.002761524193 | BC56: 1 | BD56: 0.9918793503 | BE56: 1 | BF56: 0.9946408745 | BG56: 41481 | BH56: -0.00328407225 | BI56: 0.9967159278 | BJ56: 41481 | BK56: -0.003605586119 | BL56: 0.9963944139 | BQ56: 0 | BS56: 0.0003215138698 | BT56: 1 | BU56: 0.9967159278 | BV56: 1 | BW56: 0.9963944139 | BX56: 41117 | BY56: 0.01212507977 | BZ56: 1.01212508 | CA56: 41117 | CB56: 0.01127305175 | CC56: 1.011273052 | CH56: 0 | CJ56: 0.0008520280154 | CK56: 1.01212508 | CL56: 1 | CM56: 1.011273052 | CN56: 1 | CO56: 40752 | CP56: -0.006035003018 | CQ56: 0.993964997 | CR56: 40753 | CS56: -0.001047788256 | CT56: 0.9989522117 | CY56: 0 | DA56: -0.004987214762 | DB56: 1 | DC56: 0.993964997 | DD56: 1 | DE56: 0.9989522117 | DF56: 40387 | DG56: -0.003280839895 | DH56: 0.9967191601 | DI56: 40388 | DJ56: 0.002102805903 | DK56: 1.002102806 | DP56: 0 | DR56: -0.005383645798 | DS56: 0.9967191601 | DT56: 1 | DU56: 1.002102806 | DV56: 1 | DW56: 40022 | DX56: 0.001731601732 | DY56: 1.001731602 | DZ56: 40023 | EA56: -0.01108652308 | EB56: 0.9889134769 | EG56: 0 | EI56: 0.01281812481 | EJ56: 1 | EK56: 1.001731602 | EL56: 1 | EM56: 0.9889134769 | EN56: 0 | EP56: 1 | EQ56: 39658 | ER56: -0.03283626878 | ES56: 0.9671637312 | EU56: 0 | EX56: 0 | FA56: 1 | FB56: 1 | FC56: 1 | FD56: 1 | FE56: 0 | FG56: 1 | FH56: 39293 | FI56: -0.001158553046 | FJ56: 0.998841447 | FL56: 0 | FO56: 0 | FR56: 1 | FS56: 1 | FT56: 1 | FU56: 1
A57: 41855 | B57: 25.57 | C57: 41856 | D57: 7746.5498 | E57: 41488 | F57: 17.72 | G57: 41488 | H57: 5677.9 | I57: 41124 | J57: 16.11 | K57: 41124 | L57: 5215.7 | M57: 40759 | N57: 16.12 | O57: 40760 | P57: 5211.25 | Q57: 40394 | R57: 15.49 | S57: 40395 | T57: 5447.1 | U57: 40029 | V57: 11.87 | W57: 40030 | X57: 4694.15 | AA57: 39665 | AB57: 4502.85 | AE57: 39300 | AF57: 4339.5 | AI57: 38932 | AJ57: 3190 | AP57: 41848 | AQ57: -0.00350877193 | AR57: 0.9964912281 | AS57: 41850 | AT57: 0.00551056292 | AU57: 1.005510563 | AW57: 0 | AZ57: 0 | BB57: -0.00901933485 | BC57: 0.9964912281 | BD57: 1 | BE57: 1.005510563 | BF57: 1 | BG57: 41484 | BH57: -0.009884678748 | BI57: 0.9901153213 | BJ57: 41484 | BK57: -0.009267439095 | BL57: 0.9907325609 | BQ57: 0 | BS57: -0.0006172396531 | BT57: 1 | BU57: 0.9901153213 | BV57: 1 | BW57: 0.9907325609 | BX57: 41120 | BY57: 0.01513240858 | BZ57: 1.015132409 | CA57: 41120 | CB57: 0.01959861565 | CC57: 1.019598616 | CH57: 0 | CJ57: -0.004466207071 | CK57: 1.015132409 | CL57: 1 | CM57: 1.019598616 | CN57: 1 | CO57: 40753 | CP57: 0.004250151791 | CQ57: 1.004250152 | CR57: 40756 | CS57: 0.006348048158 | CT57: 1.006348048 | CY57: 0 | DA57: -0.002097896366 | DB57: 1.004250152 | DC57: 1 | DD57: 1.006348048 | DE57: 1 | DF57: 40388 | DG57: 0.001316655695 | DH57: 1.001316656 | DI57: 40389 | DJ57: -0.007635563608 | DK57: 0.9923644364 | DP57: 0 | DR57: 0.008952219303 | DS57: 1 | DT57: 1.001316656 | DU57: 1 | DV57: 0.9923644364 | DW57: 40023 | DX57: -0.004321521175 | DY57: 0.9956784788 | DZ57: 40024 | EA57: 0.01283926 | EB57: 1.01283926 | EG57: 0 | EI57: -0.01716078117 | EJ57: 0.9956784788 | EK57: 1 | EL57: 1.01283926 | EM57: 1 | EN57: 0 | EP57: 1 | EQ57: 39659 | ER57: 0.02952372997 | ES57: 1.02952373 | EU57: 0 | EX57: 0 | FA57: 1 | FB57: 1 | FC57: 1 | FD57: 1 | FE57: 0 | FG57: 1 | FH57: 39294 | FI57: 0.01999977478 | FJ57: 1.019999775 | FL57: 0 | FO57: 0 | FR57: 1 | FS57: 1 | FT57: 1 | FU57: 1
A58: 41856 | B58: 25.74 | C58: 41857 | D58: 7672.0498 | E58: 41491 | F58: 17.77 | G58: 41491 | H58: 5685.4 | I58: 41127 | J58: 16.28 | K58: 41127 | L58: 5282.55 | M58: 40760 | N58: 15.78 | O58: 40763 | P58: 5118.5 | Q58: 40395 | R58: 15.48 | S58: 40396 | T58: 5439.25 | U58: 40030 | V58: 11.89 | W58: 40031 | X58: 4585.5 | AA58: 39666 | AB58: 4517.55 | AE58: 39301 | AF58: 4356.35 | AI58: 38933 | AJ58: 3176.75 | AP58: 41850 | AQ58: 0.007824726135 | AR58: 1.007824726 | AS58: 41851 | AT58: -0.008997112316 | AU58: 0.9910028877 | AW58: 0 | AZ58: 0 | BB58: 0.01682183845 | BC58: 1 | BD58: 1.007824726 | BE58: 1 | BF58: 0.9910028877 | BG58: 41485 | BH58: -0.01552967277 | BI58: 0.9844703272 | BJ58: 41485 | BK58: -0.01313521902 | BL58: 0.986864781 | BQ58: 0 | BS58: -0.002394453747 | BT58: 1 | BU58: 0.9844703272 | BV58: 1 | BW58: 0.986864781 | BX58: 41121 | BY58: 0.003726708075 | BZ58: 1.003726708 | CA58: 41121 | CB58: 0.0056156006 | CC58: 1.005615601 | CH58: 0 | CJ58: -0.001888892525 | CK58: 1.003726708 | CL58: 1 | CM58: 1.005615601 | CN58: 1 | CO58: 40756 | CP58: 0.004836759371 | CQ58: 1.004836759 | CR58: 40757 | CS58: -0.01092118619 | CT58: 0.9890788138 | CY58: 0 | DA58: 0.01575794557 | DB58: 1 | DC58: 1.004836759 | DD58: 1 | DE58: 0.9890788138 | DF58: 40389 | DG58: -0.002629848784 | DH58: 0.9973701512 | DI58: 40392 | DJ58: 0.01193270736 | DK58: 1.011932707 | DP58: 0 | DR58: -0.01456255614 | DS58: 0.9973701512 | DT58: 1 | DU58: 1.011932707 | DV58: 1 | DW58: 40024 | DX58: 0.01388888889 | DY58: 1.013888889 | DZ58: 40025 | EA58: 0.01421868335 | EB58: 1.014218683 | EG58: 0 | EI58: -0.000329794461 | EJ58: 1.013888889 | EK58: 1 | EL58: 1.014218683 | EM58: 1 | EN58: 0 | EP58: 1 | EQ58: 39660 | ER58: 0.004497455692 | ES58: 1.004497456 | EU58: 0 | EX58: 0 | FA58: 1 | FB58: 1 | FC58: 1 | FD58: 1 | FE58: 0 | FG58: 1 | FH58: 39295 | FI58: -0.040407609 | FJ58: 0.959592391 | FL58: 0 | FO58: 0 | FR58: 1 | FS58: 1 | FT58: 1 | FU58: 1
